Workbook

Sheet Revision
A1: Name | B1: Date | C1: Comment
A2: AS | B2: 2012-07-02 | C2: Merge location, uncertainty and clearance data sheets into one workbook
A3: AS | B3: 2012-10-04 | C3: Offset 10 (sidetrack) uncertainty from KOP
A4: AS | B4: 2013-10-09 | C4: Offset 11 and realign ref, #01, #2 and #07
A5: AS | B5: 2013-11-05 | C5: Revise based on AA QA
C6: Password protect content for iscwsa
A7: AS | B7: 2017-02-08 | C7: Change error model to ISCWSA MWD r4 (gives all data suffix 'r4')
C8: Add ACR setup to Ref tab
C9: Add ISCWSA ACR calcs
C10: Add example summary (where most wells vertical to make life easier if want to cross check with hand calcs).
C11: Correct Offset 11 location info error
A12: AS | B12: 2017-03-07 | C12: Correct sigmaH/L values for early station
B13: 2017-03-08 | C13: Add missing station at 2850 on ref well.
C14: Reformat for consistent dp, esp with HLA, PCR
A15: AS | B15: 2017-03-28 | C15: Add station at 1m to reduce surface tie-on issues, set vertical azimuth to 0.0 to align with azi assumptions in some implementations.
A16: AS | B16: 2017-05-01 | C16: Revisit Offset 10 / Sidetrack

Sheet Example
A1: Examples of calculated ACR values at station depth
B3: ACR for offset #
A4: Ref MD | B4: 01 | C4: 02 | D4: 03 | E4: 04 | F4: 05 | G4: 06 | H4: 07 | I4: 08 | J4: 09 | K4: 10 | L4: 11
A5: 990 | B5: =VLOOKUP($A5,Offset01_clearance,15,FALSE) -> 11.04836275 | C5: =VLOOKUP($A5,Offset02_clearance,15,FALSE) -> 11.04836275 | D5: =VLOOKUP($A5,Offset03_clearance,15,FALSE) -> 0.998106288 | E5: =VLOOKUP($A5,Offset04_clearance,15,FALSE) -> 2.11480145 | F5: =VLOOKUP($A5,Offset05_clearance,15,FALSE) -> 55.99422632 | G5: =VLOOKUP($A5,Offset06_clearance,15,FALSE) -> 73.37460299 | H5: =VLOOKUP($A5,Offset07_clearance,15,FALSE) -> 110.4702686 | I5: =VLOOKUP($A5,Offset08_clearance,15,FALSE) -> 38.48534204 | J5: =VLOOKUP($A5,Offset09_clearance,15,FALSE) -> 111.5479039 | K5: =VLOOKUP($A5,Offset10_clearance,15,FALSE) -> 3.054183136 | L5: =VLOOKUP($A5,Offset11_clearance,15,FALSE) -> 38.43585213

Sheet Reference well
A1: Wellpath | B1: Reference drilled wellpath r4
A3: REPORT SETUP INFORMATION | H3: ACR Setup
A4: Projection System | B4: ED50 / UTM Zone 31 North | H4: Sm | I4: 0.3 | J4: m | K4: Surface margin
A5: North Reference | B5: Grid | H5: sigmapa | I5: 0.5 | J5: m | K5: Project ahead uncertainty
A6: Scale | B6: 0.9996 | H6: k | I6: 3.5 | K6: Confidence scaling factor
A7: Convergence at slot | B7: 0.00° East | H7: Ref H&C | I7: 36 | J7: ins | K7: Diameter of the reference borehole
H8: Offset H&C | I8: 24 | J8: ins | K8: Diameter of the offset borehole
A10: WELLPATH LOCATION | B10: Local North | C10: Local East | D10: Easting | E10: Northing | F10: Latitude | G10: Longitude
B11: [m] | C11: [m] | D11: [m] | E11: [m]
B12: 0 | C12: 0 | D12: 500000 | E12: 6651566.71 | F12: 60°00'00.000"N | G12: 3°00'00.000"E
B16: MD | C16: Inclination | D16: Azimuth | E16: TVD | F16: North | G16: East | H16: sigmaH | I16: sigmaL | J16: sigmaA
B17: [m] | C17: [°] | D17: [°] | E17: [m] | F17: [m] | G17: [m]
B18: 0 | C18: 0 | D18: 0 | E18: 0 | F18: 0 | G18: 0 | H18: 0 | I18: 0 | J18: 0
B19: 1 | C19: 0 | D19: 0 | E19: 1 | F19: 0 | G19: 0 | H19: 0.0017 | I19: 0.0017 | J19: 0.35
B20: 30 | C20: 0 | D20: 0 | E20: 30 | F20: 0 | G20: 0 | H20: 0.0537 | I20: 0.0537 | J20: 0.3504
B21: 60 | C21: 0 | D21: 0 | E21: 60 | F21: 0 | G21: 0 | H21: 0.1074 | I21: 0.1074 | J21: 0.3516
B22: 90 | C22: 0 | D22: 0 | E22: 90 | F22: 0 | G22: 0 | H22: 0.1612 | I22: 0.1612 | J22: 0.3536
B23: 120 | C23: 0 | D23: 0 | E23: 120 | F23: 0 | G23: 0 | H23: 0.215 | I23: 0.215 | J23: 0.3564
B24: 150 | C24: 0 | D24: 0 | E24: 150 | F24: 0 | G24: 0 | H24: 0.2688 | I24: 0.2688 | J24: 0.36
B25: 180 | C25: 0 | D25: 0 | E25: 180 | F25: 0 | G25: 0 | H25: 0.3225 | I25: 0.3225 | J25: 0.3643
B26: 210 | C26: 0 | D26: 0 | E26: 210 | F26: 0 | G26: 0 | H26: 0.3763 | I26: 0.3763 | J26: 0.3694
B27: 240 | C27: 0 | D27: 0 | E27: 240 | F27: 0 | G27: 0 | H27: 0.4301 | I27: 0.4301 | J27: 0.3752
B28: 270 | C28: 0 | D28: 0 | E28: 270 | F28: 0 | G28: 0 | H28: 0.4838 | I28: 0.4838 | J28: 0.3817
B29: 300 | C29: 0 | D29: 0 | E29: 300 | F29: 0 | G29: 0 | H29: 0.5376 | I29: 0.5376 | J29: 0.3889
B30: 330 | C30: 0 | D30: 0 | E30: 330 | F30: 0 | G30: 0 | H30: 0.5914 | I30: 0.5914 | J30: 0.3967
B31: 360 | C31: 0 | D31: 0 | E31: 360 | F31: 0 | G31: 0 | H31: 0.6452 | I31: 0.6452 | J31: 0.4052
B32: 390 | C32: 0 | D32: 0 | E32: 390 | F32: 0 | G32: 0 | H32: 0.6989 | I32: 0.6989 | J32: 0.4143
B33: 420 | C33: 0 | D33: 0 | E33: 420 | F33: 0 | G33: 0 | H33: 0.7527 | I33: 0.7527 | J33: 0.424
B34: 450 | C34: 0 | D34: 0 | E34: 450 | F34: 0 | G34: 0 | H34: 0.8065 | I34: 0.8065 | J34: 0.4342
B35: 480 | C35: 0 | D35: 0 | E35: 480 | F35: 0 | G35: 0 | H35: 0.8602 | I35: 0.8602 | J35: 0.4451
B36: 510 | C36: 0 | D36: 0 | E36: 510 | F36: 0 | G36: 0 | H36: 0.914 | I36: 0.914 | J36: 0.4564
B37: 540 | C37: 0 | D37: 0 | E37: 540 | F37: 0 | G37: 0 | H37: 0.9678 | I37: 0.9678 | J37: 0.4683
B38: 570 | C38: 0 | D38: 0 | E38: 570 | F38: 0 | G38: 0 | H38: 1.0216 | I38: 1.0216 | J38: 0.4806
B39: 600 | C39: 0 | D39: 0 | E39: 600 | F39: 0 | G39: 0 | H39: 1.0753 | I39: 1.0753 | J39: 0.4935
B40: 630 | C40: 0 | D40: 0 | E40: 630 | F40: 0 | G40: 0 | H40: 1.1291 | I40: 1.1291 | J40: 0.5068
B41: 660 | C41: 0 | D41: 0 | E41: 660 | F41: 0 | G41: 0 | H41: 1.1829 | I41: 1.1829 | J41: 0.5205
B42: 690 | C42: 0 | D42: 0 | E42: 690 | F42: 0 | G42: 0 | H42: 1.2366 | I42: 1.2366 | J42: 0.5348
B43: 720 | C43: 0 | D43: 0 | E43: 720 | F43: 0 | G43: 0 | H43: 1.2904 | I43: 1.2904 | J43: 0.5494
B44: 750 | C44: 0 | D44: 0 | E44: 750 | F44: 0 | G44: 0 | H44: 1.3442 | I44: 1.3442 | J44: 0.5645
B45: 780 | C45: 0 | D45: 0 | E45: 780 | F45: 0 | G45: 0 | H45: 1.3979 | I45: 1.3979 | J45: 0.58
B46: 810 | C46: 0 | D46: 0 | E46: 810 | F46: 0 | G46: 0 | H46: 1.4517 | I46: 1.4517 | J46: 0.596
B47: 840 | C47: 0 | D47: 0 | E47: 840 | F47: 0 | G47: 0 | H47: 1.5055 | I47: 1.5055 | J47: 0.6123
B48: 870 | C48: 0 | D48: 0 | E48: 870 | F48: 0 | G48: 0 | H48: 1.5593 | I48: 1.5593 | J48: 0.629
B49: 900 | C49: 0 | D49: 0 | E49: 900 | F49: 0 | G49: 0 | H49: 1.613 | I49: 1.613 | J49: 0.6462
B50: 930 | C50: 0 | D50: 0 | E50: 930 | F50: 0 | G50: 0 | H50: 1.6668 | I50: 1.6668 | J50: 0.6637
B51: 960 | C51: 0 | D51: 0 | E51: 960 | F51: 0 | G51: 0 | H51: 1.7206 | I51: 1.7206 | J51: 0.6816
B52: 990 | C52: 0 | D52: 0 | E52: 990 | F52: 0 | G52: 0 | H52: 1.7743 | I52: 1.7743 | J52: 0.6999
B53: 1020 | C53: 1.33 | D53: 180 | E53: 1020 | F53: -0.35 | G53: 0 | H53: 1.8249 | I53: 1.8253 | J53: 0.7197
B54: 1050 | C54: 3.33 | D54: 180 | E54: 1049.97 | F54: -1.57 | G54: 0 | H54: 1.8712 | I54: 1.8735 | J54: 0.7444
B55: 1080 | C55: 5.33 | D55: 180 | E55: 1079.88 | F55: -3.83 | G55: 0 | H55: 1.9156 | I55: 1.922 | J55: 0.7741
B56: 1110 | C56: 7.33 | D56: 180 | E56: 1109.7 | F56: -7.14 | G56: 0 | H56: 1.9582 | I56: 1.9709 | J56: 0.8087
B57: 1140 | C57: 9.33 | D57: 180 | E57: 1139.38 | F57: -11.49 | G57: 0 | H57: 1.9988 | I57: 2.0207 | J57: 0.8477
B58: 1170 | C58: 11.33 | D58: 180 | E58: 1168.89 | F58: -16.87 | G58: 0 | H58: 2.0376 | I58: 2.0717 | J58: 0.8909
B59: 1200 | C59: 13.33 | D59: 180 | E59: 1198.2 | F59: -23.27 | G59: 0 | H59: 2.0744 | I59: 2.1247 | J59: 0.9378
B60: 1230 | C60: 15.33 | D60: 180 | E60: 1227.27 | F60: -30.7 | G60: 0 | H60: 2.1093 | I60: 2.18 | J60: 0.9882
B61: 1260 | C61: 17.33 | D61: 180 | E61: 1256.05 | F61: -39.13 | G61: 0 | H61: 2.1423 | I61: 2.2385 | J61: 1.0415
B62: 1290 | C62: 19.33 | D62: 180 | E62: 1284.53 | F62: -48.57 | G62: 0 | H62: 2.1735 | I62: 2.3007 | J62: 1.0976
B63: 1320 | C63: 21.33 | D63: 180 | E63: 1312.66 | F63: -58.99 | G63: 0 | H63: 2.203 | I63: 2.3674 | J63: 1.1561
B64: 1350 | C64: 23.33 | D64: 180 | E64: 1340.41 | F64: -70.38 | G64: 0 | H64: 2.2309 | I64: 2.4392 | J64: 1.2167
B65: 1380 | C65: 25.33 | D65: 180 | E65: 1367.74 | F65: -82.74 | G65: 0 | H65: 2.2571 | I65: 2.5167 | J65: 1.2792
B66: 1410 | C66: 27.33 | D66: 180 | E66: 1394.63 | F66: -96.05 | G66: 0 | H66: 2.282 | I66: 2.6006 | J66: 1.3433
B67: 1440 | C67: 29.33 | D67: 180 | E67: 1421.03 | F67: -110.29 | G67: 0 | H67: 2.3055 | I67: 2.6915 | J67: 1.4088
B68: 1470 | C68: 31.33 | D68: 180 | E68: 1446.93 | F68: -125.43 | G68: 0 | H68: 2.3278 | I68: 2.7897 | J68: 1.4755
B69: 1500 | C69: 33.33 | D69: 180 | E69: 1472.28 | F69: -141.48 | G69: 0 | H69: 2.3491 | I69: 2.8958 | J69: 1.5433
B70: 1530 | C70: 35.33 | D70: 180 | E70: 1497.05 | F70: -158.39 | G70: 0 | H70: 2.3695 | I70: 3.0099 | J70: 1.612
B71: 1560 | C71: 37.33 | D71: 180 | E71: 1521.22 | F71: -176.17 | G71: 0 | H71: 2.3892 | I71: 3.1325 | J71: 1.6813
B72: 1590 | C72: 39.33 | D72: 180 | E72: 1544.75 | F72: -194.77 | G72: 0 | H72: 2.4083 | I72: 3.2635 | J72: 1.7513
B73: 1620 | C73: 41.33 | D73: 180 | E73: 1567.62 | F73: -214.19 | G73: 0 | H73: 2.4269 | I73: 3.4032 | J73: 1.8217
B74: 1650 | C74: 43.33 | D74: 180 | E74: 1589.79 | F74: -234.39 | G74: 0 | H74: 2.4453 | I74: 3.5515 | J74: 1.8925
B75: 1680 | C75: 45.33 | D75: 180 | E75: 1611.25 | F75: -255.35 | G75: 0 | H75: 2.4636 | I75: 3.7083 | J75: 1.9634
B76: 1710 | C76: 47.33 | D76: 180 | E76: 1631.97 | F76: -277.05 | G76: 0 | H76: 2.482 | I76: 3.8736 | J76: 2.0346
B77: 1740 | C77: 49.33 | D77: 180 | E77: 1651.91 | F77: -299.46 | G77: 0 | H77: 2.5005 | I77: 4.0472 | J77: 2.1057
B78: 1770 | C78: 51.33 | D78: 180 | E78: 1671.06 | F78: -322.55 | G78: 0 | H78: 2.5194 | I78: 4.2288 | J78: 2.1768
B79: 1800 | C79: 53.33 | D79: 180 | E79: 1689.39 | F79: -346.29 | G79: 0 | H79: 2.5388 | I79: 4.4182 | J79: 2.2478
B80: 1830 | C80: 55.33 | D80: 180 | E80: 1706.89 | F80: -370.66 | G80: 0 | H80: 2.5588 | I80: 4.6152 | J80: 2.3186
B81: 1860 | C81: 57.33 | D81: 180 | E81: 1723.52 | F81: -395.63 | G81: 0 | H81: 2.5795 | I81: 4.8193 | J81: 2.3892
B82: 1890 | C82: 59.33 | D82: 180 | E82: 1739.27 | F82: -421.16 | G82: 0 | H82: 2.601 | I82: 5.0303 | J82: 2.4595
B83: 1920 | C83: 61.33 | D83: 180 | E83: 1754.12 | F83: -447.23 | G83: 0 | H83: 2.6235 | I83: 5.2478 | J83: 2.5294
B84: 1950 | C84: 63.33 | D84: 180 | E84: 1768.05 | F84: -473.79 | G84: 0 | H84: 2.647 | I84: 5.4715 | J84: 2.599
B85: 1980 | C85: 65.33 | D85: 180 | E85: 1781.04 | F85: -500.83 | G85: 0 | H85: 2.6715 | I85: 5.701 | J85: 2.6681
B86: 2010 | C86: 67.33 | D86: 180 | E86: 1793.09 | F86: -528.31 | G86: 0 | H86: 2.6971 | I86: 5.9358 | J86: 2.7368
B87: 2040 | C87: 69.33 | D87: 180 | E87: 1804.16 | F87: -556.19 | G87: 0 | H87: 2.7239 | I87: 6.1756 | J87: 2.8049
B88: 2070 | C88: 71.33 | D88: 180 | E88: 1814.26 | F88: -584.43 | G88: 0 | H88: 2.7518 | I88: 6.42 | J88: 2.8726
B89: 2100 | C89: 73.33 | D89: 180 | E89: 1823.37 | F89: -613.02 | G89: 0 | H89: 2.7808 | I89: 6.6686 | J89: 2.9397
B90: 2130 | C90: 75.33 | D90: 180 | E90: 1831.47 | F90: -641.9 | G90: 0 | H90: 2.8109 | I90: 6.921 | J90: 3.0063
B91: 2160 | C91: 77.33 | D91: 180 | E91: 1838.56 | F91: -671.05 | G91: 0 | H91: 2.8421 | I91: 7.1767 | J91: 3.0724
B92: 2190 | C92: 79.33 | D92: 180 | E92: 1844.63 | F92: -700.43 | G92: 0 | H92: 2.8742 | I92: 7.4353 | J92: 3.1378
B93: 2220 | C93: 81.33 | D93: 180 | E93: 1849.66 | F93: -730 | G93: 0 | H93: 2.9074 | I93: 7.6965 | J93: 3.2027
B94: 2250 | C94: 83.33 | D94: 180 | E94: 1853.67 | F94: -759.73 | G94: 0 | H94: 2.9413 | I94: 7.9598 | J94: 3.2671
B95: 2280 | C95: 85 | D95: 180 | E95: 1856.72 | F95: -789.57 | G95: 0 | H95: 2.9869 | I95: 8.2248 | J95: 3.3213
B96: 2310 | C96: 85 | D96: 180 | E96: 1859.33 | F96: -819.46 | G96: 0 | H96: 3.0878 | I96: 8.4912 | J96: 3.3268
B97: 2340 | C97: 85 | D97: 180 | E97: 1861.95 | F97: -849.34 | G97: 0 | H97: 3.1898 | I97: 8.759 | J97: 3.3324
B98: 2370 | C98: 85 | D98: 180 | E98: 1864.56 | F98: -879.23 | G98: 0 | H98: 3.2929 | I98: 9.0279 | J98: 3.3381
B99: 2400 | C99: 85 | D99: 180 | E99: 1867.18 | F99: -909.12 | G99: 0 | H99: 3.3968 | I99: 9.2979 | J99: 3.344
B100: 2430 | C100: 85 | D100: 180 | E100: 1869.79 | F100: -939 | G100: 0 | H100: 3.5017 | I100: 9.569 | J100: 3.35
B101: 2460 | C101: 85 | D101: 180 | E101: 1872.41 | F101: -968.89 | G101: 0 | H101: 3.6073 | I101: 9.8409 | J101: 3.3562
B102: 2490 | C102: 85 | D102: 180 | E102: 1875.02 | F102: -998.77 | G102: 0 | H102: 3.7136 | I102: 10.1137 | J102: 3.3625
B103: 2520 | C103: 85 | D103: 180 | E103: 1877.64 | F103: -1028.66 | G103: 0 | H103: 3.8205 | I103: 10.3872 | J103: 3.369
B104: 2550 | C104: 85 | D104: 180 | E104: 1880.25 | F104: -1058.55 | G104: 0 | H104: 3.9281 | I104: 10.6615 | J104: 3.3757
B105: 2580 | C105: 85 | D105: 180 | E105: 1882.87 | F105: -1088.43 | G105: 0 | H105: 4.0362 | I105: 10.9364 | J105: 3.3825
B106: 2610 | C106: 85 | D106: 180 | E106: 1885.48 | F106: -1118.32 | G106: 0 | H106: 4.1448 | I106: 11.2119 | J106: 3.3895
B107: 2640 | C107: 85 | D107: 180 | E107: 1888.09 | F107: -1148.2 | G107: 0 | H107: 4.2539 | I107: 11.488 | J107: 3.3966
B108: 2670 | C108: 85 | D108: 180 | E108: 1890.71 | F108: -1178.09 | G108: 0 | H108: 4.3634 | I108: 11.7646 | J108: 3.4038
B109: 2700 | C109: 85 | D109: 180 | E109: 1893.32 | F109: -1207.97 | G109: 0 | H109: 4.4733 | I109: 12.0417 | J109: 3.4112
B110: 2730 | C110: 85 | D110: 180 | E110: 1895.94 | F110: -1237.86 | G110: 0 | H110: 4.5835 | I110: 12.3193 | J110: 3.4188
B111: 2760 | C111: 85 | D111: 180 | E111: 1898.55 | F111: -1267.75 | G111: 0 | H111: 4.6941 | I111: 12.5973 | J111: 3.4265
B112: 2790 | C112: 86 | D112: 180 | E112: 1900.91 | F112: -1297.65 | G112: 0 | H112: 4.7747 | I112: 12.8757 | J112: 3.4758
B113: 2820 | C113: 88 | D113: 180 | E113: 1902.48 | F113: -1327.61 | G113: 0 | H113: 4.8227 | I113: 13.1545 | J113: 3.5692
B114: 2850 | C114: 90 | D114: 180 | E114: 1903 | F114: -1357.6 | G114: 0 | H114: 4.8673 | I114: 13.4332 | J114: 3.6651
B115: 2880 | C115: 90 | D115: 180 | E115: 1903 | F115: -1387.6 | G115: 0 | H115: 4.9786 | I115: 13.7121 | J115: 3.6718
B116: 2910 | C116: 90 | D116: 180 | E116: 1903 | F116: -1417.6 | G116: 0 | H116: 5.0902 | I116: 13.9913 | J116: 3.6786
B117: 2940 | C117: 90 | D117: 180 | E117: 1903 | F117: -1447.6 | G117: 0 | H117: 5.2021 | I117: 14.2709 | J117: 3.6855

Sheet 01 - well
A1: Wellpath | B1: Offset 01: East 100 drilled wellpath r4
A3: REPORT SETUP INFORMATION
A4: Projection System | B4: ED50 / UTM Zone 31 North
A5: North Reference | B5: Grid
A6: Scale | B6: 0.9996
A7: Convergence at slot | B7: 0.00° East
A9: WELLPATH LOCATION | B9: Local North | C9: Local East | D9: Easting | E9: Northing | F9: Latitude | G9: Longitude
B10: [m] | C10: [m] | D10: [m] | E10: [m]
B11: 0 | C11: 100 | D11: 500099.96 | E11: 6651566.71 | F11: 60°00'00.000"N | G11: 3°00'06.451"E
B15: MD | C15: Inclination | D15: Azimuth | E15: TVD | F15: North | G15: East | H15: sigmaH | I15: sigmaL | J15: sigmaA
B16: [m] | C16: [°] | D16: [°] | E16: [m] | F16: [m] | G16: [m]
B17: 0 | C17: 0 | D17: 0 | E17: 0 | F17: 0 | G17: 100 | H17: 0 | I17: 0 | J17: 0
B18: 1 | C18: 0 | D18: 0 | E18: 1 | F18: 0 | G18: 100 | H18: 0.0017 | I18: 0.0017 | J18: 0.35
B19: 30 | C19: 0 | D19: 0 | E19: 30 | F19: 0 | G19: 100 | H19: 0.0537 | I19: 0.0537 | J19: 0.3504
B20: 60 | C20: 0 | D20: 0 | E20: 60 | F20: 0 | G20: 100 | H20: 0.1074 | I20: 0.1074 | J20: 0.3516
B21: 90 | C21: 0 | D21: 0 | E21: 90 | F21: 0 | G21: 100 | H21: 0.1612 | I21: 0.1612 | J21: 0.3536
B22: 120 | C22: 0 | D22: 0 | E22: 120 | F22: 0 | G22: 100 | H22: 0.215 | I22: 0.215 | J22: 0.3564
B23: 150 | C23: 0 | D23: 0 | E23: 150 | F23: 0 | G23: 100 | H23: 0.2688 | I23: 0.2688 | J23: 0.36
B24: 180 | C24: 0 | D24: 0 | E24: 180 | F24: 0 | G24: 100 | H24: 0.3225 | I24: 0.3225 | J24: 0.3643
B25: 210 | C25: 0 | D25: 0 | E25: 210 | F25: 0 | G25: 100 | H25: 0.3763 | I25: 0.3763 | J25: 0.3694
B26: 240 | C26: 0 | D26: 0 | E26: 240 | F26: 0 | G26: 100 | H26: 0.4301 | I26: 0.4301 | J26: 0.3752
B27: 270 | C27: 0 | D27: 0 | E27: 270 | F27: 0 | G27: 100 | H27: 0.4838 | I27: 0.4838 | J27: 0.3817
B28: 300 | C28: 0 | D28: 0 | E28: 300 | F28: 0 | G28: 100 | H28: 0.5376 | I28: 0.5376 | J28: 0.3889
B29: 330 | C29: 0 | D29: 0 | E29: 330 | F29: 0 | G29: 100 | H29: 0.5914 | I29: 0.5914 | J29: 0.3967
B30: 360 | C30: 0 | D30: 0 | E30: 360 | F30: 0 | G30: 100 | H30: 0.6452 | I30: 0.6452 | J30: 0.4052
B31: 390 | C31: 0 | D31: 0 | E31: 390 | F31: 0 | G31: 100 | H31: 0.6989 | I31: 0.6989 | J31: 0.4143
B32: 420 | C32: 0 | D32: 0 | E32: 420 | F32: 0 | G32: 100 | H32: 0.7527 | I32: 0.7527 | J32: 0.424
B33: 450 | C33: 0 | D33: 0 | E33: 450 | F33: 0 | G33: 100 | H33: 0.8065 | I33: 0.8065 | J33: 0.4342
B34: 480 | C34: 0 | D34: 0 | E34: 480 | F34: 0 | G34: 100 | H34: 0.8602 | I34: 0.8602 | J34: 0.4451
B35: 510 | C35: 0 | D35: 0 | E35: 510 | F35: 0 | G35: 100 | H35: 0.914 | I35: 0.914 | J35: 0.4564
B36: 540 | C36: 0 | D36: 0 | E36: 540 | F36: 0 | G36: 100 | H36: 0.9678 | I36: 0.9678 | J36: 0.4683
B37: 570 | C37: 0 | D37: 0 | E37: 570 | F37: 0 | G37: 100 | H37: 1.0216 | I37: 1.0216 | J37: 0.4806
B38: 600 | C38: 0 | D38: 0 | E38: 600 | F38: 0 | G38: 100 | H38: 1.0753 | I38: 1.0753 | J38: 0.4935
B39: 630 | C39: 0 | D39: 0 | E39: 630 | F39: 0 | G39: 100 | H39: 1.1291 | I39: 1.1291 | J39: 0.5068
B40: 660 | C40: 0 | D40: 0 | E40: 660 | F40: 0 | G40: 100 | H40: 1.1829 | I40: 1.1829 | J40: 0.5205
B41: 690 | C41: 0 | D41: 0 | E41: 690 | F41: 0 | G41: 100 | H41: 1.2366 | I41: 1.2366 | J41: 0.5348
B42: 720 | C42: 0 | D42: 0 | E42: 720 | F42: 0 | G42: 100 | H42: 1.2904 | I42: 1.2904 | J42: 0.5494
B43: 750 | C43: 0 | D43: 0 | E43: 750 | F43: 0 | G43: 100 | H43: 1.3442 | I43: 1.3442 | J43: 0.5645
B44: 780 | C44: 0 | D44: 0 | E44: 780 | F44: 0 | G44: 100 | H44: 1.3979 | I44: 1.3979 | J44: 0.58
B45: 810 | C45: 0 | D45: 0 | E45: 810 | F45: 0 | G45: 100 | H45: 1.4517 | I45: 1.4517 | J45: 0.596
B46: 840 | C46: 0 | D46: 0 | E46: 840 | F46: 0 | G46: 100 | H46: 1.5055 | I46: 1.5055 | J46: 0.6123
B47: 870 | C47: 0 | D47: 0 | E47: 870 | F47: 0 | G47: 100 | H47: 1.5593 | I47: 1.5593 | J47: 0.629
B48: 900 | C48: 0 | D48: 0 | E48: 900 | F48: 0 | G48: 100 | H48: 1.613 | I48: 1.613 | J48: 0.6462
B49: 930 | C49: 0 | D49: 0 | E49: 930 | F49: 0 | G49: 100 | H49: 1.6668 | I49: 1.6668 | J49: 0.6637
B50: 960 | C50: 0 | D50: 0 | E50: 960 | F50: 0 | G50: 100 | H50: 1.7206 | I50: 1.7206 | J50: 0.6816
B51: 990 | C51: 0 | D51: 0 | E51: 990 | F51: 0 | G51: 100 | H51: 1.7743 | I51: 1.7743 | J51: 0.6999
B52: 1020 | C52: 1.33 | D52: 180 | E52: 1020 | F52: -0.35 | G52: 100 | H52: 1.8249 | I52: 1.8253 | J52: 0.7197
B53: 1050 | C53: 3.33 | D53: 180 | E53: 1049.97 | F53: -1.57 | G53: 100 | H53: 1.8712 | I53: 1.8735 | J53: 0.7444
B54: 1080 | C54: 5.33 | D54: 180 | E54: 1079.88 | F54: -3.83 | G54: 100 | H54: 1.9156 | I54: 1.922 | J54: 0.7741
B55: 1110 | C55: 7.33 | D55: 180 | E55: 1109.7 | F55: -7.14 | G55: 100 | H55: 1.9582 | I55: 1.9709 | J55: 0.8087
B56: 1140 | C56: 9.33 | D56: 180 | E56: 1139.38 | F56: -11.49 | G56: 100 | H56: 1.9988 | I56: 2.0207 | J56: 0.8477
B57: 1170 | C57: 11.33 | D57: 180 | E57: 1168.89 | F57: -16.87 | G57: 100 | H57: 2.0376 | I57: 2.0717 | J57: 0.8909
B58: 1200 | C58: 13.33 | D58: 180 | E58: 1198.2 | F58: -23.27 | G58: 100 | H58: 2.0744 | I58: 2.1247 | J58: 0.9378
B59: 1230 | C59: 15.33 | D59: 180 | E59: 1227.27 | F59: -30.7 | G59: 100 | H59: 2.1093 | I59: 2.18 | J59: 0.9882
B60: 1260 | C60: 17.33 | D60: 180 | E60: 1256.05 | F60: -39.13 | G60: 100 | H60: 2.1423 | I60: 2.2385 | J60: 1.0415
B61: 1290 | C61: 19.33 | D61: 180 | E61: 1284.53 | F61: -48.57 | G61: 100 | H61: 2.1735 | I61: 2.3007 | J61: 1.0976
B62: 1320 | C62: 21.33 | D62: 180 | E62: 1312.66 | F62: -58.99 | G62: 100 | H62: 2.203 | I62: 2.3674 | J62: 1.1561
B63: 1350 | C63: 23.33 | D63: 180 | E63: 1340.41 | F63: -70.38 | G63: 100 | H63: 2.2309 | I63: 2.4392 | J63: 1.2167
B64: 1380 | C64: 25.33 | D64: 180 | E64: 1367.74 | F64: -82.74 | G64: 100 | H64: 2.2571 | I64: 2.5167 | J64: 1.2792
B65: 1410 | C65: 27.33 | D65: 180 | E65: 1394.63 | F65: -96.05 | G65: 100 | H65: 2.282 | I65: 2.6006 | J65: 1.3433
B66: 1440 | C66: 29.33 | D66: 180 | E66: 1421.03 | F66: -110.29 | G66: 100 | H66: 2.3055 | I66: 2.6915 | J66: 1.4088
B67: 1470 | C67: 31.33 | D67: 180 | E67: 1446.93 | F67: -125.43 | G67: 100 | H67: 2.3278 | I67: 2.7897 | J67: 1.4755
B68: 1500 | C68: 33.33 | D68: 180 | E68: 1472.28 | F68: -141.48 | G68: 100 | H68: 2.3491 | I68: 2.8958 | J68: 1.5433
B69: 1530 | C69: 35.33 | D69: 180 | E69: 1497.05 | F69: -158.39 | G69: 100 | H69: 2.3695 | I69: 3.0099 | J69: 1.612
B70: 1560 | C70: 37.33 | D70: 180 | E70: 1521.22 | F70: -176.17 | G70: 100 | H70: 2.3892 | I70: 3.1325 | J70: 1.6813
B71: 1590 | C71: 39.33 | D71: 180 | E71: 1544.75 | F71: -194.77 | G71: 100 | H71: 2.4083 | I71: 3.2635 | J71: 1.7513
B72: 1620 | C72: 41.33 | D72: 180 | E72: 1567.62 | F72: -214.19 | G72: 100 | H72: 2.4269 | I72: 3.4032 | J72: 1.8217
B73: 1650 | C73: 43.33 | D73: 180 | E73: 1589.79 | F73: -234.39 | G73: 100 | H73: 2.4453 | I73: 3.5515 | J73: 1.8925
B74: 1680 | C74: 45.33 | D74: 180 | E74: 1611.25 | F74: -255.35 | G74: 100 | H74: 2.4636 | I74: 3.7083 | J74: 1.9634
B75: 1710 | C75: 47.33 | D75: 180 | E75: 1631.97 | F75: -277.05 | G75: 100 | H75: 2.482 | I75: 3.8736 | J75: 2.0346
B76: 1740 | C76: 49.33 | D76: 180 | E76: 1651.91 | F76: -299.46 | G76: 100 | H76: 2.5005 | I76: 4.0472 | J76: 2.1057
B77: 1770 | C77: 51.33 | D77: 180 | E77: 1671.06 | F77: -322.55 | G77: 100 | H77: 2.5194 | I77: 4.2288 | J77: 2.1768
B78: 1800 | C78: 53.33 | D78: 180 | E78: 1689.39 | F78: -346.29 | G78: 100 | H78: 2.5388 | I78: 4.4182 | J78: 2.2478
B79: 1830 | C79: 55.33 | D79: 180 | E79: 1706.89 | F79: -370.66 | G79: 100 | H79: 2.5588 | I79: 4.6152 | J79: 2.3186
B80: 1860 | C80: 57.33 | D80: 180 | E80: 1723.52 | F80: -395.63 | G80: 100 | H80: 2.5795 | I80: 4.8193 | J80: 2.3892
B81: 1890 | C81: 59.33 | D81: 180 | E81: 1739.27 | F81: -421.16 | G81: 100 | H81: 2.601 | I81: 5.0303 | J81: 2.4595
B82: 1920 | C82: 61.33 | D82: 180 | E82: 1754.12 | F82: -447.23 | G82: 100 | H82: 2.6235 | I82: 5.2478 | J82: 2.5294
B83: 1950 | C83: 63.33 | D83: 180 | E83: 1768.05 | F83: -473.79 | G83: 100 | H83: 2.647 | I83: 5.4715 | J83: 2.599
B84: 1980 | C84: 65.33 | D84: 180 | E84: 1781.04 | F84: -500.83 | G84: 100 | H84: 2.6715 | I84: 5.701 | J84: 2.6681
B85: 2010 | C85: 67.33 | D85: 180 | E85: 1793.09 | F85: -528.31 | G85: 100 | H85: 2.6971 | I85: 5.9358 | J85: 2.7368
B86: 2040 | C86: 69.33 | D86: 180 | E86: 1804.16 | F86: -556.19 | G86: 100 | H86: 2.7239 | I86: 6.1756 | J86: 2.8049
B87: 2070 | C87: 71.33 | D87: 180 | E87: 1814.26 | F87: -584.43 | G87: 100 | H87: 2.7518 | I87: 6.42 | J87: 2.8726
B88: 2100 | C88: 73.33 | D88: 180 | E88: 1823.37 | F88: -613.02 | G88: 100 | H88: 2.7808 | I88: 6.6686 | J88: 2.9397
B89: 2130 | C89: 75.33 | D89: 180 | E89: 1831.47 | F89: -641.9 | G89: 100 | H89: 2.8109 | I89: 6.921 | J89: 3.0063
B90: 2160 | C90: 77.33 | D90: 180 | E90: 1838.56 | F90: -671.05 | G90: 100 | H90: 2.8421 | I90: 7.1767 | J90: 3.0724
B91: 2190 | C91: 79.33 | D91: 180 | E91: 1844.63 | F91: -700.43 | G91: 100 | H91: 2.8742 | I91: 7.4353 | J91: 3.1378
B92: 2220 | C92: 81.33 | D92: 180 | E92: 1849.66 | F92: -730 | G92: 100 | H92: 2.9074 | I92: 7.6965 | J92: 3.2027
B93: 2250 | C93: 83.33 | D93: 180 | E93: 1853.67 | F93: -759.73 | G93: 100 | H93: 2.9413 | I93: 7.9598 | J93: 3.2671
B94: 2280 | C94: 85 | D94: 180 | E94: 1856.72 | F94: -789.57 | G94: 100 | H94: 2.9869 | I94: 8.2248 | J94: 3.3213
B95: 2310 | C95: 85 | D95: 180 | E95: 1859.33 | F95: -819.46 | G95: 100 | H95: 3.0878 | I95: 8.4912 | J95: 3.3268
B96: 2340 | C96: 85 | D96: 180 | E96: 1861.95 | F96: -849.34 | G96: 100 | H96: 3.1898 | I96: 8.759 | J96: 3.3324
B97: 2370 | C97: 85 | D97: 180 | E97: 1864.56 | F97: -879.23 | G97: 100 | H97: 3.2929 | I97: 9.0279 | J97: 3.3381
B98: 2400 | C98: 85 | D98: 180 | E98: 1867.18 | F98: -909.12 | G98: 100 | H98: 3.3968 | I98: 9.2979 | J98: 3.344
B99: 2430 | C99: 85 | D99: 180 | E99: 1869.79 | F99: -939 | G99: 100 | H99: 3.5017 | I99: 9.569 | J99: 3.35
B100: 2460 | C100: 85 | D100: 180 | E100: 1872.41 | F100: -968.89 | G100: 100 | H100: 3.6073 | I100: 9.8409 | J100: 3.3562
B101: 2490 | C101: 85 | D101: 180 | E101: 1875.02 | F101: -998.77 | G101: 100 | H101: 3.7136 | I101: 10.1137 | J101: 3.3625
B102: 2520 | C102: 85 | D102: 180 | E102: 1877.64 | F102: -1028.66 | G102: 100 | H102: 3.8205 | I102: 10.3872 | J102: 3.369
B103: 2550 | C103: 85 | D103: 180 | E103: 1880.25 | F103: -1058.55 | G103: 100 | H103: 3.9281 | I103: 10.6615 | J103: 3.3757
B104: 2580 | C104: 85 | D104: 180 | E104: 1882.87 | F104: -1088.43 | G104: 100 | H104: 4.0362 | I104: 10.9364 | J104: 3.3825
B105: 2610 | C105: 85 | D105: 180 | E105: 1885.48 | F105: -1118.32 | G105: 100 | H105: 4.1448 | I105: 11.2119 | J105: 3.3895
B106: 2640 | C106: 85 | D106: 180 | E106: 1888.09 | F106: -1148.2 | G106: 100 | H106: 4.2539 | I106: 11.488 | J106: 3.3966
B107: 2670 | C107: 85 | D107: 180 | E107: 1890.71 | F107: -1178.09 | G107: 100 | H107: 4.3634 | I107: 11.7646 | J107: 3.4038
B108: 2700 | C108: 85 | D108: 180 | E108: 1893.32 | F108: -1207.97 | G108: 100 | H108: 4.4733 | I108: 12.0417 | J108: 3.4112
B109: 2730 | C109: 85 | D109: 180 | E109: 1895.94 | F109: -1237.86 | G109: 100 | H109: 4.5835 | I109: 12.3193 | J109: 3.4188
B110: 2760 | C110: 85 | D110: 180 | E110: 1898.55 | F110: -1267.75 | G110: 100 | H110: 4.6941 | I110: 12.5973 | J110: 3.4265
B111: 2790 | C111: 86 | D111: 180 | E111: 1900.91 | F111: -1297.65 | G111: 100 | H111: 4.7747 | I111: 12.8757 | J111: 3.4758
B112: 2820 | C112: 88 | D112: 180 | E112: 1902.48 | F112: -1327.61 | G112: 100 | H112: 4.8227 | I112: 13.1545 | J112: 3.5692
B113: 2850 | C113: 90 | D113: 180 | E113: 1903 | F113: -1357.6 | G113: 100 | H113: 4.8673 | I113: 13.4332 | J113: 3.6651
B114: 2880 | C114: 90 | D114: 180 | E114: 1903 | F114: -1387.6 | G114: 100 | H114: 4.9786 | I114: 13.7121 | J114: 3.6718
B115: 2910 | C115: 90 | D115: 180 | E115: 1903 | F115: -1417.6 | G115: 100 | H115: 5.0902 | I115: 13.9913 | J115: 3.6786
B116: 2940 | C116: 90 | D116: 180 | E116: 1903 | F116: -1447.6 | G116: 100 | H116: 5.2021 | I116: 14.2709 | J116: 3.6855

Sheet 01 - clearance
A1: Offset 01
A2: Offset 01: East 100 drilled wellpath r4
A3: Ref_MD | B3: Ref_TVD | C3: Ref_N | D3: Ref_E | E3: Offset_MD | F3: Offset_TVD | G3: Offset_N | H3: Offset_E | I3: Horiz_Bearing | J3: C-C Clr Dist | K3: Ref PCR | L3: Offset PCR | M3: Calc hole | O3: ISCWSA ACR
A4: [m] | B4: [m] | C4: [m] | D4: [m] | E4: [m] | F4: [m] | G4: [m] | H4: [m] | I4: [°] | J4: [m] | K4: [m 1sigma] | L4: [m 1sigma] | M4: [m]
A5: 0 | B5: 0 | C5: 0 | D5: 0 | E5: 0 | F5: 0 | G5: 0 | H5: 100 | I5: 90 | J5: 100 | K5: 0 | L5: 0 | M5: =((ref_diam+offset_diam)/2)/(12*3.281) -> 0.7619628162 | O5: =(J5-M5-surface_margin)/(scaling_factor*(SQRT(K5^2+L5^2+sigma_pa^2))) -> 56.53602125
A6: 1 | B6: 1 | C6: 0 | D6: 0 | E6: 1 | F6: 1 | G6: 0 | H6: 100 | I6: 90 | J6: 100 | K6: 0.0017 | L6: 0.0017 | M6: 0.7619628162 | O6: 56.5353677
A7: 30 | B7: 30 | C7: 0 | D7: 0 | E7: 30 | F7: 30 | G7: 0 | H7: 100 | I7: 90 | J7: 100 | K7: 0.0537 | L7: 0.0537 | M7: 0.7619628162 | O7: 55.89496242
A8: 60 | B8: 60 | C8: 0 | D8: 0 | E8: 60 | F8: 60 | G8: 0 | H8: 100 | I8: 90 | J8: 100 | K8: 0.1074 | L8: 0.1074 | M8: 0.7619628162 | O8: 54.09518774
A9: 90 | B9: 90 | C9: 0 | D9: 0 | E9: 90 | F9: 90 | G9: 0 | H9: 100 | I9: 90 | J9: 100 | K9: 0.1612 | L9: 0.1612 | M9: 0.7619628162 | O9: 51.44139218
A10: 120 | B10: 120 | C10: 0 | D10: 0 | E10: 120 | F10: 120 | G10: 0 | H10: 100 | I10: 90 | J10: 100 | K10: 0.215 | L10: 0.215 | M10: 0.7619628162 | O10: 48.30550877
A11: 150 | B11: 150 | C11: 0 | D11: 0 | E11: 150 | F11: 150 | G11: 0 | H11: 100 | I11: 90 | J11: 100 | K11: 0.2688 | L11: 0.2688 | M11: 0.7619628162 | O11: 45.005745
A12: 180 | B12: 180 | C12: 0 | D12: 0 | E12: 180 | F12: 180 | G12: 0 | H12: 100 | I12: 90 | J12: 100 | K12: 0.3225 | L12: 0.3225 | M12: 0.7619628162 | O12: 41.76924069
A13: 210 | B13: 210 | C13: 0 | D13: 0 | E13: 210 | F13: 210 | G13: 0 | H13: 100 | I13: 90 | J13: 100 | K13: 0.3763 | L13: 0.3763 | M13: 0.7619628162 | O13: 38.71228434
A14: 240 | B14: 240 | C14: 0 | D14: 0 | E14: 240 | F14: 240 | G14: 0 | H14: 100 | I14: 90 | J14: 100 | K14: 0.4301 | L14: 0.4301 | M14: 0.7619628162 | O14: 35.9012195
A15: 270 | B15: 270 | C15: 0 | D15: 0 | E15: 270 | F15: 270 | G15: 0 | H15: 100 | I15: 90 | J15: 100 | K15: 0.4838 | L15: 0.4838 | M15: 0.7619628162 | O15: 33.35763552
A16: 300 | B16: 300 | C16: 0 | D16: 0 | E16: 300 | F16: 300 | G16: 0 | H16: 100 | I16: 90 | J16: 100 | K16: 0.5376 | L16: 0.5376 | M16: 0.7619628162 | O16: 31.06510747
A17: 330 | B17: 330 | C17: 0 | D17: 0 | E17: 330 | F17: 330 | G17: 0 | H17: 100 | I17: 90 | J17: 100 | K17: 0.5914 | L17: 0.5914 | M17: 0.7619628162 | O17: 29.00988118
A18: 360 | B18: 360 | C18: 0 | D18: 0 | E18: 360 | F18: 360 | G18: 0 | H18: 100 | I18: 90 | J18: 100 | K18: 0.6452 | L18: 0.6452 | M18: 0.7619628162 | O18: 27.1686487
A19: 390 | B19: 390 | C19: 0 | D19: 0 | E19: 390 | F19: 390 | G19: 0 | H19: 100 | I19: 90 | J19: 100 | K19: 0.6989 | L19: 0.6989 | M19: 0.7619628162 | O19: 25.52035402
A20: 420 | B20: 420 | C20: 0 | D20: 0 | E20: 420 | F20: 420 | G20: 0 | H20: 100 | I20: 90 | J20: 100 | K20: 0.7527 | L20: 0.7527 | M20: 0.7619628162 | O20: 24.03621977
A21: 450 | B21: 450 | C21: 0 | D21: 0 | E21: 450 | F21: 450 | G21: 0 | H21: 100 | I21: 90 | J21: 100 | K21: 0.8065 | L21: 0.8065 | M21: 0.7619628162 | O21: 22.69893693
A22: 480 | B22: 480 | C22: 0 | D22: 0 | E22: 480 | F22: 480 | G22: 0 | H22: 100 | I22: 90 | J22: 100 | K22: 0.8602 | L22: 0.8602 | M22: 0.7619628162 | O22: 21.49246572
A23: 510 | B23: 510 | C23: 0 | D23: 0 | E23: 510 | F23: 510 | G23: 0 | H23: 100 | I23: 90 | J23: 100 | K23: 0.914 | L23: 0.914 | M23: 0.7619628162 | O23: 20.39647309
A24: 540 | B24: 540 | C24: 0 | D24: 0 | E24: 540 | F24: 540 | G24: 0 | H24: 100 | I24: 90 | J24: 100 | K24: 0.9678 | L24: 0.9678 | M24: 0.7619628162 | O24: 19.39957688
A25: 570 | B25: 570 | C25: 0 | D25: 0 | E25: 570 | F25: 570 | G25: 0 | H25: 100 | I25: 90 | J25: 100 | K25: 1.0216 | L25: 1.0216 | M25: 0.7619628162 | O25: 18.48991605
A26: 600 | B26: 600 | C26: 0 | D26: 0 | E26: 600 | F26: 600 | G26: 0 | H26: 100 | I26: 90 | J26: 100 | K26: 1.0753 | L26: 1.0753 | M26: 0.7619628162 | O26: 17.6587478
A27: 630 | B27: 630 | C27: 0 | D27: 0 | E27: 630 | F27: 630 | G27: 0 | H27: 100 | I27: 90 | J27: 100 | K27: 1.1291 | L27: 1.1291 | M27: 0.7619628162 | O27: 16.89417115
A28: 660 | B28: 660 | C28: 0 | D28: 0 | E28: 660 | F28: 660 | G28: 0 | H28: 100 | I28: 90 | J28: 100 | K28: 1.1829 | L28: 1.1829 | M28: 0.7619628162 | O28: 16.19018468
A29: 690 | B29: 690 | C29: 0 | D29: 0 | E29: 690 | F29: 690 | G29: 0 | H29: 100 | I29: 90 | J29: 100 | K29: 1.2366 | L29: 1.2366 | M29: 0.7619628162 | O29: 15.54135651
A30: 720 | B30: 720 | C30: 0 | D30: 0 | E30: 720 | F30: 720 | G30: 0 | H30: 100 | I30: 90 | J30: 100 | K30: 1.2904 | L30: 1.2904 | M30: 0.7619628162 | O30: 14.93955635
A31: 750 | B31: 750 | C31: 0 | D31: 0 | E31: 750 | F31: 750 | G31: 0 | H31: 100 | I31: 90 | J31: 100 | K31: 1.3442 | L31: 1.3442 | M31: 0.7619628162 | O31: 14.38105972
A32: 780 | B32: 780 | C32: 0 | D32: 0 | E32: 780 | F32: 780 | G32: 0 | H32: 100 | I32: 90 | J32: 100 | K32: 1.3979 | L32: 1.3979 | M32: 0.7619628162 | O32: 13.86245053
A33: 810 | B33: 810 | C33: 0 | D33: 0 | E33: 810 | F33: 810 | G33: 0 | H33: 100 | I33: 90 | J33: 100 | K33: 1.4517 | L33: 1.4517 | M33: 0.7619628162 | O33: 13.37799539
A34: 840 | B34: 840 | C34: 0 | D34: 0 | E34: 840 | F34: 840 | G34: 0 | H34: 100 | I34: 90 | J34: 100 | K34: 1.5055 | L34: 1.5055 | M34: 0.7619628162 | O34: 12.9253499
A35: 870 | B35: 870 | C35: 0 | D35: 0 | E35: 870 | F35: 870 | G35: 0 | H35: 100 | I35: 90 | J35: 100 | K35: 1.5593 | L35: 1.5593 | M35: 0.7619628162 | O35: 12.50156672
A36: 900 | B36: 900 | C36: 0 | D36: 0 | E36: 900 | F36: 900 | G36: 0 | H36: 100 | I36: 90 | J36: 100 | K36: 1.613 | L36: 1.613 | M36: 0.7619628162 | O36: 12.10475696
A37: 930 | B37: 930 | C37: 0 | D37: 0 | E37: 930 | F37: 930 | G37: 0 | H37: 100 | I37: 90 | J37: 100 | K37: 1.6668 | L37: 1.6668 | M37: =((ref_diam+offset_diam)/2)/(12*3.281) -> 0.7619628162 | O37: =(J37-M37-surface_margin)/(scaling_factor*(SQRT(K37^2+L37^2+sigma_pa^2))) -> 11.73113701
A38: 960 | B38: 960 | C38: 0 | D38: 0 | E38: 960 | F38: 960 | G38: 0 | H38: 100 | I38: 90 | J38: 100 | K38: 1.7206 | L38: 1.7206 | M38: 0.7619628162 | O38: 11.37941617
A39: 990 | B39: 990 | C39: 0 | D39: 0 | E39: 990 | F39: 990 | G39: 0 | H39: 100 | I39: 90 | J39: 100 | K39: 1.7743 | L39: 1.7743 | M39: 0.7619628162 | O39: 11.04836275
A40: 1020 | B40: 1020 | C40: -0.35 | D40: 0 | E40: 1020 | F40: 1020 | G40: -0.35 | H40: 100 | I40: 90 | J40: 100 | K40: 1.8253 | L40: 1.8253 | M40: 0.7619628162 | O40: 10.75098216
A41: 1050 | B41: 1049.97 | C41: -1.57 | D41: 0 | E41: 1050 | F41: 1049.97 | G41: -1.57 | H41: 100 | I41: 90 | J41: 100 | K41: 1.8735 | L41: 1.8735 | M41: 0.7619628162 | O41: 10.48402158
A42: 1080 | B42: 1079.88 | C42: -3.83 | D42: 0 | E42: 1080 | F42: 1079.88 | G42: -3.83 | H42: 100 | I42: 90 | J42: 100 | K42: 1.922 | L42: 1.922 | M42: 0.7619628162 | O42: 10.22823371
A43: 1110 | B43: 1109.7 | C43: -7.14 | D43: 0 | E43: 1110 | F43: 1109.7 | G43: -7.14 | H43: 100 | I43: 90 | J43: 100 | K43: 1.9709 | L43: 1.9709 | M43: 0.7619628162 | O43: 9.982470141
A44: 1140 | B44: 1139.38 | C44: -11.49 | D44: 0 | E44: 1140 | F44: 1139.38 | G44: -11.49 | H44: 100 | I44: 90 | J44: 100 | K44: 2.0207 | L44: 2.0207 | M44: 0.7619628162 | O44: 9.74385005
A45: 1170 | B45: 1168.89 | C45: -16.87 | D45: 0 | E45: 1170 | F45: 1168.89 | G45: -16.87 | H45: 100 | I45: 90 | J45: 100 | K45: 2.0717 | L45: 2.0717 | M45: 0.7619628162 | O45: 9.510852674
A46: 1200 | B46: 1198.2 | C46: -23.27 | D46: 0 | E46: 1200 | F46: 1198.2 | G46: -23.27 | H46: 100 | I46: 90 | J46: 100 | K46: 2.1247 | L46: 2.1247 | M46: 0.7619628162 | O46: 9.280079036
A47: 1230 | B47: 1227.27 | C47: -30.7 | D47: 0 | E47: 1230 | F47: 1227.27 | G47: -30.7 | H47: 100 | I47: 90 | J47: 100 | K47: 2.18 | L47: 2.18 | M47: 0.7619628162 | O47: 9.050781095
A48: 1260 | B48: 1256.05 | C48: -39.13 | D48: 0 | E48: 1260 | F48: 1256.05 | G48: -39.13 | H48: 100 | I48: 90 | J48: 100 | K48: 2.2385 | L48: 2.2385 | M48: 0.7619628162 | O48: 8.820083954
A49: 1290 | B49: 1284.53 | C49: -48.57 | D49: 0 | E49: 1290 | F49: 1284.53 | G49: -48.57 | H49: 100 | I49: 90 | J49: 100 | K49: 2.3007 | L49: 2.3007 | M49: 0.7619628162 | O49: 8.587206583
A50: 1320 | B50: 1312.66 | C50: -58.99 | D50: 0 | E50: 1320 | F50: 1312.66 | G50: -58.99 | H50: 100 | I50: 90 | J50: 100 | K50: 2.3674 | L50: 2.3674 | M50: 0.7619628162 | O50: 8.350620544
A51: 1350 | B51: 1340.41 | C51: -70.38 | D51: 0 | E51: 1350 | F51: 1340.41 | G51: -70.38 | H51: 100 | I51: 90 | J51: 100 | K51: 2.4392 | L51: 2.4392 | M51: 0.7619628162 | O51: 8.109945778
A52: 1380 | B52: 1367.74 | C52: -82.74 | D52: 0 | E52: 1380 | F52: 1367.74 | G52: -82.74 | H52: 100 | I52: 90 | J52: 100 | K52: 2.5167 | L52: 2.5167 | M52: 0.7619628162 | O52: 7.865114319
A53: 1410 | B53: 1394.63 | C53: -96.05 | D53: 0 | E53: 1410 | F53: 1394.63 | G53: -96.05 | H53: 100 | I53: 90 | J53: 100 | K53: 2.6006 | L53: 2.6006 | M53: 0.7619628162 | O53: 7.616051716
A54: 1440 | B54: 1421.03 | C54: -110.29 | D54: 0 | E54: 1440 | F54: 1421.03 | G54: -110.29 | H54: 100 | I54: 90 | J54: 100 | K54: 2.6915 | L54: 2.6915 | M54: 0.7619628162 | O54: 7.363272854
A55: 1470 | B55: 1446.93 | C55: -125.43 | D55: 0 | E55: 1470 | F55: 1446.93 | G55: -125.43 | H55: 100 | I55: 90 | J55: 100 | K55: 2.7897 | L55: 2.7897 | M55: 0.7619628162 | O55: 7.108249733
A56: 1500 | B56: 1472.28 | C56: -141.48 | D56: 0 | E56: 1500 | F56: 1472.28 | G56: -141.48 | H56: 100 | I56: 90 | J56: 100 | K56: 2.8958 | L56: 2.8958 | M56: 0.7619628162 | O56: 6.8517055
A57: 1530 | B57: 1497.05 | C57: -158.39 | D57: 0 | E57: 1530 | F57: 1497.05 | G57: -158.39 | H57: 100 | I57: 90 | J57: 100 | K57: 3.0099 | L57: 3.0099 | M57: 0.7619628162 | O57: 6.595573066
A58: 1560 | B58: 1521.22 | C58: -176.17 | D58: 0 | E58: 1560 | F58: 1521.22 | G58: -176.17 | H58: 100 | I58: 90 | J58: 100 | K58: 3.1325 | L58: 3.1325 | M58: 0.7619628162 | O58: 6.340747338
A59: 1590 | B59: 1544.75 | C59: -194.77 | D59: 0 | E59: 1590 | F59: 1544.75 | G59: -194.77 | H59: 100 | I59: 90 | J59: 100 | K59: 3.2635 | L59: 3.2635 | M59: 0.7619628162 | O59: 6.089237282
A60: 1620 | B60: 1567.62 | C60: -214.19 | D60: 0 | E60: 1620 | F60: 1567.62 | G60: -214.19 | H60: 100 | I60: 90 | J60: 100 | K60: 3.4032 | L60: 3.4032 | M60: 0.7619628162 | O60: 5.84200199
A61: 1650 | B61: 1589.79 | C61: -234.39 | D61: 0 | E61: 1650 | F61: 1589.79 | G61: -234.39 | H61: 100 | I61: 90 | J61: 100 | K61: 3.5515 | L61: 3.5515 | M61: 0.7619628162 | O61: 5.60050295
A62: 1680 | B62: 1611.25 | C62: -255.35 | D62: 0 | E62: 1680 | F62: 1611.25 | G62: -255.35 | H62: 100 | I62: 90 | J62: 100 | K62: 3.7083 | L62: 3.7083 | M62: 0.7619628162 | O62: 5.36587377
A63: 1710 | B63: 1631.97 | C63: -277.05 | D63: 0 | E63: 1710 | F63: 1631.97 | G63: -277.05 | H63: 100 | I63: 90 | J63: 100 | K63: 3.8736 | L63: 3.8736 | M63: 0.7619628162 | O63: 5.138826856
A64: 1740 | B64: 1651.91 | C64: -299.46 | D64: 0 | E64: 1740 | F64: 1651.91 | G64: -299.46 | H64: 100 | I64: 90 | J64: 100 | K64: 4.0472 | L64: 4.0472 | M64: 0.7619628162 | O64: 4.920109278
A65: 1770 | B65: 1671.06 | C65: -322.55 | D65: 0 | E65: 1770 | F65: 1671.06 | G65: -322.55 | H65: 100 | I65: 90 | J65: 100 | K65: 4.2288 | L65: 4.2288 | M65: 0.7619628162 | O65: 4.710321259
A66: 1800 | B66: 1689.39 | C66: -346.29 | D66: 0 | E66: 1800 | F66: 1689.39 | G66: -346.29 | H66: 100 | I66: 90 | J66: 100 | K66: 4.4182 | L66: 4.4182 | M66: 0.7619628162 | O66: 4.509711936
A67: 1830 | B67: 1706.89 | C67: -370.66 | D67: 0 | E67: 1830 | F67: 1706.89 | G67: -370.66 | H67: 100 | I67: 90 | J67: 100 | K67: 4.6152 | L67: 4.6152 | M67: 0.7619628162 | O67: 4.318362668
A68: 1860 | B68: 1723.52 | C68: -395.63 | D68: 0 | E68: 1860 | F68: 1723.52 | G68: -395.63 | H68: 100 | I68: 90 | J68: 100 | K68: 4.8193 | L68: 4.8193 | M68: 0.7619628162 | O68: 4.13647818
A69: 1890 | B69: 1739.27 | C69: -421.16 | D69: 0 | E69: 1890 | F69: 1739.27 | G69: -421.16 | H69: 100 | I69: 90 | J69: 100 | K69: 5.0303 | L69: 5.0303 | M69: =((ref_diam+offset_diam)/2)/(12*3.281) -> 0.7619628162 | O69: =(J69-M69-surface_margin)/(scaling_factor*(SQRT(K69^2+L69^2+sigma_pa^2))) -> 3.96384174
A70: 1920 | B70: 1754.12 | C70: -447.23 | D70: 0 | E70: 1920 | F70: 1754.12 | G70: -447.23 | H70: 100 | I70: 90 | J70: 100 | K70: 5.2478 | L70: 5.2478 | M70: 0.7619628162 | O70: 3.800314882
A71: 1950 | B71: 1768.05 | C71: -473.79 | D71: 0 | E71: 1950 | F71: 1768.05 | G71: -473.79 | H71: 100 | I71: 90 | J71: 100 | K71: 5.4715 | L71: 5.4715 | M71: 0.7619628162 | O71: 3.645600351
A72: 1980 | B72: 1781.04 | C72: -500.83 | D72: 0 | E72: 1980 | F72: 1781.04 | G72: -500.83 | H72: 100 | I72: 90 | J72: 100 | K72: 5.701 | L72: 5.701 | M72: 0.7619628162 | O72: 3.499416726
A73: 2010 | B73: 1793.09 | C73: -528.31 | D73: 0 | E73: 2010 | F73: 1793.09 | G73: -528.31 | H73: 100 | I73: 90 | J73: 100 | K73: 5.9358 | L73: 5.9358 | M73: 0.7619628162 | O73: 3.361491137
A74: 2040 | B74: 1804.16 | C74: -556.19 | D74: 0 | E74: 2040 | F74: 1804.16 | G74: -556.19 | H74: 100 | I74: 90 | J74: 100 | K74: 6.1756 | L74: 6.1756 | M74: 0.7619628162 | O74: 3.231398645
A75: 2070 | B75: 1814.26 | C75: -584.43 | D75: 0 | E75: 2070 | F75: 1814.26 | G75: -584.43 | H75: 100 | I75: 90 | J75: 100 | K75: 6.42 | L75: 6.42 | M75: 0.7619628162 | O75: 3.108763314
A76: 2100 | B76: 1823.37 | C76: -613.02 | D76: 0 | E76: 2100 | F76: 1823.37 | G76: -613.02 | H76: 100 | I76: 90 | J76: 100 | K76: 6.6686 | L76: 6.6686 | M76: 0.7619628162 | O76: 2.993202254
A77: 2130 | B77: 1831.47 | C77: -641.9 | D77: 0 | E77: 2130 | F77: 1831.47 | G77: -641.9 | H77: 100 | I77: 90 | J77: 100 | K77: 6.921 | L77: 6.921 | M77: 0.7619628162 | O77: 2.884333483
A78: 2160 | B78: 1838.56 | C78: -671.05 | D78: 0 | E78: 2160 | F78: 1838.56 | G78: -671.05 | H78: 100 | I78: 90 | J78: 100 | K78: 7.1767 | L78: 7.1767 | M78: 0.7619628162 | O78: 2.78182041
A79: 2190 | B79: 1844.63 | C79: -700.43 | D79: 0 | E79: 2190 | F79: 1844.63 | G79: -700.43 | H79: 100 | I79: 90 | J79: 100 | K79: 7.4353 | L79: 7.4353 | M79: 0.7619628162 | O79: 2.685290789
A80: 2220 | B80: 1849.66 | C80: -730 | D80: 0 | E80: 2220 | F80: 1849.66 | G80: -730 | H80: 100 | I80: 90 | J80: 100 | K80: 7.6965 | L80: 7.6965 | M80: 0.7619628162 | O80: 2.594353987
A81: 2250 | B81: 1853.67 | C81: -759.73 | D81: 0 | E81: 2250 | F81: 1853.67 | G81: -759.73 | H81: 100 | I81: 90 | J81: 100 | K81: 7.9598 | L81: 7.9598 | M81: 0.7619628162 | O81: 2.508707938
A82: 2280 | B82: 1856.72 | C82: -789.57 | D82: 0 | E82: 2280 | F82: 1856.72 | G82: -789.57 | H82: 100 | I82: 90 | J82: 100 | K82: 8.2248 | L82: 8.2248 | M82: 0.7619628162 | O82: 2.42802986
A83: 2310 | B83: 1859.33 | C83: -819.46 | D83: 0 | E83: 2310 | F83: 1859.33 | G83: -819.46 | H83: 100 | I83: 90 | J83: 100 | K83: 8.4912 | L83: 8.4912 | M83: 0.7619628162 | O83: 2.351987652
A84: 2340 | B84: 1861.95 | C84: -849.34 | D84: 0 | E84: 2340 | F84: 1861.95 | G84: -849.34 | H84: 100 | I84: 90 | J84: 100 | K84: 8.759 | L84: 8.759 | M84: 0.7619628162 | O84: 2.280196169
A85: 2370 | B85: 1864.56 | C85: -879.23 | D85: 0 | E85: 2370 | F85: 1864.56 | G85: -879.23 | H85: 100 | I85: 90 | J85: 100 | K85: 9.0279 | L85: 9.0279 | M85: 0.7619628162 | O85: 2.212385113
A86: 2400 | B86: 1867.18 | C86: -909.12 | D86: 0 | E86: 2400 | F86: 1867.18 | G86: -909.12 | H86: 100 | I86: 90 | J86: 100 | K86: 9.2979 | L86: 9.2979 | M86: 0.7619628162 | O86: 2.148234214
A87: 2430 | B87: 1869.79 | C87: -939 | D87: 0 | E87: 2430 | F87: 1869.79 | G87: -939 | H87: 100 | I87: 90 | J87: 100 | K87: 9.569 | L87: 9.569 | M87: 0.7619628162 | O87: 2.087456622
A88: 2460 | B88: 1872.41 | C88: -968.89 | D88: 0 | E88: 2460 | F88: 1872.41 | G88: -968.89 | H88: 100 | I88: 90 | J88: 100 | K88: 9.8409 | L88: 9.8409 | M88: 0.7619628162 | O88: 2.029856461
A89: 2490 | B89: 1875.02 | C89: -998.77 | D89: 0 | E89: 2490 | F89: 1875.02 | G89: -998.77 | H89: 100 | I89: 90 | J89: 100 | K89: 10.1137 | L89: 10.1137 | M89: 0.7619628162 | O89: 1.97517226
A90: 2520 | B90: 1877.64 | C90: -1028.66 | D90: 0 | E90: 2520 | F90: 1877.64 | G90: -1028.66 | H90: 100 | I90: 90 | J90: 100 | K90: 10.3872 | L90: 10.3872 | M90: 0.7619628162 | O90: 1.923226015
A91: 2550 | B91: 1880.25 | C91: -1058.55 | D91: 0 | E91: 2550 | F91: 1880.25 | G91: -1058.55 | H91: 100 | I91: 90 | J91: 100 | K91: 10.6615 | L91: 10.6615 | M91: 0.7619628162 | O91: 1.87380016
A92: 2580 | B92: 1882.87 | C92: -1088.43 | D92: 0 | E92: 2580 | F92: 1882.87 | G92: -1088.43 | H92: 100 | I92: 90 | J92: 100 | K92: 10.9364 | L92: 10.9364 | M92: 0.7619628162 | O92: 1.826749672
A93: 2610 | B93: 1885.48 | C93: -1118.32 | D93: 0 | E93: 2610 | F93: 1885.48 | G93: -1118.32 | H93: 100 | I93: 90 | J93: 100 | K93: 11.2119 | L93: 11.2119 | M93: 0.7619628162 | O93: 1.781907736
A94: 2640 | B94: 1888.09 | C94: -1148.2 | D94: 0 | E94: 2640 | F94: 1888.09 | G94: -1148.2 | H94: 100 | I94: 90 | J94: 100 | K94: 11.488 | L94: 11.488 | M94: 0.7619628162 | O94: 1.73912279
A95: 2670 | B95: 1890.71 | C95: -1178.09 | D95: 0 | E95: 2670 | F95: 1890.71 | G95: -1178.09 | H95: 100 | I95: 90 | J95: 100 | K95: 11.7646 | L95: 11.7646 | M95: 0.7619628162 | O95: 1.698271245
A96: 2700 | B96: 1893.32 | C96: -1207.97 | D96: 0 | E96: 2700 | F96: 1893.32 | G96: -1207.97 | H96: 100 | I96: 90 | J96: 100 | K96: 12.0417 | L96: 12.0417 | M96: 0.7619628162 | O96: 1.659225191
A97: 2730 | B97: 1895.94 | C97: -1237.86 | D97: 0 | E97: 2730 | F97: 1895.94 | G97: -1237.86 | H97: 100 | I97: 90 | J97: 100 | K97: 12.3193 | L97: 12.3193 | M97: 0.7619628162 | O97: 1.621867753
A98: 2760 | B98: 1898.55 | C98: -1267.75 | D98: 0 | E98: 2760 | F98: 1898.55 | G98: -1267.75 | H98: 100 | I98: 90 | J98: 100 | K98: 12.5973 | L98: 12.5973 | M98: 0.7619628162 | O98: 1.586104505
A99: 2790 | B99: 1900.91 | C99: -1297.65 | D99: 0 | E99: 2790 | F99: 1900.91 | G99: -1297.65 | H99: 100 | I99: 90 | J99: 100 | K99: 12.8757 | L99: 12.8757 | M99: 0.7619628162 | O99: 1.551835679
A100: 2820 | B100: 1902.48 | C100: -1327.61 | D100: 0 | E100: 2820 | F100: 1902.48 | G100: -1327.61 | H100: 100 | I100: 90 | J100: 100 | K100: 13.1545 | L100: 13.1545 | M100: 0.7619628162 | O100: 1.518969656
A101: 2850 | B101: 1903 | C101: -1357.6 | D101: 0 | E101: 2850 | F101: 1903 | G101: -1357.6 | H101: 100 | I101: 90 | J101: 100 | K101: 13.4332 | L101: 13.4332 | M101: 0.7619628162 | O101: 1.48747748
A102: 2880 | B102: 1903 | C102: -1387.6 | D102: 0 | E102: 2880 | F102: 1903 | G102: -1387.6 | H102: 100 | I102: 90 | J102: 100 | K102: 13.7121 | L102: 13.7121 | M102: 0.7619628162 | O102: 1.457242944
A103: 2910 | B103: 1903 | C103: -1417.6 | D103: 0 | E103: 2910 | F103: 1903 | G103: -1417.6 | H103: 100 | I103: 90 | J103: 100 | K103: 13.9913 | L103: 13.9913 | M103: 0.7619628162 | O103: 1.428182031
A104: 2940 | B104: 1903 | C104: -1447.6 | D104: 0 | E104: 2940 | F104: 1903 | G104: -1447.6 | H104: 100 | I104: 90 | J104: 100 | K104: 14.2709 | L104: 14.2709 | M104: 0.7619628162 | O104: =(J104-M104-surface_margin)/(scaling_factor*(SQRT(K104^2+L104^2+sigma_pa^2))) -> 1.40021797

Sheet 02 - well
A1: Wellpath | B1: Offset 02: North 100 drilled wellpath r4
A3: REPORT SETUP INFORMATION
A4: Projection System | B4: ED50 / UTM Zone 31 North
A5: North Reference | B5: Grid
A6: Scale | B6: 0.9996
A7: Convergence at slot | B7: 0.00° East
A9: WELLPATH LOCATION | B9: Local North | C9: Local East | D9: Easting | E9: Northing | F9: Latitude | G9: Longitude
B10: [m] | C10: [m] | D10: [m] | E10: [m]
B11: 100 | C11: 0 | D11: 500000 | E11: 6651666.67 | F11: 60°00'03.231"N | G11: 3°00'00.000"E
B15: MD | C15: Inclination | D15: Azimuth | E15: TVD | F15: North | G15: East | H15: sigmaH | I15: sigmaL | J15: sigmaA
B16: [m] | C16: [°] | D16: [°] | E16: [m] | F16: [m] | G16: [m]
B17: 0 | C17: 0 | D17: 0 | E17: 0 | F17: 100 | G17: 0 | H17: 0 | I17: 0 | J17: 0
B18: 1 | C18: 0 | D18: 0 | E18: 1 | F18: 100 | G18: 0 | H18: 0.0017 | I18: 0.0017 | J18: 0.35
B19: 30 | C19: 0 | D19: 0 | E19: 30 | F19: 100 | G19: 0 | H19: 0.0537 | I19: 0.0537 | J19: 0.3504
B20: 60 | C20: 0 | D20: 0 | E20: 60 | F20: 100 | G20: 0 | H20: 0.1074 | I20: 0.1074 | J20: 0.3516
B21: 90 | C21: 0 | D21: 0 | E21: 90 | F21: 100 | G21: 0 | H21: 0.1612 | I21: 0.1612 | J21: 0.3536
B22: 120 | C22: 0 | D22: 0 | E22: 120 | F22: 100 | G22: 0 | H22: 0.215 | I22: 0.215 | J22: 0.3564
B23: 150 | C23: 0 | D23: 0 | E23: 150 | F23: 100 | G23: 0 | H23: 0.2688 | I23: 0.2688 | J23: 0.36
B24: 180 | C24: 0 | D24: 0 | E24: 180 | F24: 100 | G24: 0 | H24: 0.3225 | I24: 0.3225 | J24: 0.3643
B25: 210 | C25: 0 | D25: 0 | E25: 210 | F25: 100 | G25: 0 | H25: 0.3763 | I25: 0.3763 | J25: 0.3694
B26: 240 | C26: 0 | D26: 0 | E26: 240 | F26: 100 | G26: 0 | H26: 0.4301 | I26: 0.4301 | J26: 0.3752
B27: 270 | C27: 0 | D27: 0 | E27: 270 | F27: 100 | G27: 0 | H27: 0.4838 | I27: 0.4838 | J27: 0.3817
B28: 300 | C28: 0 | D28: 0 | E28: 300 | F28: 100 | G28: 0 | H28: 0.5376 | I28: 0.5376 | J28: 0.3889
B29: 330 | C29: 0 | D29: 0 | E29: 330 | F29: 100 | G29: 0 | H29: 0.5914 | I29: 0.5914 | J29: 0.3967
B30: 360 | C30: 0 | D30: 0 | E30: 360 | F30: 100 | G30: 0 | H30: 0.6452 | I30: 0.6452 | J30: 0.4052
B31: 390 | C31: 0 | D31: 0 | E31: 390 | F31: 100 | G31: 0 | H31: 0.6989 | I31: 0.6989 | J31: 0.4143
B32: 420 | C32: 0 | D32: 0 | E32: 420 | F32: 100 | G32: 0 | H32: 0.7527 | I32: 0.7527 | J32: 0.424
B33: 450 | C33: 0 | D33: 0 | E33: 450 | F33: 100 | G33: 0 | H33: 0.8065 | I33: 0.8065 | J33: 0.4342
B34: 480 | C34: 0 | D34: 0 | E34: 480 | F34: 100 | G34: 0 | H34: 0.8602 | I34: 0.8602 | J34: 0.4451
B35: 510 | C35: 0 | D35: 0 | E35: 510 | F35: 100 | G35: 0 | H35: 0.914 | I35: 0.914 | J35: 0.4564
B36: 540 | C36: 0 | D36: 0 | E36: 540 | F36: 100 | G36: 0 | H36: 0.9678 | I36: 0.9678 | J36: 0.4683
B37: 570 | C37: 0 | D37: 0 | E37: 570 | F37: 100 | G37: 0 | H37: 1.0216 | I37: 1.0216 | J37: 0.4806
B38: 600 | C38: 0 | D38: 0 | E38: 600 | F38: 100 | G38: 0 | H38: 1.0753 | I38: 1.0753 | J38: 0.4935
B39: 630 | C39: 0 | D39: 0 | E39: 630 | F39: 100 | G39: 0 | H39: 1.1291 | I39: 1.1291 | J39: 0.5068
B40: 660 | C40: 0 | D40: 0 | E40: 660 | F40: 100 | G40: 0 | H40: 1.1829 | I40: 1.1829 | J40: 0.5205
B41: 690 | C41: 0 | D41: 0 | E41: 690 | F41: 100 | G41: 0 | H41: 1.2366 | I41: 1.2366 | J41: 0.5348
B42: 720 | C42: 0 | D42: 0 | E42: 720 | F42: 100 | G42: 0 | H42: 1.2904 | I42: 1.2904 | J42: 0.5494
B43: 750 | C43: 0 | D43: 0 | E43: 750 | F43: 100 | G43: 0 | H43: 1.3442 | I43: 1.3442 | J43: 0.5645
B44: 780 | C44: 0 | D44: 0 | E44: 780 | F44: 100 | G44: 0 | H44: 1.3979 | I44: 1.3979 | J44: 0.58
B45: 810 | C45: 0 | D45: 0 | E45: 810 | F45: 100 | G45: 0 | H45: 1.4517 | I45: 1.4517 | J45: 0.596
B46: 840 | C46: 0 | D46: 0 | E46: 840 | F46: 100 | G46: 0 | H46: 1.5055 | I46: 1.5055 | J46: 0.6123
B47: 870 | C47: 0 | D47: 0 | E47: 870 | F47: 100 | G47: 0 | H47: 1.5593 | I47: 1.5593 | J47: 0.629
B48: 900 | C48: 0 | D48: 0 | E48: 900 | F48: 100 | G48: 0 | H48: 1.613 | I48: 1.613 | J48: 0.6462
B49: 930 | C49: 0 | D49: 0 | E49: 930 | F49: 100 | G49: 0 | H49: 1.6668 | I49: 1.6668 | J49: 0.6637
B50: 960 | C50: 0 | D50: 0 | E50: 960 | F50: 100 | G50: 0 | H50: 1.7206 | I50: 1.7206 | J50: 0.6816
B51: 990 | C51: 0 | D51: 0 | E51: 990 | F51: 100 | G51: 0 | H51: 1.7743 | I51: 1.7743 | J51: 0.6999
B52: 1020 | C52: 1.19 | D52: 180 | E52: 1020 | F52: 99.69 | G52: 0 | H52: 1.825 | I52: 1.8253 | J52: 0.7195
B53: 1050 | C53: 2.98 | D53: 180 | E53: 1049.98 | F53: 98.6 | G53: 0 | H53: 1.8717 | I53: 1.8736 | J53: 0.743
B54: 1080 | C54: 4.77 | D54: 180 | E54: 1079.91 | F54: 96.57 | G54: 0 | H54: 1.917 | I54: 1.922 | J54: 0.7708
B55: 1110 | C55: 6.56 | D55: 180 | E55: 1109.76 | F55: 93.61 | G55: 0 | H55: 1.9609 | I55: 1.9709 | J55: 0.8025
B56: 1140 | C56: 8.36 | D56: 180 | E56: 1139.5 | F56: 89.71 | G56: 0 | H56: 2.0032 | I56: 2.0205 | J56: 0.8381
B57: 1170 | C57: 10.15 | D57: 180 | E57: 1169.11 | F57: 84.89 | G57: 0 | H57: 2.0441 | I57: 2.0712 | J57: 0.8771
B58: 1200 | C58: 11.94 | D58: 180 | E58: 1198.56 | F58: 79.14 | G58: 0 | H58: 2.0834 | I58: 2.1234 | J58: 0.9194
B59: 1230 | C59: 13.73 | D59: 180 | E59: 1227.8 | F59: 72.48 | G59: 0 | H59: 2.1212 | I59: 2.1776 | J59: 0.9647
B60: 1260 | C60: 15.52 | D60: 180 | E60: 1256.83 | F60: 64.9 | G60: 0 | H60: 2.1576 | I60: 2.2343 | J60: 1.0127
B61: 1290 | C61: 17.31 | D61: 180 | E61: 1285.61 | F61: 56.43 | G61: 0 | H61: 2.1925 | I61: 2.2942 | J61: 1.0632
B62: 1320 | C62: 19.11 | D62: 180 | E62: 1314.1 | F62: 47.05 | G62: 0 | H62: 2.226 | I62: 2.3576 | J62: 1.1161
B63: 1350 | C63: 20.9 | D63: 180 | E63: 1342.29 | F63: 36.79 | G63: 0 | H63: 2.2581 | I63: 2.4253 | J63: 1.171
B64: 1380 | C64: 22.69 | D64: 180 | E64: 1370.15 | F64: 25.65 | G64: 0 | H64: 2.2891 | I64: 2.4978 | J64: 1.2276
B65: 1410 | C65: 24.48 | D65: 180 | E65: 1397.64 | F65: 13.65 | G65: 0 | H65: 2.3188 | I65: 2.5756 | J65: 1.286
B66: 1440 | C66: 26.27 | D66: 180 | E66: 1424.74 | F66: 0.79 | G66: 0 | H66: 2.3475 | I66: 2.6591 | J66: 1.3458
B67: 1470 | C67: 28.06 | D67: 180 | E67: 1451.43 | F67: -12.9 | G67: 0 | H67: 2.3751 | I67: 2.749 | J67: 1.4069
B68: 1500 | C68: 29.86 | D68: 180 | E68: 1477.68 | F68: -27.43 | G68: 0 | H68: 2.4017 | I68: 2.8454 | J68: 1.4695
B69: 1530 | C69: 31.65 | D69: 180 | E69: 1503.46 | F69: -42.77 | G69: 0 | H69: 2.4276 | I69: 2.9489 | J69: 1.5329
B70: 1560 | C70: 33.44 | D70: 180 | E70: 1528.75 | F70: -58.91 | G70: 0 | H70: 2.4529 | I70: 3.0597 | J70: 1.5972
B71: 1590 | C71: 35.23 | D71: 180 | E71: 1553.52 | F71: -75.83 | G71: 0 | H71: 2.4776 | I71: 3.1779 | J71: 1.6623
B72: 1620 | C72: 37.02 | D72: 180 | E72: 1577.75 | F72: -93.51 | G72: 0 | H72: 2.5018 | I72: 3.3038 | J72: 1.7281
B73: 1650 | C73: 38.81 | D73: 180 | E73: 1601.42 | F73: -111.95 | G73: 0 | H73: 2.5257 | I73: 3.4375 | J73: 1.7946
B74: 1680 | C74: 40.6 | D74: 180 | E74: 1624.5 | F74: -131.11 | G74: 0 | H74: 2.5494 | I74: 3.5789 | J74: 1.8615
B75: 1710 | C75: 42.4 | D75: 180 | E75: 1646.97 | F75: -150.99 | G75: 0 | H75: 2.5727 | I75: 3.7281 | J75: 1.9292
B76: 1740 | C76: 44.19 | D76: 180 | E76: 1668.8 | F76: -171.56 | G76: 0 | H76: 2.5963 | I76: 3.8851 | J76: 1.9969
B77: 1770 | C77: 45.98 | D77: 180 | E77: 1689.98 | F77: -192.81 | G77: 0 | H77: 2.6199 | I77: 4.0496 | J77: 2.0649
B78: 1800 | C78: 47.77 | D78: 180 | E78: 1710.49 | F78: -214.7 | G78: 0 | H78: 2.6438 | I78: 4.2217 | J78: 2.1331
B79: 1830 | C79: 49.56 | D79: 180 | E79: 1730.3 | F79: -237.23 | G79: 0 | H79: 2.6681 | I79: 4.401 | J79: 2.2015
B80: 1860 | C80: 51.36 | D80: 180 | E80: 1749.4 | F80: -260.36 | G80: 0 | H80: 2.6924 | I80: 4.5875 | J80: 2.2703
B81: 1890 | C81: 53.15 | D81: 180 | E81: 1767.76 | F81: -284.08 | G81: 0 | H81: 2.7176 | I81: 4.7809 | J81: 2.3388
B82: 1920 | C82: 54.94 | D82: 180 | E82: 1785.38 | F82: -308.36 | G82: 0 | H82: 2.7433 | I82: 4.9809 | J82: 2.4074
B83: 1950 | C83: 56.73 | D83: 180 | E83: 1802.22 | F83: -333.19 | G83: 0 | H83: 2.7697 | I83: 5.1874 | J83: 2.4759
B84: 1980 | C84: 58.52 | D84: 180 | E84: 1818.29 | F84: -358.52 | G84: 0 | H84: 2.7968 | I84: 5.4 | J84: 2.5443
B85: 2010 | C85: 60.31 | D85: 180 | E85: 1833.55 | F85: -384.35 | G85: 0 | H85: 2.8246 | I85: 5.6184 | J85: 2.6126
B86: 2040 | C86: 62.11 | D86: 180 | E86: 1848 | F86: -410.64 | G86: 0 | H86: 2.8529 | I86: 5.8423 | J86: 2.6811
B87: 2070 | C87: 63.9 | D87: 180 | E87: 1861.61 | F87: -437.37 | G87: 0 | H87: 2.8824 | I87: 6.0716 | J87: 2.7491
B88: 2100 | C88: 65.69 | D88: 180 | E88: 1874.39 | F88: -464.51 | G88: 0 | H88: 2.9127 | I88: 6.3057 | J88: 2.8169
B89: 2130 | C89: 67.48 | D89: 180 | E89: 1886.31 | F89: -492.04 | G89: 0 | H89: 2.9438 | I89: 6.5445 | J89: 2.8844
B90: 2160 | C90: 69.27 | D90: 180 | E90: 1897.37 | F90: -519.93 | G90: 0 | H90: 2.9758 | I90: 6.7876 | J90: 2.9518
B91: 2190 | C91: 71.06 | D91: 180 | E91: 1907.54 | F91: -548.15 | G91: 0 | H91: 3.0086 | I91: 7.0348 | J91: 3.0189
B92: 2220 | C92: 72.86 | D92: 180 | E92: 1916.84 | F92: -576.67 | G92: 0 | H92: 3.0418 | I92: 7.2855 | J92: 3.0861
B93: 2250 | C93: 74.65 | D93: 180 | E93: 1925.23 | F93: -605.47 | G93: 0 | H93: 3.0761 | I93: 7.5397 | J93: 3.1526
B94: 2280 | C94: 76.44 | D94: 180 | E94: 1932.72 | F94: -634.52 | G94: 0 | H94: 3.1111 | I94: 7.7968 | J94: 3.2189
B95: 2310 | C95: 78.23 | D95: 180 | E95: 1939.29 | F95: -663.79 | G95: 0 | H95: 3.1468 | I95: 8.0567 | J95: 3.285
B96: 2340 | C96: 80.02 | D96: 180 | E96: 1944.95 | F96: -693.25 | G96: 0 | H96: 3.1831 | I96: 8.3189 | J96: 3.3507
B97: 2370 | C97: 81.81 | D97: 180 | E97: 1949.69 | F97: -722.87 | G97: 0 | H97: 3.2198 | I97: 8.5832 | J97: 3.4161
B98: 2400 | C98: 83.6 | D98: 180 | E98: 1953.5 | F98: -752.63 | G98: 0 | H98: 3.257 | I98: 8.8491 | J98: 3.4813
B99: 2430 | C99: 85 | D99: 180 | E99: 1956.48 | F99: -782.48 | G99: 0 | H99: 3.3084 | I99: 9.1165 | J99: 3.5335
B100: 2460 | C100: 85 | D100: 180 | E100: 1959.09 | F100: -812.36 | G100: 0 | H100: 3.4102 | I100: 9.3851 | J100: 3.5394
B101: 2490 | C101: 85 | D101: 180 | E101: 1961.71 | F101: -842.25 | G101: 0 | H101: 3.5129 | I101: 9.6547 | J101: 3.5455
B102: 2520 | C102: 85 | D102: 180 | E102: 1964.32 | F102: -872.14 | G102: 0 | H102: 3.6165 | I102: 9.9253 | J102: 3.5517
B103: 2550 | C103: 85 | D103: 180 | E103: 1966.94 | F103: -902.02 | G103: 0 | H103: 3.7209 | I103: 10.1968 | J103: 3.5581
B104: 2580 | C104: 85 | D104: 180 | E104: 1969.55 | F104: -931.91 | G104: 0 | H104: 3.8261 | I104: 10.4691 | J104: 3.5647
B105: 2610 | C105: 85 | D105: 180 | E105: 1972.17 | F105: -961.79 | G105: 0 | H105: 3.9319 | I105: 10.7422 | J105: 3.5713
B106: 2640 | C106: 85 | D106: 180 | E106: 1974.78 | F106: -991.68 | G106: 0 | H106: 4.0384 | I106: 11.016 | J106: 3.5782
B107: 2670 | C107: 85 | D107: 180 | E107: 1977.4 | F107: -1021.57 | G107: 0 | H107: 4.1455 | I107: 11.2905 | J107: 3.5852
B108: 2700 | C108: 85 | D108: 180 | E108: 1980.01 | F108: -1051.45 | G108: 0 | H108: 4.2531 | I108: 11.5656 | J108: 3.5923
B109: 2730 | C109: 85 | D109: 180 | E109: 1982.62 | F109: -1081.34 | G109: 0 | H109: 4.3612 | I109: 11.8412 | J109: 3.5996
B110: 2760 | C110: 85 | D110: 180 | E110: 1985.24 | F110: -1111.22 | G110: 0 | H110: 4.4698 | I110: 12.1174 | J110: 3.6071
B111: 2790 | C111: 85 | D111: 180 | E111: 1987.85 | F111: -1141.11 | G111: 0 | H111: 4.5789 | I111: 12.3941 | J111: 3.6146
B112: 2820 | C112: 85 | D112: 180 | E112: 1990.47 | F112: -1170.99 | G112: 0 | H112: 4.6883 | I112: 12.6712 | J112: 3.6224
B113: 2850 | C113: 85 | D113: 180 | E113: 1993.08 | F113: -1200.88 | G113: 0 | H113: 4.7981 | I113: 12.9488 | J113: 3.6303
B114: 2880 | C114: 85 | D114: 180 | E114: 1995.7 | F114: -1230.77 | G114: 0 | H114: 4.9083 | I114: 13.2268 | J114: 3.6383
B115: 2910 | C115: 85 | D115: 180 | E115: 1998.31 | F115: -1260.65 | G115: 0 | H115: 5.0188 | I115: 13.5052 | J115: 3.6465
B116: 2940 | C116: 86.11 | D116: 180 | E116: 2000.64 | F116: -1290.56 | G116: 0 | H116: 5.0924 | I116: 13.7839 | J116: 3.7057
B117: 2970 | C117: 88.11 | D117: 180 | E117: 2002.15 | F117: -1320.52 | G117: 0 | H117: 5.1336 | I117: 14.0629 | J117: 3.8083
B118: 3000 | C118: 90 | D118: 180 | E118: 2002.64 | F118: -1350.52 | G118: 0 | H118: 5.1754 | I118: 14.342 | J118: 3.9079
B119: 3030 | C119: 90 | D119: 180 | E119: 2002.64 | F119: -1380.52 | G119: 0 | H119: 5.2864 | I119: 14.6211 | J119: 3.9149
B120: 3060 | C120: 90 | D120: 180 | E120: 2002.64 | F120: -1410.52 | G120: 0 | H120: 5.3978 | I120: 14.9005 | J120: 3.9221
B121: 3090 | C121: 90 | D121: 180 | E121: 2002.64 | F121: -1440.52 | G121: 0 | H121: 5.5094 | I121: 15.1803 | J121: 3.9293

Sheet 02 - clearance
A1: Offset 02
A2: Offset 02: North 100 drilled wellpath r4
A3: Ref_MD | B3: Ref_TVD | C3: Ref_N | D3: Ref_E | E3: Offset_MD | F3: Offset_TVD | G3: Offset_N | H3: Offset_E | I3: Horiz_Bearing | J3: C-C Clr Dist | K3: Ref PCR | L3: Offset PCR | M3: Calc hole | O3: ISCWSA ACR
A4: [m] | B4: [m] | C4: [m] | D4: [m] | E4: [m] | F4: [m] | G4: [m] | H4: [m] | I4: [°] | J4: [m] | K4: [m 1sigma] | L4: [m 1sigma] | M4: [m]
A5: 0 | B5: 0 | C5: 0 | D5: 0 | E5: 0 | F5: 0 | G5: 100 | H5: 0 | I5: 0 | J5: 100 | K5: 0 | L5: 0 | M5: =((ref_diam+offset_diam)/2)/(12*3.281) -> 0.7619628162 | O5: =(J5-M5-surface_margin)/(scaling_factor*(SQRT(K5^2+L5^2+sigma_pa^2))) -> 56.53602125
A6: 1 | B6: 1 | C6: 0 | D6: 0 | E6: 1 | F6: 1 | G6: 100 | H6: 0 | I6: 0 | J6: 100 | K6: 0.0017 | L6: 0.0017 | M6: 0.7619628162 | O6: 56.5353677
A7: 30 | B7: 30 | C7: 0 | D7: 0 | E7: 30 | F7: 30 | G7: 100 | H7: 0 | I7: 0 | J7: 100 | K7: 0.0537 | L7: 0.0537 | M7: 0.7619628162 | O7: 55.89496242
A8: 60 | B8: 60 | C8: 0 | D8: 0 | E8: 60 | F8: 60 | G8: 100 | H8: 0 | I8: 0 | J8: 100 | K8: 0.1074 | L8: 0.1074 | M8: 0.7619628162 | O8: 54.09518774
A9: 90 | B9: 90 | C9: 0 | D9: 0 | E9: 90 | F9: 90 | G9: 100 | H9: 0 | I9: 0 | J9: 100 | K9: 0.1612 | L9: 0.1612 | M9: 0.7619628162 | O9: 51.44139218
A10: 120 | B10: 120 | C10: 0 | D10: 0 | E10: 120 | F10: 120 | G10: 100 | H10: 0 | I10: 0 | J10: 100 | K10: 0.215 | L10: 0.215 | M10: 0.7619628162 | O10: 48.30550877
A11: 150 | B11: 150 | C11: 0 | D11: 0 | E11: 150 | F11: 150 | G11: 100 | H11: 0 | I11: 0 | J11: 100 | K11: 0.2688 | L11: 0.2688 | M11: 0.7619628162 | O11: 45.005745
A12: 180 | B12: 180 | C12: 0 | D12: 0 | E12: 180 | F12: 180 | G12: 100 | H12: 0 | I12: 0 | J12: 100 | K12: 0.3225 | L12: 0.3225 | M12: 0.7619628162 | O12: 41.76924069
A13: 210 | B13: 210 | C13: 0 | D13: 0 | E13: 210 | F13: 210 | G13: 100 | H13: 0 | I13: 0 | J13: 100 | K13: 0.3763 | L13: 0.3763 | M13: 0.7619628162 | O13: 38.71228434
A14: 240 | B14: 240 | C14: 0 | D14: 0 | E14: 240 | F14: 240 | G14: 100 | H14: 0 | I14: 0 | J14: 100 | K14: 0.4301 | L14: 0.4301 | M14: 0.7619628162 | O14: 35.9012195
A15: 270 | B15: 270 | C15: 0 | D15: 0 | E15: 270 | F15: 270 | G15: 100 | H15: 0 | I15: 0 | J15: 100 | K15: 0.4838 | L15: 0.4838 | M15: 0.7619628162 | O15: 33.35763552
A16: 300 | B16: 300 | C16: 0 | D16: 0 | E16: 300 | F16: 300 | G16: 100 | H16: 0 | I16: 0 | J16: 100 | K16: 0.5376 | L16: 0.5376 | M16: 0.7619628162 | O16: 31.06510747
A17: 330 | B17: 330 | C17: 0 | D17: 0 | E17: 330 | F17: 330 | G17: 100 | H17: 0 | I17: 0 | J17: 100 | K17: 0.5914 | L17: 0.5914 | M17: 0.7619628162 | O17: 29.00988118
A18: 360 | B18: 360 | C18: 0 | D18: 0 | E18: 360 | F18: 360 | G18: 100 | H18: 0 | I18: 0 | J18: 100 | K18: 0.6452 | L18: 0.6452 | M18: 0.7619628162 | O18: 27.1686487
A19: 390 | B19: 390 | C19: 0 | D19: 0 | E19: 390 | F19: 390 | G19: 100 | H19: 0 | I19: 0 | J19: 100 | K19: 0.6989 | L19: 0.6989 | M19: 0.7619628162 | O19: 25.52035402
A20: 420 | B20: 420 | C20: 0 | D20: 0 | E20: 420 | F20: 420 | G20: 100 | H20: 0 | I20: 0 | J20: 100 | K20: 0.7527 | L20: 0.7527 | M20: 0.7619628162 | O20: 24.03621977
A21: 450 | B21: 450 | C21: 0 | D21: 0 | E21: 450 | F21: 450 | G21: 100 | H21: 0 | I21: 0 | J21: 100 | K21: 0.8065 | L21: 0.8065 | M21: 0.7619628162 | O21: 22.69893693
A22: 480 | B22: 480 | C22: 0 | D22: 0 | E22: 480 | F22: 480 | G22: 100 | H22: 0 | I22: 0 | J22: 100 | K22: 0.8602 | L22: 0.8602 | M22: 0.7619628162 | O22: 21.49246572
A23: 510 | B23: 510 | C23: 0 | D23: 0 | E23: 510 | F23: 510 | G23: 100 | H23: 0 | I23: 0 | J23: 100 | K23: 0.914 | L23: 0.914 | M23: 0.7619628162 | O23: 20.39647309
A24: 540 | B24: 540 | C24: 0 | D24: 0 | E24: 540 | F24: 540 | G24: 100 | H24: 0 | I24: 0 | J24: 100 | K24: 0.9678 | L24: 0.9678 | M24: 0.7619628162 | O24: 19.39957688
A25: 570 | B25: 570 | C25: 0 | D25: 0 | E25: 570 | F25: 570 | G25: 100 | H25: 0 | I25: 0 | J25: 100 | K25: 1.0216 | L25: 1.0216 | M25: 0.7619628162 | O25: 18.48991605
A26: 600 | B26: 600 | C26: 0 | D26: 0 | E26: 600 | F26: 600 | G26: 100 | H26: 0 | I26: 0 | J26: 100 | K26: 1.0753 | L26: 1.0753 | M26: 0.7619628162 | O26: 17.6587478
A27: 630 | B27: 630 | C27: 0 | D27: 0 | E27: 630 | F27: 630 | G27: 100 | H27: 0 | I27: 0 | J27: 100 | K27: 1.1291 | L27: 1.1291 | M27: 0.7619628162 | O27: 16.89417115
A28: 660 | B28: 660 | C28: 0 | D28: 0 | E28: 660 | F28: 660 | G28: 100 | H28: 0 | I28: 0 | J28: 100 | K28: 1.1829 | L28: 1.1829 | M28: 0.7619628162 | O28: 16.19018468
A29: 690 | B29: 690 | C29: 0 | D29: 0 | E29: 690 | F29: 690 | G29: 100 | H29: 0 | I29: 0 | J29: 100 | K29: 1.2366 | L29: 1.2366 | M29: 0.7619628162 | O29: 15.54135651
A30: 720 | B30: 720 | C30: 0 | D30: 0 | E30: 720 | F30: 720 | G30: 100 | H30: 0 | I30: 0 | J30: 100 | K30: 1.2904 | L30: 1.2904 | M30: 0.7619628162 | O30: 14.93955635
A31: 750 | B31: 750 | C31: 0 | D31: 0 | E31: 750 | F31: 750 | G31: 100 | H31: 0 | I31: 0 | J31: 100 | K31: 1.3442 | L31: 1.3442 | M31: 0.7619628162 | O31: 14.38105972
A32: 780 | B32: 780 | C32: 0 | D32: 0 | E32: 780 | F32: 780 | G32: 100 | H32: 0 | I32: 0 | J32: 100 | K32: 1.3979 | L32: 1.3979 | M32: 0.7619628162 | O32: 13.86245053
A33: 810 | B33: 810 | C33: 0 | D33: 0 | E33: 810 | F33: 810 | G33: 100 | H33: 0 | I33: 0 | J33: 100 | K33: 1.4517 | L33: 1.4517 | M33: 0.7619628162 | O33: 13.37799539
A34: 840 | B34: 840 | C34: 0 | D34: 0 | E34: 840 | F34: 840 | G34: 100 | H34: 0 | I34: 0 | J34: 100 | K34: 1.5055 | L34: 1.5055 | M34: 0.7619628162 | O34: 12.9253499
A35: 870 | B35: 870 | C35: 0 | D35: 0 | E35: 870 | F35: 870 | G35: 100 | H35: 0 | I35: 0 | J35: 100 | K35: 1.5593 | L35: 1.5593 | M35: 0.7619628162 | O35: 12.50156672
A36: 900 | B36: 900 | C36: 0 | D36: 0 | E36: 900 | F36: 900 | G36: 100 | H36: 0 | I36: 0 | J36: 100 | K36: 1.613 | L36: 1.613 | M36: 0.7619628162 | O36: 12.10475696
A37: 930 | B37: 930 | C37: 0 | D37: 0 | E37: 930 | F37: 930 | G37: 100 | H37: 0 | I37: 0 | J37: 100 | K37: 1.6668 | L37: 1.6668 | M37: =((ref_diam+offset_diam)/2)/(12*3.281) -> 0.7619628162 | O37: =(J37-M37-surface_margin)/(scaling_factor*(SQRT(K37^2+L37^2+sigma_pa^2))) -> 11.73113701
A38: 960 | B38: 960 | C38: 0 | D38: 0 | E38: 960 | F38: 960 | G38: 100 | H38: 0 | I38: 0 | J38: 100 | K38: 1.7206 | L38: 1.7206 | M38: 0.7619628162 | O38: 11.37941617
A39: 990 | B39: 990 | C39: 0 | D39: 0 | E39: 990 | F39: 990 | G39: 100 | H39: 0 | I39: 0 | J39: 100 | K39: 1.7743 | L39: 1.7743 | M39: 0.7619628162 | O39: 11.04836275
A40: 1020 | B40: 1020 | C40: -0.35 | D40: 0 | E40: 1022.32 | F40: 1022.32 | G40: 99.64 | H40: 0 | I40: 0 | J40: 100.01 | K40: 1.8249 | L40: 1.8287 | M40: 0.7619628162 | O40: 10.74355346
A41: 1050 | B41: 1049.97 | C41: -1.57 | D41: 0 | E41: 1055.81 | F41: 1055.77 | G41: 98.28 | H41: 0 | I41: 0 | J41: 100.01 | K41: 1.8712 | L41: 1.8806 | M41: 0.7619628162 | O41: 10.47209547
A42: 1080 | B42: 1079.88 | C42: -3.83 | D42: 0 | E42: 1089.29 | F42: 1089.16 | G42: 95.75 | H42: 0 | I42: 0 | J42: 100.02 | K42: 1.9156 | L42: 1.9308 | M42: 0.7619628162 | O42: 10.22404953
A43: 1110 | B43: 1109.7 | C43: -7.14 | D43: 0 | E43: 1122.79 | F43: 1122.46 | G43: 92.06 | H43: 0 | I43: 0 | J43: 100.02 | K43: 1.9582 | L43: 1.9789 | M43: 0.7619628162 | O43: 9.995901184
A44: 1140 | B44: 1139.38 | C44: -11.49 | D44: 0 | E44: 1156.29 | F44: 1155.6 | G44: 87.21 | H44: 0 | I44: 0 | J44: 100.02 | K44: 1.9988 | L44: 2.0256 | M44: 0.7619628162 | O44: 9.785547474
A45: 1170 | B45: 1168.89 | C45: -16.87 | D45: 0 | E45: 1189.78 | F45: 1188.54 | G45: 81.2 | H45: 0 | I45: 0 | J45: 100.02 | K45: 2.0376 | L45: 2.0702 | M45: 0.7619628162 | O45: 9.59256111
A46: 1200 | B46: 1198.2 | C46: -23.27 | D46: 0 | E46: 1223.27 | F46: 1221.26 | G46: 74.05 | H46: 0 | I46: 0 | J46: 100.02 | K46: 2.0744 | L46: 2.1129 | M46: 0.7619628162 | O46: 9.415435047
A47: 1230 | B47: 1227.27 | C47: -30.7 | D47: 0 | E47: 1256.75 | F47: 1253.7 | G47: 65.77 | H47: 0 | I47: 0 | J47: 100.02 | K47: 2.1093 | L47: 2.1538 | M47: 0.7619628162 | O47: 9.252435618
A48: 1260 | B48: 1256.05 | C48: -39.13 | D48: 0 | E48: 1290.24 | F48: 1285.84 | G48: 56.35 | H48: 0 | I48: 0 | J48: 100.02 | K48: 2.1424 | L48: 2.1928 | M48: 0.7619628162 | O48: 9.102459665
A49: 1290 | B49: 1284.53 | C49: -48.57 | D49: 0 | E49: 1323.75 | F49: 1317.64 | G49: 45.82 | H49: 0 | I49: 0 | J49: 100.02 | K49: 2.1735 | L49: 2.2301 | M49: 0.7619628162 | O49: 8.964522957
A50: 1320 | B50: 1312.66 | C50: -58.99 | D50: 0 | E50: 1357.24 | F50: 1349.04 | G50: 34.18 | H50: 0 | I50: 0 | J50: 100.02 | K50: 2.203 | L50: 2.2658 | M50: 0.7619628162 | O50: 8.836808277
A51: 1350 | B51: 1340.41 | C51: -70.38 | D51: 0 | E51: 1390.73 | F51: 1380.02 | G51: 21.46 | H51: 0 | I51: 0 | J51: 100.02 | K51: 2.2309 | L51: 2.2999 | M51: 0.7619628162 | O51: 8.718632017
A52: 1380 | B52: 1367.74 | C52: -82.74 | D52: 0 | E52: 1424.21 | F52: 1410.53 | G52: 7.66 | H52: 0 | I52: 0 | J52: 100.02 | K52: 2.2572 | L52: 2.3326 | M52: 0.7619628162 | O52: 8.609012365
A53: 1410 | B53: 1394.63 | C53: -96.05 | D53: 0 | E53: 1457.7 | F53: 1440.54 | G53: -7.19 | H53: 0 | I53: 0 | J53: 100.02 | K53: 2.282 | L53: 2.364 | M53: 0.7619628162 | O53: 8.507072139
A54: 1440 | B54: 1421.03 | C54: -110.29 | D54: 0 | E54: 1491.2 | F54: 1470.03 | G54: -23.09 | H54: 0 | I54: 0 | J54: 100.02 | K54: 2.3055 | L54: 2.3941 | M54: 0.7619628162 | O54: 8.412025833
A55: 1470 | B55: 1446.93 | C55: -125.43 | D55: 0 | E55: 1524.7 | F55: 1498.94 | G55: -40 | H55: 0 | I55: 0 | J55: 100.02 | K55: 2.3278 | L55: 2.4232 | M55: 0.7619628162 | O55: 8.322805671
A56: 1500 | B56: 1472.28 | C56: -141.48 | D56: 0 | E56: 1558.19 | F56: 1527.24 | G56: -57.91 | H56: 0 | I56: 0 | J56: 100.02 | K56: 2.3491 | L56: 2.4514 | M56: 0.7619628162 | O56: 8.238611501
A57: 1530 | B57: 1497.05 | C57: -158.39 | D57: 0 | E57: 1591.67 | F57: 1554.89 | G57: -76.8 | H57: 0 | I57: 0 | J57: 100.02 | K57: 2.3695 | L57: 2.479 | M57: 0.7619628162 | O57: 8.158532432
A58: 1560 | B58: 1521.22 | C58: -176.17 | D58: 0 | E58: 1625.16 | F58: 1581.87 | G58: -96.63 | H58: 0 | I58: 0 | J58: 100.02 | K58: 2.3893 | L58: 2.506 | M58: 0.7619628162 | O58: 8.081905686
A59: 1590 | B59: 1544.75 | C59: -194.77 | D59: 0 | E59: 1658.65 | F59: 1608.14 | G59: -117.4 | H59: 0 | I59: 0 | J59: 100.02 | K59: 2.4084 | L59: 2.5326 | M59: 0.7619628162 | O59: 8.00841205
A60: 1620 | B60: 1567.62 | C60: -214.19 | D60: 0 | E60: 1692.15 | F60: 1633.67 | G60: -139.08 | H60: 0 | I60: 0 | J60: 100.02 | K60: 2.427 | L60: 2.5589 | M60: 0.7619628162 | O60: 7.937456159
A61: 1650 | B61: 1589.79 | C61: -234.39 | D61: 0 | E61: 1725.65 | F61: 1658.43 | G61: -161.63 | H61: 0 | I61: 0 | J61: 100.02 | K61: 2.4452 | L61: 2.5851 | M61: 0.7619628162 | O61: 7.86847478
A62: 1680 | B62: 1611.25 | C62: -255.35 | D62: 0 | E62: 1759.13 | F62: 1682.39 | G62: -185.03 | H62: 0 | I62: 0 | J62: 100.02 | K62: 2.4636 | L62: 2.6115 | M62: 0.7619628162 | O62: 7.80005421
A63: 1710 | B63: 1631.97 | C63: -277.05 | D63: 0 | E63: 1792.62 | F63: 1705.51 | G63: -209.26 | H63: 0 | I63: 0 | J63: 100.02 | K63: 2.482 | L63: 2.638 | M63: 0.7619628162 | O63: 7.732636398
A64: 1740 | B64: 1651.91 | C64: -299.46 | D64: 0 | E64: 1826.11 | F64: 1727.77 | G64: -234.27 | H64: 0 | I64: 0 | J64: 100.02 | K64: 2.5005 | L64: 2.665 | M64: 0.7619628162 | O64: 7.665458565
A65: 1770 | B65: 1671.06 | C65: -322.55 | D65: 0 | E65: 1859.62 | F65: 1749.16 | G65: -260.06 | H65: 0 | I65: 0 | J65: 100.02 | K65: 2.5192 | L65: 2.6921 | M65: 0.7619628162 | O65: 7.598989144
A66: 1800 | B66: 1689.39 | C66: -346.29 | D66: 0 | E66: 1893.11 | F66: 1769.62 | G66: -286.57 | H66: 0 | I66: 0 | J66: 100.02 | K66: 2.5386 | L66: 2.7203 | M66: 0.7619628162 | O66: 7.53109024
A67: 1830 | B67: 1706.89 | C67: -370.66 | D67: 0 | E67: 1926.59 | F67: 1789.15 | G67: -313.78 | H67: 0 | I67: 0 | J67: 100.01 | K67: 2.5587 | L67: 2.7492 | M67: 0.7619628162 | O67: 7.461683779
A68: 1860 | B68: 1723.52 | C68: -395.63 | D68: 0 | E68: 1960.08 | F68: 1807.71 | G68: -341.64 | H68: 0 | I68: 0 | J68: 100.01 | K68: 2.5794 | L68: 2.7789 | M68: 0.7619628162 | O68: 7.392348764
A69: 1890 | B69: 1739.27 | C69: -421.16 | D69: 0 | E69: 1993.57 | F69: 1825.29 | G69: -370.14 | H69: 0 | I69: 0 | J69: 100.01 | K69: 2.601 | L69: 2.8094 | M69: =((ref_diam+offset_diam)/2)/(12*3.281) -> 0.7619628162 | O69: =(J69-M69-surface_margin)/(scaling_factor*(SQRT(K69^2+L69^2+sigma_pa^2))) -> 7.322012672
A70: 1920 | B70: 1754.12 | C70: -447.23 | D70: 0 | E70: 2027.07 | F70: 1841.87 | G70: -399.25 | H70: 0 | I70: 0 | J70: 100.01 | K70: 2.6234 | L70: 2.8408 | M70: 0.7619628162 | O70: 7.250758805
A71: 1950 | B71: 1768.05 | C71: -473.79 | D71: 0 | E71: 2060.56 | F71: 1857.42 | G71: -428.92 | H71: 0 | I71: 0 | J71: 100.01 | K71: 2.6468 | L71: 2.8732 | M71: 0.7619628162 | O71: 7.178300609
A72: 1980 | B72: 1781.04 | C72: -500.83 | D72: 0 | E72: 2094.05 | F72: 1871.92 | G72: -459.1 | H72: 0 | I72: 0 | J72: 100.01 | K72: 2.6714 | L72: 2.9067 | M72: 0.7619628162 | O72: 7.104380715
A73: 2010 | B73: 1793.09 | C73: -528.31 | D73: 0 | E73: 2127.54 | F73: 1885.37 | G73: -489.77 | H73: 0 | I73: 0 | J73: 100 | K73: 2.697 | L73: 2.9413 | M73: 0.7619628162 | O73: 7.028657272
A74: 2040 | B74: 1804.16 | C74: -556.19 | D74: 0 | E74: 2161.03 | F74: 1897.73 | G74: -520.89 | H74: 0 | I74: 0 | J74: 100 | K74: 2.7239 | L74: 2.9769 | M74: 0.7619628162 | O74: 6.952456235
A75: 2070 | B75: 1814.26 | C75: -584.43 | D75: 0 | E75: 2194.52 | F75: 1909 | G75: -552.42 | H75: 0 | I75: 0 | J75: 100 | K75: 2.7517 | L75: 3.0136 | M75: 0.7619628162 | O75: 6.875513767
A76: 2100 | B76: 1823.37 | C76: -613.02 | D76: 0 | E76: 2228.02 | F76: 1919.17 | G76: -584.34 | H76: 0 | I76: 0 | J76: 100 | K76: 2.7805 | L76: 3.051 | M76: 0.7619628162 | O76: 6.798302677
A77: 2130 | B77: 1831.47 | C77: -641.9 | D77: 0 | E77: 2261.51 | F77: 1928.21 | G77: -616.59 | H77: 0 | I77: 0 | J77: 100 | K77: 2.8107 | L77: 3.0896 | M77: 0.7619628162 | O77: 6.719884843
A78: 2160 | B78: 1838.56 | C78: -671.05 | D78: 0 | E78: 2295 | F78: 1936.12 | G78: -649.12 | H78: 0 | I78: 0 | J78: 99.99 | K78: 2.8419 | L78: 3.129 | M78: 0.7619628162 | O78: 6.64060682
A79: 2190 | B79: 1844.63 | C79: -700.43 | D79: 0 | E79: 2328.48 | F79: 1942.89 | G79: -681.92 | H79: 0 | I79: 0 | J79: 99.99 | K79: 2.8741 | L79: 3.1692 | M79: 0.7619628162 | O79: 6.561895372
A80: 2220 | B80: 1849.66 | C80: -730 | D80: 0 | E80: 2361.97 | F80: 1948.51 | G80: -714.93 | H80: 0 | I80: 0 | J80: 99.99 | K80: 2.9073 | L80: 3.21 | M80: 0.7619628162 | O80: 6.483363172
A81: 2250 | B81: 1853.67 | C81: -759.73 | D81: 0 | E81: 2395.46 | F81: 1952.98 | G81: -748.11 | H81: 0 | I81: 0 | J81: 99.99 | K81: 2.9414 | L81: 3.2514 | M81: 0.7619628162 | O81: 6.405161066
A82: 2280 | B82: 1856.72 | C82: -789.57 | D82: 0 | E82: 2428.23 | F82: 1956.32 | G82: -780.71 | H82: 0 | I82: 0 | J82: 100 | K82: 2.9896 | L82: 3.3054 | M82: 0.7619628162 | O82: 6.303078927
A83: 2310 | B83: 1859.33 | C83: -819.46 | D83: 0 | E83: 2458.37 | F83: 1958.95 | G83: -810.74 | H83: 0 | I83: 0 | J83: 100 | K83: 3.0878 | L83: 3.4046 | M83: 0.7619628162 | O83: 6.114119963
A84: 2340 | B84: 1861.95 | C84: -849.34 | D84: 0 | E84: 2488.37 | F84: 1961.57 | G84: -840.63 | H84: 0 | I84: 0 | J84: 100 | K84: 3.1898 | L84: 3.5073 | M84: 0.7619628162 | O84: 5.929716924
A85: 2370 | B85: 1864.56 | C85: -879.23 | D85: 0 | E85: 2518.37 | F85: 1964.18 | G85: -870.51 | H85: 0 | I85: 0 | J85: 100 | K85: 3.2929 | L85: 3.6108 | M85: 0.7619628162 | O85: 5.754491895
A86: 2400 | B86: 1867.18 | C86: -909.12 | D86: 0 | E86: 2548.37 | F86: 1966.79 | G86: -900.4 | H86: 0 | I86: 0 | J86: 100 | K86: 3.3968 | L86: 3.7152 | M86: 0.7619628162 | O86: 5.587942724
A87: 2430 | B87: 1869.79 | C87: -939 | D87: 0 | E87: 2578.37 | F87: 1969.41 | G87: -930.29 | H87: 0 | I87: 0 | J87: 100 | K87: 3.5017 | L87: 3.8203 | M87: 0.7619628162 | O87: 5.429474059
A88: 2460 | B88: 1872.41 | C88: -968.89 | D88: 0 | E88: 2608.37 | F88: 1972.02 | G88: -960.17 | H88: 0 | I88: 0 | J88: 100 | K88: 3.6073 | L88: 3.9262 | M88: 0.7619628162 | O88: 5.278656382
A89: 2490 | B89: 1875.02 | C89: -998.77 | D89: 0 | E89: 2638.37 | F89: 1974.64 | G89: -990.06 | H89: 0 | I89: 0 | J89: 100 | K89: 3.7136 | L89: 4.0326 | M89: 0.7619628162 | O89: 5.13516817
A90: 2520 | B90: 1877.64 | C90: -1028.66 | D90: 0 | E90: 2668.37 | F90: 1977.25 | G90: -1019.94 | H90: 0 | I90: 0 | J90: 100 | K90: 3.8205 | L90: 4.1397 | M90: 0.7619628162 | O90: 4.998427109
A91: 2550 | B91: 1880.25 | C91: -1058.55 | D91: 0 | E91: 2698.37 | F91: 1979.87 | G91: -1049.83 | H91: 0 | I91: 0 | J91: 100 | K91: 3.9281 | L91: 4.2473 | M91: 0.7619628162 | O91: 4.868044163
A92: 2580 | B92: 1882.87 | C92: -1088.43 | D92: 0 | E92: 2728.37 | F92: 1982.48 | G92: -1079.72 | H92: 0 | I92: 0 | J92: 100 | K92: 4.0362 | L92: 4.3554 | M92: 0.7619628162 | O92: 4.7437014
A93: 2610 | B93: 1885.48 | C93: -1118.32 | D93: 0 | E93: 2758.37 | F93: 1985.1 | G93: -1109.6 | H93: 0 | I93: 0 | J93: 100 | K93: 4.1448 | L93: 4.4639 | M93: 0.7619628162 | O93: 4.625049637
A94: 2640 | B94: 1888.09 | C94: -1148.2 | D94: 0 | E94: 2788.37 | F94: 1987.71 | G94: -1139.49 | H94: 0 | I94: 0 | J94: 100 | K94: 4.2539 | L94: 4.5729 | M94: 0.7619628162 | O94: 4.511658835
A95: 2670 | B95: 1890.71 | C95: -1178.09 | D95: 0 | E95: 2818.37 | F95: 1990.33 | G95: -1169.37 | H95: 0 | I95: 0 | J95: 100 | K95: 4.3634 | L95: 4.6824 | M95: 0.7619628162 | O95: 4.403238212
A96: 2700 | B96: 1893.32 | C96: -1207.97 | D96: 0 | E96: 2848.37 | F96: 1992.94 | G96: -1199.26 | H96: 0 | I96: 0 | J96: 100 | K96: 4.4733 | L96: 4.7921 | M96: 0.7619628162 | O96: 4.299615076
A97: 2730 | B97: 1895.94 | C97: -1237.86 | D97: 0 | E97: 2878.37 | F97: 1995.56 | G97: -1229.14 | H97: 0 | I97: 0 | J97: 100 | K97: 4.5835 | L97: 4.9023 | M97: 0.7619628162 | O97: 4.200386044
A98: 2760 | B98: 1898.55 | C98: -1267.75 | D98: 0 | E98: 2908.37 | F98: 1998.17 | G98: -1259.03 | H98: 0 | I98: 0 | J98: 100 | K98: 4.6941 | L98: 5.0128 | M98: 0.7619628162 | O98: 4.105326712
A99: 2790 | B99: 1900.91 | C99: -1297.65 | D99: 0 | E99: 2940.35 | F99: 2000.66 | G99: -1290.91 | H99: 0 | I99: 0 | J99: 99.98 | K99: 4.7706 | L99: 5.0929 | M99: 0.7619628162 | O99: 4.039686961
A100: 2820 | B100: 1902.48 | C100: -1327.61 | D100: 0 | E100: 2974.27 | F100: 2002.28 | G100: -1324.79 | H100: 0 | I100: 0 | J100: 99.84 | K100: 4.8103 | L100: 5.1397 | M100: 0.7619628162 | O100: 3.999021012
A101: 2850 | B101: 1903 | C101: -1357.6 | D101: 0 | E101: 3007.09 | F101: 2002.64 | G101: -1357.6 | H101: 0 | I101: 0 | J101: 99.64 | K101: 4.8673 | L101: 5.2016 | M101: 0.7619628162 | O101: 3.944016612
A102: 2880 | B102: 1903 | C102: -1387.6 | D102: 0 | E102: 3037.09 | F102: 2002.64 | G102: -1387.6 | H102: 0 | I102: 0 | J102: 99.64 | K102: 4.9786 | L102: 5.3127 | M102: 0.7619628162 | O102: 3.859281776
A103: 2910 | B103: 1903 | C103: -1417.6 | D103: 0 | E103: 3067.09 | F103: 2002.64 | G103: -1417.6 | H103: 0 | I103: 0 | J103: 99.64 | K103: 5.0902 | L103: 5.4241 | M103: 0.7619628162 | O103: 3.777886937
A104: 2940 | B104: 1903 | C104: -1447.6 | D104: 0 | E104: 3090 | F104: 2002.64 | G104: -1440.52 | H104: 0 | I104: 0 | J104: 99.9 | K104: 5.3309 | L104: 5.6514 | M104: 0.7619628162 | O104: =(J104-M104-surface_margin)/(scaling_factor*(SQRT(K104^2+L104^2+sigma_pa^2))) -> 3.627399015

Sheet 03 - well
A1: Wellpath | B1: Offset 03: East 10 drilled wellpath r4
A3: REPORT SETUP INFORMATION
A4: Projection System | B4: ED50 / UTM Zone 31 North
A5: North Reference | B5: Grid
A6: Scale | B6: 0.9996
A7: Convergence at slot | B7: 0.00° East
A9: WELLPATH LOCATION | B9: Local North | C9: Local East | D9: Easting | E9: Northing | F9: Latitude | G9: Longitude
B10: [m] | C10: [m] | D10: [m] | E10: [m]
B11: 0 | C11: 10 | D11: 500010 | E11: 6651566.71 | F11: 60°00'00.000"N | G11: 3°00'00.645"E
B15: MD | C15: Inclination | D15: Azimuth | E15: TVD | F15: North | G15: East | H15: sigmaH | I15: sigmaL | J15: sigmaA
B16: [m] | C16: [°] | D16: [°] | E16: [m] | F16: [m] | G16: [m]
B17: 0 | C17: 0 | D17: 0 | E17: 0 | F17: 0 | G17: 10 | H17: 0 | I17: 0 | J17: 0
B18: 1 | C18: 0 | D18: 0 | E18: 1 | F18: 0 | G18: 10 | H18: 0.0017 | I18: 0.0017 | J18: 0.35
B19: 30 | C19: 0 | D19: 0 | E19: 30 | F19: 0 | G19: 10 | H19: 0.0537 | I19: 0.0537 | J19: 0.3504
B20: 60 | C20: 0 | D20: 0 | E20: 60 | F20: 0 | G20: 10 | H20: 0.1074 | I20: 0.1074 | J20: 0.3516
B21: 90 | C21: 0 | D21: 0 | E21: 90 | F21: 0 | G21: 10 | H21: 0.1612 | I21: 0.1612 | J21: 0.3536
B22: 120 | C22: 0 | D22: 0 | E22: 120 | F22: 0 | G22: 10 | H22: 0.215 | I22: 0.215 | J22: 0.3564
B23: 150 | C23: 0 | D23: 0 | E23: 150 | F23: 0 | G23: 10 | H23: 0.2688 | I23: 0.2688 | J23: 0.36
B24: 180 | C24: 0 | D24: 0 | E24: 180 | F24: 0 | G24: 10 | H24: 0.3225 | I24: 0.3225 | J24: 0.3643
B25: 210 | C25: 0 | D25: 0 | E25: 210 | F25: 0 | G25: 10 | H25: 0.3763 | I25: 0.3763 | J25: 0.3694
B26: 240 | C26: 0 | D26: 0 | E26: 240 | F26: 0 | G26: 10 | H26: 0.4301 | I26: 0.4301 | J26: 0.3752
B27: 270 | C27: 0 | D27: 0 | E27: 270 | F27: 0 | G27: 10 | H27: 0.4838 | I27: 0.4838 | J27: 0.3817
B28: 300 | C28: 0 | D28: 0 | E28: 300 | F28: 0 | G28: 10 | H28: 0.5376 | I28: 0.5376 | J28: 0.3889
B29: 330 | C29: 0 | D29: 0 | E29: 330 | F29: 0 | G29: 10 | H29: 0.5914 | I29: 0.5914 | J29: 0.3967
B30: 360 | C30: 0 | D30: 0 | E30: 360 | F30: 0 | G30: 10 | H30: 0.6452 | I30: 0.6452 | J30: 0.4052
B31: 390 | C31: 0 | D31: 0 | E31: 390 | F31: 0 | G31: 10 | H31: 0.6989 | I31: 0.6989 | J31: 0.4143
B32: 420 | C32: 0 | D32: 0 | E32: 420 | F32: 0 | G32: 10 | H32: 0.7527 | I32: 0.7527 | J32: 0.424
B33: 450 | C33: 0 | D33: 0 | E33: 450 | F33: 0 | G33: 10 | H33: 0.8065 | I33: 0.8065 | J33: 0.4342
B34: 480 | C34: 0 | D34: 0 | E34: 480 | F34: 0 | G34: 10 | H34: 0.8602 | I34: 0.8602 | J34: 0.4451
B35: 510 | C35: 0 | D35: 0 | E35: 510 | F35: 0 | G35: 10 | H35: 0.914 | I35: 0.914 | J35: 0.4564
B36: 540 | C36: 0 | D36: 0 | E36: 540 | F36: 0 | G36: 10 | H36: 0.9678 | I36: 0.9678 | J36: 0.4683
B37: 570 | C37: 0 | D37: 0 | E37: 570 | F37: 0 | G37: 10 | H37: 1.0216 | I37: 1.0216 | J37: 0.4806
B38: 600 | C38: 0 | D38: 0 | E38: 600 | F38: 0 | G38: 10 | H38: 1.0753 | I38: 1.0753 | J38: 0.4935
B39: 630 | C39: 0 | D39: 0 | E39: 630 | F39: 0 | G39: 10 | H39: 1.1291 | I39: 1.1291 | J39: 0.5068
B40: 660 | C40: 0 | D40: 0 | E40: 660 | F40: 0 | G40: 10 | H40: 1.1829 | I40: 1.1829 | J40: 0.5205
B41: 690 | C41: 0 | D41: 0 | E41: 690 | F41: 0 | G41: 10 | H41: 1.2366 | I41: 1.2366 | J41: 0.5348
B42: 720 | C42: 0 | D42: 0 | E42: 720 | F42: 0 | G42: 10 | H42: 1.2904 | I42: 1.2904 | J42: 0.5494
B43: 750 | C43: 0 | D43: 0 | E43: 750 | F43: 0 | G43: 10 | H43: 1.3442 | I43: 1.3442 | J43: 0.5645
B44: 780 | C44: 0 | D44: 0 | E44: 780 | F44: 0 | G44: 10 | H44: 1.3979 | I44: 1.3979 | J44: 0.58
B45: 810 | C45: 0 | D45: 0 | E45: 810 | F45: 0 | G45: 10 | H45: 1.4517 | I45: 1.4517 | J45: 0.596
B46: 840 | C46: 0 | D46: 0 | E46: 840 | F46: 0 | G46: 10 | H46: 1.5055 | I46: 1.5055 | J46: 0.6123
B47: 870 | C47: 0 | D47: 0 | E47: 870 | F47: 0 | G47: 10 | H47: 1.5593 | I47: 1.5593 | J47: 0.629
B48: 900 | C48: 0 | D48: 0 | E48: 900 | F48: 0 | G48: 10 | H48: 1.613 | I48: 1.613 | J48: 0.6462
B49: 930 | C49: 0 | D49: 0 | E49: 930 | F49: 0 | G49: 10 | H49: 1.6668 | I49: 1.6668 | J49: 0.6637
B50: 960 | C50: 0 | D50: 0 | E50: 960 | F50: 0 | G50: 10 | H50: 1.7206 | I50: 1.7206 | J50: 0.6816
B51: 990 | C51: 0 | D51: 0 | E51: 990 | F51: 0 | G51: 10 | H51: 1.7743 | I51: 1.7743 | J51: 0.6999
B52: 1020 | C52: 1.33 | D52: 175 | E52: 1020 | F52: -0.35 | G52: 10.03 | H52: 1.8249 | I52: 1.8253 | J52: 0.7197
B53: 1050 | C53: 3.33 | D53: 175 | E53: 1049.97 | F53: -1.56 | G53: 10.14 | H53: 1.8712 | I53: 1.8735 | J53: 0.7444
B54: 1080 | C54: 5.33 | D54: 175 | E54: 1079.88 | F54: -3.82 | G54: 10.33 | H54: 1.9156 | I54: 1.922 | J54: 0.7741
B55: 1110 | C55: 7.33 | D55: 175 | E55: 1109.7 | F55: -7.11 | G55: 10.62 | H55: 1.9582 | I55: 1.971 | J55: 0.8087
B56: 1140 | C56: 9.33 | D56: 175 | E56: 1139.38 | F56: -11.44 | G56: 11 | H56: 1.9989 | I56: 2.0207 | J56: 0.8477
B57: 1170 | C57: 11.33 | D57: 175 | E57: 1168.89 | F57: -16.8 | G57: 11.47 | H57: 2.0376 | I57: 2.0718 | J57: 0.8909
B58: 1200 | C58: 13.33 | D58: 175 | E58: 1198.2 | F58: -23.18 | G58: 12.03 | H58: 2.0744 | I58: 2.1248 | J58: 0.9378
B59: 1230 | C59: 15.33 | D59: 175 | E59: 1227.27 | F59: -30.58 | G59: 12.68 | H59: 2.1093 | I59: 2.1802 | J59: 0.9882
B60: 1260 | C60: 17.33 | D60: 175 | E60: 1256.05 | F60: -38.98 | G60: 13.41 | H60: 2.1424 | I60: 2.2387 | J60: 1.0415
B61: 1290 | C61: 19.33 | D61: 175 | E61: 1284.53 | F61: -48.38 | G61: 14.23 | H61: 2.1736 | I61: 2.3009 | J61: 1.0976
B62: 1320 | C62: 21.33 | D62: 175 | E62: 1312.66 | F62: -58.76 | G62: 15.14 | H62: 2.2031 | I62: 2.3677 | J62: 1.1561
B63: 1350 | C63: 23.33 | D63: 175 | E63: 1340.41 | F63: -70.12 | G63: 16.13 | H63: 2.2309 | I63: 2.4395 | J63: 1.2167
B64: 1380 | C64: 25.33 | D64: 175 | E64: 1367.74 | F64: -82.43 | G64: 17.21 | H64: 2.2572 | I64: 2.5172 | J64: 1.2792
B65: 1410 | C65: 27.33 | D65: 175 | E65: 1394.63 | F65: -95.68 | G65: 18.37 | H65: 2.2821 | I65: 2.6012 | J65: 1.3433
B66: 1440 | C66: 29.33 | D66: 175 | E66: 1421.03 | F66: -109.87 | G66: 19.61 | H66: 2.3056 | I66: 2.6921 | J66: 1.4088
B67: 1470 | C67: 31.33 | D67: 175 | E67: 1446.93 | F67: -124.96 | G67: 20.93 | H67: 2.3279 | I67: 2.7905 | J67: 1.4756
B68: 1500 | C68: 33.33 | D68: 175 | E68: 1472.28 | F68: -140.94 | G68: 22.33 | H68: 2.3492 | I68: 2.8968 | J68: 1.5434
B69: 1530 | C69: 35.33 | D69: 175 | E69: 1497.05 | F69: -157.79 | G69: 23.81 | H69: 2.3696 | I69: 3.0112 | J69: 1.612
B70: 1560 | C70: 37.33 | D70: 175 | E70: 1521.22 | F70: -175.5 | G70: 25.35 | H70: 2.3893 | I70: 3.134 | J70: 1.6814
B71: 1590 | C71: 39.33 | D71: 175 | E71: 1544.75 | F71: -194.03 | G71: 26.98 | H71: 2.4084 | I71: 3.2654 | J71: 1.7513
B72: 1620 | C72: 41.33 | D72: 175 | E72: 1567.62 | F72: -213.37 | G72: 28.67 | H72: 2.427 | I72: 3.4054 | J72: 1.8218
B73: 1650 | C73: 43.33 | D73: 175 | E73: 1589.79 | F73: -233.5 | G73: 30.43 | H73: 2.4454 | I73: 3.5542 | J73: 1.8925
B74: 1680 | C74: 45.31 | D74: 175.18 | E74: 1611.26 | F74: -254.38 | G74: 32.22 | H74: 2.4642 | I74: 3.7115 | J74: 1.9629
B75: 1710 | C75: 47.16 | D75: 176.22 | E75: 1632.01 | F75: -275.98 | G75: 33.84 | H75: 2.4864 | I75: 3.8766 | J75: 2.0302
B76: 1740 | C76: 49.02 | D76: 177.21 | E76: 1652.05 | F76: -298.27 | G76: 35.12 | H76: 2.509 | I76: 4.0491 | J76: 2.0985
B77: 1770 | C77: 50.89 | D77: 178.13 | E77: 1671.35 | F77: -321.21 | G77: 36.05 | H77: 2.532 | I77: 4.2287 | J77: 2.1679
B78: 1800 | C78: 52.77 | D78: 179.02 | E78: 1689.89 | F78: -344.79 | G78: 36.63 | H78: 2.5555 | I78: 4.4151 | J78: 2.2384
B79: 1830 | C79: 54.65 | D79: 179.85 | E79: 1707.64 | F79: -368.97 | G79: 36.87 | H79: 2.5798 | I79: 4.6081 | J79: 2.3096
B80: 1860 | C80: 56.54 | D80: 180.65 | E80: 1724.59 | F80: -393.72 | G80: 36.76 | H80: 2.6045 | I80: 4.8074 | J80: 2.3819
B81: 1890 | C81: 58.43 | D81: 181.42 | E81: 1740.72 | F81: -419.01 | G81: 36.3 | H81: 2.6301 | I81: 5.0127 | J81: 2.455
B82: 1920 | C82: 60.33 | D82: 182.15 | E82: 1756 | F82: -444.81 | G82: 35.5 | H82: 2.6562 | I82: 5.2238 | J82: 2.5291
B83: 1950 | C83: 62.23 | D83: 182.86 | E83: 1770.41 | F83: -471.1 | G83: 34.35 | H83: 2.6831 | I83: 5.4403 | J83: 2.6039
B84: 1980 | C84: 64.14 | D84: 183.54 | E84: 1783.94 | F84: -497.83 | G84: 32.85 | H84: 2.7105 | I84: 5.662 | J84: 2.6797
B85: 2010 | C85: 66.04 | D85: 184.2 | E85: 1796.58 | F85: -524.97 | G85: 31.01 | H85: 2.7391 | I85: 5.8886 | J85: 2.7559
B86: 2040 | C86: 67.95 | D86: 184.85 | E86: 1808.3 | F86: -552.5 | G86: 28.83 | H86: 2.7682 | I86: 6.1195 | J86: 2.8334
B87: 2070 | C87: 69.87 | D87: 185.47 | E87: 1819.1 | F87: -580.38 | G87: 26.31 | H87: 2.7979 | I87: 6.3548 | J87: 2.9116
B88: 2100 | C88: 71.78 | D88: 186.08 | E88: 1828.95 | F88: -608.57 | G88: 23.46 | H88: 2.8287 | I88: 6.594 | J88: 2.9902
B89: 2130 | C89: 73.7 | D89: 186.68 | E89: 1837.85 | F89: -637.04 | G89: 20.28 | H89: 2.8601 | I89: 6.8366 | J89: 3.07
B90: 2160 | C90: 75.62 | D90: 187.26 | E90: 1845.79 | F90: -665.75 | G90: 16.77 | H90: 2.8923 | I90: 7.0826 | J90: 3.1502
B91: 2190 | C91: 77.54 | D91: 187.84 | E91: 1852.75 | F91: -694.68 | G91: 12.93 | H91: 2.9254 | I91: 7.3313 | J91: 3.2314
B92: 2220 | C92: 79.46 | D92: 188.4 | E92: 1858.73 | F92: -723.78 | G92: 8.78 | H92: 2.9593 | I92: 7.5827 | J92: 3.3128
B93: 2250 | C93: 81.38 | D93: 188.96 | E93: 1863.72 | F93: -753.02 | G93: 4.31 | H93: 2.9942 | I93: 7.8362 | J93: 3.3951
B94: 2280 | C94: 83.31 | D94: 189.52 | E94: 1867.72 | F94: -782.37 | G94: -0.46 | H94: 3.0297 | I94: 8.0914 | J94: 3.4785
B95: 2310 | C95: 85 | D95: 190 | E95: 1870.78 | F95: -811.78 | G95: -5.52 | H95: 3.0741 | I95: 8.3495 | J95: 3.5525
B96: 2340 | C96: 85 | D96: 190 | E96: 1873.39 | F96: -841.21 | G96: -10.71 | H96: 3.1755 | I96: 8.6181 | J96: 3.5577
B97: 2370 | C97: 85 | D97: 190 | E97: 1876 | F97: -870.64 | G97: -15.9 | H97: 3.278 | I97: 8.8883 | J97: 3.563
B98: 2400 | C98: 85 | D98: 190 | E98: 1878.62 | F98: -900.07 | G98: -21.09 | H98: 3.3814 | I98: 9.16 | J98: 3.5685
B99: 2430 | C99: 85 | D99: 190 | E99: 1881.23 | F99: -929.5 | G99: -26.28 | H99: 3.4858 | I99: 9.4331 | J99: 3.5741
B100: 2460 | C100: 85 | D100: 190 | E100: 1883.85 | F100: -958.94 | G100: -31.47 | H100: 3.5909 | I100: 9.7074 | J100: 3.5799
B101: 2490 | C101: 85 | D101: 190 | E101: 1886.46 | F101: -988.37 | G101: -36.66 | H101: 3.6968 | I101: 9.9829 | J101: 3.5858
B102: 2520 | C102: 85 | D102: 190 | E102: 1889.08 | F102: -1017.8 | G102: -41.85 | H102: 3.8034 | I102: 10.2594 | J102: 3.5918
B103: 2550 | C103: 85 | D103: 190 | E103: 1891.69 | F103: -1047.23 | G103: -47.04 | H103: 3.9105 | I103: 10.537 | J103: 3.598
B104: 2580 | C104: 85 | D104: 190 | E104: 1894.31 | F104: -1076.66 | G104: -52.23 | H104: 4.0183 | I104: 10.8154 | J104: 3.6044
B105: 2610 | C105: 85 | D105: 190 | E105: 1896.92 | F105: -1106.09 | G105: -57.41 | H105: 4.1265 | I105: 11.0946 | J105: 3.6109
B106: 2640 | C106: 85 | D106: 190 | E106: 1899.54 | F106: -1135.53 | G106: -62.6 | H106: 4.2353 | I106: 11.3747 | J106: 3.6175
B107: 2670 | C107: 85 | D107: 190 | E107: 1902.15 | F107: -1164.96 | G107: -67.79 | H107: 4.3445 | I107: 11.6554 | J107: 3.6243
B108: 2700 | C108: 85 | D108: 190 | E108: 1904.77 | F108: -1194.39 | G108: -72.98 | H108: 4.4541 | I108: 11.9368 | J108: 3.6312
B109: 2730 | C109: 85 | D109: 190 | E109: 1907.38 | F109: -1223.82 | G109: -78.17 | H109: 4.5641 | I109: 12.2189 | J109: 3.6383
B110: 2760 | C110: 85 | D110: 190 | E110: 1910 | F110: -1253.25 | G110: -83.36 | H110: 4.6745 | I110: 12.5015 | J110: 3.6455
B111: 2790 | C111: 85 | D111: 190 | E111: 1912.61 | F111: -1282.69 | G111: -88.55 | H111: 4.7852 | I111: 12.7846 | J111: 3.6528
B112: 2820 | C112: 85 | D112: 190 | E112: 1915.22 | F112: -1312.12 | G112: -93.74 | H112: 4.8962 | I112: 13.0683 | J112: 3.6603

Sheet 03 - clearance
A1: Offset 03
A2: Offset 03: East 10 drilled wellpath r4
A3: Ref_MD | B3: Ref_TVD | C3: Ref_N | D3: Ref_E | E3: Offset_MD | F3: Offset_TVD | G3: Offset_N | H3: Offset_E | I3: Horiz_Bearing | J3: C-C Clr Dist | K3: Ref PCR | L3: Offset PCR | M3: Calc hole | O3: ISCWSA ACR
A4: [m] | B4: [m] | C4: [m] | D4: [m] | E4: [m] | F4: [m] | G4: [m] | H4: [m] | I4: [°] | J4: [m] | K4: [m 1sigma] | L4: [m 1sigma] | M4: [m]
A5: 0 | B5: 0 | C5: 0 | D5: 0 | E5: 0 | F5: 0 | G5: 0 | H5: 10 | I5: 90 | J5: 10 | K5: 0 | L5: 0 | M5: =((ref_diam+offset_diam)/2)/(12*3.281) -> 0.7619628162 | O5: =(J5-M5-surface_margin)/(scaling_factor*(SQRT(K5^2+L5^2+sigma_pa^2))) -> 5.107449819
A6: 1 | B6: 1 | C6: 0 | D6: 0 | E6: 1 | F6: 1 | G6: 0 | H6: 10 | I6: 90 | J6: 10 | K6: 0.0017 | L6: 0.0017 | M6: 0.7619628162 | O6: 5.107390778
A7: 30 | B7: 30 | C7: 0 | D7: 0 | E7: 30 | F7: 30 | G7: 0 | H7: 10 | I7: 90 | J7: 10 | K7: 0.0537 | L7: 0.0537 | M7: 0.7619628162 | O7: 5.049536727
A8: 60 | B8: 60 | C8: 0 | D8: 0 | E8: 60 | F8: 60 | G8: 0 | H8: 10 | I8: 90 | J8: 10 | K8: 0.1074 | L8: 0.1074 | M8: 0.7619628162 | O8: 4.88694554
A9: 90 | B9: 90 | C9: 0 | D9: 0 | E9: 90 | F9: 90 | G9: 0 | H9: 10 | I9: 90 | J9: 10 | K9: 0.1612 | L9: 0.1612 | M9: 0.7619628162 | O9: 4.647202322
A10: 120 | B10: 120 | C10: 0 | D10: 0 | E10: 120 | F10: 120 | G10: 0 | H10: 10 | I10: 90 | J10: 10 | K10: 0.215 | L10: 0.215 | M10: 0.7619628162 | O10: 4.36390741
A11: 150 | B11: 150 | C11: 0 | D11: 0 | E11: 150 | F11: 150 | G11: 0 | H11: 10 | I11: 90 | J11: 10 | K11: 0.2688 | L11: 0.2688 | M11: 0.7619628162 | O11: 4.065807587
A12: 180 | B12: 180 | C12: 0 | D12: 0 | E12: 180 | F12: 180 | G12: 0 | H12: 10 | I12: 90 | J12: 10 | K12: 0.3225 | L12: 0.3225 | M12: 0.7619628162 | O12: 3.773422609
A13: 210 | B13: 210 | C13: 0 | D13: 0 | E13: 210 | F13: 210 | G13: 0 | H13: 10 | I13: 90 | J13: 10 | K13: 0.3763 | L13: 0.3763 | M13: 0.7619628162 | O13: 3.497257948
A14: 240 | B14: 240 | C14: 0 | D14: 0 | E14: 240 | F14: 240 | G14: 0 | H14: 10 | I14: 90 | J14: 10 | K14: 0.4301 | L14: 0.4301 | M14: 0.7619628162 | O14: 3.243307063
A15: 270 | B15: 270 | C15: 0 | D15: 0 | E15: 270 | F15: 270 | G15: 0 | H15: 10 | I15: 90 | J15: 10 | K15: 0.4838 | L15: 0.4838 | M15: 0.7619628162 | O15: 3.013520332
A16: 300 | B16: 300 | C16: 0 | D16: 0 | E16: 300 | F16: 300 | G16: 0 | H16: 10 | I16: 90 | J16: 10 | K16: 0.5376 | L16: 0.5376 | M16: 0.7619628162 | O16: 2.806413929
A17: 330 | B17: 330 | C17: 0 | D17: 0 | E17: 330 | F17: 330 | G17: 0 | H17: 10 | I17: 90 | J17: 10 | K17: 0.5914 | L17: 0.5914 | M17: 0.7619628162 | O17: 2.620745308
A18: 360 | B18: 360 | C18: 0 | D18: 0 | E18: 360 | F18: 360 | G18: 0 | H18: 10 | I18: 90 | J18: 10 | K18: 0.6452 | L18: 0.6452 | M18: 0.7619628162 | O18: 2.454408832
A19: 390 | B19: 390 | C19: 0 | D19: 0 | E19: 390 | F19: 390 | G19: 0 | H19: 10 | I19: 90 | J19: 10 | K19: 0.6989 | L19: 0.6989 | M19: 0.7619628162 | O19: 2.305502309
A20: 420 | B20: 420 | C20: 0 | D20: 0 | E20: 420 | F20: 420 | G20: 0 | H20: 10 | I20: 90 | J20: 10 | K20: 0.7527 | L20: 0.7527 | M20: 0.7619628162 | O20: 2.171425997
A21: 450 | B21: 450 | C21: 0 | D21: 0 | E21: 450 | F21: 450 | G21: 0 | H21: 10 | I21: 90 | J21: 10 | K21: 0.8065 | L21: 0.8065 | M21: 0.7619628162 | O21: 2.050616204
A22: 480 | B22: 480 | C22: 0 | D22: 0 | E22: 480 | F22: 480 | G22: 0 | H22: 10 | I22: 90 | J22: 10 | K22: 0.8602 | L22: 0.8602 | M22: 0.7619628162 | O22: 1.941623902
A23: 510 | B23: 510 | C23: 0 | D23: 0 | E23: 510 | F23: 510 | G23: 0 | H23: 10 | I23: 90 | J23: 10 | K23: 0.914 | L23: 0.914 | M23: 0.7619628162 | O23: 1.842612205
A24: 540 | B24: 540 | C24: 0 | D24: 0 | E24: 540 | F24: 540 | G24: 0 | H24: 10 | I24: 90 | J24: 10 | K24: 0.9678 | L24: 0.9678 | M24: 0.7619628162 | O24: 1.752552855
A25: 570 | B25: 570 | C25: 0 | D25: 0 | E25: 570 | F25: 570 | G25: 0 | H25: 10 | I25: 90 | J25: 10 | K25: 1.0216 | L25: 1.0216 | M25: 0.7619628162 | O25: 1.670374326
A26: 600 | B26: 600 | C26: 0 | D26: 0 | E26: 600 | F26: 600 | G26: 0 | H26: 10 | I26: 90 | J26: 10 | K26: 1.0753 | L26: 1.0753 | M26: 0.7619628162 | O26: 1.595286797
A27: 630 | B27: 630 | C27: 0 | D27: 0 | E27: 630 | F27: 630 | G27: 0 | H27: 10 | I27: 90 | J27: 10 | K27: 1.1291 | L27: 1.1291 | M27: 0.7619628162 | O27: 1.526215137
A28: 660 | B28: 660 | C28: 0 | D28: 0 | E28: 660 | F28: 660 | G28: 0 | H28: 10 | I28: 90 | J28: 10 | K28: 1.1829 | L28: 1.1829 | M28: 0.7619628162 | O28: 1.462617178
A29: 690 | B29: 690 | C29: 0 | D29: 0 | E29: 690 | F29: 690 | G29: 0 | H29: 10 | I29: 90 | J29: 10 | K29: 1.2366 | L29: 1.2366 | M29: 0.7619628162 | O29: 1.404002205
A30: 720 | B30: 720 | C30: 0 | D30: 0 | E30: 720 | F30: 720 | G30: 0 | H30: 10 | I30: 90 | J30: 10 | K30: 1.2904 | L30: 1.2904 | M30: 0.7619628162 | O30: 1.349635731
A31: 750 | B31: 750 | C31: 0 | D31: 0 | E31: 750 | F31: 750 | G31: 0 | H31: 10 | I31: 90 | J31: 10 | K31: 1.3442 | L31: 1.3442 | M31: 0.7619628162 | O31: 1.299181287
A32: 780 | B32: 780 | C32: 0 | D32: 0 | E32: 780 | F32: 780 | G32: 0 | H32: 10 | I32: 90 | J32: 10 | K32: 1.3979 | L32: 1.3979 | M32: 0.7619628162 | O32: 1.252330265
A33: 810 | B33: 810 | C33: 0 | D33: 0 | E33: 810 | F33: 810 | G33: 0 | H33: 10 | I33: 90 | J33: 10 | K33: 1.4517 | L33: 1.4517 | M33: 0.7619628162 | O33: 1.20856471
A34: 840 | B34: 840 | C34: 0 | D34: 0 | E34: 840 | F34: 840 | G34: 0 | H34: 10 | I34: 90 | J34: 10 | K34: 1.5055 | L34: 1.5055 | M34: 0.7619628162 | O34: 1.167672832
A35: 870 | B35: 870 | C35: 0 | D35: 0 | E35: 870 | F35: 870 | G35: 0 | H35: 10 | I35: 90 | J35: 10 | K35: 1.5593 | L35: 1.5593 | M35: 0.7619628162 | O35: 1.129388366
A36: 900 | B36: 900 | C36: 0 | D36: 0 | E36: 900 | F36: 900 | G36: 0 | H36: 10 | I36: 90 | J36: 10 | K36: 1.613 | L36: 1.613 | M36: 0.7619628162 | O36: 1.093540673
A37: 930 | B37: 930 | C37: 0 | D37: 0 | E37: 930 | F37: 930 | G37: 0 | H37: 10 | I37: 90 | J37: 10 | K37: 1.6668 | L37: 1.6668 | M37: =((ref_diam+offset_diam)/2)/(12*3.281) -> 0.7619628162 | O37: =(J37-M37-surface_margin)/(scaling_factor*(SQRT(K37^2+L37^2+sigma_pa^2))) -> 1.059787942
A38: 960 | B38: 960 | C38: 0 | D38: 0 | E38: 960 | F38: 960 | G38: 0 | H38: 10 | I38: 90 | J38: 10 | K38: 1.7206 | L38: 1.7206 | M38: 0.7619628162 | O38: 1.028013571
A39: 990 | B39: 990 | C39: 0 | D39: 0 | E39: 990 | F39: 990 | G39: 0 | H39: 10 | I39: 90 | J39: 10 | K39: 1.7743 | L39: 1.7743 | M39: 0.7619628162 | O39: 0.998106288
A40: 1020 | B40: 1020 | C40: -0.35 | D40: 0 | E40: 1019.98 | F40: 1019.98 | G40: -0.35 | H40: 10.03 | I40: 89.99 | J40: 10.03 | K40: 1.8253 | L40: 1.8252 | M40: 0.7619628162 | O40: 0.9745266443
A41: 1050 | B41: 1049.97 | C41: -1.57 | D41: 0 | E41: 1049.95 | F41: 1049.92 | G41: -1.56 | H41: 10.14 | I41: 89.95 | J41: 10.14 | K41: 1.8735 | L41: 1.8734 | M41: 0.7619628162 | O41: 0.9619838144
A42: 1080 | B42: 1079.88 | C42: -3.83 | D42: 0 | E42: 1079.92 | F42: 1079.8 | G42: -3.81 | H42: 10.33 | I42: 89.877 | J42: 10.33 | K42: 1.9219 | L42: 1.9218 | M42: 0.7619628162 | O42: 0.9582038371
A43: 1110 | B43: 1109.7 | C43: -7.14 | D43: 0 | E43: 1109.89 | F43: 1109.59 | G43: -7.1 | H43: 10.62 | I43: 89.775 | J43: 10.62 | K43: 1.9708 | L43: 1.9707 | M43: 0.7619628162 | O43: 0.9644405652
A44: 1140 | B44: 1139.38 | C44: -11.49 | D44: 0 | E44: 1139.85 | F44: 1139.24 | G44: -11.42 | H44: 11 | I44: 89.648 | J44: 11 | K44: 2.0205 | L44: 2.0203 | M44: 0.7619628162 | O44: 0.9788823198
A45: 1170 | B45: 1168.89 | C45: -16.87 | D45: 0 | E45: 1169.82 | F45: 1168.71 | G45: -16.77 | H45: 11.47 | I45: 89.5 | J45: 11.47 | K45: 2.0715 | L45: 2.0713 | M45: 0.7619628162 | O45: 1.000659016
A46: 1200 | B46: 1198.2 | C46: -23.27 | D46: 0 | E46: 1199.78 | F46: 1197.99 | G46: -23.13 | H46: 12.02 | I46: 89.336 | J46: 12.03 | K46: 2.1244 | L46: 2.124 | M46: 0.7619628162 | O46: 1.029003272
A47: 1230 | B47: 1227.27 | C47: -30.7 | D47: 0 | E47: 1229.74 | F47: 1227.01 | G47: -30.51 | H47: 12.67 | I47: 89.161 | J47: 12.67 | K47: 2.1796 | L47: 2.1792 | M47: 0.7619628162 | O47: 1.06217981
A48: 1260 | B48: 1256.05 | C48: -39.13 | D48: 0 | E48: 1259.7 | F48: 1255.76 | G48: -38.89 | H48: 13.4 | I48: 88.979 | J48: 13.41 | K48: 2.238 | L48: 2.2375 | M48: 0.7619628162 | O48: 1.101157255
A49: 1290 | B49: 1284.53 | C49: -48.57 | D49: 0 | E49: 1289.65 | F49: 1284.2 | G49: -48.27 | H49: 14.22 | I49: 88.792 | J49: 14.23 | K49: 2.3001 | L49: 2.2995 | M49: 0.7619628162 | O49: 1.143340697
A50: 1320 | B50: 1312.66 | C50: -58.99 | D50: 0 | E50: 1319.6 | F50: 1312.29 | G50: -58.62 | H50: 15.13 | I50: 88.604 | J50: 15.14 | K50: 2.3667 | L50: 2.366 | M50: 0.7619628162 | O50: 1.188737657
A51: 1350 | B51: 1340.41 | C51: -70.38 | D51: 0 | E51: 1349.55 | F51: 1339.99 | G51: -69.94 | H51: 16.12 | I51: 88.417 | J51: 16.13 | K51: 2.4384 | L51: 2.4375 | M51: 0.7619628162 | O51: 1.235746446
A52: 1380 | B52: 1367.74 | C52: -82.74 | D52: 0 | E52: 1379.49 | F52: 1367.28 | G52: -82.21 | H52: 17.19 | I52: 88.232 | J52: 17.21 | K52: 2.5158 | L52: 2.5148 | M52: 0.7619628162 | O52: 1.284394569
A53: 1410 | B53: 1394.63 | C53: -96.05 | D53: 0 | E53: 1409.43 | F53: 1394.13 | G53: -95.42 | H53: 18.35 | I53: 88.05 | J53: 18.37 | K53: 2.5995 | L53: 2.5984 | M53: 0.7619628162 | O53: 1.333168467
A54: 1440 | B54: 1421.03 | C54: -110.29 | D54: 0 | E54: 1439.37 | F54: 1420.48 | G54: -109.56 | H54: 19.59 | I54: 87.872 | J54: 19.61 | K54: 2.6902 | L54: 2.6889 | M54: 0.7619628162 | O54: 1.381385738
A55: 1470 | B55: 1446.93 | C55: -125.43 | D55: 0 | E55: 1469.3 | F55: 1446.33 | G55: -124.59 | H55: 20.9 | I55: 87.699 | J55: 20.93 | K55: 2.7882 | L55: 2.7869 | M55: 0.7619628162 | O55: 1.428511954
A56: 1500 | B56: 1472.28 | C56: -141.48 | D56: 0 | E56: 1499.23 | F56: 1471.63 | G56: -140.52 | H56: 22.29 | I56: 87.53 | J56: 22.32 | K56: 2.894 | L56: 2.8926 | M56: 0.7619628162 | O56: 1.473425325
A57: 1530 | B57: 1497.05 | C57: -158.39 | D57: 0 | E57: 1529.15 | F57: 1496.35 | G57: -157.3 | H57: 23.76 | I57: 87.367 | J57: 23.8 | K57: 3.0078 | L57: 3.0064 | M57: 0.7619628162 | O57: 1.517193232
A58: 1560 | B58: 1521.22 | C58: -176.17 | D58: 0 | E58: 1559.07 | F58: 1520.47 | G58: -174.93 | H58: 25.3 | I58: 87.208 | J58: 25.35 | K58: 3.13 | L58: 3.1286 | M58: 0.7619628162 | O58: 1.558144951
A59: 1590 | B59: 1544.75 | C59: -194.77 | D59: 0 | E59: 1588.98 | F59: 1543.96 | G59: -193.39 | H59: 26.92 | I59: 87.054 | J59: 26.97 | K59: 3.2607 | L59: 3.2593 | M59: 0.7619628162 | O59: 1.596227228
A60: 1620 | B60: 1567.62 | C60: -214.19 | D60: 0 | E60: 1618.89 | F60: 1566.78 | G60: -212.64 | H60: 28.6 | I60: 86.906 | J60: 28.66 | K60: 3.3999 | L60: 3.3986 | M60: 0.7619628162 | O60: 1.631456779
A61: 1650 | B61: 1589.79 | C61: -234.39 | D61: 0 | E61: 1648.79 | F61: 1588.91 | G61: -232.67 | H61: 30.36 | I61: 86.762 | J61: 30.42 | K61: 3.5476 | L61: 3.5465 | M61: 0.7619628162 | O61: 1.663910299
A62: 1680 | B62: 1611.25 | C62: -255.35 | D62: 0 | E62: 1678.76 | F62: 1610.38 | G62: -253.5 | H62: 32.15 | I62: 86.706 | J62: 32.21 | K62: 3.7042 | L62: 3.7034 | M62: 0.7619628162 | O62: 1.691338058
A63: 1710 | B63: 1631.97 | C63: -277.05 | D63: 0 | E63: 1709.11 | F63: 1631.4 | G63: -275.33 | H63: 33.8 | I63: 87.084 | J63: 33.85 | K63: 3.8707 | L63: 3.8707 | M63: 0.7619628162 | O63: 1.704271118
A64: 1740 | B64: 1651.91 | C64: -299.46 | D64: 0 | E64: 1739.51 | F64: 1651.72 | G64: -297.9 | H64: 35.1 | I64: 87.459 | J64: 35.14 | K64: 4.0452 | L64: 4.046 | M64: 0.7619628162 | O64: 1.695338613
A65: 1770 | B65: 1671.06 | C65: -322.55 | D65: 0 | E65: 1769.94 | F65: 1671.31 | G65: -321.17 | H65: 36.05 | I65: 87.808 | J65: 36.08 | K65: 4.2273 | L65: 4.2286 | M65: 0.7619628162 | O65: 1.667499566
A66: 1800 | B66: 1689.39 | C66: -346.29 | D66: 0 | E66: 1800.41 | F66: 1690.13 | G66: -345.11 | H66: 36.64 | I66: 88.157 | J66: 36.67 | K66: 4.4165 | L66: 4.4183 | M66: 0.7619628162 | O66: 1.62334819
A67: 1830 | B67: 1706.89 | C67: -370.66 | D67: 0 | E67: 1830.88 | F67: 1708.15 | G67: -369.69 | H67: 36.87 | I67: 88.484 | J67: 36.91 | K67: 4.6122 | L67: 4.6144 | M67: 0.7619628162 | O67: 1.565305014
A68: 1860 | B68: 1723.52 | C68: -395.63 | D68: 0 | E68: 1861.37 | F68: 1725.35 | G68: -394.86 | H68: 36.75 | I68: 88.807 | J68: 36.8 | K68: 4.8139 | L68: 4.816 | M68: 0.7619628162 | O68: 1.495506182
A69: 1890 | B69: 1739.27 | C69: -421.16 | D69: 0 | E69: 1891.87 | F69: 1741.69 | G69: -420.6 | H69: 36.26 | I69: 89.121 | J69: 36.35 | K69: 5.0205 | L69: 5.0225 | M69: =((ref_diam+offset_diam)/2)/(12*3.281) -> 0.7619628162 | O69: =(J69-M69-surface_margin)/(scaling_factor*(SQRT(K69^2+L69^2+sigma_pa^2))) -> 1.416241072
A70: 1920 | B70: 1754.12 | C70: -447.23 | D70: 0 | E70: 1922.36 | F70: 1757.16 | G70: -446.87 | H70: 35.42 | I70: 89.416 | J70: 35.55 | K70: 5.231 | L70: 5.2325 | M70: 0.7619628162 | O70: 1.328767596
A71: 1950 | B71: 1768.05 | C71: -473.79 | D71: 0 | E71: 1952.85 | F71: 1771.73 | G71: -473.61 | H71: 34.22 | I71: 89.698 | J71: 34.42 | K71: 5.4438 | L71: 5.4448 | M71: 0.7619628162 | O71: 1.235269063
A72: 1980 | B72: 1781.04 | C72: -500.83 | D72: 0 | E72: 1983.31 | F72: 1785.38 | G72: -500.81 | H72: 32.66 | I72: 89.954 | J72: 32.95 | K72: 5.6569 | L72: 5.6571 | M72: 0.7619628162 | O72: 1.136611462
A73: 2010 | B73: 1793.09 | C73: -528.31 | D73: 0 | E73: 2013.76 | F73: 1798.1 | G73: -528.4 | H73: 30.76 | I73: 90.175 | J73: 31.16 | K73: 5.867 | L73: 5.8661 | M73: 0.7619628162 | O73: 1.034630095
A74: 2040 | B74: 1804.16 | C74: -556.19 | D74: 0 | E74: 2044.18 | F74: 1809.86 | G74: -556.36 | H74: 28.5 | I74: 90.353 | J74: 29.07 | K74: 6.0686 | L74: 6.0666 | M74: 0.7619628162 | O74: 0.930993515
A75: 2070 | B75: 1814.26 | C75: -584.43 | D75: 0 | E75: 2074.56 | F75: 1820.66 | G75: -584.64 | H75: 25.9 | I75: 90.452 | J75: 26.68 | K75: 6.2531 | L75: 6.2497 | M75: 0.7619628162 | O75: 0.8265936288
A76: 2100 | B76: 1823.37 | C76: -613.02 | D76: 0 | E76: 2104.9 | F76: 1830.47 | G76: -613.19 | H76: 22.97 | I76: 90.442 | J76: 24.04 | K76: 6.4039 | L76: 6.3987 | M76: 0.7619628162 | O76: 0.7241028645
A77: 2130 | B77: 1831.47 | C77: -641.9 | D77: 0 | E77: 2135.19 | F77: 1839.29 | G77: -641.99 | H77: 19.69 | I77: 90.251 | J77: 21.19 | K77: 6.4885 | L77: 6.4812 | M77: 0.7619628162 | O77: 0.6261435122
A78: 2160 | B78: 1838.56 | C78: -671.05 | D78: 0 | E78: 2165.43 | F78: 1847.12 | G78: -670.97 | H78: 16.1 | I78: 89.724 | J78: 18.23 | K78: 6.4395 | L78: 6.4293 | M78: 0.7619628162 | O78: 0.5382385318
A79: 2190 | B79: 1844.63 | C79: -700.43 | D79: 0 | E79: 2195.61 | F79: 1853.94 | G79: -700.11 | H79: 12.18 | I79: 88.505 | J79: 15.34 | K79: 6.1103 | L79: 6.0963 | M79: 0.7619628162 | O79: 0.4718381009
A80: 2220 | B80: 1849.66 | C80: -730 | D80: 0 | E80: 2225.73 | F80: 1859.76 | G80: -729.36 | H80: 7.95 | I80: 85.375 | J80: 12.87 | K80: 5.2219 | L80: 5.2039 | M80: 0.7619628162 | O80: 0.4565812366
A81: 2250 | B81: 1853.67 | C81: -759.73 | D81: 0 | E81: 2255.79 | F81: 1864.57 | G81: -758.67 | H81: 3.42 | I81: 72.84 | J81: 11.48 | K81: 3.6479 | L81: 3.6339 | M81: 0.7619628162 | O81: 0.5753807138
A82: 2280 | B82: 1856.72 | C82: -789.57 | D82: 0 | E82: 2285.77 | F82: 1868.38 | G82: -788.01 | H82: -1.41 | I82: 317.827 | J82: 11.85 | K82: 3.2029 | L82: 3.2227 | M82: 0.7619628162 | O82: 0.6743103339
A83: 2310 | B83: 1859.33 | C83: -819.46 | D83: 0 | E83: 2315.58 | F83: 1871.26 | G83: -817.26 | H83: -6.48 | I83: 288.765 | J83: 13.76 | K83: 4.9289 | L83: 4.9656 | M83: 0.7619628162 | O83: 0.5172262196
A84: 2340 | B84: 1861.95 | C84: -849.34 | D84: 0 | E84: 2345.13 | F84: 1873.84 | G84: -846.24 | H84: -11.6 | I84: 284.971 | J84: 16.9 | K84: 6.5238 | L84: 6.5637 | M84: 0.7619628162 | O84: 0.4882661785
A85: 2370 | B85: 1864.56 | C85: -879.23 | D85: 0 | E85: 2374.68 | F85: 1876.41 | G85: -875.23 | H85: -16.71 | I85: 283.46 | J85: 20.87 | K85: 7.5583 | L85: 7.5987 | M85: 0.7619628162 | O85: 0.5274745559
A86: 2400 | B86: 1867.18 | C86: -909.12 | D86: 0 | E86: 2404.23 | F86: 1878.99 | G86: -904.22 | H86: -21.82 | I86: 282.649 | J86: 25.29 | K86: 8.2585 | L86: 8.2996 | M86: 0.7619628162 | O86: 0.5906873928
A87: 2430 | B87: 1869.79 | C87: -939 | D87: 0 | E87: 2433.78 | F87: 1881.56 | G87: -933.21 | H87: -26.93 | I87: 282.143 | J87: 29.96 | K87: 8.7834 | L87: 8.8256 | M87: 0.7619628162 | O87: 0.6625665276
A88: 2460 | B88: 1872.41 | C88: -968.89 | D88: 0 | E88: 2463.32 | F88: 1884.14 | G88: -962.2 | H88: -32.04 | I88: 281.797 | J88: 34.77 | K88: 9.2138 | L88: 9.2577 | M88: 0.7619628162 | O88: 0.7368159986
A89: 2490 | B89: 1875.02 | C89: -998.77 | D89: 0 | E89: 2492.87 | F89: 1886.71 | G89: -991.18 | H89: -37.15 | I89: 281.546 | J89: 39.68 | K89: 9.5906 | L89: 9.6366 | M89: 0.7619628162 | O89: 0.8110103024
A90: 2520 | B90: 1877.64 | C90: -1028.66 | D90: 0 | E90: 2522.42 | F90: 1889.29 | G90: -1020.17 | H90: -42.26 | I90: 281.355 | J90: 44.66 | K90: 9.9352 | L90: 9.9839 | M90: 0.7619628162 | O90: 0.8838313692
A91: 2550 | B91: 1880.25 | C91: -1058.55 | D91: 0 | E91: 2551.97 | F91: 1891.86 | G91: -1049.16 | H91: -47.38 | I91: 281.205 | J91: 49.67 | K91: 10.2596 | L91: 10.3113 | M91: 0.7619628162 | O91: 0.9542099688
A92: 2580 | B92: 1882.87 | C92: -1088.43 | D92: 0 | E92: 2581.51 | F92: 1894.44 | G92: -1078.15 | H92: -52.49 | I92: 281.085 | J92: 54.72 | K92: 10.5709 | L92: 10.6258 | M92: 0.7619628162 | O92: 1.022281523
A93: 2610 | B93: 1885.48 | C93: -1118.32 | D93: 0 | E93: 2611.06 | F93: 1897.01 | G93: -1107.14 | H93: -57.6 | I93: 280.986 | J93: 59.8 | K93: 10.8732 | L93: 10.9316 | M93: 0.7619628162 | O93: 1.087888735
A94: 2640 | B94: 1888.09 | C94: -1148.2 | D94: 0 | E94: 2640.61 | F94: 1899.59 | G94: -1136.12 | H94: -62.71 | I94: 280.902 | J94: 64.89 | K94: 11.1693 | L94: 11.2315 | M94: 0.7619628162 | O94: 1.15073939
A95: 2670 | B95: 1890.71 | C95: -1178.09 | D95: 0 | E95: 2670.16 | F95: 1902.17 | G95: -1165.11 | H95: -67.82 | I95: 280.832 | J95: 70 | K95: 11.461 | L95: 11.5272 | M95: 0.7619628162 | O95: 1.211138318
A96: 2700 | B96: 1893.32 | C96: -1207.97 | D96: 0 | E96: 2699.7 | F96: 1904.74 | G96: -1194.1 | H96: -72.93 | I96: 280.771 | J96: 75.11 | K96: 11.7495 | L96: 11.82 | M96: 0.7619628162 | O96: 1.26885746
A97: 2730 | B97: 1895.94 | C97: -1237.86 | D97: 0 | E97: 2729.25 | F97: 1907.32 | G97: -1223.09 | H97: -78.04 | I97: 280.718 | J97: 80.24 | K97: 12.0357 | L97: 12.1105 | M97: 0.7619628162 | O97: 1.324386268
A98: 2760 | B98: 1898.55 | C98: -1267.75 | D98: 0 | E98: 2758.8 | F98: 1909.89 | G98: -1252.08 | H98: -83.16 | I98: 280.672 | J98: 85.37 | K98: 12.3201 | L98: 12.3995 | M98: 0.7619628162 | O98: 1.377509637
A99: 2790 | B99: 1900.91 | C99: -1297.65 | D99: 0 | E99: 2788.35 | F99: 1912.47 | G99: -1281.06 | H99: -88.27 | I99: 280.645 | J99: 90.55 | K99: 12.5992 | L99: 12.6835 | M99: 0.7619628162 | O99: 1.429605743
A100: 2820 | B100: 1902.48 | C100: -1327.61 | D100: 0 | E100: 2817.87 | F100: 1915.04 | G100: -1310.03 | H100: -93.37 | I100: 280.663 | J100: 95.84 | K100: 12.8658 | L100: 12.9557 | M100: 0.7619628162 | O100: 1.482544668
A101: 2850 | B101: 1903 | C101: -1357.6 | D101: 0 | E101: 2820 | F101: 1915.22 | G101: -1312.12 | H101: -93.74 | I101: 295.884 | J101: 104.91 | K101: 12.1608 | L101: 12.274 | M101: 0.7619628162 | O101: 1.716524591
A102: 2880 | B102: 1903 | C102: -1387.6 | D102: 0 | E102: 2820 | F102: 1915.22 | G102: -1312.12 | H102: -93.74 | I102: 308.843 | J102: 120.98 | K102: 10.9371 | L102: 11.062 | M102: 0.7619628162 | O102: 2.201381592
A103: 2910 | B103: 1903 | C103: -1417.6 | D103: 0 | E103: 2820 | F103: 1915.22 | G103: -1312.12 | H103: -93.74 | I103: 318.374 | J103: 141.65 | K103: 9.7315 | L103: 9.8586 | M103: 0.7619628162 | O103: =(J103-M103-surface_margin)/(scaling_factor*(SQRT(K103^2+L103^2+sigma_pa^2))) -> 2.897789351
A104: 2940 | B104: 1903 | C104: -1447.6 | D104: 0 | E104: 2820 | F104: 1915.22 | G104: -1312.12 | H104: -93.74 | I104: 325.321 | J104: 165.21 | K104: 8.7221 | L104: 8.8458 | M104: 0.7619628162 | O104: 3.772250651

Sheet 04 - well
A1: Wellpath | B1: Offset 04: East 20 drilled double dip wellpath
A3: REPORT SETUP INFORMATION
A4: Projection System | B4: ED50 / UTM Zone 31 North
A5: North Reference | B5: Grid
A6: Scale | B6: 0.9996
A7: Convergence at slot | B7: 0.00° East
A9: WELLPATH LOCATION | B9: Local North | C9: Local East | D9: Easting | E9: Northing | F9: Latitude | G9: Longitude
B10: [m] | C10: [m] | D10: [m] | E10: [m]
B11: 0 | C11: 20 | D11: 500019.99 | E11: 6651566.71 | F11: 60°00'00.000"N | G11: 3°00'01.290"E
B15: MD | C15: Inclination | D15: Azimuth | E15: TVD | F15: North | G15: East | H15: sigmaH | I15: sigmaL | J15: sigmaA
B16: [m] | C16: [°] | D16: [°] | E16: [m] | F16: [m] | G16: [m]
B17: 0 | C17: 0 | D17: 0 | E17: 0 | F17: 0 | G17: 20 | H17: 0 | I17: 0 | J17: 0
B18: 1 | C18: 0 | D18: 0 | E18: 1 | F18: 0 | G18: 20 | H18: 0.0017 | I18: 0.0017 | J18: 0.35
B19: 30 | C19: 0 | D19: 0 | E19: 30 | F19: 0 | G19: 20 | H19: 0.0537 | I19: 0.0537 | J19: 0.3504
B20: 60 | C20: 0 | D20: 0 | E20: 60 | F20: 0 | G20: 20 | H20: 0.1074 | I20: 0.1074 | J20: 0.3516
B21: 90 | C21: 0 | D21: 0 | E21: 90 | F21: 0 | G21: 20 | H21: 0.1612 | I21: 0.1612 | J21: 0.3536
B22: 120 | C22: 0 | D22: 0 | E22: 120 | F22: 0 | G22: 20 | H22: 0.215 | I22: 0.215 | J22: 0.3564
B23: 150 | C23: 0 | D23: 0 | E23: 150 | F23: 0 | G23: 20 | H23: 0.2688 | I23: 0.2688 | J23: 0.36
B24: 180 | C24: 0 | D24: 0 | E24: 180 | F24: 0 | G24: 20 | H24: 0.3225 | I24: 0.3225 | J24: 0.3643
B25: 210 | C25: 0 | D25: 0 | E25: 210 | F25: 0 | G25: 20 | H25: 0.3763 | I25: 0.3763 | J25: 0.3694
B26: 240 | C26: 0 | D26: 0 | E26: 240 | F26: 0 | G26: 20 | H26: 0.4301 | I26: 0.4301 | J26: 0.3752
B27: 270 | C27: 0 | D27: 0 | E27: 270 | F27: 0 | G27: 20 | H27: 0.4838 | I27: 0.4838 | J27: 0.3817
B28: 300 | C28: 0 | D28: 0 | E28: 300 | F28: 0 | G28: 20 | H28: 0.5376 | I28: 0.5376 | J28: 0.3889
B29: 330 | C29: 0 | D29: 0 | E29: 330 | F29: 0 | G29: 20 | H29: 0.5914 | I29: 0.5914 | J29: 0.3967
B30: 360 | C30: 0 | D30: 0 | E30: 360 | F30: 0 | G30: 20 | H30: 0.6452 | I30: 0.6452 | J30: 0.4052
B31: 390 | C31: 0 | D31: 0 | E31: 390 | F31: 0 | G31: 20 | H31: 0.6989 | I31: 0.6989 | J31: 0.4143
B32: 420 | C32: 0 | D32: 0 | E32: 420 | F32: 0 | G32: 20 | H32: 0.7527 | I32: 0.7527 | J32: 0.424
B33: 450 | C33: 0 | D33: 0 | E33: 450 | F33: 0 | G33: 20 | H33: 0.8065 | I33: 0.8065 | J33: 0.4342
B34: 480 | C34: 0 | D34: 0 | E34: 480 | F34: 0 | G34: 20 | H34: 0.8602 | I34: 0.8602 | J34: 0.4451
B35: 510 | C35: 0 | D35: 0 | E35: 510 | F35: 0 | G35: 20 | H35: 0.914 | I35: 0.914 | J35: 0.4564
B36: 540 | C36: 0 | D36: 0 | E36: 540 | F36: 0 | G36: 20 | H36: 0.9678 | I36: 0.9678 | J36: 0.4683
B37: 570 | C37: 0 | D37: 0 | E37: 570 | F37: 0 | G37: 20 | H37: 1.0216 | I37: 1.0216 | J37: 0.4806
B38: 600 | C38: 0 | D38: 0 | E38: 600 | F38: 0 | G38: 20 | H38: 1.0753 | I38: 1.0753 | J38: 0.4935
B39: 630 | C39: 0 | D39: 0 | E39: 630 | F39: 0 | G39: 20 | H39: 1.1291 | I39: 1.1291 | J39: 0.5068
B40: 660 | C40: 0 | D40: 0 | E40: 660 | F40: 0 | G40: 20 | H40: 1.1829 | I40: 1.1829 | J40: 0.5205
B41: 690 | C41: 0 | D41: 0 | E41: 690 | F41: 0 | G41: 20 | H41: 1.2366 | I41: 1.2366 | J41: 0.5348
B42: 720 | C42: 0 | D42: 0 | E42: 720 | F42: 0 | G42: 20 | H42: 1.2904 | I42: 1.2904 | J42: 0.5494
B43: 750 | C43: 0 | D43: 0 | E43: 750 | F43: 0 | G43: 20 | H43: 1.3442 | I43: 1.3442 | J43: 0.5645
B44: 780 | C44: 0 | D44: 0 | E44: 780 | F44: 0 | G44: 20 | H44: 1.3979 | I44: 1.3979 | J44: 0.58
B45: 810 | C45: 0 | D45: 0 | E45: 810 | F45: 0 | G45: 20 | H45: 1.4517 | I45: 1.4517 | J45: 0.596
B46: 840 | C46: 0 | D46: 0 | E46: 840 | F46: 0 | G46: 20 | H46: 1.5055 | I46: 1.5055 | J46: 0.6123
B47: 870 | C47: 0 | D47: 0 | E47: 870 | F47: 0 | G47: 20 | H47: 1.5593 | I47: 1.5593 | J47: 0.629
B48: 900 | C48: 0 | D48: 0 | E48: 900 | F48: 0 | G48: 20 | H48: 1.613 | I48: 1.613 | J48: 0.6462
B49: 930 | C49: 0 | D49: 0 | E49: 930 | F49: 0 | G49: 20 | H49: 1.6668 | I49: 1.6668 | J49: 0.6637
B50: 960 | C50: 0 | D50: 0 | E50: 960 | F50: 0 | G50: 20 | H50: 1.7206 | I50: 1.7206 | J50: 0.6816
B51: 990 | C51: 0 | D51: 0 | E51: 990 | F51: 0 | G51: 20 | H51: 1.7743 | I51: 1.7743 | J51: 0.6999
B52: 1020 | C52: 1.33 | D52: 182 | E52: 1020 | F52: -0.35 | G52: 19.99 | H52: 1.8249 | I52: 1.8253 | J52: 0.7197
B53: 1050 | C53: 3.33 | D53: 182 | E53: 1049.97 | F53: -1.57 | G53: 19.95 | H53: 1.8712 | I53: 1.8735 | J53: 0.7444
B54: 1080 | C54: 5.33 | D54: 182 | E54: 1079.88 | F54: -3.83 | G54: 19.87 | H54: 1.9156 | I54: 1.922 | J54: 0.7741
B55: 1110 | C55: 7.33 | D55: 182 | E55: 1109.7 | F55: -7.14 | G55: 19.75 | H55: 1.9582 | I55: 1.9709 | J55: 0.8087
B56: 1140 | C56: 9.33 | D56: 182 | E56: 1139.38 | F56: -11.48 | G56: 19.6 | H56: 1.9988 | I56: 2.0207 | J56: 0.8477
B57: 1170 | C57: 11.33 | D57: 182 | E57: 1168.89 | F57: -16.86 | G57: 19.41 | H57: 2.0376 | I57: 2.0718 | J57: 0.8909
B58: 1200 | C58: 13.33 | D58: 182 | E58: 1198.2 | F58: -23.26 | G58: 19.19 | H58: 2.0744 | I58: 2.1247 | J58: 0.9378
B59: 1230 | C59: 15.33 | D59: 182 | E59: 1227.27 | F59: -30.68 | G59: 18.93 | H59: 2.1093 | I59: 2.18 | J59: 0.9882
B60: 1260 | C60: 17.33 | D60: 182 | E60: 1256.05 | F60: -39.11 | G60: 18.63 | H60: 2.1423 | I60: 2.2385 | J60: 1.0415
B61: 1290 | C61: 19.33 | D61: 182 | E61: 1284.53 | F61: -48.54 | G61: 18.31 | H61: 2.1736 | I61: 2.3007 | J61: 1.0976
B62: 1320 | C62: 21.33 | D62: 182 | E62: 1312.66 | F62: -58.95 | G62: 17.94 | H62: 2.203 | I62: 2.3674 | J62: 1.1561
B63: 1350 | C63: 23.33 | D63: 182 | E63: 1340.41 | F63: -70.34 | G63: 17.54 | H63: 2.2309 | I63: 2.4392 | J63: 1.2167
B64: 1380 | C64: 25.33 | D64: 182 | E64: 1367.74 | F64: -82.69 | G64: 17.11 | H64: 2.2572 | I64: 2.5168 | J64: 1.2792
B65: 1410 | C65: 27.33 | D65: 182 | E65: 1394.63 | F65: -95.99 | G65: 16.65 | H65: 2.282 | I65: 2.6007 | J65: 1.3433
B66: 1440 | C66: 29.33 | D66: 182 | E66: 1421.03 | F66: -110.22 | G66: 16.15 | H66: 2.3055 | I66: 2.6916 | J66: 1.4088
B67: 1470 | C67: 31.33 | D67: 182 | E67: 1446.93 | F67: -125.36 | G67: 15.62 | H67: 2.3279 | I67: 2.7898 | J67: 1.4756
B68: 1500 | C68: 33.33 | D68: 182 | E68: 1472.28 | F68: -141.39 | G68: 15.06 | H68: 2.3492 | I68: 2.8959 | J68: 1.5433
B69: 1530 | C69: 35.33 | D69: 182 | E69: 1497.05 | F69: -158.3 | G69: 14.47 | H69: 2.3696 | I69: 3.0101 | J69: 1.612
B70: 1560 | C70: 37.33 | D70: 182 | E70: 1521.22 | F70: -176.06 | G70: 13.85 | H70: 2.3892 | I70: 3.1327 | J70: 1.6814
B71: 1590 | C71: 39.33 | D71: 182 | E71: 1544.75 | F71: -194.65 | G71: 13.2 | H71: 2.4083 | I71: 3.2638 | J71: 1.7513
B72: 1620 | C72: 41.33 | D72: 182 | E72: 1567.62 | F72: -214.06 | G72: 12.53 | H72: 2.427 | I72: 3.4036 | J72: 1.8217
B73: 1650 | C73: 43.33 | D73: 182 | E73: 1589.79 | F73: -234.24 | G73: 11.82 | H73: 2.4453 | I73: 3.5519 | J73: 1.8925
B74: 1680 | C74: 45.33 | D74: 181.9 | E74: 1611.25 | F74: -255.2 | G74: 11.11 | H74: 2.4636 | I74: 3.7088 | J74: 1.9635
B75: 1710 | C75: 47.28 | D75: 181.31 | E75: 1631.98 | F75: -276.88 | G75: 10.5 | H75: 2.4832 | I75: 3.874 | J75: 2.0333
B76: 1740 | C76: 49.24 | D76: 180.75 | E76: 1651.95 | F76: -299.26 | G76: 10.1 | H76: 2.503 | I76: 4.0472 | J76: 2.1036
B77: 1770 | C77: 51.2 | D77: 180.23 | E77: 1671.14 | F77: -322.31 | G77: 9.9 | H77: 2.5231 | I77: 4.2281 | J77: 2.1742
B78: 1800 | C78: 53.16 | D78: 179.73 | E78: 1689.54 | F78: -346.01 | G78: 9.91 | H78: 2.5439 | I78: 4.4165 | J78: 2.245
B79: 1830 | C79: 55.12 | D79: 179.26 | E79: 1707.11 | F79: -370.32 | G79: 10.13 | H79: 2.5653 | I79: 4.6122 | J79: 2.3159
B80: 1860 | C80: 57.08 | D80: 178.81 | E80: 1723.84 | F80: -395.21 | G80: 10.55 | H80: 2.5874 | I80: 4.8148 | J80: 2.3869
B81: 1890 | C81: 59.05 | D81: 178.38 | E81: 1739.71 | F81: -420.66 | G81: 11.18 | H81: 2.6101 | I81: 5.0241 | J81: 2.4582
B82: 1920 | C82: 61.02 | D82: 177.97 | E82: 1754.69 | F82: -446.64 | G82: 12 | H82: 2.6336 | I82: 5.2396 | J82: 2.5295
B83: 1950 | C83: 62.99 | D83: 177.57 | E83: 1768.77 | F83: -473.11 | G83: 13.04 | H83: 2.6581 | I83: 5.4611 | J83: 2.6008
B84: 1980 | C84: 64.96 | D84: 177.19 | E84: 1781.94 | F84: -500.04 | G84: 14.27 | H84: 2.6836 | I84: 5.6883 | J84: 2.6721
B85: 2010 | C85: 66.93 | D85: 176.82 | E85: 1794.16 | F85: -527.39 | G85: 15.7 | H85: 2.7101 | I85: 5.9206 | J85: 2.7432
B86: 2040 | C86: 68.9 | D86: 176.46 | E86: 1805.44 | F86: -555.14 | G86: 17.33 | H86: 2.7376 | I86: 6.1579 | J86: 2.8143
B87: 2070 | C87: 70.87 | D87: 176.11 | E87: 1815.76 | F87: -583.25 | G87: 19.16 | H87: 2.7662 | I87: 6.3996 | J87: 2.8853
B88: 2100 | C88: 72.85 | D88: 175.77 | E88: 1825.1 | F88: -611.69 | G88: 21.18 | H88: 2.7955 | I88: 6.6455 | J88: 2.9564
B89: 2130 | C89: 74.82 | D89: 175.43 | E89: 1833.45 | F89: -640.41 | G89: 23.39 | H89: 2.8261 | I89: 6.8951 | J89: 3.0272
B90: 2160 | C90: 76.8 | D90: 175.1 | E90: 1840.81 | F90: -669.4 | G90: 25.79 | H90: 2.8575 | I90: 7.148 | J90: 3.0981
B91: 2190 | C91: 78.77 | D91: 174.78 | E91: 1847.15 | F91: -698.6 | G91: 28.37 | H91: 2.8901 | I91: 7.404 | J91: 3.1685
B92: 2220 | C92: 80.75 | D92: 174.46 | E92: 1852.49 | F92: -727.99 | G92: 31.14 | H92: 2.9233 | I92: 7.6625 | J92: 3.2391
B93: 2250 | C93: 82.72 | D93: 174.15 | E93: 1856.8 | F93: -757.53 | G93: 34.09 | H93: 2.9578 | I93: 7.9232 | J93: 3.3091
B94: 2280 | C94: 84.7 | D94: 173.83 | E94: 1860.08 | F94: -787.19 | G94: 37.21 | H94: 2.9928 | I94: 8.1856 | J94: 3.3795
B95: 2310 | C95: 86.67 | D95: 173.52 | E95: 1862.34 | F95: -816.92 | G95: 40.51 | H95: 3.0289 | I95: 8.4494 | J95: 3.4493
B96: 2340 | C96: 88.65 | D96: 173.21 | E96: 1863.57 | F96: -846.69 | G96: 43.97 | H96: 3.0654 | I96: 8.7142 | J96: 3.5192
B97: 2370 | C97: 90 | D97: 173 | E97: 1863.92 | F97: -876.47 | G97: 47.57 | H97: 3.1233 | I97: 8.981 | J97: 3.5684
B98: 2400 | C98: 90 | D98: 175.95 | E98: 1863.92 | F98: -906.33 | G98: 50.46 | H98: 3.2263 | I98: 9.2759 | J98: 3.5085
B99: 2430 | C99: 90 | D99: 178.95 | E99: 1863.92 | F99: -936.3 | G99: 51.79 | H99: 3.3302 | I99: 9.5502 | J99: 3.5029
B100: 2460 | C100: 90 | D100: 181.95 | E100: 1863.92 | F100: -966.29 | G100: 51.56 | H100: 3.4351 | I100: 9.8017 | J100: 3.5595
B101: 2490 | C101: 90 | D101: 184.95 | E101: 1863.92 | F101: -996.23 | G101: 49.75 | H101: 3.5407 | I101: 10.0294 | J101: 3.6805
B102: 2520 | C102: 90 | D102: 187.95 | E102: 1863.92 | F102: -1026.04 | G102: 46.38 | H102: 3.6471 | I102: 10.2325 | J102: 3.8644
B103: 2550 | C103: 90 | D103: 190.95 | E103: 1863.92 | F103: -1055.63 | G103: 41.46 | H103: 3.7542 | I103: 10.4103 | J103: 4.1063
B104: 2580 | C104: 90 | D104: 193.95 | E104: 1863.92 | F104: -1084.92 | G104: 34.99 | H104: 3.8619 | I104: 10.5626 | J104: 4.3994
B105: 2610 | C105: 90 | D105: 196.95 | E105: 1863.92 | F105: -1113.83 | G105: 27 | H105: 3.9701 | I105: 10.6891 | J105: 4.7361
B106: 2640 | C106: 90 | D106: 199.95 | E106: 1863.92 | F106: -1142.29 | G106: 17.51 | H106: 4.0789 | I106: 10.7898 | J106: 5.1091
B107: 2670 | C107: 90 | D107: 200 | E107: 1863.92 | F107: -1170.48 | G107: 7.26 | H107: 4.1881 | I107: 11.0582 | J107: 5.1193
B108: 2700 | C108: 90 | D108: 200 | E108: 1863.92 | F108: -1198.68 | G108: -3 | H108: 4.2978 | I108: 11.332 | J108: 5.1232
B109: 2730 | C109: 90 | D109: 200 | E109: 1863.92 | F109: -1226.87 | G109: -13.26 | H109: 4.408 | I109: 11.6079 | J109: 5.1271
B110: 2760 | C110: 90 | D110: 200 | E110: 1863.92 | F110: -1255.06 | G110: -23.52 | H110: 4.5185 | I110: 11.8858 | J110: 5.1311
B111: 2790 | C111: 90 | D111: 200 | E111: 1863.92 | F111: -1283.25 | G111: -33.78 | H111: 4.6293 | I111: 12.1657 | J111: 5.1352
B112: 2820 | C112: 90 | D112: 200 | E112: 1863.92 | F112: -1311.44 | G112: -44.05 | H112: 4.7405 | I112: 12.4472 | J112: 5.1394
B113: 2850 | C113: 90 | D113: 200 | E113: 1863.92 | F113: -1339.63 | G113: -54.31 | H113: 4.852 | I113: 12.7304 | J113: 5.1437

Sheet 04 - clearance
A1: Offset 04
A2: Offset 04: East 20 drilled double dip wellpath r4
A3: Ref_MD | B3: Ref_TVD | C3: Ref_N | D3: Ref_E | E3: Offset_MD | F3: Offset_TVD | G3: Offset_N | H3: Offset_E | I3: Horiz_Bearing | J3: C-C Clr Dist | K3: Ref PCR | L3: Offset PCR | M3: Calc hole | O3: ISCWSA ACR
A4: [m] | B4: [m] | C4: [m] | D4: [m] | E4: [m] | F4: [m] | G4: [m] | H4: [m] | I4: [°] | J4: [m] | K4: [m 1sigma] | L4: [m 1sigma] | M4: [m]
A5: 0 | B5: 0 | C5: 0 | D5: 0 | E5: 0 | F5: 0 | G5: 0 | H5: 20 | I5: 90 | J5: 20 | K5: 0 | L5: 0 | M5: =((ref_diam+offset_diam)/2)/(12*3.281) -> 0.7619628162 | O5: =(J5-M5-surface_margin)/(scaling_factor*(SQRT(K5^2+L5^2+sigma_pa^2))) -> 10.82173553
A6: 1 | B6: 1 | C6: 0 | D6: 0 | E6: 1 | F6: 1 | G6: 0 | H6: 20 | I6: 90 | J6: 20 | K6: 0.0017 | L6: 0.0017 | M6: 0.7619628162 | O6: 10.82161044
A7: 30 | B7: 30 | C7: 0 | D7: 0 | E7: 30 | F7: 30 | G7: 0 | H7: 20 | I7: 90 | J7: 20 | K7: 0.0537 | L7: 0.0537 | M7: 0.7619628162 | O7: 10.69902847
A8: 60 | B8: 60 | C8: 0 | D8: 0 | E8: 60 | F8: 60 | G8: 0 | H8: 20 | I8: 90 | J8: 20 | K8: 0.1074 | L8: 0.1074 | M8: 0.7619628162 | O8: 10.35452801
A9: 90 | B9: 90 | C9: 0 | D9: 0 | E9: 90 | F9: 90 | G9: 0 | H9: 20 | I9: 90 | J9: 20 | K9: 0.1612 | L9: 0.1612 | M9: 0.7619628162 | O9: 9.84655675
A10: 120 | B10: 120 | C10: 0 | D10: 0 | E10: 120 | F10: 120 | G10: 0 | H10: 20 | I10: 90 | J10: 20 | K10: 0.215 | L10: 0.215 | M10: 0.7619628162 | O10: 9.246307561
A11: 150 | B11: 150 | C11: 0 | D11: 0 | E11: 150 | F11: 150 | G11: 0 | H11: 20 | I11: 90 | J11: 20 | K11: 0.2688 | L11: 0.2688 | M11: 0.7619628162 | O11: 8.614689521
A12: 180 | B12: 180 | C12: 0 | D12: 0 | E12: 180 | F12: 180 | G12: 0 | H12: 20 | I12: 90 | J12: 20 | K12: 0.3225 | L12: 0.3225 | M12: 0.7619628162 | O12: 7.995180174
A13: 210 | B13: 210 | C13: 0 | D13: 0 | E13: 210 | F13: 210 | G13: 0 | H13: 20 | I13: 90 | J13: 20 | K13: 0.3763 | L13: 0.3763 | M13: 0.7619628162 | O13: 7.410038658
A14: 240 | B14: 240 | C14: 0 | D14: 0 | E14: 240 | F14: 240 | G14: 0 | H14: 20 | I14: 90 | J14: 20 | K14: 0.4301 | L14: 0.4301 | M14: 0.7619628162 | O14: 6.871964
A15: 270 | B15: 270 | C15: 0 | D15: 0 | E15: 270 | F15: 270 | G15: 0 | H15: 20 | I15: 90 | J15: 20 | K15: 0.4838 | L15: 0.4838 | M15: 0.7619628162 | O15: 6.385088687
A16: 300 | B16: 300 | C16: 0 | D16: 0 | E16: 300 | F16: 300 | G16: 0 | H16: 20 | I16: 90 | J16: 20 | K16: 0.5376 | L16: 0.5376 | M16: 0.7619628162 | O16: 5.946268766
A17: 330 | B17: 330 | C17: 0 | D17: 0 | E17: 330 | F17: 330 | G17: 0 | H17: 20 | I17: 90 | J17: 20 | K17: 0.5914 | L17: 0.5914 | M17: 0.7619628162 | O17: 5.552871516
A18: 360 | B18: 360 | C18: 0 | D18: 0 | E18: 360 | F18: 360 | G18: 0 | H18: 20 | I18: 90 | J18: 20 | K18: 0.6452 | L18: 0.6452 | M18: 0.7619628162 | O18: 5.200435484
A19: 390 | B19: 390 | C19: 0 | D19: 0 | E19: 390 | F19: 390 | G19: 0 | H19: 20 | I19: 90 | J19: 20 | K19: 0.6989 | L19: 0.6989 | M19: 0.7619628162 | O19: 4.884930276
A20: 420 | B20: 420 | C20: 0 | D20: 0 | E20: 420 | F20: 420 | G20: 0 | H20: 20 | I20: 90 | J20: 20 | K20: 0.7527 | L20: 0.7527 | M20: 0.7619628162 | O20: 4.600847527
A21: 450 | B21: 450 | C21: 0 | D21: 0 | E21: 450 | F21: 450 | G21: 0 | H21: 20 | I21: 90 | J21: 20 | K21: 0.8065 | L21: 0.8065 | M21: 0.7619628162 | O21: 4.344874063
A22: 480 | B22: 480 | C22: 0 | D22: 0 | E22: 480 | F22: 480 | G22: 0 | H22: 20 | I22: 90 | J22: 20 | K22: 0.8602 | L22: 0.8602 | M22: 0.7619628162 | O22: 4.11393966
A23: 510 | B23: 510 | C23: 0 | D23: 0 | E23: 510 | F23: 510 | G23: 0 | H23: 20 | I23: 90 | J23: 20 | K23: 0.914 | L23: 0.914 | M23: 0.7619628162 | O23: 3.904152304
A24: 540 | B24: 540 | C24: 0 | D24: 0 | E24: 540 | F24: 540 | G24: 0 | H24: 20 | I24: 90 | J24: 20 | K24: 0.9678 | L24: 0.9678 | M24: 0.7619628162 | O24: 3.713333302
A25: 570 | B25: 570 | C25: 0 | D25: 0 | E25: 570 | F25: 570 | G25: 0 | H25: 20 | I25: 90 | J25: 20 | K25: 1.0216 | L25: 1.0216 | M25: 0.7619628162 | O25: 3.539212295
A26: 600 | B26: 600 | C26: 0 | D26: 0 | E26: 600 | F26: 600 | G26: 0 | H26: 20 | I26: 90 | J26: 20 | K26: 1.0753 | L26: 1.0753 | M26: 0.7619628162 | O26: 3.380115797
A27: 630 | B27: 630 | C27: 0 | D27: 0 | E27: 630 | F27: 630 | G27: 0 | H27: 20 | I27: 90 | J27: 20 | K27: 1.1291 | L27: 1.1291 | M27: 0.7619628162 | O27: 3.233765805
A28: 660 | B28: 660 | C28: 0 | D28: 0 | E28: 660 | F28: 660 | G28: 0 | H28: 20 | I28: 90 | J28: 20 | K28: 1.1829 | L28: 1.1829 | M28: 0.7619628162 | O28: 3.099013567
A29: 690 | B29: 690 | C29: 0 | D29: 0 | E29: 690 | F29: 690 | G29: 0 | H29: 20 | I29: 90 | J29: 20 | K29: 1.2366 | L29: 1.2366 | M29: 0.7619628162 | O29: 2.97481935
A30: 720 | B30: 720 | C30: 0 | D30: 0 | E30: 720 | F30: 720 | G30: 0 | H30: 20 | I30: 90 | J30: 20 | K30: 1.2904 | L30: 1.2904 | M30: 0.7619628162 | O30: 2.859626911
A31: 750 | B31: 750 | C31: 0 | D31: 0 | E31: 750 | F31: 750 | G31: 0 | H31: 20 | I31: 90 | J31: 20 | K31: 1.3442 | L31: 1.3442 | M31: 0.7619628162 | O31: 2.752723335
A32: 780 | B32: 780 | C32: 0 | D32: 0 | E32: 780 | F32: 780 | G32: 0 | H32: 20 | I32: 90 | J32: 20 | K32: 1.3979 | L32: 1.3979 | M32: 0.7619628162 | O32: 2.653454739
A33: 810 | B33: 810 | C33: 0 | D33: 0 | E33: 810 | F33: 810 | G33: 0 | H33: 20 | I33: 90 | J33: 20 | K33: 1.4517 | L33: 1.4517 | M33: 0.7619628162 | O33: 2.560723674
A34: 840 | B34: 840 | C34: 0 | D34: 0 | E34: 840 | F34: 840 | G34: 0 | H34: 20 | I34: 90 | J34: 20 | K34: 1.5055 | L34: 1.5055 | M34: 0.7619628162 | O34: 2.474081395
A35: 870 | B35: 870 | C35: 0 | D35: 0 | E35: 870 | F35: 870 | G35: 0 | H35: 20 | I35: 90 | J35: 20 | K35: 1.5593 | L35: 1.5593 | M35: 0.7619628162 | O35: 2.392963738
A36: 900 | B36: 900 | C36: 0 | D36: 0 | E36: 900 | F36: 900 | G36: 0 | H36: 20 | I36: 90 | J36: 20 | K36: 1.613 | L36: 1.613 | M36: 0.7619628162 | O36: 2.31700915
A37: 930 | B37: 930 | C37: 0 | D37: 0 | E37: 930 | F37: 930 | G37: 0 | H37: 20 | I37: 90 | J37: 20 | K37: 1.6668 | L37: 1.6668 | M37: =((ref_diam+offset_diam)/2)/(12*3.281) -> 0.7619628162 | O37: =(J37-M37-surface_margin)/(scaling_factor*(SQRT(K37^2+L37^2+sigma_pa^2))) -> 2.245493394
A38: 960 | B38: 960 | C38: 0 | D38: 0 | E38: 960 | F38: 960 | G38: 0 | H38: 20 | I38: 90 | J38: 20 | K38: 1.7206 | L38: 1.7206 | M38: 0.7619628162 | O38: 2.178169415
A39: 990 | B39: 990 | C39: 0 | D39: 0 | E39: 990 | F39: 990 | G39: 0 | H39: 20 | I39: 90 | J39: 20 | K39: 1.7743 | L39: 1.7743 | M39: 0.7619628162 | O39: 2.11480145
A40: 1020 | B40: 1020 | C40: -0.35 | D40: 0 | E40: 1020.02 | F40: 1020.01 | G40: -0.35 | H40: 19.99 | I40: 90 | J40: 19.99 | K40: 1.8253 | L40: 1.8253 | M40: 0.7619628162 | O40: 2.05679227
A41: 1050 | B41: 1049.97 | C41: -1.57 | D41: 0 | E41: 1050.04 | F41: 1050.01 | G41: -1.57 | H41: 19.95 | I41: 90.004 | J41: 19.95 | K41: 1.8735 | L41: 1.8736 | M41: 0.7619628162 | O41: 2.001429298
A42: 1080 | B42: 1079.88 | C42: -3.83 | D42: 0 | E42: 1080.06 | F42: 1079.95 | G42: -3.84 | H42: 19.87 | I42: 90.011 | J42: 19.87 | K42: 1.922 | L42: 1.9221 | M42: 0.7619628162 | O42: 1.94432965
A43: 1110 | B43: 1109.7 | C43: -7.14 | D43: 0 | E43: 1110.09 | F43: 1109.79 | G43: -7.15 | H43: 19.75 | I43: 90.02 | J43: 19.75 | K43: 1.9709 | L43: 1.971 | M43: 0.7619628162 | O43: 1.885505246
A44: 1140 | B44: 1139.38 | C44: -11.49 | D44: 0 | E44: 1140.11 | F44: 1139.49 | G44: -11.5 | H44: 19.6 | I44: 90.033 | J44: 19.6 | K44: 2.0206 | L44: 2.0208 | M44: 0.7619628162 | O44: 1.825706871
A45: 1170 | B45: 1168.89 | C45: -16.87 | D45: 0 | E45: 1170.14 | F45: 1169.03 | G45: -16.88 | H45: 19.41 | I45: 90.048 | J45: 19.41 | K45: 2.0717 | L45: 2.0719 | M45: 0.7619628162 | O45: 1.763702806
A46: 1200 | B46: 1198.2 | C46: -23.27 | D46: 0 | E46: 1200.16 | F46: 1198.35 | G46: -23.29 | H46: 19.19 | I46: 90.066 | J46: 19.19 | K46: 2.1246 | L46: 2.1249 | M46: 0.7619628162 | O46: 1.700314359
A47: 1230 | B47: 1227.27 | C47: -30.7 | D47: 0 | E47: 1230.18 | F47: 1227.44 | G47: -30.72 | H47: 18.93 | I47: 90.087 | J47: 18.93 | K47: 2.1799 | L47: 2.1803 | M47: 0.7619628162 | O47: 1.63448224
A48: 1260 | B48: 1256.05 | C48: -39.13 | D48: 0 | E48: 1260.2 | F48: 1256.25 | G48: -39.17 | H48: 18.63 | I48: 90.111 | J48: 18.63 | K48: 2.2384 | L48: 2.2388 | M48: 0.7619628162 | O48: 1.566079269
A49: 1290 | B49: 1284.53 | C49: -48.57 | D49: 0 | E49: 1290.22 | F49: 1284.74 | G49: -48.61 | H49: 18.3 | I49: 90.137 | J49: 18.3 | K49: 2.3006 | L49: 2.3011 | M49: 0.7619628162 | O49: 1.49605917
A50: 1320 | B50: 1312.66 | C50: -58.99 | D50: 0 | E50: 1320.24 | F50: 1312.88 | G50: -59.04 | H50: 17.94 | I50: 90.165 | J50: 17.94 | K50: 2.3672 | L50: 2.3678 | M50: 0.7619628162 | O50: 1.424490152
A51: 1350 | B51: 1340.41 | C51: -70.38 | D51: 0 | E51: 1350.26 | F51: 1340.65 | G51: -70.44 | H51: 17.54 | I51: 90.196 | J51: 17.54 | K51: 2.439 | L51: 2.4396 | M51: 0.7619628162 | O51: 1.35064961
A52: 1380 | B52: 1367.74 | C52: -82.74 | D52: 0 | E52: 1380.28 | F52: 1367.99 | G52: -82.81 | H52: 17.11 | I52: 90.228 | J52: 17.11 | K52: 2.5165 | L52: 2.5172 | M52: 0.7619628162 | O52: 1.275669829
A53: 1410 | B53: 1394.63 | C53: -96.05 | D53: 0 | E53: 1410.29 | F53: 1394.89 | G53: -96.13 | H53: 16.64 | I53: 90.263 | J53: 16.65 | K53: 2.6003 | L53: 2.6012 | M53: 0.7619628162 | O53: 1.199867877
A54: 1440 | B54: 1421.03 | C54: -110.29 | D54: 0 | E54: 1440.31 | F54: 1421.3 | G54: -110.37 | H54: 16.15 | I54: 90.299 | J54: 16.15 | K54: 2.6911 | L54: 2.6921 | M54: 0.7619628162 | O54: 1.122857076
A55: 1470 | B55: 1446.93 | C55: -125.43 | D55: 0 | E55: 1470.32 | F55: 1447.2 | G55: -125.53 | H55: 15.62 | I55: 90.336 | J55: 15.62 | K55: 2.7893 | L55: 2.7905 | M55: 0.7619628162 | O55: 1.045855198
A56: 1500 | B56: 1472.28 | C56: -141.48 | D56: 0 | E56: 1500.34 | F56: 1472.56 | G56: -141.58 | H56: 15.06 | I56: 90.375 | J56: 15.06 | K56: 2.8953 | L56: 2.8966 | M56: 0.7619628162 | O56: 0.9693494418
A57: 1530 | B57: 1497.05 | C57: -158.39 | D57: 0 | E57: 1530.35 | F57: 1497.33 | G57: -158.5 | H57: 14.47 | I57: 90.415 | J57: 14.47 | K57: 3.0094 | L57: 3.0109 | M57: 0.7619628162 | O57: 0.8937557693
A58: 1560 | B58: 1521.22 | C58: -176.17 | D58: 0 | E58: 1560.36 | F58: 1521.5 | G58: -176.28 | H58: 13.84 | I58: 90.455 | J58: 13.85 | K58: 3.1318 | L58: 3.1335 | M58: 0.7619628162 | O58: 0.8195217767
A59: 1590 | B59: 1544.75 | C59: -194.77 | D59: 0 | E59: 1590.37 | F59: 1545.03 | G59: -194.89 | H59: 13.19 | I59: 90.495 | J59: 13.2 | K59: 3.2628 | L59: 3.2647 | M59: 0.7619628162 | O59: 0.7469906589
A60: 1620 | B60: 1567.62 | C60: -214.19 | D60: 0 | E60: 1620.37 | F60: 1567.9 | G60: -214.3 | H60: 12.52 | I60: 90.536 | J60: 12.52 | K60: 3.4023 | L60: 3.4044 | M60: 0.7619628162 | O60: 0.6765340818
A61: 1650 | B61: 1589.79 | C61: -234.39 | D61: 0 | E61: 1650.38 | F61: 1590.07 | G61: -234.51 | H61: 11.81 | I61: 90.575 | J61: 11.81 | K61: 3.5505 | L61: 3.5528 | M61: 0.7619628162 | O61: 0.6083797015
A62: 1680 | B62: 1611.25 | C62: -255.35 | D62: 0 | E62: 1680.37 | F62: 1611.51 | G62: -255.46 | H62: 11.1 | I62: 90.562 | J62: 11.1 | K62: 3.7073 | L62: 3.7097 | M62: 0.7619628162 | O62: 0.5443807104
A63: 1710 | B63: 1631.97 | C63: -277.05 | D63: 0 | E63: 1710.3 | F63: 1632.18 | G63: -277.09 | H63: 10.5 | I63: 90.245 | J63: 10.5 | K63: 3.8729 | L63: 3.8746 | M63: 0.7619628162 | O63: 0.4901914031
A64: 1740 | B64: 1651.91 | C64: -299.46 | D64: 0 | E64: 1740.23 | F64: 1652.1 | G64: -299.43 | H64: 10.1 | I64: 89.839 | J64: 10.1 | K64: 4.0466 | L64: 4.0473 | M64: 0.7619628162 | O64: 0.449481897
A65: 1770 | B65: 1671.06 | C65: -322.55 | D65: 0 | E65: 1770.17 | F65: 1671.25 | G65: -322.44 | H65: 9.9 | I65: 89.367 | J65: 9.91 | K65: 4.2281 | L65: 4.2277 | M65: 0.7619628162 | O65: 0.4213334836
A66: 1800 | B66: 1689.39 | C66: -346.29 | D66: 0 | E66: 1800.11 | F66: 1689.6 | G66: -346.09 | H66: 9.92 | I66: 88.832 | J66: 9.92 | K66: 4.4171 | L66: 4.4153 | M66: =((ref_diam+offset_diam)/2)/(12*3.281) -> 0.7619628162 | O66: 0.4039414198
A67: 1830 | B67: 1706.89 | C67: -370.66 | D67: 0 | E67: 1830.05 | F67: 1707.14 | G67: -370.36 | H67: 10.13 | I67: 88.267 | J67: 10.14 | K67: 4.613 | L67: 4.6098 | M67: 0.7619628162 | O67: 0.3965549686
A68: 1860 | B68: 1723.52 | C68: -395.63 | D68: 0 | E68: 1859.99 | F68: 1723.84 | G68: -395.2 | H68: 10.55 | I68: 87.69 | J68: 10.56 | K68: 4.8156 | L68: 4.8108 | M68: 0.7619628162 | O68: =(J68-M68-surface_margin)/(scaling_factor*(SQRT(K68^2+L68^2+sigma_pa^2))) -> 0.3976018211
A69: 1890 | B69: 1739.27 | C69: -421.16 | D69: 0 | E69: 1889.93 | F69: 1739.67 | G69: -420.6 | H69: 11.17 | I69: 87.135 | J69: 11.2 | K69: 5.0244 | L69: 5.018 | M69: 0.7619628162 | O69: 0.4069015107
A70: 1920 | B70: 1754.12 | C70: -447.23 | D70: 0 | E70: 1919.86 | F70: 1754.63 | G70: -446.52 | H70: 12 | I70: 86.625 | J70: 12.03 | K70: 5.2391 | L70: 5.2312 | M70: 0.7619628162 | O70: 0.4223071954
A71: 1950 | B71: 1768.05 | C71: -473.79 | D71: 0 | E71: 1949.79 | F71: 1768.68 | G71: -472.92 | H71: 13.03 | I71: 86.159 | J71: 13.07 | K71: 5.4595 | L71: 5.4501 | M71: 0.7619628162 | O71: 0.4438126384
A72: 1980 | B72: 1781.04 | C72: -500.83 | D72: 0 | E72: 1979.71 | F72: 1781.81 | G72: -499.77 | H72: 14.26 | I72: 85.748 | J72: 14.32 | K72: 5.6852 | L72: 5.6744 | M72: 0.7619628162 | O72: 0.4706772266
A73: 2010 | B73: 1793.09 | C73: -528.31 | D73: 0 | E73: 2009.62 | F73: 1794.01 | G73: -527.04 | H73: 15.68 | I73: 85.382 | J73: 15.76 | K73: 5.9159 | L73: 5.9039 | M73: 0.7619628162 | O73: 0.5015568694
A74: 2040 | B74: 1804.16 | C74: -556.19 | D74: 0 | E74: 2039.51 | F74: 1805.27 | G74: -554.69 | H74: 17.3 | I74: 85.056 | J74: 17.4 | K74: 6.1513 | L74: 6.1383 | M74: 0.7619628162 | O74: 0.5362794601
A75: 2070 | B75: 1814.26 | C75: -584.43 | D75: 0 | E75: 2069.4 | F75: 1815.56 | G75: -582.68 | H75: 19.12 | I75: 84.766 | J75: 19.24 | K75: 6.3911 | L75: 6.3771 | M75: 0.7619628162 | O75: 0.5743796402
A76: 2100 | B76: 1823.37 | C76: -613.02 | D76: 0 | E76: 2099.26 | F76: 1824.88 | G76: -610.99 | H76: 21.12 | I76: 84.51 | J76: 21.27 | K76: 6.6349 | L76: 6.6202 | M76: 0.7619628162 | O76: 0.6151354154
A77: 2130 | B77: 1831.47 | C77: -641.9 | D77: 0 | E77: 2129.11 | F77: 1833.22 | G77: -639.56 | H77: 23.32 | I77: 84.274 | J77: 23.5 | K77: 6.8823 | L77: 6.8669 | M77: 0.7619628162 | O77: 0.6585375346
A78: 2160 | B78: 1838.56 | C78: -671.05 | D78: 0 | E78: 2158.95 | F78: 1840.56 | G78: -668.38 | H78: 25.7 | I78: 84.062 | J78: 25.92 | K78: 7.1328 | L78: 7.117 | M78: 0.7619628162 | O78: 0.7039968452
A79: 2190 | B79: 1844.63 | C79: -700.43 | D79: 0 | E79: 2188.76 | F79: 1846.91 | G79: -697.39 | H79: 28.26 | I79: 83.872 | J79: 28.52 | K79: 7.3862 | L79: 7.3702 | M79: 0.7619628162 | O79: 0.7509961788
A80: 2220 | B80: 1849.66 | C80: -730 | D80: 0 | E80: 2218.55 | F80: 1852.25 | G80: -726.57 | H80: 31 | I80: 83.693 | J80: 31.3 | K80: 7.6419 | L80: 7.6258 | M80: 0.7619628162 | O80: 0.7993949758
A81: 2250 | B81: 1853.67 | C81: -759.73 | D81: 0 | E81: 2248.33 | F81: 1856.58 | G81: -755.88 | H81: 33.92 | I81: 83.532 | J81: 34.26 | K81: 7.8995 | L81: 7.8837 | M81: 0.7619628162 | O81: 0.8490410205
A82: 2280 | B82: 1856.72 | C82: -789.57 | D82: 0 | E82: 2278.07 | F82: 1859.9 | G82: -785.28 | H82: 37 | I82: 83.385 | J82: 37.39 | K82: 8.1599 | L82: 8.1444 | M82: 0.7619628162 | O82: 0.8994530207
A83: 2310 | B83: 1859.33 | C83: -819.46 | D83: 0 | E83: 2307.79 | F83: 1862.21 | G83: -814.73 | H83: 40.26 | I83: 83.296 | J83: 40.64 | K83: 8.4296 | L83: 8.4143 | M83: 0.7619628162 | O83: 0.9485845053
A84: 2340 | B84: 1861.95 | C84: -849.34 | D84: 0 | E84: 2337.41 | F84: 1863.5 | G84: -844.12 | H84: 43.66 | I84: 83.183 | J84: 44 | K84: 8.7048 | L84: 8.6889 | M84: 0.7619628162 | O84: 0.9966402177
A85: 2370 | B85: 1864.56 | C85: -879.23 | D85: 0 | E85: 2366.96 | F85: 1863.92 | G85: -873.45 | H85: 47.2 | I85: 83.023 | J85: 47.56 | K85: 8.9693 | L85: 8.9521 | M85: 0.7619628162 | O85: 1.047542506
A86: 2400 | B86: 1867.18 | C86: -909.12 | D86: 0 | E86: 2399.14 | F86: 1863.92 | G86: -905.47 | H86: 50.4 | I86: 85.866 | J86: 50.63 | K86: 9.2572 | L86: 9.2477 | M86: 0.7619628162 | O86: 1.081546111
A87: 2430 | B87: 1869.79 | C87: -939 | D87: 0 | E87: 2431.93 | F87: 1863.92 | G87: -938.23 | H87: 51.82 | I87: 89.143 | J87: 52.16 | K87: 9.5135 | L87: 9.5122 | M87: 0.7619628162 | O87: 1.084453131
A88: 2460 | B88: 1872.41 | C88: -968.89 | D88: 0 | E88: 2464.78 | F88: 1863.92 | G88: -971.07 | H88: 51.37 | I88: 92.428 | J88: 52.12 | K88: 9.7228 | L88: 9.7285 | M88: 0.7619628162 | O88: 1.05992624
A89: 2490 | B89: 1875.02 | C89: -998.77 | D89: 0 | E89: 2497.47 | F89: 1863.92 | G89: -1003.67 | H89: 49.06 | I89: 95.697 | J89: 50.54 | K89: 9.8694 | L89: 9.8808 | M89: 0.7619628162 | O89: 1.011602003
A90: 2520 | B90: 1877.64 | C90: -1028.66 | D90: 0 | E90: 2529.79 | F90: 1863.92 | G90: -1035.72 | H90: 44.95 | I90: 98.928 | J90: 47.52 | K90: 9.9255 | L90: 9.941 | M90: 0.7619628162 | O90: 0.9443030598
A91: 2550 | B91: 1880.25 | C91: -1058.55 | D91: 0 | E91: 2561.54 | F91: 1863.92 | G91: -1066.94 | H91: 39.15 | I91: 102.104 | J91: 43.24 | K91: 9.8351 | L91: 9.8532 | M91: 0.7619628162 | O91: 0.8650575504
A92: 2580 | B92: 1882.87 | C92: -1088.43 | D92: 0 | E92: 2592.57 | F92: 1863.92 | G92: -1097.08 | H92: 31.83 | I92: 105.206 | J92: 38.04 | K92: 9.477 | L92: 9.4963 | M92: 0.7619628162 | O92: 0.7869485046
A93: 2610 | B93: 1885.48 | C93: -1118.32 | D93: 0 | E93: 2622.7 | F93: 1863.92 | G93: -1125.94 | H93: 23.16 | I93: 108.221 | J93: 32.55 | K93: 8.5849 | L93: 8.6033 | M93: 0.7619628162 | O93: 0.739596252
A94: 2640 | B94: 1888.09 | C94: -1148.2 | D94: 0 | E94: 2651.54 | F94: 1863.92 | G94: -1153.13 | H94: 13.57 | I94: 109.969 | J94: 28.16 | K94: 6.7648 | L94: 6.7532 | M94: 0.7619628162 | O94: 0.8088702139
A95: 2670 | B95: 1890.71 | C95: -1178.09 | D95: 0 | E95: 2679.63 | F95: 1863.92 | G95: -1179.53 | H95: 3.96 | I95: 110 | J95: 27.12 | K95: 4.5918 | L95: 4.606 | M95: 0.7619628162 | O95: 1.141365053
A96: 2700 | B96: 1893.32 | C96: -1207.97 | D96: 0 | E96: 2707.71 | F96: 1863.92 | G96: -1205.92 | H96: -5.64 | I96: 290 | J96: 30.01 | K96: 4.6817 | L96: 4.7031 | M96: 0.7619628162 | O96: 1.242826969
A97: 2730 | B97: 1895.94 | C97: -1237.86 | D97: 0 | E97: 2735.8 | F97: 1863.92 | G97: -1232.31 | H97: -15.25 | I97: 290 | J97: 35.89 | K97: 6.3944 | L97: 6.4177 | M97: 0.7619628162 | O97: 1.096716791
A98: 2760 | B98: 1898.55 | C98: -1267.75 | D98: 0 | E98: 2763.88 | F98: 1863.92 | G98: -1258.7 | H98: -24.85 | I98: 290 | J98: 43.58 | K98: 7.8899 | L98: 7.9141 | M98: 0.7619628162 | O98: 1.085971344
A99: 2790 | B99: 1900.91 | C99: -1297.65 | D99: 0 | E99: 2791.98 | F99: 1863.92 | G99: -1285.11 | H99: -34.46 | I99: 290 | J99: 52.09 | K99: 9.0068 | L99: 9.0325 | M99: 0.7619628162 | O99: 1.1420952
A100: 2820 | B100: 1902.48 | C100: -1327.61 | D100: 0 | E100: 2820.13 | F100: 1863.92 | G100: -1311.56 | H100: -44.09 | I100: 290 | J100: 60.73 | K100: 9.9066 | L100: 9.9351 | M100: 0.7619628162 | O100: 1.214321743
A101: 2850 | B101: 1903 | C101: -1357.6 | D101: 0 | E101: 2848.32 | F101: 1863.92 | G101: -1338.05 | H101: -53.73 | I101: 290 | J101: 69.26 | K101: 10.6862 | L101: 10.719 | M101: 0.7619628162 | O101: =(J101-M101-surface_margin)/(scaling_factor*(SQRT(K101^2+L101^2+sigma_pa^2))) -> 1.286655239
A102: 2880 | B102: 1903 | C102: -1387.6 | D102: 0 | E102: 2850 | F102: 1863.92 | G102: -1339.63 | H102: -54.31 | I102: 311.458 | J102: 82.33 | K102: 9.3065 | L102: 9.3999 | M102: 0.7619628162 | O102: 1.754127069
A103: 2910 | B103: 1903 | C103: -1417.6 | D103: 0 | E103: 2850 | F103: 1863.92 | G103: -1339.63 | H103: -54.31 | I103: 325.145 | J103: 102.75 | K103: 7.7799 | L103: 7.906 | M103: 0.7619628162 | O103: =(J103-M103-surface_margin)/(scaling_factor*(SQRT(K103^2+L103^2+sigma_pa^2))) -> 2.616691648
A104: 2940 | B104: 1903 | C104: -1447.6 | D104: 0 | E104: 2850 | F104: 1863.92 | G104: -1339.63 | H104: -54.31 | I104: 333.3 | J104: 127.02 | K104: 6.6584 | L104: 6.7954 | M104: 0.7619628162 | O104: 3.777516808

Sheet 05 - well
A1: Wellpath | B1: Offset 05: Angular drilled wellpath r4
A3: REPORT SETUP INFORMATION
A4: Projection System | B4: ED50 / UTM Zone 31 North
A5: North Reference | B5: Grid
A6: Scale | B6: 0.9996
A7: Convergence at slot | B7: 0.01° West
A9: WELLPATH LOCATION | B9: Local North | C9: Local East | D9: Easting | E9: Northing | F9: Latitude | G9: Longitude
B10: [m] | C10: [m] | D10: [m] | E10: [m]
B11: -50 | C11: -500 | D11: 499500.2 | E11: 6651516.73 | F11: 59°59'58.383"N | G11: 2°59'27.744"E
B15: MD | C15: Inclination | D15: Azimuth | E15: TVD | F15: North | G15: East | H15: sigmaH | I15: sigmaL | J15: sigmaA
B16: [m] | C16: [°] | D16: [°] | E16: [m] | F16: [m] | G16: [m]
B17: 0 | C17: 0 | D17: 0 | E17: 0 | F17: -50 | G17: -500 | H17: 0 | I17: 0 | J17: 0
B18: 1 | C18: 0 | D18: 0 | E18: 1 | F18: -50 | G18: -500 | H18: 0.0017 | I18: 0.0017 | J18: 0.35
B19: 30 | C19: 0 | D19: 0 | E19: 30 | F19: -50 | G19: -500 | H19: 0.0537 | I19: 0.0537 | J19: 0.3504
B20: 60 | C20: 0 | D20: 0 | E20: 60 | F20: -50 | G20: -500 | H20: 0.1075 | I20: 0.1075 | J20: 0.3516
B21: 90 | C21: 0 | D21: 0 | E21: 90 | F21: -50 | G21: -500 | H21: 0.1612 | I21: 0.1612 | J21: 0.3536
B22: 120 | C22: 0 | D22: 0 | E22: 120 | F22: -50 | G22: -500 | H22: 0.215 | I22: 0.215 | J22: 0.3564
B23: 150 | C23: 0 | D23: 0 | E23: 150 | F23: -50 | G23: -500 | H23: 0.2688 | I23: 0.2688 | J23: 0.36
B24: 180 | C24: 0 | D24: 0 | E24: 180 | F24: -50 | G24: -500 | H24: 0.3225 | I24: 0.3225 | J24: 0.3643
B25: 210 | C25: 0 | D25: 0 | E25: 210 | F25: -50 | G25: -500 | H25: 0.3763 | I25: 0.3763 | J25: 0.3694
B26: 240 | C26: 0 | D26: 0 | E26: 240 | F26: -50 | G26: -500 | H26: 0.4301 | I26: 0.4301 | J26: 0.3752
B27: 270 | C27: 0 | D27: 0 | E27: 270 | F27: -50 | G27: -500 | H27: 0.4839 | I27: 0.4839 | J27: 0.3817
B28: 300 | C28: 0 | D28: 0 | E28: 300 | F28: -50 | G28: -500 | H28: 0.5376 | I28: 0.5376 | J28: 0.3889
B29: 330 | C29: 0 | D29: 0 | E29: 330 | F29: -50 | G29: -500 | H29: 0.5914 | I29: 0.5914 | J29: 0.3967
B30: 360 | C30: 0 | D30: 0 | E30: 360 | F30: -50 | G30: -500 | H30: 0.6452 | I30: 0.6452 | J30: 0.4052
B31: 390 | C31: 0 | D31: 0 | E31: 390 | F31: -50 | G31: -500 | H31: 0.6989 | I31: 0.6989 | J31: 0.4143
B32: 420 | C32: 0 | D32: 0 | E32: 420 | F32: -50 | G32: -500 | H32: 0.7527 | I32: 0.7527 | J32: 0.424
B33: 450 | C33: 0 | D33: 0 | E33: 450 | F33: -50 | G33: -500 | H33: 0.8065 | I33: 0.8065 | J33: 0.4342
B34: 480 | C34: 0 | D34: 0 | E34: 480 | F34: -50 | G34: -500 | H34: 0.8602 | I34: 0.8602 | J34: 0.4451
B35: 510 | C35: 0 | D35: 0 | E35: 510 | F35: -50 | G35: -500 | H35: 0.914 | I35: 0.914 | J35: 0.4564
B36: 540 | C36: 0 | D36: 0 | E36: 540 | F36: -50 | G36: -500 | H36: 0.9678 | I36: 0.9678 | J36: 0.4683
B37: 570 | C37: 0 | D37: 0 | E37: 570 | F37: -50 | G37: -500 | H37: 1.0216 | I37: 1.0216 | J37: 0.4806
B38: 600 | C38: 0 | D38: 0 | E38: 600 | F38: -50 | G38: -500 | H38: 1.0753 | I38: 1.0753 | J38: 0.4935
B39: 630 | C39: 0 | D39: 0 | E39: 630 | F39: -50 | G39: -500 | H39: 1.1291 | I39: 1.1291 | J39: 0.5068
B40: 660 | C40: 0 | D40: 0 | E40: 660 | F40: -50 | G40: -500 | H40: 1.1829 | I40: 1.1829 | J40: 0.5205
B41: 690 | C41: 0 | D41: 0 | E41: 690 | F41: -50 | G41: -500 | H41: 1.2366 | I41: 1.2366 | J41: 0.5348
B42: 720 | C42: 0 | D42: 0 | E42: 720 | F42: -50 | G42: -500 | H42: 1.2904 | I42: 1.2904 | J42: 0.5494
B43: 750 | C43: 0 | D43: 0 | E43: 750 | F43: -50 | G43: -500 | H43: 1.3442 | I43: 1.3442 | J43: 0.5645
B44: 780 | C44: 0 | D44: 0 | E44: 780 | F44: -50 | G44: -500 | H44: 1.398 | I44: 1.398 | J44: 0.58
B45: 810 | C45: 0 | D45: 0 | E45: 810 | F45: -50 | G45: -500 | H45: 1.4517 | I45: 1.4517 | J45: 0.596
B46: 840 | C46: 0 | D46: 0 | E46: 840 | F46: -50 | G46: -500 | H46: 1.5055 | I46: 1.5055 | J46: 0.6123
B47: 870 | C47: 0 | D47: 0 | E47: 870 | F47: -50 | G47: -500 | H47: 1.5593 | I47: 1.5593 | J47: 0.629
B48: 900 | C48: 0 | D48: 0 | E48: 900 | F48: -50 | G48: -500 | H48: 1.613 | I48: 1.613 | J48: 0.6462
B49: 930 | C49: 0 | D49: 0 | E49: 930 | F49: -50 | G49: -500 | H49: 1.6668 | I49: 1.6668 | J49: 0.6637
B50: 960 | C50: 0 | D50: 0 | E50: 960 | F50: -50 | G50: -500 | H50: 1.7206 | I50: 1.7206 | J50: 0.6816
B51: 990 | C51: 0 | D51: 0 | E51: 990 | F51: -50 | G51: -500 | H51: 1.7743 | I51: 1.7743 | J51: 0.6999
B52: 1020 | C52: 1.33 | D52: 145 | E52: 1020 | F52: -50.29 | G52: -499.8 | H52: 1.8252 | I52: 1.8256 | J52: 0.7197
B53: 1050 | C53: 3.33 | D53: 145 | E53: 1049.97 | F53: -51.28 | G53: -499.1 | H53: 1.8719 | I53: 1.8745 | J53: 0.7444
B54: 1080 | C54: 5.33 | D54: 145 | E54: 1079.88 | F54: -53.14 | G54: -497.8 | H54: 1.9168 | I54: 1.9237 | J54: 0.7741
B55: 1110 | C55: 7.33 | D55: 145 | E55: 1109.7 | F55: -55.85 | G55: -495.9 | H55: 1.9598 | I55: 1.9736 | J55: 0.8087
B56: 1140 | C56: 9.33 | D56: 145 | E56: 1139.38 | F56: -59.41 | G56: -493.41 | H56: 2.0008 | I56: 2.0243 | J56: 0.8478
B57: 1170 | C57: 11.33 | D57: 145 | E57: 1168.89 | F57: -63.82 | G57: -490.33 | H57: 2.0399 | I57: 2.0765 | J57: 0.891
B58: 1200 | C58: 13.33 | D58: 145 | E58: 1198.2 | F58: -69.06 | G58: -486.65 | H58: 2.0771 | I58: 2.1307 | J58: 0.938
B59: 1230 | C59: 15.33 | D59: 145 | E59: 1227.27 | F59: -75.14 | G59: -482.39 | H59: 2.1123 | I59: 2.1875 | J59: 0.9884
B60: 1260 | C60: 17.33 | D60: 145 | E60: 1256.05 | F60: -82.05 | G60: -477.56 | H60: 2.1457 | I60: 2.2475 | J60: 1.0418
B61: 1290 | C61: 19.33 | D61: 145 | E61: 1284.53 | F61: -89.78 | G61: -472.14 | H61: 2.1771 | I61: 2.3116 | J61: 1.098
B62: 1320 | C62: 21.33 | D62: 145 | E62: 1312.66 | F62: -98.32 | G62: -466.17 | H62: 2.2069 | I62: 2.3806 | J62: 1.1566
B63: 1350 | C63: 23.33 | D63: 145 | E63: 1340.41 | F63: -107.66 | G63: -459.63 | H63: 2.2349 | I63: 2.4552 | J63: 1.2174
B64: 1380 | C64: 25.33 | D64: 145 | E64: 1367.74 | F64: -117.78 | G64: -452.54 | H64: 2.2614 | I64: 2.5363 | J64: 1.28
B65: 1410 | C65: 27.33 | D65: 145 | E65: 1394.63 | F65: -128.68 | G65: -444.91 | H65: 2.2864 | I65: 2.6247 | J65: 1.3442
B66: 1440 | C66: 29.33 | D66: 145 | E66: 1421.03 | F66: -140.34 | G66: -436.74 | H66: 2.3101 | I66: 2.721 | J66: 1.4099
B67: 1470 | C67: 31.33 | D67: 145 | E67: 1446.93 | F67: -152.75 | G67: -428.05 | H67: 2.3325 | I67: 2.826 | J67: 1.4768
B68: 1500 | C68: 33.33 | D68: 145 | E68: 1472.28 | F68: -165.89 | G68: -418.85 | H68: 2.3539 | I68: 2.9403 | J68: 1.5448
B69: 1530 | C69: 35.33 | D69: 145 | E69: 1497.05 | F69: -179.75 | G69: -409.15 | H69: 2.3743 | I69: 3.0645 | J69: 1.6136
B70: 1560 | C70: 37.33 | D70: 145 | E70: 1521.22 | F70: -194.31 | G70: -398.95 | H70: 2.394 | I70: 3.1989 | J70: 1.6832
B71: 1590 | C71: 39.33 | D71: 145 | E71: 1544.75 | F71: -209.55 | G71: -388.28 | H71: 2.4131 | I71: 3.3441 | J71: 1.7533
B72: 1620 | C72: 41.33 | D72: 145 | E72: 1567.62 | F72: -225.45 | G72: -377.15 | H72: 2.4317 | I72: 3.5 | J72: 1.8239
B73: 1650 | C73: 43.33 | D73: 145 | E73: 1589.79 | F73: -242 | G73: -365.56 | H73: 2.4501 | I73: 3.6671 | J73: 1.8949
B74: 1680 | C74: 45.33 | D74: 145 | E74: 1611.25 | F74: -259.17 | G74: -353.54 | H74: 2.4683 | I74: 3.8453 | J74: 1.966
B75: 1710 | C75: 47.33 | D75: 145 | E75: 1631.97 | F75: -276.95 | G75: -341.09 | H75: 2.4865 | I75: 4.0345 | J75: 2.0374
B76: 1740 | C76: 49.33 | D76: 145 | E76: 1651.91 | F76: -295.3 | G76: -328.24 | H76: 2.5049 | I76: 4.2348 | J76: 2.1087
B77: 1770 | C77: 51.33 | D77: 145 | E77: 1671.06 | F77: -314.22 | G77: -314.99 | H77: 2.5237 | I77: 4.446 | J77: 2.18
B78: 1800 | C78: 53.33 | D78: 145 | E78: 1689.39 | F78: -333.67 | G78: -301.37 | H78: 2.5429 | I78: 4.6677 | J78: 2.2512
B79: 1830 | C79: 55.33 | D79: 145 | E79: 1706.89 | F79: -353.63 | G79: -287.4 | H79: 2.5627 | I79: 4.8998 | J79: 2.3223
B80: 1860 | C80: 57.33 | D80: 145 | E80: 1723.52 | F80: -374.08 | G80: -273.08 | H80: 2.5832 | I80: 5.1418 | J80: 2.393
B81: 1890 | C81: 59.33 | D81: 145 | E81: 1739.27 | F81: -394.99 | G81: -258.43 | H81: 2.6046 | I81: 5.3935 | J81: 2.4635
B82: 1920 | C82: 61.33 | D82: 145 | E82: 1754.12 | F82: -416.35 | G82: -243.48 | H82: 2.6268 | I82: 5.6545 | J82: 2.5336
B83: 1950 | C83: 63.33 | D83: 145 | E83: 1768.05 | F83: -438.11 | G83: -228.24 | H83: 2.65 | I83: 5.9241 | J83: 2.6033
B84: 1980 | C84: 65.33 | D84: 145 | E84: 1781.04 | F84: -460.26 | G84: -212.73 | H84: 2.6743 | I84: 6.2021 | J84: 2.6726
B85: 2010 | C85: 67.33 | D85: 145 | E85: 1793.09 | F85: -482.76 | G85: -196.98 | H85: 2.6997 | I85: 6.4879 | J85: 2.7415
B86: 2040 | C86: 69.33 | D86: 145 | E86: 1804.16 | F86: -505.6 | G86: -180.99 | H86: 2.7262 | I86: 6.781 | J86: 2.8098
B87: 2070 | C87: 71.33 | D87: 145 | E87: 1814.26 | F87: -528.74 | G87: -164.78 | H87: 2.7538 | I87: 7.0808 | J87: 2.8776
B88: 2100 | C88: 73.33 | D88: 145 | E88: 1823.37 | F88: -552.15 | G88: -148.39 | H88: 2.7825 | I88: 7.3869 | J88: 2.9449
B89: 2130 | C89: 75.33 | D89: 145 | E89: 1831.47 | F89: -575.81 | G89: -131.82 | H89: 2.8124 | I89: 7.6985 | J89: 3.0116
B90: 2160 | C90: 77 | D90: 145 | E90: 1838.64 | F90: -599.67 | G90: -115.11 | H90: 2.8539 | I90: 8.0151 | J90: 3.0681
B91: 2190 | C91: 77 | D91: 145 | E91: 1845.39 | F91: -623.62 | G91: -98.35 | H91: 2.9502 | I91: 8.3351 | J91: 3.0749
B92: 2220 | C92: 77 | D92: 145 | E92: 1852.14 | F92: -647.56 | G92: -81.58 | H92: 3.0478 | I92: 8.6574 | J92: 3.0819
B93: 2250 | C93: 77 | D93: 145 | E93: 1858.89 | F93: -671.51 | G93: -64.82 | H93: 3.1466 | I93: 8.9817 | J93: 3.0891
B94: 2280 | C94: 77 | D94: 145 | E94: 1865.64 | F94: -695.45 | G94: -48.05 | H94: 3.2465 | I94: 9.3079 | J94: 3.0966
B95: 2310 | C95: 77 | D95: 145 | E95: 1872.38 | F95: -719.4 | G95: -31.28 | H95: 3.3474 | I95: 9.6356 | J95: 3.1042
B96: 2340 | C96: 77 | D96: 145 | E96: 1879.13 | F96: -743.34 | G96: -14.52 | H96: 3.4492 | I96: 9.9648 | J96: 3.112
B97: 2370 | C97: 77 | D97: 145 | E97: 1885.88 | F97: -767.29 | G97: 2.25 | H97: 3.5518 | I97: 10.2954 | J97: 3.12
B98: 2400 | C98: 77 | D98: 145 | E98: 1892.63 | F98: -791.23 | G98: 19.02 | H98: 3.6552 | I98: 10.6271 | J98: 3.1282
B99: 2430 | C99: 77 | D99: 145 | E99: 1899.38 | F99: -815.18 | G99: 35.78 | H99: 3.7593 | I99: 10.96 | J99: 3.1365
B100: 2460 | C100: 77 | D100: 145 | E100: 1906.13 | F100: -839.12 | G100: 52.55 | H100: 3.8641 | I100: 11.2938 | J100: 3.1451
B101: 2490 | C101: 77 | D101: 145 | E101: 1912.88 | F101: -863.07 | G101: 69.32 | H101: 3.9694 | I101: 11.6286 | J101: 3.1539
B102: 2520 | C102: 77 | D102: 145 | E102: 1919.62 | F102: -887.01 | G102: 86.08 | H102: 4.0753 | I102: 11.9641 | J102: 3.1629
B103: 2550 | C103: 77 | D103: 145 | E103: 1926.37 | F103: -910.96 | G103: 102.85 | H103: 4.1817 | I103: 12.3005 | J103: 3.1721
B104: 2580 | C104: 77 | D104: 145 | E104: 1933.12 | F104: -934.9 | G104: 119.61 | H104: 4.2885 | I104: 12.6376 | J104: 3.1815
B105: 2610 | C105: 77 | D105: 145 | E105: 1939.87 | F105: -958.85 | G105: 136.38 | H105: 4.3958 | I105: 12.9753 | J105: 3.1911
B106: 2640 | C106: 77 | D106: 145 | E106: 1946.62 | F106: -982.79 | G106: 153.15 | H106: 4.5035 | I106: 13.3136 | J106: 3.2009
B107: 2655 | C107: 77 | D107: 145 | E107: 1949.99 | F107: -994.76 | G107: 161.53 | H107: 4.5575 | I107: 13.4829 | J107: 3.2059

Sheet 05 - clearance
A1: Offset 05
A2: Offset 05: Angular drilled wellpath r4
A3: Ref_MD | B3: Ref_TVD | C3: Ref_N | D3: Ref_E | E3: Offset_MD | F3: Offset_TVD | G3: Offset_N | H3: Offset_E | I3: Horiz_Bearing | J3: C-C Clr Dist | K3: Ref PCR | L3: Offset PCR | M3: Calc hole | O3: ISCWSA ACR
A4: [m] | B4: [m] | C4: [m] | D4: [m] | E4: [m] | F4: [m] | G4: [m] | H4: [m] | I4: [°] | J4: [m] | K4: [m 1sigma] | L4: [m 1sigma] | M4: [m]
A5: 0 | B5: 0 | C5: 0 | D5: 0 | E5: 0 | F5: 0 | G5: -50 | H5: -500 | I5: 264.289 | J5: 502.49 | K5: 0 | L5: 0 | M5: =((ref_diam+offset_diam)/2)/(12*3.281) -> 0.7619628162 | O5: =(J5-M5-surface_margin)/(scaling_factor*(SQRT(K5^2+L5^2+sigma_pa^2))) -> 286.530307
A6: 1 | B6: 1 | C6: 0 | D6: 0 | E6: 1 | F6: 1 | G6: -50 | H6: -500 | I6: 264.289 | J6: 502.49 | K6: 0.0017 | L6: 0.0017 | M6: 0.7619628162 | O6: 286.5269947
A7: 30 | B7: 30 | C7: 0 | D7: 0 | E7: 30 | F7: 30 | G7: -50 | H7: -500 | I7: 264.289 | J7: 502.49 | K7: 0.0537 | L7: 0.0537 | M7: 0.7619628162 | O7: 283.2813556
A8: 60 | B8: 60 | C8: 0 | D8: 0 | E8: 60 | F8: 60 | G8: -50 | H8: -500 | I8: 264.289 | J8: 502.49 | K8: 0.1074 | L8: 0.1075 | M8: 0.7619628162 | O8: 274.1491272
A9: 90 | B9: 90 | C9: 0 | D9: 0 | E9: 90 | F9: 90 | G9: -50 | H9: -500 | I9: 264.289 | J9: 502.49 | K9: 0.1612 | L9: 0.1612 | M9: 0.7619628162 | O9: 260.7102086
A10: 120 | B10: 120 | C10: 0 | D10: 0 | E10: 120 | F10: 120 | G10: -50 | H10: -500 | I10: 264.289 | J10: 502.49 | K10: 0.215 | L10: 0.215 | M10: 0.7619628162 | O10: 244.8172324
A11: 150 | B11: 150 | C11: 0 | D11: 0 | E11: 150 | F11: 150 | G11: -50 | H11: -500 | I11: 264.289 | J11: 502.49 | K11: 0.2688 | L11: 0.2688 | M11: 0.7619628162 | O11: 228.093694
A12: 180 | B12: 180 | C12: 0 | D12: 0 | E12: 180 | F12: 180 | G12: -50 | H12: -500 | I12: 264.289 | J12: 502.49 | K12: 0.3225 | L12: 0.3225 | M12: 0.7619628162 | O12: 211.6907609
A13: 210 | B13: 210 | C13: 0 | D13: 0 | E13: 210 | F13: 210 | G13: -50 | H13: -500 | I13: 264.289 | J13: 502.49 | K13: 0.3763 | L13: 0.3763 | M13: 0.7619628162 | O13: 196.1977951
A14: 240 | B14: 240 | C14: 0 | D14: 0 | E14: 240 | F14: 240 | G14: -50 | H14: -500 | I14: 264.289 | J14: 502.49 | K14: 0.4301 | L14: 0.4301 | M14: 0.7619628162 | O14: 181.9510326
A15: 270 | B15: 270 | C15: 0 | D15: 0 | E15: 270 | F15: 270 | G15: -50 | H15: -500 | I15: 264.289 | J15: 502.49 | K15: 0.4838 | L15: 0.4839 | M15: 0.7619628162 | O15: 169.0485007
A16: 300 | B16: 300 | C16: 0 | D16: 0 | E16: 300 | F16: 300 | G16: -50 | H16: -500 | I16: 264.289 | J16: 502.49 | K16: 0.5376 | L16: 0.5376 | M16: 0.7619628162 | O16: 157.4411248
A17: 330 | B17: 330 | C17: 0 | D17: 0 | E17: 330 | F17: 330 | G17: -50 | H17: -500 | I17: 264.289 | J17: 502.49 | K17: 0.5914 | L17: 0.5914 | M17: 0.7619628162 | O17: 147.0250289
A18: 360 | B18: 360 | C18: 0 | D18: 0 | E18: 360 | F18: 360 | G18: -50 | H18: -500 | I18: 264.289 | J18: 502.49 | K18: 0.6452 | L18: 0.6452 | M18: 0.7619628162 | O18: 137.6934754
A19: 390 | B19: 390 | C19: 0 | D19: 0 | E19: 390 | F19: 390 | G19: -50 | H19: -500 | I19: 264.289 | J19: 502.49 | K19: 0.6989 | L19: 0.6989 | M19: 0.7619628162 | O19: 129.3397503
A20: 420 | B20: 420 | C20: 0 | D20: 0 | E20: 420 | F20: 420 | G20: -50 | H20: -500 | I20: 264.289 | J20: 502.49 | K20: 0.7527 | L20: 0.7527 | M20: 0.7619628162 | O20: 121.8180069
A21: 450 | B21: 450 | C21: 0 | D21: 0 | E21: 450 | F21: 450 | G21: -50 | H21: -500 | I21: 264.289 | J21: 502.49 | K21: 0.8065 | L21: 0.8065 | M21: 0.7619628162 | O21: 115.0405215
A22: 480 | B22: 480 | C22: 0 | D22: 0 | E22: 480 | F22: 480 | G22: -50 | H22: -500 | I22: 264.289 | J22: 502.49 | K22: 0.8602 | L22: 0.8602 | M22: 0.7619628162 | O22: 108.9260027
A23: 510 | B23: 510 | C23: 0 | D23: 0 | E23: 510 | F23: 510 | G23: -50 | H23: -500 | I23: 264.289 | J23: 502.49 | K23: 0.914 | L23: 0.914 | M23: 0.7619628162 | O23: 103.3714005
A24: 540 | B24: 540 | C24: 0 | D24: 0 | E24: 540 | F24: 540 | G24: -50 | H24: -500 | I24: 264.289 | J24: 502.49 | K24: 0.9678 | L24: 0.9678 | M24: 0.7619628162 | O24: 98.3190291
A25: 570 | B25: 570 | C25: 0 | D25: 0 | E25: 570 | F25: 570 | G25: -50 | H25: -500 | I25: 264.289 | J25: 502.49 | K25: 1.0216 | L25: 1.0216 | M25: 0.7619628162 | O25: 93.70877548
A26: 600 | B26: 600 | C26: 0 | D26: 0 | E26: 600 | F26: 600 | G26: -50 | H26: -500 | I26: 264.289 | J26: 502.49 | K26: 1.0753 | L26: 1.0753 | M26: 0.7619628162 | O26: 89.49633022
A27: 630 | B27: 630 | C27: 0 | D27: 0 | E27: 630 | F27: 630 | G27: -50 | H27: -500 | I27: 264.289 | J27: 502.49 | K27: 1.1291 | L27: 1.1291 | M27: 0.7619628162 | O27: 85.621378
A28: 660 | B28: 660 | C28: 0 | D28: 0 | E28: 660 | F28: 660 | G28: -50 | H28: -500 | I28: 264.289 | J28: 502.49 | K28: 1.1829 | L28: 1.1829 | M28: 0.7619628162 | O28: 82.05350297
A29: 690 | B29: 690 | C29: 0 | D29: 0 | E29: 690 | F29: 690 | G29: -50 | H29: -500 | I29: 264.289 | J29: 502.49 | K29: 1.2366 | L29: 1.2366 | M29: 0.7619628162 | O29: 78.76517577
A30: 720 | B30: 720 | C30: 0 | D30: 0 | E30: 720 | F30: 720 | G30: -50 | H30: -500 | I30: 264.289 | J30: 502.49 | K30: 1.2904 | L30: 1.2904 | M30: 0.7619628162 | O30: 75.71519133
A31: 750 | B31: 750 | C31: 0 | D31: 0 | E31: 750 | F31: 750 | G31: -50 | H31: -500 | I31: 264.289 | J31: 502.49 | K31: 1.3442 | L31: 1.3442 | M31: 0.7619628162 | O31: 72.8846736
A32: 780 | B32: 780 | C32: 0 | D32: 0 | E32: 780 | F32: 780 | G32: -50 | H32: -500 | I32: 264.289 | J32: 502.49 | K32: 1.3979 | L32: 1.398 | M32: 0.7619628162 | O32: 70.25394768
A33: 810 | B33: 810 | C33: 0 | D33: 0 | E33: 810 | F33: 810 | G33: -50 | H33: -500 | I33: 264.289 | J33: 502.49 | K33: 1.4517 | L33: 1.4517 | M33: 0.7619628162 | O33: 67.80104154
A34: 840 | B34: 840 | C34: 0 | D34: 0 | E34: 840 | F34: 840 | G34: -50 | H34: -500 | I34: 264.289 | J34: 502.49 | K34: 1.5055 | L34: 1.5055 | M34: 0.7619628162 | O34: 65.50698818
A35: 870 | B35: 870 | C35: 0 | D35: 0 | E35: 870 | F35: 870 | G35: -50 | H35: -500 | I35: 264.289 | J35: 502.49 | K35: 1.5593 | L35: 1.5593 | M35: 0.7619628162 | O35: 63.35921187
A36: 900 | B36: 900 | C36: 0 | D36: 0 | E36: 900 | F36: 900 | G36: -50 | H36: -500 | I36: 264.289 | J36: 502.49 | K36: 1.613 | L36: 1.613 | M36: 0.7619628162 | O36: 61.34813966
A37: 930 | B37: 930 | C37: 0 | D37: 0 | E37: 930 | F37: 930 | G37: -50 | H37: -500 | I37: 264.289 | J37: 502.49 | K37: 1.6668 | L37: 1.6668 | M37: =((ref_diam+offset_diam)/2)/(12*3.281) -> 0.7619628162 | O37: =(J37-M37-surface_margin)/(scaling_factor*(SQRT(K37^2+L37^2+sigma_pa^2))) -> 59.45459574
A38: 960 | B38: 960 | C38: 0 | D38: 0 | E38: 960 | F38: 960 | G38: -50 | H38: -500 | I38: 264.289 | J38: 502.49 | K38: 1.7206 | L38: 1.7206 | M38: 0.7619628162 | O38: 57.67203876
A39: 990 | B39: 990 | C39: 0 | D39: 0 | E39: 990 | F39: 990 | G39: -50 | H39: -500 | I39: 264.289 | J39: 502.49 | K39: 1.7743 | L39: 1.7743 | M39: 0.7619628162 | O39: 55.99422632
A40: 1020 | B40: 1020 | C40: -0.35 | D40: 0 | E40: 1027.99 | F40: 1027.98 | G40: -50.47 | H40: -499.67 | I40: 264.272 | J40: 502.24 | K40: 1.8251 | L40: 1.8384 | M40: 0.7619628162 | O40: 54.27469427
A41: 1050 | B41: 1049.97 | C41: -1.57 | D41: 0 | E41: 1069.95 | F41: 1069.87 | G41: -52.42 | H41: -498.3 | I41: 264.173 | J41: 501.29 | K41: 1.8723 | L41: 1.9058 | M41: 0.7619628162 | O41: 52.58342371
A42: 1080 | B42: 1079.88 | C42: -3.83 | D42: 0 | E42: 1111.79 | F42: 1111.47 | G42: -56.04 | H42: -495.77 | I42: 263.989 | J42: 499.51 | K42: 1.9187 | L42: 1.9726 | M42: 0.7619628162 | O42: 50.91870875
A43: 1110 | B43: 1109.7 | C43: -7.14 | D43: 0 | E43: 1153.43 | F43: 1152.62 | G43: -61.28 | H43: -492.1 | I43: 263.722 | J43: 496.93 | K43: 1.9647 | L43: 2.0397 | M43: 0.7619628162 | O43: 49.26451722
A44: 1140 | B44: 1139.38 | C44: -11.49 | D44: 0 | E44: 1194.8 | F44: 1193.14 | G44: -68.09 | H44: -487.33 | I44: 263.374 | J44: 493.54 | K44: 2.0104 | L44: 2.1079 | M44: 0.7619628162 | O44: 47.60894931
A45: 1170 | B45: 1168.89 | C45: -16.87 | D45: 0 | E45: 1235.84 | F45: 1232.89 | G45: -76.43 | H45: -481.5 | I45: 262.949 | J45: 489.37 | K45: 2.0565 | L45: 2.1786 | M45: 0.7619628162 | O45: 45.93366535
A46: 1200 | B46: 1198.2 | C46: -23.27 | D46: 0 | E46: 1276.48 | F46: 1271.74 | G46: -86.2 | H46: -474.65 | I46: 262.448 | J46: 484.42 | K46: 2.1033 | L46: 2.2531 | M46: 0.7619628162 | O46: 44.22738191
A47: 1230 | B47: 1227.27 | C47: -30.7 | D47: 0 | E47: 1316.68 | F47: 1309.57 | G47: -97.34 | H47: -466.86 | I47: 261.876 | J47: 478.72 | K47: 2.1516 | L47: 2.3325 | M47: 0.7619628162 | O47: 42.4825409
A48: 1260 | B48: 1256.05 | C48: -39.13 | D48: 0 | E48: 1356.38 | F48: 1346.26 | G48: -109.74 | H48: -458.17 | I48: 261.239 | J48: 472.27 | K48: 2.202 | L48: 2.419 | M48: 0.7619628162 | O48: 40.68462781
A49: 1290 | B49: 1284.53 | C49: -48.57 | D49: 0 | E49: 1395.54 | F49: 1381.73 | G49: -123.33 | H49: -448.65 | I49: 260.539 | J49: 465.11 | K49: 2.255 | L49: 2.5245 | M49: 0.7619628162 | O49: 38.74817173
A50: 1320 | B50: 1312.66 | C50: -58.99 | D50: 0 | E50: 1434.12 | F50: 1415.9 | G50: -138 | H50: -438.38 | I50: 259.783 | J50: 457.25 | K50: 2.3113 | L50: 2.6173 | M50: 0.7619628162 | O50: 36.95084248
A51: 1350 | B51: 1340.41 | C51: -70.38 | D51: 0 | E51: 1472.1 | F51: 1448.72 | G51: -153.65 | H51: -427.43 | I51: 258.977 | J51: 448.73 | K51: 2.3715 | L51: 2.7313 | M51: 0.7619628162 | O51: 35.02737753
A52: 1380 | B52: 1367.74 | C52: -82.74 | D52: 0 | E52: 1509.46 | F52: 1480.15 | G52: -170.18 | H52: -415.85 | I52: 258.126 | J52: 439.56 | K52: 2.4361 | L52: 2.8576 | M52: 0.7619628162 | O52: 33.07247398
A53: 1410 | B53: 1394.63 | C53: -96.05 | D53: 0 | E53: 1546.17 | F53: 1510.15 | G53: -187.51 | H53: -403.72 | I53: 257.235 | J53: 429.76 | K53: 2.5057 | L53: 2.9952 | M53: 0.7619628162 | O53: 31.11150545
A54: 1440 | B54: 1421.03 | C54: -110.29 | D54: 0 | E54: 1582.22 | F54: 1538.71 | G54: -205.53 | H54: -391.09 | I54: 256.312 | J54: 419.37 | K54: 2.5805 | L54: 3.1446 | M54: 0.7619628162 | O54: 29.16123929
A55: 1470 | B55: 1446.93 | C55: -125.43 | D55: 0 | E55: 1617.63 | F55: 1565.83 | G55: -224.17 | H55: -378.05 | I55: 255.363 | J55: 408.42 | K55: 2.661 | L55: 3.3057 | M55: 0.7619628162 | O55: 27.23797539
A56: 1500 | B56: 1472.28 | C56: -141.48 | D56: 0 | E56: 1652.37 | F56: 1591.52 | G56: -243.33 | H56: -364.63 | I56: 254.393 | J56: 396.92 | K56: 2.7473 | L56: 3.4792 | M56: 0.7619628162 | O56: 25.35232048
A57: 1530 | B57: 1497.05 | C57: -158.39 | D57: 0 | E57: 1686.46 | F57: 1615.78 | G57: -262.95 | H57: -350.89 | I57: 253.408 | J57: 384.91 | K57: 2.8396 | L57: 3.6647 | M57: 0.7619628162 | O57: 23.51949589
A58: 1560 | B58: 1521.22 | C58: -176.17 | D58: 0 | E58: 1719.91 | F58: 1638.64 | G58: -282.94 | H58: -336.89 | I58: 252.414 | J58: 372.4 | K58: 2.9379 | L58: 3.8609 | M58: 0.7619628162 | O58: 21.75325277
A59: 1590 | B59: 1544.75 | C59: -194.77 | D59: 0 | E59: 1752.73 | F59: 1660.13 | G59: -303.26 | H59: -322.67 | I59: 251.417 | J59: 359.44 | K59: 3.0423 | L59: 4.0673 | M59: 0.7619628162 | O59: 20.06235115
A60: 1620 | B60: 1567.62 | C60: -214.19 | D60: 0 | E60: 1784.92 | F60: 1680.28 | G60: -323.83 | H60: -308.26 | I60: 250.421 | J60: 346.04 | K60: 3.1528 | L60: 4.2831 | M60: 0.7619628162 | O60: 18.45158817
A61: 1650 | B61: 1589.79 | C61: -234.39 | D61: 0 | E61: 1816.52 | F61: 1699.13 | G61: -344.6 | H61: -293.72 | I61: 249.432 | J61: 332.22 | K61: 3.2691 | L61: 4.5076 | M61: 0.7619628162 | O61: 16.92404692
A62: 1680 | B62: 1611.25 | C62: -255.35 | D62: 0 | E62: 1847.54 | F62: 1716.72 | G62: -365.53 | H62: -279.06 | I62: 248.454 | J62: 318.02 | K62: 3.3912 | L62: 4.7402 | M62: 0.7619628162 | O62: 15.48087176
A63: 1710 | B63: 1631.97 | C63: -277.05 | D63: 0 | E63: 1878.01 | F63: 1733.08 | G63: -386.58 | H63: -264.32 | I63: 247.492 | J63: 303.46 | K63: 3.5188 | L63: 4.9801 | M63: 0.7619628162 | O63: 14.12152435
A64: 1740 | B64: 1651.91 | C64: -299.46 | D64: 0 | E64: 1907.93 | F64: 1748.25 | G64: -407.71 | H64: -249.53 | I64: 246.548 | J64: 288.56 | K64: 3.6518 | L64: 5.2265 | M64: 0.7619628162 | O64: 12.84383912
A65: 1770 | B65: 1671.06 | C65: -322.55 | D65: 0 | E65: 1937.35 | F65: 1762.29 | G65: -428.88 | H65: -234.7 | I65: 245.627 | J65: 273.34 | K65: 3.7899 | L65: 5.4787 | M65: 0.7619628162 | O65: 11.64484138
A66: 1800 | B66: 1689.39 | C66: -346.29 | D66: 0 | E66: 1966.28 | F66: 1775.21 | G66: -450.08 | H66: -219.86 | I66: 244.73 | J66: 257.83 | K66: 3.9328 | L66: 5.7359 | M66: 0.7619628162 | O66: 10.52147829
A67: 1830 | B67: 1706.89 | C67: -370.66 | D67: 0 | E67: 1994.74 | F67: 1787.08 | G67: -471.27 | H67: -205.02 | I67: 243.862 | J67: 242.05 | K67: 4.0804 | L67: 5.9976 | M67: 0.7619628162 | O67: 9.469329134
A68: 1860 | B68: 1723.52 | C68: -395.63 | D68: 0 | E68: 2022.77 | F68: 1797.92 | G68: -492.44 | H68: -190.2 | I68: 243.023 | J68: 226.02 | K68: 4.2322 | L68: 6.2629 | M68: 0.7619628162 | O68: 8.484624706
A69: 1890 | B69: 1739.27 | C69: -421.16 | D69: 0 | E69: 2050.38 | F69: 1807.77 | G69: -513.58 | H69: -175.4 | I69: 242.216 | J69: 209.76 | K69: 4.388 | L69: 6.5314 | M69: =((ref_diam+offset_diam)/2)/(12*3.281) -> 0.7619628162 | O69: =(J69-M69-surface_margin)/(scaling_factor*(SQRT(K69^2+L69^2+sigma_pa^2))) -> 7.562785582
A70: 1920 | B70: 1754.12 | C70: -447.23 | D70: 0 | E70: 2077.61 | F70: 1816.67 | G70: -534.66 | H70: -160.64 | I70: 241.442 | J70: 193.29 | K70: 4.5475 | L70: 6.8022 | M70: 0.7619628162 | O70: 6.699850023
A71: 1950 | B71: 1768.05 | C71: -473.79 | D71: 0 | E71: 2104.48 | F71: 1824.64 | G71: -555.67 | H71: -145.92 | I71: 240.702 | J71: 176.64 | K71: 4.7102 | L71: 7.0748 | M71: 0.7619628162 | O71: 5.892054466
A72: 1980 | B72: 1781.04 | C72: -500.83 | D72: 0 | E72: 2131.01 | F72: 1831.72 | G72: -576.61 | H72: -131.26 | I72: 240.002 | J72: 159.82 | K72: 4.8759 | L72: 7.3483 | M72: 0.7619628162 | O72: 5.135223822
A73: 2010 | B73: 1793.09 | C73: -528.31 | D73: 0 | E73: 2156.99 | F73: 1837.96 | G73: -597.27 | H73: -116.8 | I73: 239.439 | J73: 142.87 | K73: 5.0474 | L73: 7.6192 | M73: 0.7619628162 | O73: 4.426562769
A74: 2040 | B74: 1804.16 | C74: -556.19 | D74: 0 | E74: 2181.87 | F74: 1843.56 | G74: -617.13 | H74: -102.89 | I74: 239.362 | J74: 125.91 | K74: 5.236 | L74: 7.8747 | M74: 0.7619628162 | O74: 3.766813489
A75: 2070 | B75: 1814.26 | C75: -584.43 | D75: 0 | E75: 2206.68 | F75: 1849.14 | G75: -636.94 | H75: -89.02 | I75: 239.469 | J75: 109.08 | K75: 5.42 | L75: 8.1103 | M75: 0.7619628162 | O75: 3.159703913
A76: 2100 | B76: 1823.37 | C76: -613.02 | D76: 0 | E76: 2231.55 | F76: 1854.74 | G76: -656.78 | H76: -75.13 | I76: 239.778 | J76: 92.43 | K76: 5.5887 | L76: 8.31 | M76: 0.7619628162 | O76: 2.603499677
A77: 2130 | B77: 1831.47 | C77: -641.9 | D77: 0 | E77: 2256.42 | F77: 1860.33 | G77: -676.64 | H77: -61.23 | I77: 240.432 | J77: 76.08 | K77: 5.723 | L77: 8.437 | M77: 0.7619628162 | O77: 2.099875757
A78: 2160 | B78: 1838.56 | C78: -671.05 | D78: 0 | E78: 2281.28 | F78: 1865.92 | G78: -696.48 | H78: -47.33 | I78: 241.753 | J78: 60.3 | K78: 5.7732 | L78: 8.3976 | M78: 0.7619628162 | O78: 1.658854304
A79: 2190 | B79: 1844.63 | C79: -700.43 | D79: 0 | E79: 2306.1 | F79: 1871.51 | G79: -716.28 | H79: -33.46 | I79: 244.648 | J79: 45.76 | K79: 5.5938 | L79: 7.9271 | M79: 0.7619628162 | O79: 1.314563418
A80: 2220 | B80: 1849.66 | C80: -730 | D80: 0 | E80: 2330.83 | F80: 1877.07 | G80: -736.03 | H80: -19.64 | I80: 252.939 | J80: 34.25 | K80: 4.7835 | L80: 6.308 | M80: 0.7619628162 | O80: 1.19539029
A81: 2250 | B81: 1853.67 | C81: -759.73 | D81: 0 | E81: 2355.46 | F81: 1882.61 | G81: -755.68 | H81: -5.87 | I81: 304.547 | J81: 29.81 | K81: 3.3185 | L81: 3.5971 | M81: 0.7619628162 | O81: 1.669622841
A82: 2280 | B82: 1856.72 | C82: -789.57 | D82: 0 | E82: 2379.97 | F82: 1888.12 | G82: -775.24 | H82: 7.82 | I82: 28.63 | J82: 35.39 | K82: 3.9176 | L82: 5.3805 | M82: 0.7619628162 | O82: 1.469501024
A83: 2310 | B83: 1859.33 | C83: -819.46 | D83: 0 | E83: 2404.41 | F83: 1893.62 | G83: -794.75 | H83: 21.48 | I83: 41.007 | J83: 47.41 | K83: 5.1669 | L83: 7.6368 | M83: 0.7619628162 | O83: 1.434073331
A84: 2340 | B84: 1861.95 | C84: -849.34 | D84: 0 | E84: 2428.85 | F84: 1899.12 | G84: -814.26 | H84: 35.14 | I84: 45.048 | J84: 62.03 | K84: 5.9717 | L84: 8.9195 | M84: 0.7619628162 | O84: 1.621071111
A85: 2370 | B85: 1864.56 | C85: -879.23 | D85: 0 | E85: 2453.29 | F85: 1904.62 | G85: -833.77 | H85: 48.8 | I85: 47.03 | J85: 77.8 | K85: 6.5106 | L85: 9.7247 | M85: 0.7619628162 | O85: 1.871773939
A86: 2400 | B86: 1867.18 | C86: -909.12 | D86: 0 | E86: 2477.74 | F86: 1910.12 | G86: -853.28 | H86: 62.46 | I86: 48.205 | J86: 94.14 | K86: 6.918 | L86: 10.3071 | M86: 0.7619628162 | O86: 2.14058679
A87: 2430 | B87: 1869.79 | C87: -939 | D87: 0 | E87: 2502.18 | F87: 1915.62 | G87: -872.79 | H87: 76.12 | I87: 48.981 | J87: 110.81 | K87: 7.2564 | L87: 10.776 | M87: 0.7619628162 | O87: 2.41184843
A88: 2460 | B88: 1872.41 | C88: -968.89 | D88: 0 | E88: 2526.62 | F88: 1921.11 | G88: -892.29 | H88: 89.78 | I88: 49.532 | J88: 127.67 | K88: 7.5556 | L88: 11.1817 | M88: 0.7619628162 | O88: 2.678671777
A89: 2490 | B89: 1875.02 | C89: -998.77 | D89: 0 | E89: 2551.06 | F89: 1926.61 | G89: -911.8 | H89: 103.44 | I89: 49.944 | J89: 144.66 | K89: 7.831 | L89: 11.5493 | M89: 0.7619628162 | O89: 2.938371535
A90: 2520 | B90: 1877.64 | C90: -1028.66 | D90: 0 | E90: 2575.5 | F90: 1932.11 | G90: -931.31 | H90: 117.1 | I90: 50.263 | J90: 161.73 | K90: 8.0913 | L90: 11.8928 | M90: 0.7619628162 | O90: 3.189413072
A91: 2550 | B91: 1880.25 | C91: -1058.55 | D91: 0 | E91: 2599.95 | F91: 1937.61 | G91: -950.82 | H91: 130.76 | I91: 50.517 | J91: 178.87 | K91: 8.3414 | L91: 12.2201 | M91: 0.7619628162 | O91: 3.431649295
A92: 2580 | B92: 1882.87 | C92: -1088.43 | D92: 0 | E92: 2624.39 | F92: 1943.11 | G92: -970.33 | H92: 144.42 | I92: 50.725 | J92: 196.05 | K92: 8.5845 | L92: 12.5361 | M92: 0.7619628162 | O92: 3.664733116
A93: 2610 | B93: 1885.48 | C93: -1118.32 | D93: 0 | E93: 2648.83 | F93: 1948.6 | G93: -989.84 | H93: 158.08 | I93: 50.897 | J93: 213.26 | K93: 8.8226 | L93: 12.8439 | M93: 0.7619628162 | O93: 3.88885632
A94: 2640 | B94: 1888.09 | C94: -1148.2 | D94: 0 | E94: 2655 | F94: 1949.99 | G94: -994.76 | H94: 161.53 | I94: 46.471 | J94: 231.23 | K94: 8.607 | L94: 12.9241 | M94: 0.7619628162 | O94: 4.232936888
A95: 2670 | B95: 1890.71 | C95: -1178.09 | D95: 0 | E95: 2655 | F95: 1949.99 | G95: -994.76 | H95: 161.53 | I95: 41.383 | J95: 251.43 | K95: 8.2337 | L95: 12.8316 | M95: 0.7619628162 | O95: 4.689412733
A96: 2700 | B96: 1893.32 | C96: -1207.97 | D96: 0 | E96: 2655 | F96: 1949.99 | G96: -994.76 | H96: 161.53 | I96: 37.148 | J96: 273.43 | K96: 7.8765 | L96: 12.6733 | M96: 0.7619628162 | O96: 5.212323036
A97: 2730 | B97: 1895.94 | C97: -1237.86 | D97: 0 | E97: 2655 | F97: 1949.99 | G97: -994.76 | H97: 161.53 | I97: 33.603 | J97: 296.83 | K97: 7.5473 | L97: 12.4826 | M97: 0.7619628162 | O97: 5.789830215
A98: 2760 | B98: 1898.55 | C98: -1267.75 | D98: 0 | E98: 2655 | F98: 1949.99 | G98: -994.76 | H98: 161.53 | I98: 30.614 | J98: 321.34 | K98: 7.2504 | L98: 12.2804 | M98: 0.7619628162 | O98: 6.412715011
A99: 2790 | B99: 1900.91 | C99: -1297.65 | D99: 0 | E99: 2655 | F99: 1949.99 | G99: -994.76 | H99: 161.53 | I99: 28.071 | J99: 346.76 | K99: 6.9856 | L99: 12.0776 | M99: 0.7619628162 | O99: 7.074634012
A100: 2820 | B100: 1902.48 | C100: -1327.61 | D100: 0 | E100: 2655 | F100: 1949.99 | G100: -994.76 | H100: 161.53 | I100: 25.887 | J100: 373.01 | K100: 6.7513 | L100: 11.8799 | M100: 0.7619628162 | O100: 7.772083652
A101: 2850 | B101: 1903 | C101: -1357.6 | D101: 0 | E101: 2655 | F101: 1949.99 | G101: -994.76 | H101: 161.53 | I101: 23.998 | J101: 399.94 | K101: 6.5455 | L101: 11.6916 | M101: 0.7619628162 | O101: 8.499489452
A102: 2880 | B102: 1903 | C102: -1387.6 | D102: 0 | E102: 2655 | F102: 1949.99 | G102: -994.76 | H102: 161.53 | I102: 22.352 | J102: 427.35 | K102: 6.3651 | L102: 11.5162 | M102: 0.7619628162 | O102: =(J102-M102-surface_margin)/(scaling_factor*(SQRT(K102^2+L102^2+sigma_pa^2))) -> 9.249673081
A103: 2910 | B103: 1903 | C103: -1417.6 | D103: 0 | E103: 2655 | F103: 1949.99 | G103: -994.76 | H103: 161.53 | I103: 20.907 | J103: 455.08 | K103: 6.2063 | L103: 11.3548 | M103: 0.7619628162 | O103: 10.01703045
A104: 2940 | B104: 1903 | C104: -1447.6 | D104: 0 | E104: 2655 | F104: 1949.99 | G104: -994.76 | H104: 161.53 | I104: 19.631 | J104: 483.08 | K104: 6.0661 | L104: 11.2063 | M104: 0.7619628162 | O104: 10.79932501

Sheet 06 - well
A1: Wellpath | B1: Offset 06: Overlap opposite drilled wellpath r4
A3: REPORT SETUP INFORMATION
A4: Projection System | B4: ED50 / UTM Zone 31 North
A5: North Reference | B5: Grid
A6: Scale | B6: 0.9996
A7: Convergence at slot | B7: 0.00° East
A9: WELLPATH LOCATION | B9: Local North | C9: Local East | D9: Easting | E9: Northing | F9: Latitude | G9: Longitude
B10: [m] | C10: [m] | D10: [m] | E10: [m]
B11: -2300 | C11: 100 | D11: 500099.96 | E11: 6649267.63 | F11: 59°58'45.684"N | G11: 3°00'06.447"E
B15: MD | C15: Inclination | D15: Azimuth | E15: TVD | F15: North | G15: East | H15: sigmaH | I15: sigmaL | J15: sigmaA
B16: [m] | C16: [°] | D16: [°] | E16: [m] | F16: [m] | G16: [m]
B17: 0 | C17: 0 | D17: 358 | E17: 0 | F17: -2300 | G17: 100 | H17: 0 | I17: 0 | J17: 0
B18: 1 | C18: 0 | D18: 358 | E18: 1 | F18: -2300 | G18: 100 | H18: 0.0018 | I18: 0.0018 | J18: 0.35
B19: 30 | C19: 0 | D19: 358 | E19: 30 | F19: -2300 | G19: 100 | H19: 0.0538 | I19: 0.0538 | J19: 0.3504
B20: 60 | C20: 0 | D20: 358 | E20: 60 | F20: -2300 | G20: 100 | H20: 0.1075 | I20: 0.1075 | J20: 0.3516
B21: 90 | C21: 0 | D21: 358 | E21: 90 | F21: -2300 | G21: 100 | H21: 0.1613 | I21: 0.1613 | J21: 0.3536
B22: 120 | C22: 0 | D22: 358 | E22: 120 | F22: -2300 | G22: 100 | H22: 0.2151 | I22: 0.2151 | J22: 0.3564
B23: 150 | C23: 0 | D23: 358 | E23: 150 | F23: -2300 | G23: 100 | H23: 0.2689 | I23: 0.2689 | J23: 0.36
B24: 180 | C24: 0 | D24: 358 | E24: 180 | F24: -2300 | G24: 100 | H24: 0.3226 | I24: 0.3226 | J24: 0.3643
B25: 210 | C25: 0 | D25: 358 | E25: 210 | F25: -2300 | G25: 100 | H25: 0.3764 | I25: 0.3764 | J25: 0.3694
B26: 240 | C26: 0 | D26: 358 | E26: 240 | F26: -2300 | G26: 100 | H26: 0.4302 | I26: 0.4302 | J26: 0.3752
B27: 270 | C27: 0 | D27: 358 | E27: 270 | F27: -2300 | G27: 100 | H27: 0.4839 | I27: 0.4839 | J27: 0.3817
B28: 300 | C28: 0 | D28: 358 | E28: 300 | F28: -2300 | G28: 100 | H28: 0.5377 | I28: 0.5377 | J28: 0.3889
B29: 330 | C29: 0 | D29: 358 | E29: 330 | F29: -2300 | G29: 100 | H29: 0.5915 | I29: 0.5915 | J29: 0.3967
B30: 360 | C30: 0 | D30: 358 | E30: 360 | F30: -2300 | G30: 100 | H30: 0.6452 | I30: 0.6452 | J30: 0.4052
B31: 390 | C31: 0 | D31: 358 | E31: 390 | F31: -2300 | G31: 100 | H31: 0.699 | I31: 0.699 | J31: 0.4143
B32: 420 | C32: 0 | D32: 358 | E32: 420 | F32: -2300 | G32: 100 | H32: 0.7528 | I32: 0.7528 | J32: 0.424
B33: 450 | C33: 0 | D33: 358 | E33: 450 | F33: -2300 | G33: 100 | H33: 0.8066 | I33: 0.8066 | J33: 0.4342
B34: 480 | C34: 0 | D34: 358 | E34: 480 | F34: -2300 | G34: 100 | H34: 0.8603 | I34: 0.8603 | J34: 0.4451
B35: 510 | C35: 0 | D35: 358 | E35: 510 | F35: -2300 | G35: 100 | H35: 0.9141 | I35: 0.9141 | J35: 0.4564
B36: 540 | C36: 0 | D36: 358 | E36: 540 | F36: -2300 | G36: 100 | H36: 0.9679 | I36: 0.9679 | J36: 0.4683
B37: 570 | C37: 0 | D37: 358 | E37: 570 | F37: -2300 | G37: 100 | H37: 1.0216 | I37: 1.0216 | J37: 0.4806
B38: 600 | C38: 0 | D38: 358 | E38: 600 | F38: -2300 | G38: 100 | H38: 1.0754 | I38: 1.0754 | J38: 0.4935
B39: 630 | C39: 0 | D39: 358 | E39: 630 | F39: -2300 | G39: 100 | H39: 1.1292 | I39: 1.1292 | J39: 0.5068
B40: 660 | C40: 0 | D40: 358 | E40: 660 | F40: -2300 | G40: 100 | H40: 1.183 | I40: 1.183 | J40: 0.5205
B41: 690 | C41: 0 | D41: 358 | E41: 690 | F41: -2300 | G41: 100 | H41: 1.2367 | I41: 1.2367 | J41: 0.5348
B42: 720 | C42: 0 | D42: 358 | E42: 720 | F42: -2300 | G42: 100 | H42: 1.2905 | I42: 1.2905 | J42: 0.5494
B43: 750 | C43: 0 | D43: 358 | E43: 750 | F43: -2300 | G43: 100 | H43: 1.3443 | I43: 1.3443 | J43: 0.5645
B44: 780 | C44: 0 | D44: 358 | E44: 780 | F44: -2300 | G44: 100 | H44: 1.398 | I44: 1.398 | J44: 0.58
B45: 810 | C45: 0 | D45: 358 | E45: 810 | F45: -2300 | G45: 100 | H45: 1.4518 | I45: 1.4518 | J45: 0.596
B46: 840 | C46: 0 | D46: 358 | E46: 840 | F46: -2300 | G46: 100 | H46: 1.5056 | I46: 1.5056 | J46: 0.6123
B47: 870 | C47: 0 | D47: 358 | E47: 870 | F47: -2300 | G47: 100 | H47: 1.5594 | I47: 1.5594 | J47: 0.629
B48: 900 | C48: 0 | D48: 358 | E48: 900 | F48: -2300 | G48: 100 | H48: 1.6131 | I48: 1.6131 | J48: 0.6462
B49: 930 | C49: 0 | D49: 358 | E49: 930 | F49: -2300 | G49: 100 | H49: 1.6669 | I49: 1.6669 | J49: 0.6637
B50: 960 | C50: 0 | D50: 358 | E50: 960 | F50: -2300 | G50: 100 | H50: 1.7207 | I50: 1.7207 | J50: 0.6816
B51: 990 | C51: 0 | D51: 358 | E51: 990 | F51: -2300 | G51: 100 | H51: 1.7744 | I51: 1.7744 | J51: 0.6999
B52: 1020 | C52: 1.33 | D52: 358 | E52: 1020 | F52: -2299.65 | G52: 99.99 | H52: 1.8278 | I52: 1.8281 | J52: 0.7197
B53: 1050 | C53: 3.33 | D53: 358 | E53: 1049.97 | F53: -2298.43 | G53: 99.95 | H53: 1.8792 | I53: 1.8816 | J53: 0.7444
B54: 1080 | C54: 5.33 | D54: 358 | E54: 1079.88 | F54: -2296.17 | G54: 99.87 | H54: 1.9286 | I54: 1.9349 | J54: 0.7743
B55: 1110 | C55: 7.33 | D55: 358 | E55: 1109.7 | F55: -2292.86 | G55: 99.75 | H55: 1.9758 | I55: 1.9883 | J55: 0.809
B56: 1140 | C56: 9.33 | D56: 358 | E56: 1139.38 | F56: -2288.52 | G56: 99.6 | H56: 2.0209 | I56: 2.0421 | J56: 0.8484
B57: 1170 | C57: 11.33 | D57: 358 | E57: 1168.89 | F57: -2283.14 | G57: 99.41 | H57: 2.0637 | I57: 2.0968 | J57: 0.8921
B58: 1200 | C58: 13.33 | D58: 358 | E58: 1198.2 | F58: -2276.74 | G58: 99.19 | H58: 2.1043 | I58: 2.1529 | J58: 0.9396
B59: 1230 | C59: 15.33 | D59: 358 | E59: 1227.27 | F59: -2269.32 | G59: 98.93 | H59: 2.1427 | I59: 2.2108 | J59: 0.9908
B60: 1260 | C60: 17.33 | D60: 358 | E60: 1256.05 | F60: -2260.89 | G60: 98.63 | H60: 2.1789 | I60: 2.2713 | J60: 1.0451
B61: 1290 | C61: 19.33 | D61: 358 | E61: 1284.53 | F61: -2251.46 | G61: 98.31 | H61: 2.2131 | I61: 2.3349 | J61: 1.1023
B62: 1320 | C62: 21.33 | D62: 358 | E62: 1312.66 | F62: -2241.05 | G62: 97.94 | H62: 2.2452 | I62: 2.4023 | J62: 1.162
B63: 1350 | C63: 23.33 | D63: 358 | E63: 1340.41 | F63: -2229.66 | G63: 97.54 | H63: 2.2754 | I63: 2.4741 | J63: 1.224
B64: 1380 | C64: 25.33 | D64: 358 | E64: 1367.74 | F64: -2217.31 | G64: 97.11 | H64: 2.3037 | I64: 2.551 | J64: 1.288
B65: 1410 | C65: 27.33 | D65: 358 | E65: 1394.63 | F65: -2204.01 | G65: 96.65 | H65: 2.3303 | I65: 2.6334 | J65: 1.3537
B66: 1440 | C66: 29.33 | D66: 358 | E66: 1421.03 | F66: -2189.78 | G66: 96.15 | H66: 2.3553 | I66: 2.7221 | J66: 1.421
B67: 1470 | C67: 31.33 | D67: 358 | E67: 1446.93 | F67: -2174.64 | G67: 95.62 | H67: 2.3788 | I67: 2.8174 | J67: 1.4896
B68: 1500 | C68: 33.33 | D68: 358 | E68: 1472.28 | F68: -2158.61 | G68: 95.06 | H68: 2.401 | I68: 2.9198 | J68: 1.5593
B69: 1530 | C69: 35.33 | D69: 358 | E69: 1497.05 | F69: -2141.7 | G69: 94.47 | H69: 2.422 | I69: 3.0296 | J69: 1.6299
B70: 1560 | C70: 37.33 | D70: 358 | E70: 1521.22 | F70: -2123.94 | G70: 93.85 | H70: 2.442 | I70: 3.1471 | J70: 1.7014
B71: 1590 | C71: 39.33 | D71: 358 | E71: 1544.75 | F71: -2105.35 | G71: 93.2 | H71: 2.461 | I71: 3.2725 | J71: 1.7734
B72: 1620 | C72: 41.33 | D72: 358 | E72: 1567.62 | F72: -2085.94 | G72: 92.53 | H72: 2.4794 | I72: 3.4059 | J72: 1.846
B73: 1650 | C73: 43.33 | D73: 358 | E73: 1589.79 | F73: -2065.76 | G73: 91.82 | H73: 2.4973 | I73: 3.5474 | J73: 1.9189
B74: 1680 | C74: 45.33 | D74: 358 | E74: 1611.25 | F74: -2044.81 | G74: 91.09 | H74: 2.5147 | I74: 3.6971 | J74: 1.9921
B75: 1710 | C75: 47.33 | D75: 358 | E75: 1631.97 | F75: -2023.12 | G75: 90.33 | H75: 2.532 | I75: 3.8548 | J75: 2.0654
B76: 1740 | C76: 49.33 | D76: 358 | E76: 1651.91 | F76: -2000.73 | G76: 89.55 | H76: 2.5491 | I76: 4.0204 | J76: 2.1388
B77: 1770 | C77: 51.33 | D77: 358 | E77: 1671.06 | F77: -1977.65 | G77: 88.74 | H77: 2.5664 | I77: 4.1939 | J77: 2.2121
B78: 1800 | C78: 53.33 | D78: 358 | E78: 1689.39 | F78: -1953.92 | G78: 87.91 | H78: 2.584 | I78: 4.3749 | J78: 2.2853
B79: 1830 | C79: 55.33 | D79: 358 | E79: 1706.89 | F79: -1929.56 | G79: 87.06 | H79: 2.602 | I79: 4.5634 | J79: 2.3583
B80: 1860 | C80: 57.33 | D80: 358 | E80: 1723.52 | F80: -1904.61 | G80: 86.19 | H80: 2.6205 | I80: 4.759 | J80: 2.431
B81: 1890 | C81: 59.33 | D81: 358 | E81: 1739.27 | F81: -1879.1 | G81: 85.3 | H81: 2.6397 | I81: 4.9615 | J81: 2.5034
B82: 1920 | C82: 61.33 | D82: 358 | E82: 1754.12 | F82: -1853.05 | G82: 84.39 | H82: 2.6596 | I82: 5.1705 | J82: 2.5753
B83: 1950 | C83: 63.33 | D83: 358 | E83: 1768.05 | F83: -1826.49 | G83: 83.46 | H83: 2.6805 | I83: 5.3858 | J83: 2.6468
B84: 1980 | C84: 65.33 | D84: 358 | E84: 1781.04 | F84: -1799.47 | G84: 82.52 | H84: 2.7023 | I84: 5.6071 | J84: 2.7178
B85: 2010 | C85: 67.33 | D85: 358 | E85: 1793.09 | F85: -1772.02 | G85: 81.56 | H85: 2.7251 | I85: 5.8339 | J85: 2.7883
B86: 2040 | C86: 69.33 | D86: 358 | E86: 1804.16 | F86: -1744.15 | G86: 80.59 | H86: 2.7491 | I86: 6.0659 | J86: 2.8582
B87: 2070 | C87: 71.33 | D87: 358 | E87: 1814.26 | F87: -1715.92 | G87: 79.6 | H87: 2.7741 | I87: 6.3029 | J87: 2.9275
B88: 2100 | C88: 73.33 | D88: 358 | E88: 1823.37 | F88: -1687.36 | G88: 78.61 | H88: 2.8003 | I88: 6.5444 | J88: 2.9961
B89: 2130 | C89: 75.33 | D89: 358 | E89: 1831.47 | F89: -1658.49 | G89: 77.6 | H89: 2.8276 | I89: 6.79 | J89: 3.0641
B90: 2160 | C90: 77.33 | D90: 358 | E90: 1838.56 | F90: -1629.36 | G90: 76.58 | H90: 2.8561 | I90: 7.0394 | J90: 3.1314
B91: 2190 | C91: 79.33 | D91: 358 | E91: 1844.63 | F91: -1600 | G91: 75.56 | H91: 2.8857 | I91: 7.2921 | J91: 3.198
B92: 2220 | C92: 81.33 | D92: 358 | E92: 1849.66 | F92: -1570.45 | G92: 74.52 | H92: 2.9163 | I92: 7.5479 | J92: 3.2639
B93: 2250 | C93: 83.33 | D93: 358 | E93: 1853.67 | F93: -1540.73 | G93: 73.49 | H93: 2.9479 | I93: 7.8062 | J93: 3.3291
B94: 2280 | C94: 85 | D94: 358 | E94: 1856.72 | F94: -1510.91 | G94: 72.44 | H94: 2.9916 | I94: 8.0668 | J94: 3.384
B95: 2310 | C95: 85 | D95: 358 | E95: 1859.33 | F95: -1481.04 | G95: 71.4 | H95: 3.0924 | I95: 8.3292 | J95: 3.3893
B96: 2340 | C96: 85 | D96: 358 | E96: 1861.95 | F96: -1451.17 | G96: 70.36 | H96: 3.1943 | I96: 8.5931 | J96: 3.3948
B97: 2370 | C97: 85 | D97: 358 | E97: 1864.56 | F97: -1421.31 | G97: 69.32 | H97: 3.2972 | I97: 8.8584 | J97: 3.4004
B98: 2400 | C98: 85 | D98: 358 | E98: 1867.18 | F98: -1391.44 | G98: 68.27 | H98: 3.4011 | I98: 9.1249 | J98: 3.4062
B99: 2430 | C99: 85 | D99: 358 | E99: 1869.79 | F99: -1361.57 | G99: 67.23 | H99: 3.5058 | I99: 9.3926 | J99: 3.4121
B100: 2460 | C100: 85 | D100: 358 | E100: 1872.41 | F100: -1331.7 | G100: 66.19 | H100: 3.6113 | I100: 9.6613 | J100: 3.4182
B101: 2490 | C101: 85 | D101: 358 | E101: 1875.02 | F101: -1301.83 | G101: 65.14 | H101: 3.7175 | I101: 9.9311 | J101: 3.4244
B102: 2520 | C102: 85 | D102: 358 | E102: 1877.64 | F102: -1271.97 | G102: 64.1 | H102: 3.8244 | I102: 10.2017 | J102: 3.4308
B103: 2550 | C103: 85 | D103: 358 | E103: 1880.25 | F103: -1242.1 | G103: 63.06 | H103: 3.9318 | I103: 10.4731 | J103: 3.4373
B104: 2580 | C104: 85 | D104: 358 | E104: 1882.87 | F104: -1212.23 | G104: 62.01 | H104: 4.0399 | I104: 10.7453 | J104: 3.444
B105: 2610 | C105: 85 | D105: 358 | E105: 1885.48 | F105: -1182.36 | G105: 60.97 | H105: 4.1484 | I105: 11.0182 | J105: 3.4508
B106: 2640 | C106: 85 | D106: 358 | E106: 1888.09 | F106: -1152.5 | G106: 59.93 | H106: 4.2574 | I106: 11.2917 | J106: 3.4578
B107: 2670 | C107: 85 | D107: 358 | E107: 1890.71 | F107: -1122.63 | G107: 58.89 | H107: 4.3668 | I107: 11.5659 | J107: 3.4649
B108: 2700 | C108: 85 | D108: 358 | E108: 1893.32 | F108: -1092.76 | G108: 57.84 | H108: 4.4766 | I108: 11.8406 | J108: 3.4722
B109: 2730 | C109: 85 | D109: 358 | E109: 1895.94 | F109: -1062.89 | G109: 56.8 | H109: 4.5869 | I109: 12.1159 | J109: 3.4796
B110: 2760 | C110: 85 | D110: 358 | E110: 1898.55 | F110: -1033.03 | G110: 55.76 | H110: 4.6974 | I110: 12.3916 | J110: 3.4872
B111: 2775 | C111: 85 | D111: 358 | E111: 1899.86 | F111: -1018.09 | G111: 55.23 | H111: 4.7528 | I111: 12.5296 | J111: 3.4911

Sheet 06 - clearance
A1: Offset 06
A2: Offset 06: Overlap opposite drilled wellpath r4
A3: Ref_MD | B3: Ref_TVD | C3: Ref_N | D3: Ref_E | E3: Offset_MD | F3: Offset_TVD | G3: Offset_N | H3: Offset_E | I3: Horiz_Bearing | J3: C-C Clr Dist | K3: Ref PCR | L3: Offset PCR | M3: Calc hole | O3: ISCWSA ACR
A4: [m] | B4: [m] | C4: [m] | D4: [m] | E4: [m] | F4: [m] | G4: [m] | H4: [m] | I4: [°] | J4: [m] | K4: [m 1sigma] | L4: [m 1sigma] | M4: [m]
A5: 0 | B5: 0 | C5: 0 | D5: 0 | E5: 2775 | F5: 1899.86 | G5: -1018.09 | H5: 55.23 | I5: 176.895 | J5: 2156.16 | K5: 0 | L5: 5.1983 | M5: =((ref_diam+offset_diam)/2)/(12*3.281) -> 0.7619628162 | O5: =(J5-M5-surface_margin)/(scaling_factor*(SQRT(K5^2+L5^2+sigma_pa^2))) -> 117.9065473
A6: 1 | B6: 1 | C6: 0 | D6: 0 | E6: 2775 | F6: 1899.86 | G6: -1018.09 | H6: 55.23 | I6: 176.895 | J6: 2155.28 | K6: 0.3084 | L6: 5.1984 | M6: 0.7619628162 | O6: 117.6511913
A7: 30 | B7: 30 | C7: 0 | D7: 0 | E7: 2775 | F7: 1899.86 | G7: -1018.09 | H7: 55.23 | I7: 176.895 | J7: 2129.78 | K7: 0.3087 | L7: 5.2007 | M7: 0.7619628162 | O7: 116.2073658
A8: 60 | B8: 60 | C8: 0 | D8: 0 | E8: 2775 | F8: 1899.86 | G8: -1018.09 | H8: 55.23 | I8: 176.895 | J8: 2103.49 | K8: 0.3119 | L8: 5.2031 | M8: 0.7619628162 | O8: 114.7157589
A9: 90 | B9: 90 | C9: 0 | D9: 0 | E9: 2775 | F9: 1899.86 | G9: -1018.09 | H9: 55.23 | I9: 176.895 | J9: 2077.3 | K9: 0.3181 | L9: 5.2053 | M9: 0.7619628162 | O9: 113.2314095
A10: 120 | B10: 120 | C10: 0 | D10: 0 | E10: 2775 | F10: 1899.86 | G10: -1018.09 | H10: 55.23 | I10: 176.895 | J10: 2051.21 | K10: 0.3272 | L10: 5.2075 | M10: 0.7619628162 | O10: 111.7499685
A11: 150 | B11: 150 | C11: 0 | D11: 0 | E11: 2775 | F11: 1899.86 | G11: -1018.09 | H11: 55.23 | I11: 176.895 | J11: 2025.23 | K11: 0.3392 | L11: 5.2094 | M11: 0.7619628162 | O11: 110.2780896
A12: 180 | B12: 180 | C12: 0 | D12: 0 | E12: 2775 | F12: 1899.86 | G12: -1018.09 | H12: 55.23 | I12: 176.895 | J12: 1999.37 | K12: 0.3539 | L12: 5.2112 | M12: 0.7619628162 | O12: 108.8119738
A13: 210 | B13: 210 | C13: 0 | D13: 0 | E13: 2775 | F13: 1899.86 | G13: -1018.09 | H13: 55.23 | I13: 176.895 | J13: 1973.62 | K13: 0.3712 | L13: 5.2129 | M13: 0.7619628162 | O13: 107.3508454
A14: 240 | B14: 240 | C14: 0 | D14: 0 | E14: 2775 | F14: 1899.86 | G14: -1018.09 | H14: 55.23 | I14: 176.895 | J14: 1948 | K14: 0.391 | L14: 5.2143 | M14: 0.7619628162 | O14: 105.8995283
A15: 270 | B15: 270 | C15: 0 | D15: 0 | E15: 2775 | F15: 1899.86 | G15: -1018.09 | H15: 55.23 | I15: 176.895 | J15: 1922.5 | K15: 0.413 | L15: 5.2155 | M15: 0.7619628162 | O15: 104.4553543
A16: 300 | B16: 300 | C16: 0 | D16: 0 | E16: 2775 | F16: 1899.86 | G16: -1018.09 | H16: 55.23 | I16: 176.895 | J16: 1897.13 | K16: 0.4371 | L16: 5.2165 | M16: 0.7619628162 | O16: 103.01852
A17: 330 | B17: 330 | C17: 0 | D17: 0 | E17: 2775 | F17: 1899.86 | G17: -1018.09 | H17: 55.23 | I17: 176.895 | J17: 1871.9 | K17: 0.4631 | L17: 5.2173 | M17: 0.7619628162 | O17: 101.5893978
A18: 360 | B18: 360 | C18: 0 | D18: 0 | E18: 2775 | F18: 1899.86 | G18: -1018.09 | H18: 55.23 | I18: 176.895 | J18: 1846.82 | K18: 0.4909 | L18: 5.2178 | M18: 0.7619628162 | O18: 100.1701121
A19: 390 | B19: 390 | C19: 0 | D19: 0 | E19: 2775 | F19: 1899.86 | G19: -1018.09 | H19: 55.23 | I19: 176.895 | J19: 1821.88 | K19: 0.5205 | L19: 5.2179 | M19: 0.7619628162 | O19: 98.76142553
A20: 420 | B20: 420 | C20: 0 | D20: 0 | E20: 2775 | F20: 1899.86 | G20: -1018.09 | H20: 55.23 | I20: 176.895 | J20: 1797.1 | K20: 0.5516 | L20: 5.2178 | M20: 0.7619628162 | O20: 97.36070606
A21: 450 | B21: 450 | C21: 0 | D21: 0 | E21: 2775 | F21: 1899.86 | G21: -1018.09 | H21: 55.23 | I21: 176.895 | J21: 1772.47 | K21: 0.5843 | L21: 5.2173 | M21: 0.7619628162 | O21: 95.97041613
A22: 480 | B22: 480 | C22: 0 | D22: 0 | E22: 2775 | F22: 1899.86 | G22: -1018.09 | H22: 55.23 | I22: 176.895 | J22: 1748.02 | K22: 0.6184 | L22: 5.2165 | M22: 0.7619628162 | O22: 94.59024456
A23: 510 | B23: 510 | C23: 0 | D23: 0 | E23: 2775 | F23: 1899.86 | G23: -1018.09 | H23: 55.23 | I23: 176.895 | J23: 1723.74 | K23: 0.654 | L23: 5.2152 | M23: 0.7619628162 | O23: 93.22247606
A24: 540 | B24: 540 | C24: 0 | D24: 0 | E24: 2775 | F24: 1899.86 | G24: -1018.09 | H24: 55.23 | I24: 176.895 | J24: 1699.64 | K24: 0.6909 | L24: 5.2135 | M24: 0.7619628162 | O24: 91.86576288
A25: 570 | B25: 570 | C25: 0 | D25: 0 | E25: 2775 | F25: 1899.86 | G25: -1018.09 | H25: 55.23 | I25: 176.895 | J25: 1675.74 | K25: 0.7292 | L25: 5.2114 | M25: 0.7619628162 | O25: 90.52046893
A26: 600 | B26: 600 | C26: 0 | D26: 0 | E26: 2775 | F26: 1899.86 | G26: -1018.09 | H26: 55.23 | I26: 176.895 | J26: 1652.03 | K26: 0.7689 | L26: 5.2087 | M26: 0.7619628162 | O26: 89.18887828
A27: 630 | B27: 630 | C27: 0 | D27: 0 | E27: 2775 | F27: 1899.86 | G27: -1018.09 | H27: 55.23 | I27: 176.895 | J27: 1628.53 | K27: 0.8099 | L27: 5.2054 | M27: 0.7619628162 | O27: 87.87167639
A28: 660 | B28: 660 | C28: 0 | D28: 0 | E28: 2775 | F28: 1899.86 | G28: -1018.09 | H28: 55.23 | I28: 176.895 | J28: 1605.25 | K28: 0.8521 | L28: 5.2016 | M28: 0.7619628162 | O28: 86.56745162
A29: 690 | B29: 690 | C29: 0 | D29: 0 | E29: 2775 | F29: 1899.86 | G29: -1018.09 | H29: 55.23 | I29: 176.895 | J29: 1582.19 | K29: 0.8957 | L29: 5.1971 | M29: 0.7619628162 | O29: 85.27833321
A30: 720 | B30: 720 | C30: 0 | D30: 0 | E30: 2775 | F30: 1899.86 | G30: -1018.09 | H30: 55.23 | I30: 176.895 | J30: 1559.37 | K30: 0.9406 | L30: 5.1919 | M30: 0.7619628162 | O30: 84.00499577
A31: 750 | B31: 750 | C31: 0 | D31: 0 | E31: 2775 | F31: 1899.86 | G31: -1018.09 | H31: 55.23 | I31: 176.895 | J31: 1536.8 | K31: 0.9868 | L31: 5.186 | M31: 0.7619628162 | O31: 82.74733663
A32: 780 | B32: 780 | C32: 0 | D32: 0 | E32: 2775 | F32: 1899.86 | G32: -1018.09 | H32: 55.23 | I32: 176.895 | J32: 1514.48 | K32: 1.0343 | L32: 5.1793 | M32: 0.7619628162 | O32: 81.50623149
A33: 810 | B33: 810 | C33: 0 | D33: 0 | E33: 2775 | F33: 1899.86 | G33: -1018.09 | H33: 55.23 | I33: 176.895 | J33: 1492.43 | K33: 1.0831 | L33: 5.1717 | M33: 0.7619628162 | O33: 80.28354681
A34: 840 | B34: 840 | C34: 0 | D34: 0 | E34: 2775 | F34: 1899.86 | G34: -1018.09 | H34: 55.23 | I34: 176.895 | J34: 1470.67 | K34: 1.1332 | L34: 5.1631 | M34: 0.7619628162 | O34: 79.08106396
A35: 870 | B35: 870 | C35: 0 | D35: 0 | E35: 2775 | F35: 1899.86 | G35: -1018.09 | H35: 55.23 | I35: 176.895 | J35: 1449.2 | K35: 1.1846 | L35: 5.1536 | M35: 0.7619628162 | O35: 77.89656048
A36: 900 | B36: 900 | C36: 0 | D36: 0 | E36: 2775 | F36: 1899.86 | G36: -1018.09 | H36: 55.23 | I36: 176.895 | J36: 1428.04 | K36: 1.2373 | L36: 5.143 | M36: 0.7619628162 | O36: 76.73320571
A37: 930 | B37: 930 | C37: 0 | D37: 0 | E37: 2775 | F37: 1899.86 | G37: -1018.09 | H37: 55.23 | I37: 176.895 | J37: 1407.19 | K37: 1.2914 | L37: 5.1312 | M37: =((ref_diam+offset_diam)/2)/(12*3.281) -> 0.7619628162 | O37: =(J37-M37-surface_margin)/(scaling_factor*(SQRT(K37^2+L37^2+sigma_pa^2))) -> 75.59119597
A38: 960 | B38: 960 | C38: 0 | D38: 0 | E38: 2775 | F38: 1899.86 | G38: -1018.09 | H38: 55.23 | I38: 176.895 | J38: 1386.69 | K38: 1.3468 | L38: 5.1183 | M38: 0.7619628162 | O38: 74.47077815
A39: 990 | B39: 990 | C39: 0 | D39: 0 | E39: 2775 | F39: 1899.86 | G39: -1018.09 | H39: 55.23 | I39: 176.895 | J39: 1366.53 | K39: 1.4035 | L39: 5.104 | M39: 0.7619628162 | O39: 73.37460299
A40: 1020 | B40: 1020 | C40: -0.35 | D40: 0 | E40: 2775 | F40: 1899.86 | G40: -1018.09 | H40: 55.23 | I40: 176.894 | J40: 1346.48 | K40: 1.4595 | L40: 5.0885 | M40: 0.7619628162 | O40: 72.29420162
A41: 1050 | B41: 1049.97 | C41: -1.57 | D41: 0 | E41: 2775 | F41: 1899.86 | G41: -1018.09 | H41: 55.23 | I41: 176.89 | J41: 1326.15 | K41: 1.5144 | L41: 5.072 | M41: 0.7619628162 | O41: 71.20731413
A42: 1080 | B42: 1079.88 | C42: -3.83 | D42: 0 | E42: 2775 | F42: 1899.86 | G42: -1018.09 | H42: 55.23 | I42: 176.883 | J42: 1305.43 | K42: 1.5694 | L42: 5.0547 | M42: 0.7619628162 | O42: 70.10078957
A43: 1110 | B43: 1109.7 | C43: -7.14 | D43: 0 | E43: 2775 | F43: 1899.86 | G43: -1018.09 | H43: 55.23 | I43: 176.873 | J43: 1284.3 | K43: 1.624 | L43: 5.0364 | M43: 0.7619628162 | O43: 68.97777695
A44: 1140 | B44: 1139.38 | C44: -11.49 | D44: 0 | E44: 2775 | F44: 1899.86 | G44: -1018.09 | H44: 55.23 | I44: 176.859 | J44: 1262.79 | K44: 1.6783 | L44: 5.0173 | M44: 0.7619628162 | O44: 67.83681336
A45: 1170 | B45: 1168.89 | C45: -16.87 | D45: 0 | E45: 2775 | F45: 1899.86 | G45: -1018.09 | H45: 55.23 | I45: 176.842 | J45: 1240.89 | K45: 1.7322 | L45: 4.9973 | M45: 0.7619628162 | O45: 66.67880199
A46: 1200 | B46: 1198.2 | C46: -23.27 | D46: 0 | E46: 2775 | F46: 1899.86 | G46: -1018.09 | H46: 55.23 | I46: 176.822 | J46: 1218.63 | K46: 1.7858 | L46: 4.9765 | M46: 0.7619628162 | O46: 65.50356864
A47: 1230 | B47: 1227.27 | C47: -30.7 | D47: 0 | E47: 2775 | F47: 1899.86 | G47: -1018.09 | H47: 55.23 | I47: 176.798 | J47: 1195.99 | K47: 1.839 | L47: 4.9549 | M47: 0.7619628162 | O47: 64.31028634
A48: 1260 | B48: 1256.05 | C48: -39.13 | D48: 0 | E48: 2775 | F48: 1899.86 | G48: -1018.09 | H48: 55.23 | I48: 176.771 | J48: 1172.99 | K48: 1.8918 | L48: 4.9326 | M48: 0.7619628162 | O48: 63.09875874
A49: 1290 | B49: 1284.53 | C49: -48.57 | D49: 0 | E49: 2775 | F49: 1899.86 | G49: -1018.09 | H49: 55.23 | I49: 176.739 | J49: 1149.64 | K49: 1.9442 | L49: 4.9095 | M49: 0.7619628162 | O49: 61.87050178
A50: 1320 | B50: 1312.66 | C50: -58.99 | D50: 0 | E50: 2775 | F50: 1899.86 | G50: -1018.09 | H50: 55.23 | I50: 176.704 | J50: 1125.94 | K50: 1.9962 | L50: 4.8858 | M50: 0.7619628162 | O50: 60.62321775
A51: 1350 | B51: 1340.41 | C51: -70.38 | D51: 0 | E51: 2775 | F51: 1899.86 | G51: -1018.09 | H51: 55.23 | I51: 176.664 | J51: 1101.9 | K51: 2.0478 | L51: 4.8613 | M51: 0.7619628162 | O51: 59.35945599
A52: 1380 | B52: 1367.74 | C52: -82.74 | D52: 0 | E52: 2775 | F52: 1899.86 | G52: -1018.09 | H52: 55.23 | I52: 176.62 | J52: 1077.53 | K52: 2.099 | L52: 4.8363 | M52: 0.7619628162 | O52: 58.07654033
A53: 1410 | B53: 1394.63 | C53: -96.05 | D53: 0 | E53: 2775 | F53: 1899.86 | G53: -1018.09 | H53: 55.23 | I53: 176.572 | J53: 1052.84 | K53: 2.1498 | L53: 4.8106 | M53: 0.7619628162 | O53: 56.77697771
A54: 1440 | B54: 1421.03 | C54: -110.29 | D54: 0 | E54: 2775 | F54: 1899.86 | G54: -1018.09 | H54: 55.23 | I54: 176.518 | J54: 1027.83 | K54: 2.2002 | L54: 4.7844 | M54: 0.7619628162 | O54: 55.45872241
A55: 1470 | B55: 1446.93 | C55: -125.43 | D55: 0 | E55: 2775 | F55: 1899.86 | G55: -1018.09 | H55: 55.23 | I55: 176.459 | J55: 1002.52 | K55: 2.2502 | L55: 4.7577 | M55: 0.7619628162 | O55: 54.12285849
A56: 1500 | B56: 1472.28 | C56: -141.48 | D56: 0 | E56: 2775 | F56: 1899.86 | G56: -1018.09 | H56: 55.23 | I56: 176.395 | J56: 976.9 | K56: 2.2999 | L56: 4.7306 | M56: 0.7619628162 | O56: 52.76751491
A57: 1530 | B57: 1497.05 | C57: -158.39 | D57: 0 | E57: 2775 | F57: 1899.86 | G57: -1018.09 | H57: 55.23 | I57: 176.324 | J57: 950.99 | K57: 2.3491 | L57: 4.7031 | M57: 0.7619628162 | O57: 51.39471827
A58: 1560 | B58: 1521.22 | C58: -176.17 | D58: 0 | E58: 2775 | F58: 1899.86 | G58: -1018.09 | H58: 55.23 | I58: 176.246 | J58: 924.8 | K58: 2.3979 | L58: 4.6753 | M58: 0.7619628162 | O58: 50.00380496
A59: 1590 | B59: 1544.75 | C59: -194.77 | D59: 0 | E59: 2775 | F59: 1899.86 | G59: -1018.09 | H59: 55.23 | I59: 176.162 | J59: 898.34 | K59: 2.4463 | L59: 4.6473 | M59: 0.7619628162 | O59: 48.59465399
A60: 1620 | B60: 1567.62 | C60: -214.19 | D60: 0 | E60: 2775 | F60: 1899.86 | G60: -1018.09 | H60: 55.23 | I60: 176.069 | J60: 871.61 | K60: 2.4943 | L60: 4.6191 | M60: 0.7619628162 | O60: 47.16749449
A61: 1650 | B61: 1589.79 | C61: -234.39 | D61: 0 | E61: 2775 | F61: 1899.86 | G61: -1018.09 | H61: 55.23 | I61: 175.969 | J61: 844.62 | K61: 2.5418 | L61: 4.5908 | M61: 0.7619628162 | O61: 45.72275683
A62: 1680 | B62: 1611.25 | C62: -255.35 | D62: 0 | E62: 2775 | F62: 1899.86 | G62: -1018.09 | H62: 55.23 | I62: 175.858 | J62: 817.39 | K62: 2.5889 | L62: 4.5626 | M62: 0.7619628162 | O62: 44.25994834
A63: 1710 | B63: 1631.97 | C63: -277.05 | D63: 0 | E63: 2775 | F63: 1899.86 | G63: -1018.09 | H63: 55.23 | I63: 175.737 | J63: 789.91 | K63: 2.6355 | L63: 4.5346 | M63: 0.7619628162 | O63: 42.77870574
A64: 1740 | B64: 1651.91 | C64: -299.46 | D64: 0 | E64: 2775 | F64: 1899.86 | G64: -1018.09 | H64: 55.23 | I64: 175.605 | J64: 762.21 | K64: 2.6816 | L64: 4.5069 | M64: 0.7619628162 | O64: 41.28051744
A65: 1770 | B65: 1671.06 | C65: -322.55 | D65: 0 | E65: 2775 | F65: 1899.86 | G65: -1018.09 | H65: 55.23 | I65: 175.46 | J65: 734.29 | K65: 2.7272 | L65: 4.4797 | M65: 0.7619628162 | O65: 39.76470877
A66: 1800 | B66: 1689.39 | C66: -346.29 | D66: 0 | E66: 2775 | F66: 1899.86 | G66: -1018.09 | H66: 55.23 | I66: 175.3 | J66: 706.16 | K66: 2.7723 | L66: 4.4531 | M66: 0.7619628162 | O66: 38.23197919
A67: 1830 | B67: 1706.89 | C67: -370.66 | D67: 0 | E67: 2775 | F67: 1899.86 | G67: -1018.09 | H67: 55.23 | I67: 175.124 | J67: 677.83 | K67: 2.8169 | L67: 4.4276 | M67: 0.7619628162 | O67: 36.68079302
A68: 1860 | B68: 1723.52 | C68: -395.63 | D68: 0 | E68: 2775 | F68: 1899.86 | G68: -1018.09 | H68: 55.23 | I68: 174.929 | J68: 649.31 | K68: 2.861 | L68: 4.4032 | M68: 0.7619628162 | O68: 35.11295293
A69: 1890 | B69: 1739.27 | C69: -421.16 | D69: 0 | E69: 2775 | F69: 1899.86 | G69: -1018.09 | H69: 55.23 | I69: 174.713 | J69: 620.62 | K69: 2.9047 | L69: 4.3803 | M69: =((ref_diam+offset_diam)/2)/(12*3.281) -> 0.7619628162 | O69: =(J69-M69-surface_margin)/(scaling_factor*(SQRT(K69^2+L69^2+sigma_pa^2))) -> 33.52832724
A70: 1920 | B70: 1754.12 | C70: -447.23 | D70: 0 | E70: 2775 | F70: 1899.86 | G70: -1018.09 | H70: 55.23 | I70: 174.473 | J70: 591.76 | K70: 2.9479 | L70: 4.3594 | M70: 0.7619628162 | O70: 31.92636288
A71: 1950 | B71: 1768.05 | C71: -473.79 | D71: 0 | E71: 2775 | F71: 1899.86 | G71: -1018.09 | H71: 55.23 | I71: 174.206 | J71: 562.75 | K71: 2.9908 | L71: 4.341 | M71: 0.7619628162 | O71: 30.3071143
A72: 1980 | B72: 1781.04 | C72: -500.83 | D72: 0 | E72: 2775 | F72: 1899.86 | G72: -1018.09 | H72: 55.23 | I72: 173.905 | J72: 533.6 | K72: 3.0334 | L72: 4.3257 | M72: 0.7619628162 | O72: 28.67091939
A73: 2010 | B73: 1793.09 | C73: -528.31 | D73: 0 | E73: 2775 | F73: 1899.86 | G73: -1018.09 | H73: 55.23 | I73: 173.566 | J73: 504.32 | K73: 3.076 | L73: 4.3143 | M73: 0.7619628162 | O73: 27.01705573
A74: 2040 | B74: 1804.16 | C74: -556.19 | D74: 0 | E74: 2775 | F74: 1899.86 | G74: -1018.09 | H74: 55.23 | I74: 173.181 | J74: 474.94 | K74: 3.1188 | L74: 4.3079 | M74: 0.7619628162 | O74: 25.34604715
A75: 2070 | B75: 1814.26 | C75: -584.43 | D75: 0 | E75: 2775 | F75: 1899.86 | G75: -1018.09 | H75: 55.23 | I75: 172.741 | J75: 445.46 | K75: 3.1622 | L75: 4.3078 | M75: 0.7619628162 | O75: 23.65689336
A76: 2100 | B76: 1823.37 | C76: -613.02 | D76: 0 | E76: 2775 | F76: 1899.86 | G76: -1018.09 | H76: 55.23 | I76: 172.235 | J76: 415.92 | K76: 3.2068 | L76: 4.3159 | M76: 0.7619628162 | O76: 21.94995029
A77: 2130 | B77: 1831.47 | C77: -641.9 | D77: 0 | E77: 2775 | F77: 1899.86 | G77: -1018.09 | H77: 55.23 | I77: 171.647 | J77: 386.33 | K77: 3.2535 | L77: 4.3346 | M77: 0.7619628162 | O77: 20.22427417
A78: 2160 | B78: 1838.56 | C78: -671.05 | D78: 0 | E78: 2775 | F78: 1899.86 | G78: -1018.09 | H78: 55.23 | I78: 170.957 | J78: 356.72 | K78: 3.3037 | L78: 4.3671 | M78: 0.7619628162 | O78: 18.48002025
A79: 2190 | B79: 1844.63 | C79: -700.43 | D79: 0 | E79: 2775 | F79: 1899.86 | G79: -1018.09 | H79: 55.23 | I79: 170.136 | J79: 327.13 | K79: 3.3594 | L79: 4.4182 | M79: 0.7619628162 | O79: 16.7173336
A80: 2220 | B80: 1849.66 | C80: -730 | D80: 0 | E80: 2775 | F80: 1899.86 | G80: -1018.09 | H80: 55.23 | I80: 169.147 | J80: 297.6 | K80: 3.424 | L80: 4.4943 | M80: 0.7619628162 | O80: 14.93722429
A81: 2250 | B81: 1853.67 | C81: -759.73 | D81: 0 | E81: 2775 | F81: 1899.86 | G81: -1018.09 | H81: 55.23 | I81: 167.933 | J81: 268.21 | K81: 3.5027 | L81: 4.6052 | M81: 0.7619628162 | O81: 13.1430615
A82: 2280 | B82: 1856.72 | C82: -789.57 | D82: 0 | E82: 2775 | F82: 1899.86 | G82: -1018.09 | H82: 55.23 | I82: 166.412 | J82: 239.03 | K82: 3.6049 | L82: 4.7641 | M82: 0.7619628162 | O82: 11.34095819
A83: 2310 | B83: 1859.33 | C83: -819.46 | D83: 0 | E83: 2775 | F83: 1899.86 | G83: -1018.09 | H83: 55.23 | I83: 164.46 | J83: 210.12 | K83: 3.75 | L83: 4.988 | M83: 0.7619628162 | O83: 9.541058152
A84: 2340 | B84: 1861.95 | C84: -849.34 | D84: 0 | E84: 2775 | F84: 1899.86 | G84: -1018.09 | H84: 55.23 | I84: 161.876 | J84: 181.56 | K84: 3.9689 | L84: 5.3059 | M84: 0.7619628162 | O84: 7.760965688
A85: 2370 | B85: 1864.56 | C85: -879.23 | D85: 0 | E85: 2775 | F85: 1899.86 | G85: -1018.09 | H85: 55.23 | I85: 158.309 | J85: 153.56 | K85: 4.3094 | L85: 5.7721 | M85: 0.7619628162 | O85: 6.03418676
A86: 2400 | B86: 1867.18 | C86: -909.12 | D86: 0 | E86: 2775 | F86: 1899.86 | G86: -1018.09 | H86: 55.23 | I86: 153.122 | J86: 126.47 | K86: 4.8541 | L86: 6.4775 | M86: 0.7619628162 | O86: 4.418170156
A87: 2430 | B87: 1869.79 | C87: -939 | D87: 0 | E87: 2775 | F87: 1899.86 | G87: -1018.09 | H87: 55.23 | I87: 145.071 | J87: 101.05 | K87: 5.7401 | L87: 7.5667 | M87: 0.7619628162 | O87: 3.003771124
A88: 2460 | B88: 1872.41 | C88: -968.89 | D88: 0 | E88: 2775 | F88: 1899.86 | G88: -1018.09 | H88: 55.23 | I88: 131.695 | J88: 78.9 | K88: 7.1326 | L88: 9.1918 | M88: 0.7619628162 | O88: 1.909734077
A89: 2490 | B89: 1875.02 | C89: -998.77 | D89: 0 | E89: 2775 | F89: 1899.86 | G89: -1018.09 | H89: 55.23 | I89: 109.278 | J89: 63.57 | K89: 8.8709 | L89: 11.0718 | M89: 0.7619628162 | O89: 1.258057605
A90: 2520 | B90: 1877.64 | C90: -1028.66 | D90: 0 | E90: 2764.46 | F90: 1898.94 | G90: -1028.58 | H90: 55.6 | I90: 89.921 | J90: 59.54 | K90: 9.7877 | L90: 11.7249 | M90: 0.7619628162 | O90: 1.093353288
A91: 2550 | B91: 1880.25 | C91: -1058.55 | D91: 0 | E91: 2734.94 | F91: 1896.37 | G91: -1057.98 | H91: 56.63 | I91: 89.427 | J91: 58.88 | K91: 10.3073 | L91: 11.7606 | M91: 0.7619628162 | O91: 1.055814664
A92: 2580 | B92: 1882.87 | C92: -1088.43 | D92: 0 | E92: 2705.41 | F92: 1893.8 | G92: -1087.37 | H92: 57.65 | I92: 88.95 | J92: 58.69 | K92: 10.77 | L92: 11.7104 | M92: 0.7619628162 | O92: 1.034386229
A93: 2610 | B93: 1885.48 | C93: -1118.32 | D93: 0 | E93: 2675.88 | F93: 1891.22 | G93: -1116.77 | H93: 58.68 | I93: 88.49 | J93: 58.98 | K93: 11.1637 | L93: 11.5719 | M93: 0.7619628162 | O93: 1.028666287
A94: 2640 | B94: 1888.09 | C94: -1148.2 | D94: 0 | E94: 2646.36 | F94: 1888.65 | G94: -1146.17 | H94: 59.71 | I94: 88.046 | J94: 59.74 | K94: 11.4818 | L94: 11.3494 | M94: 0.7619628162 | O94: 1.037954481
A95: 2670 | B95: 1890.71 | C95: -1178.09 | D95: 0 | E95: 2616.83 | F95: 1886.08 | G95: -1175.56 | H95: 60.73 | I95: 87.618 | J95: 60.96 | K95: 11.7236 | L95: 11.053 | M95: 0.7619628162 | O95: 1.061630746
A96: 2700 | B96: 1893.32 | C96: -1207.97 | D96: 0 | E96: 2587.31 | F96: 1883.5 | G96: -1204.96 | H96: 61.76 | I96: 87.204 | J96: 62.61 | K96: 11.8937 | L96: 10.6964 | M96: 0.7619628162 | O96: 1.098807997
A97: 2730 | B97: 1895.94 | C97: -1237.86 | D97: 0 | E97: 2557.78 | F97: 1880.93 | G97: -1234.35 | H97: 62.79 | I97: 86.803 | J97: 64.65 | K97: 12.0006 | L97: 10.2954 | M97: 0.7619628162 | O97: 1.148449621
A98: 2760 | B98: 1898.55 | C98: -1267.75 | D98: 0 | E98: 2528.25 | F98: 1878.36 | G98: -1263.75 | H98: 63.81 | I98: 86.416 | J98: 67.05 | K98: 12.055 | L98: 9.8651 | M98: 0.7619628162 | O98: 1.209732831
A99: 2790 | B99: 1900.91 | C99: -1297.65 | D99: 0 | E99: 2498.68 | F99: 1875.78 | G99: -1293.19 | H99: 64.84 | I99: 86.062 | J99: 69.68 | K99: 12.0825 | L99: 9.4296 | M99: 0.7619628162 | O99: 1.27847992
A100: 2820 | B100: 1902.48 | C100: -1327.61 | D100: 0 | E100: 2469 | F100: 1873.19 | G100: -1322.75 | H100: 65.87 | I100: 85.777 | J100: 72.25 | K100: 12.1283 | L100: 9.0229 | M100: 0.7619628162 | O100: 1.34477759
A101: 2850 | B101: 1903 | C101: -1357.6 | D101: 0 | E101: 2439.18 | F101: 1870.59 | G101: -1352.43 | H101: 66.91 | I101: 85.579 | J101: 74.53 | K101: 12.2241 | L101: 8.6642 | M101: 0.7619628162 | O101: 1.400178672
A102: 2880 | B102: 1903 | C102: -1387.6 | D102: 0 | E102: 2409.31 | F102: 1867.99 | G102: -1382.17 | H102: 67.95 | I102: 85.424 | J102: 76.63 | K102: 12.3467 | L102: 8.3337 | M102: 0.7619628162 | O102: 1.448622386
A103: 2910 | B103: 1903 | C103: -1417.6 | D103: 0 | E103: 2379.44 | F103: 1865.39 | G103: -1411.9 | H103: 68.99 | I103: 85.275 | J103: 78.78 | K103: 12.466 | L103: 8.01 | M103: 0.7619628162 | O103: =(J103-M103-surface_margin)/(scaling_factor*(SQRT(K103^2+L103^2+sigma_pa^2))) -> 1.497713745
A104: 2940 | B104: 1903 | C104: -1447.6 | D104: 0 | E104: 2349.58 | F104: 1862.78 | G104: -1441.64 | H104: 70.03 | I104: 85.13 | J104: 80.97 | K104: 12.5827 | L104: 7.6935 | M104: 0.7619628162 | O104: 1.54713815

Sheet 07 - well
A1: Wellpath | B1: Offset 07: Short opposite drilled wellpath r4
A3: REPORT SETUP INFORMATION
A4: Projection System | B4: ED50 / UTM Zone 31 North
A5: North Reference | B5: Grid
A6: Scale | B6: 0.9996
A7: Convergence at slot | B7: 0.00° East
A9: WELLPATH LOCATION | B9: Local North | C9: Local East | D9: Easting | E9: Northing | F9: Latitude | G9: Longitude
B10: [m] | C10: [m] | D10: [m] | E10: [m]
B11: -2300 | C11: 80 | D11: 500079.97 | E11: 6649267.63 | F11: 59°58'45.684"N | G11: 3°00'05.158"E
B15: MD | C15: Inclination | D15: Azimuth | E15: TVD | F15: North | G15: East | H15: sigmaH | I15: sigmaL | J15: sigmaA
B16: [m] | C16: [°] | D16: [°] | E16: [m] | F16: [m] | G16: [m]
B17: 0 | C17: 0 | D17: 356 | E17: 0 | F17: -2300 | G17: 80 | H17: 0 | I17: 0 | J17: 0
B18: 1 | C18: 0 | D18: 0 | E18: 1 | F18: -2300 | G18: 80 | H18: 0.0018 | I18: 0.0018 | J18: 0.35
B19: 30 | C19: 0 | D19: 356 | E19: 30 | F19: -2300 | G19: 80 | H19: 0.0538 | I19: 0.0538 | J19: 0.3504
B20: 60 | C20: 0 | D20: 356 | E20: 60 | F20: -2300 | G20: 80 | H20: 0.1075 | I20: 0.1075 | J20: 0.3516
B21: 90 | C21: 0 | D21: 356 | E21: 90 | F21: -2300 | G21: 80 | H21: 0.1613 | I21: 0.1613 | J21: 0.3536
B22: 120 | C22: 0 | D22: 356 | E22: 120 | F22: -2300 | G22: 80 | H22: 0.2151 | I22: 0.2151 | J22: 0.3564
B23: 150 | C23: 0 | D23: 356 | E23: 150 | F23: -2300 | G23: 80 | H23: 0.2689 | I23: 0.2689 | J23: 0.36
B24: 180 | C24: 0 | D24: 356 | E24: 180 | F24: -2300 | G24: 80 | H24: 0.3226 | I24: 0.3226 | J24: 0.3643
B25: 210 | C25: 0 | D25: 356 | E25: 210 | F25: -2300 | G25: 80 | H25: 0.3764 | I25: 0.3764 | J25: 0.3694
B26: 240 | C26: 0 | D26: 356 | E26: 240 | F26: -2300 | G26: 80 | H26: 0.4302 | I26: 0.4302 | J26: 0.3752
B27: 270 | C27: 0 | D27: 356 | E27: 270 | F27: -2300 | G27: 80 | H27: 0.4839 | I27: 0.4839 | J27: 0.3817
B28: 300 | C28: 0 | D28: 356 | E28: 300 | F28: -2300 | G28: 80 | H28: 0.5377 | I28: 0.5377 | J28: 0.3889
B29: 330 | C29: 0 | D29: 356 | E29: 330 | F29: -2300 | G29: 80 | H29: 0.5915 | I29: 0.5915 | J29: 0.3967
B30: 360 | C30: 0 | D30: 356 | E30: 360 | F30: -2300 | G30: 80 | H30: 0.6452 | I30: 0.6452 | J30: 0.4052
B31: 390 | C31: 0 | D31: 356 | E31: 390 | F31: -2300 | G31: 80 | H31: 0.699 | I31: 0.699 | J31: 0.4143
B32: 420 | C32: 0 | D32: 356 | E32: 420 | F32: -2300 | G32: 80 | H32: 0.7528 | I32: 0.7528 | J32: 0.424
B33: 450 | C33: 0 | D33: 356 | E33: 450 | F33: -2300 | G33: 80 | H33: 0.8066 | I33: 0.8066 | J33: 0.4342
B34: 480 | C34: 0 | D34: 356 | E34: 480 | F34: -2300 | G34: 80 | H34: 0.8603 | I34: 0.8603 | J34: 0.4451
B35: 510 | C35: 0 | D35: 356 | E35: 510 | F35: -2300 | G35: 80 | H35: 0.9141 | I35: 0.9141 | J35: 0.4564
B36: 540 | C36: 0 | D36: 356 | E36: 540 | F36: -2300 | G36: 80 | H36: 0.9679 | I36: 0.9679 | J36: 0.4683
B37: 570 | C37: 0 | D37: 356 | E37: 570 | F37: -2300 | G37: 80 | H37: 1.0216 | I37: 1.0216 | J37: 0.4806
B38: 600 | C38: 0 | D38: 356 | E38: 600 | F38: -2300 | G38: 80 | H38: 1.0754 | I38: 1.0754 | J38: 0.4935
B39: 630 | C39: 0 | D39: 356 | E39: 630 | F39: -2300 | G39: 80 | H39: 1.1292 | I39: 1.1292 | J39: 0.5068
B40: 660 | C40: 0 | D40: 356 | E40: 660 | F40: -2300 | G40: 80 | H40: 1.183 | I40: 1.183 | J40: 0.5205
B41: 690 | C41: 0 | D41: 356 | E41: 690 | F41: -2300 | G41: 80 | H41: 1.2367 | I41: 1.2367 | J41: 0.5348
B42: 720 | C42: 0 | D42: 356 | E42: 720 | F42: -2300 | G42: 80 | H42: 1.2905 | I42: 1.2905 | J42: 0.5494
B43: 750 | C43: 0 | D43: 356 | E43: 750 | F43: -2300 | G43: 80 | H43: 1.3443 | I43: 1.3443 | J43: 0.5645
B44: 780 | C44: 0 | D44: 356 | E44: 780 | F44: -2300 | G44: 80 | H44: 1.398 | I44: 1.398 | J44: 0.58
B45: 810 | C45: 0 | D45: 356 | E45: 810 | F45: -2300 | G45: 80 | H45: 1.4518 | I45: 1.4518 | J45: 0.596
B46: 840 | C46: 0 | D46: 356 | E46: 840 | F46: -2300 | G46: 80 | H46: 1.5056 | I46: 1.5056 | J46: 0.6123
B47: 870 | C47: 0 | D47: 356 | E47: 870 | F47: -2300 | G47: 80 | H47: 1.5594 | I47: 1.5594 | J47: 0.629
B48: 900 | C48: 0 | D48: 356 | E48: 900 | F48: -2300 | G48: 80 | H48: 1.6131 | I48: 1.6131 | J48: 0.6462
B49: 930 | C49: 0 | D49: 356 | E49: 930 | F49: -2300 | G49: 80 | H49: 1.6669 | I49: 1.6669 | J49: 0.6637
B50: 960 | C50: 0 | D50: 356 | E50: 960 | F50: -2300 | G50: 80 | H50: 1.7207 | I50: 1.7207 | J50: 0.6816
B51: 990 | C51: 0 | D51: 356 | E51: 990 | F51: -2300 | G51: 80 | H51: 1.7744 | I51: 1.7744 | J51: 0.6999
B52: 1020 | C52: 1.33 | D52: 356 | E52: 1020 | F52: -2299.65 | G52: 79.98 | H52: 1.8278 | I52: 1.8281 | J52: 0.7197
B53: 1050 | C53: 3.33 | D53: 356 | E53: 1049.97 | F53: -2298.44 | G53: 79.89 | H53: 1.8792 | I53: 1.8816 | J53: 0.7444
B54: 1080 | C54: 5.33 | D54: 356 | E54: 1079.88 | F54: -2296.18 | G54: 79.73 | H54: 1.9286 | I54: 1.9349 | J54: 0.7743
B55: 1110 | C55: 7.33 | D55: 356 | E55: 1109.7 | F55: -2292.88 | G55: 79.5 | H55: 1.9758 | I55: 1.9883 | J55: 0.809
B56: 1140 | C56: 9.33 | D56: 356 | E56: 1139.38 | F56: -2288.54 | G56: 79.2 | H56: 2.0208 | I56: 2.0421 | J56: 0.8484
B57: 1170 | C57: 11.33 | D57: 356 | E57: 1168.89 | F57: -2283.18 | G57: 78.82 | H57: 2.0636 | I57: 2.0968 | J57: 0.8921
B58: 1200 | C58: 13.33 | D58: 356 | E58: 1198.2 | F58: -2276.79 | G58: 78.38 | H58: 2.1042 | I58: 2.1529 | J58: 0.9396
B59: 1230 | C59: 15.33 | D59: 356 | E59: 1227.27 | F59: -2269.38 | G59: 77.86 | H59: 2.1426 | I59: 2.2108 | J59: 0.9908
B60: 1260 | C60: 17.33 | D60: 356 | E60: 1256.05 | F60: -2260.96 | G60: 77.27 | H60: 2.1789 | I60: 2.2713 | J60: 1.0451
B61: 1290 | C61: 19.33 | D61: 356 | E61: 1284.53 | F61: -2251.55 | G61: 76.61 | H61: 2.213 | I61: 2.3349 | J61: 1.1023
B62: 1320 | C62: 21.33 | D62: 356 | E62: 1312.66 | F62: -2241.16 | G62: 75.89 | H62: 2.2451 | I62: 2.4024 | J62: 1.162
B63: 1350 | C63: 23.33 | D63: 356 | E63: 1340.41 | F63: -2229.79 | G63: 75.09 | H63: 2.2753 | I63: 2.4742 | J63: 1.224
B64: 1380 | C64: 25.33 | D64: 356 | E64: 1367.74 | F64: -2217.46 | G64: 74.23 | H64: 2.3037 | I64: 2.5511 | J64: 1.288
B65: 1410 | C65: 27.33 | D65: 356 | E65: 1394.63 | F65: -2204.18 | G65: 73.3 | H65: 2.3303 | I65: 2.6337 | J65: 1.3537
B66: 1440 | C66: 29.33 | D66: 356 | E66: 1421.03 | F66: -2189.98 | G66: 72.31 | H66: 2.3553 | I66: 2.7224 | J66: 1.421
B67: 1470 | C67: 31.33 | D67: 356 | E67: 1446.93 | F67: -2174.87 | G67: 71.25 | H67: 2.3788 | I67: 2.8178 | J67: 1.4896
B68: 1500 | C68: 33.33 | D68: 356 | E68: 1472.28 | F68: -2158.87 | G68: 70.13 | H68: 2.401 | I68: 2.9203 | J68: 1.5593
B69: 1530 | C69: 35.33 | D69: 356 | E69: 1497.05 | F69: -2141.99 | G69: 68.95 | H69: 2.422 | I69: 3.0302 | J69: 1.6299
B70: 1560 | C70: 37.33 | D70: 356 | E70: 1521.22 | F70: -2124.26 | G70: 67.71 | H70: 2.4419 | I70: 3.1478 | J70: 1.7013
B71: 1590 | C71: 39.33 | D71: 356 | E71: 1544.75 | F71: -2105.7 | G71: 66.41 | H71: 2.461 | I71: 3.2734 | J71: 1.7734
B72: 1620 | C72: 41.33 | D72: 356 | E72: 1567.62 | F72: -2086.34 | G72: 65.06 | H72: 2.4794 | I72: 3.4071 | J72: 1.846
B73: 1650 | C73: 43.33 | D73: 356 | E73: 1589.79 | F73: -2066.18 | G73: 63.65 | H73: 2.4972 | I73: 3.5489 | J73: 1.9189
B74: 1680 | C74: 45.33 | D74: 356 | E74: 1611.25 | F74: -2045.27 | G74: 62.19 | H74: 2.5147 | I74: 3.6988 | J74: 1.9921
B75: 1710 | C75: 47.33 | D75: 356 | E75: 1631.97 | F75: -2023.63 | G75: 60.67 | H75: 2.5319 | I75: 3.8568 | J75: 2.0654
B76: 1740 | C76: 49.33 | D76: 356 | E76: 1651.91 | F76: -2001.27 | G76: 59.11 | H76: 2.5491 | I76: 4.0228 | J76: 2.1388
B77: 1770 | C77: 51.33 | D77: 356 | E77: 1671.06 | F77: -1978.24 | G77: 57.5 | H77: 2.5664 | I77: 4.1967 | J77: 2.2121
B78: 1800 | C78: 53.33 | D78: 356 | E78: 1689.39 | F78: -1954.55 | G78: 55.84 | H78: 2.584 | I78: 4.3782 | J78: 2.2853
B79: 1830 | C79: 55.33 | D79: 356 | E79: 1706.89 | F79: -1930.24 | G79: 54.14 | H79: 2.6019 | I79: 4.5672 | J79: 2.3583
B80: 1860 | C80: 57.33 | D80: 356 | E80: 1723.52 | F80: -1905.33 | G80: 52.4 | H80: 2.6205 | I80: 4.7633 | J80: 2.431
B81: 1890 | C81: 59.33 | D81: 356 | E81: 1739.27 | F81: -1879.86 | G81: 50.62 | H81: 2.6397 | I81: 4.9664 | J81: 2.5033
B82: 1920 | C82: 61.33 | D82: 356 | E82: 1754.12 | F82: -1853.86 | G82: 48.8 | H82: 2.6596 | I82: 5.176 | J82: 2.5753
B83: 1950 | C83: 63.33 | D83: 356 | E83: 1768.05 | F83: -1827.36 | G83: 46.95 | H83: 2.6805 | I83: 5.392 | J83: 2.6468
B84: 1980 | C84: 65.33 | D84: 356 | E84: 1781.04 | F84: -1800.39 | G84: 45.06 | H84: 2.7023 | I84: 5.6139 | J84: 2.7178
B85: 2010 | C85: 67.33 | D85: 356 | E85: 1793.09 | F85: -1772.98 | G85: 43.15 | H85: 2.7251 | I85: 5.8415 | J85: 2.7883
B86: 2040 | C86: 69.33 | D86: 356 | E86: 1804.16 | F86: -1745.17 | G86: 41.2 | H86: 2.749 | I86: 6.0743 | J86: 2.8581
B87: 2070 | C87: 71.33 | D87: 356 | E87: 1814.26 | F87: -1716.99 | G87: 39.23 | H87: 2.7741 | I87: 6.312 | J87: 2.9274
B88: 2100 | C88: 73.33 | D88: 356 | E88: 1823.37 | F88: -1688.48 | G88: 37.24 | H88: 2.8003 | I88: 6.5543 | J88: 2.996
B89: 2130 | C89: 75.33 | D89: 356 | E89: 1831.47 | F89: -1659.66 | G89: 35.22 | H89: 2.8276 | I89: 6.8007 | J89: 3.064
B90: 2160 | C90: 77.33 | D90: 356 | E90: 1838.56 | F90: -1630.59 | G90: 33.19 | H90: 2.8561 | I90: 7.051 | J90: 3.1313
B91: 2190 | C91: 79.33 | D91: 356 | E91: 1844.63 | F91: -1601.28 | G91: 31.14 | H91: 2.8856 | I91: 7.3046 | J91: 3.1979
B92: 2220 | C92: 81.33 | D92: 356 | E92: 1849.66 | F92: -1571.78 | G92: 29.08 | H92: 2.9163 | I92: 7.5612 | J92: 3.2638
B93: 2250 | C93: 83.33 | D93: 356 | E93: 1853.67 | F93: -1542.12 | G93: 27 | H93: 2.9479 | I93: 7.8205 | J93: 3.329
B94: 2280 | C94: 85 | D94: 356 | E94: 1856.72 | F94: -1512.35 | G94: 24.92 | H94: 2.9916 | I94: 8.082 | J94: 3.3839
B95: 2310 | C95: 85 | D95: 356 | E95: 1859.33 | F95: -1482.54 | G95: 22.84 | H95: 3.0924 | I95: 8.3453 | J95: 3.3892
B96: 2325 | C96: 85 | D96: 356 | E96: 1860.64 | F96: -1467.63 | G96: 21.8 | H96: 3.1432 | I96: 8.4774 | J96: 3.392

Sheet 07 - clearance
A1: Offset 07
A2: Offset 07: Short opposite drilled wellpath r4
A3: Ref_MD | B3: Ref_TVD | C3: Ref_N | D3: Ref_E | E3: Offset_MD | F3: Offset_TVD | G3: Offset_N | H3: Offset_E | I3: Horiz_Bearing | J3: C-C Clr Dist | K3: Ref PCR | L3: Offset PCR | M3: Calc hole | O3: ISCWSA ACR
A4: [m] | B4: [m] | C4: [m] | D4: [m] | E4: [m] | F4: [m] | G4: [m] | H4: [m] | I4: [°] | J4: [m] | K4: [m 1sigma] | L4: [m 1sigma] | M4: [m]
A5: 0 | B5: 0 | C5: 0 | D5: 0 | E5: 0 | F5: 0 | G5: -2300 | H5: 80 | I5: 178.008 | J5: 2301.39 | K5: 0 | L5: 0 | M5: =((ref_diam+offset_diam)/2)/(12*3.281) -> 0.7619628162 | O5: =(J5-M5-surface_margin)/(scaling_factor*(SQRT(K5^2+L5^2+sigma_pa^2))) -> 1314.473164
A6: 1 | B6: 1 | C6: 0 | D6: 0 | E6: 1 | F6: 1 | G6: -2300 | H6: 80 | I6: 178.008 | J6: 2301.39 | K6: 0.0017 | L6: 0.0018 | M6: 0.7619628162 | O6: 1314.457049
A7: 30 | B7: 30 | C7: 0 | D7: 0 | E7: 30 | F7: 30 | G7: -2300 | H7: 80 | I7: 178.008 | J7: 2301.39 | K7: 0.0537 | L7: 0.0538 | M7: 0.7619628162 | O7: 1299.541116
A8: 60 | B8: 60 | C8: 0 | D8: 0 | E8: 60 | F8: 60 | G8: -2300 | H8: 80 | I8: 178.008 | J8: 2301.39 | K8: 0.1074 | L8: 0.1075 | M8: 0.7619628162 | O8: 1257.673837
A9: 90 | B9: 90 | C9: 0 | D9: 0 | E9: 2325 | F9: 1860.64 | G9: -1467.63 | H9: 21.8 | I9: 179.149 | J9: 2299.91 | K9: 0.291 | L9: 4.0087 | M9: 0.7619628162 | O9: 162.1670503
A10: 120 | B10: 120 | C10: 0 | D10: 0 | E10: 2325 | F10: 1860.64 | G10: -1467.63 | H10: 21.8 | I10: 179.149 | J10: 2276.89 | K10: 0.3057 | L10: 4.0148 | M10: 0.7619628162 | O10: 160.2614829
A11: 150 | B11: 150 | C11: 0 | D11: 0 | E11: 2325 | F11: 1860.64 | G11: -1467.63 | H11: 21.8 | I11: 179.149 | J11: 2254.04 | K11: 0.3244 | L11: 4.0209 | M11: 0.7619628162 | O11: 158.3602367
A12: 180 | B12: 180 | C12: 0 | D12: 0 | E12: 2325 | F12: 1860.64 | G12: -1467.63 | H12: 21.8 | I12: 179.149 | J12: 2231.36 | K12: 0.3469 | L12: 4.0268 | M12: 0.7619628162 | O12: 156.4700154
A13: 210 | B13: 210 | C13: 0 | D13: 0 | E13: 2325 | F13: 1860.64 | G13: -1467.63 | H13: 21.8 | I13: 179.149 | J13: 2208.85 | K13: 0.3725 | L13: 4.0327 | M13: 0.7619628162 | O13: 154.5836728
A14: 240 | B14: 240 | C14: 0 | D14: 0 | E14: 2325 | F14: 1860.64 | G14: -1467.63 | H14: 21.8 | I14: 179.149 | J14: 2186.53 | K14: 0.4009 | L14: 4.0384 | M14: 0.7619628162 | O14: 152.7095267
A15: 270 | B15: 270 | C15: 0 | D15: 0 | E15: 2325 | F15: 1860.64 | G15: -1467.63 | H15: 21.8 | I15: 179.149 | J15: 2164.38 | K15: 0.4317 | L15: 4.044 | M15: 0.7619628162 | O15: 150.8422798
A16: 300 | B16: 300 | C16: 0 | D16: 0 | E16: 2325 | F16: 1860.64 | G16: -1467.63 | H16: 21.8 | I16: 179.149 | J16: 2142.43 | K16: 0.4647 | L16: 4.0495 | M16: 0.7619628162 | O16: 148.9833967
A17: 330 | B17: 330 | C17: 0 | D17: 0 | E17: 2325 | F17: 1860.64 | G17: -1467.63 | H17: 21.8 | I17: 179.149 | J17: 2120.68 | K17: 0.4995 | L17: 4.0548 | M17: 0.7619628162 | O17: 147.1367912
A18: 360 | B18: 360 | C18: 0 | D18: 0 | E18: 2325 | F18: 1860.64 | G18: -1467.63 | H18: 21.8 | I18: 179.149 | J18: 2099.13 | K18: 0.5361 | L18: 4.06 | M18: 0.7619628162 | O18: 145.2977692
A19: 390 | B19: 390 | C19: 0 | D19: 0 | E19: 2325 | F19: 1860.64 | G19: -1467.63 | H19: 21.8 | I19: 179.149 | J19: 2077.79 | K19: 0.5743 | L19: 4.0649 | M19: 0.7619628162 | O19: 143.4737607
A20: 420 | B20: 420 | C20: 0 | D20: 0 | E20: 2325 | F20: 1860.64 | G20: -1467.63 | H20: 21.8 | I20: 179.149 | J20: 2056.66 | K20: 0.6138 | L20: 4.0697 | M20: 0.7619628162 | O20: 141.6583601
A21: 450 | B21: 450 | C21: 0 | D21: 0 | E21: 2325 | F21: 1860.64 | G21: -1467.63 | H21: 21.8 | I21: 179.149 | J21: 2035.76 | K21: 0.6547 | L21: 4.0743 | M21: 0.7619628162 | O21: 139.8550788
A22: 480 | B22: 480 | C22: 0 | D22: 0 | E22: 2325 | F22: 1860.64 | G22: -1467.63 | H22: 21.8 | I22: 179.149 | J22: 2015.09 | K22: 0.6969 | L22: 4.0786 | M22: 0.7619628162 | O22: 138.0668648
A23: 510 | B23: 510 | C23: 0 | D23: 0 | E23: 2325 | F23: 1860.64 | G23: -1467.63 | H23: 21.8 | I23: 179.149 | J23: 1994.65 | K23: 0.7402 | L23: 4.0827 | M23: 0.7619628162 | O23: 136.2907802
A24: 540 | B24: 540 | C24: 0 | D24: 0 | E24: 2325 | F24: 1860.64 | G24: -1467.63 | H24: 21.8 | I24: 179.149 | J24: 1974.46 | K24: 0.7847 | L24: 4.0864 | M24: 0.7619628162 | O24: 134.5332868
A25: 570 | B25: 570 | C25: 0 | D25: 0 | E25: 2325 | F25: 1860.64 | G25: -1467.63 | H25: 21.8 | I25: 179.149 | J25: 1954.53 | K25: 0.8302 | L25: 4.0899 | M25: 0.7619628162 | O25: 132.7892242
A26: 600 | B26: 600 | C26: 0 | D26: 0 | E26: 2325 | F26: 1860.64 | G26: -1467.63 | H26: 21.8 | I26: 179.149 | J26: 1934.85 | K26: 0.8768 | L26: 4.0931 | M26: 0.7619628162 | O26: 131.0598507
A27: 630 | B27: 630 | C27: 0 | D27: 0 | E27: 2325 | F27: 1860.64 | G27: -1467.63 | H27: 21.8 | I27: 179.149 | J27: 1915.44 | K27: 0.9245 | L27: 4.0959 | M27: 0.7619628162 | O27: 129.348852
A28: 660 | B28: 660 | C28: 0 | D28: 0 | E28: 2325 | F28: 1860.64 | G28: -1467.63 | H28: 21.8 | I28: 179.149 | J28: 1896.3 | K28: 0.9731 | L28: 4.0984 | M28: 0.7619628162 | O28: 127.6539332
A29: 690 | B29: 690 | C29: 0 | D29: 0 | E29: 2325 | F29: 1860.64 | G29: -1467.63 | H29: 21.8 | I29: 179.149 | J29: 1877.45 | K29: 1.0227 | L29: 4.1004 | M29: 0.7619628162 | O29: 125.9809947
A30: 720 | B30: 720 | C30: 0 | D30: 0 | E30: 2325 | F30: 1860.64 | G30: -1467.63 | H30: 21.8 | I30: 179.149 | J30: 1858.89 | K30: 1.0732 | L30: 4.1021 | M30: 0.7619628162 | O30: 124.3243658
A31: 750 | B31: 750 | C31: 0 | D31: 0 | E31: 2325 | F31: 1860.64 | G31: -1467.63 | H31: 21.8 | I31: 179.149 | J31: 1840.64 | K31: 1.1247 | L31: 4.1032 | M31: 0.7619628162 | O31: 122.6924767
A32: 780 | B32: 780 | C32: 0 | D32: 0 | E32: 2325 | F32: 1860.64 | G32: -1467.63 | H32: 21.8 | I32: 179.149 | J32: 1822.69 | K32: 1.1771 | L32: 4.1039 | M32: 0.7619628162 | O32: 121.0791467
A33: 810 | B33: 810 | C33: 0 | D33: 0 | E33: 2325 | F33: 1860.64 | G33: -1467.63 | H33: 21.8 | I33: 179.149 | J33: 1805.07 | K33: 1.2304 | L33: 4.1041 | M33: 0.7619628162 | O33: 119.4885154
A34: 840 | B34: 840 | C34: 0 | D34: 0 | E34: 2325 | F34: 1860.64 | G34: -1467.63 | H34: 21.8 | I34: 179.149 | J34: 1787.77 | K34: 1.2845 | L34: 4.1038 | M34: 0.7619628162 | O34: 117.9200996
A35: 870 | B35: 870 | C35: 0 | D35: 0 | E35: 2325 | F35: 1860.64 | G35: -1467.63 | H35: 21.8 | I35: 179.149 | J35: 1770.81 | K35: 1.3395 | L35: 4.1029 | M35: 0.7619628162 | O35: 116.3763801
A36: 900 | B36: 900 | C36: 0 | D36: 0 | E36: 2325 | F36: 1860.64 | G36: -1467.63 | H36: 21.8 | I36: 179.149 | J36: 1754.21 | K36: 1.3953 | L36: 4.1013 | M36: 0.7619628162 | O36: 114.8612561
A37: 930 | B37: 930 | C37: 0 | D37: 0 | E37: 2325 | F37: 1860.64 | G37: -1467.63 | H37: 21.8 | I37: 179.149 | J37: 1737.96 | K37: 1.4519 | L37: 4.0992 | M37: =((ref_diam+offset_diam)/2)/(12*3.281) -> 0.7619628162 | O37: =(J37-M37-surface_margin)/(scaling_factor*(SQRT(K37^2+L37^2+sigma_pa^2))) -> 113.3684077
A38: 960 | B38: 960 | C38: 0 | D38: 0 | E38: 2325 | F38: 1860.64 | G38: -1467.63 | H38: 21.8 | I38: 179.149 | J38: 1722.08 | K38: 1.5092 | L38: 4.0963 | M38: 0.7619628162 | O38: 111.906664
A39: 990 | B39: 990 | C39: 0 | D39: 0 | E39: 2325 | F39: 1860.64 | G39: -1467.63 | H39: 21.8 | I39: 179.149 | J39: 1706.58 | K39: 1.5673 | L39: 4.0928 | M39: 0.7619628162 | O39: 110.4702686
A40: 1020 | B40: 1020 | C40: -0.35 | D40: 0 | E40: 2325 | F40: 1860.64 | G40: -1467.63 | H40: 21.8 | I40: 179.149 | J40: 1691.18 | K40: 1.6238 | L40: 4.0885 | M40: 0.7619628162 | O40: 109.06681
A41: 1050 | B41: 1049.97 | C41: -1.57 | D41: 0 | E41: 2325 | F41: 1860.64 | G41: -1467.63 | H41: 21.8 | I41: 179.148 | J41: 1675.41 | K41: 1.6785 | L41: 4.0836 | M41: 0.7619628162 | O41: 107.6637388
A42: 1080 | B42: 1079.88 | C42: -3.83 | D42: 0 | E42: 2325 | F42: 1860.64 | G42: -1467.63 | H42: 21.8 | I42: 179.147 | J42: 1659.14 | K42: 1.7331 | L42: 4.078 | M42: 0.7619628162 | O42: 106.240011
A43: 1110 | B43: 1109.7 | C43: -7.14 | D43: 0 | E43: 2325 | F43: 1860.64 | G43: -1467.63 | H43: 21.8 | I43: 179.145 | J43: 1642.38 | K43: 1.7874 | L43: 4.0718 | M43: 0.7619628162 | O43: 104.7961772
A44: 1140 | B44: 1139.38 | C44: -11.49 | D44: 0 | E44: 2325 | F44: 1860.64 | G44: -1467.63 | H44: 21.8 | I44: 179.142 | J44: 1625.13 | K44: 1.8413 | L44: 4.0649 | M44: 0.7619628162 | O44: 103.3356104
A45: 1170 | B45: 1168.89 | C45: -16.87 | D45: 0 | E45: 2325 | F45: 1860.64 | G45: -1467.63 | H45: 21.8 | I45: 179.139 | J45: 1607.39 | K45: 1.8948 | L45: 4.0574 | M45: 0.7619628162 | O45: 101.8564735
A46: 1200 | B46: 1198.2 | C46: -23.27 | D46: 0 | E46: 2325 | F46: 1860.64 | G46: -1467.63 | H46: 21.8 | I46: 179.135 | J46: 1589.18 | K46: 1.9479 | L46: 4.0492 | M46: 0.7619628162 | O46: 100.3623285
A47: 1230 | B47: 1227.27 | C47: -30.7 | D47: 0 | E47: 2325 | F47: 1860.64 | G47: -1467.63 | H47: 21.8 | I47: 179.131 | J47: 1570.48 | K47: 2.0006 | L47: 4.0405 | M47: 0.7619628162 | O47: 98.84815902
A48: 1260 | B48: 1256.05 | C48: -39.13 | D48: 0 | E48: 2325 | F48: 1860.64 | G48: -1467.63 | H48: 21.8 | I48: 179.126 | J48: 1551.33 | K48: 2.0529 | L48: 4.0312 | M48: 0.7619628162 | O48: 97.31876185
A49: 1290 | B49: 1284.53 | C49: -48.57 | D49: 0 | E49: 2325 | F49: 1860.64 | G49: -1467.63 | H49: 21.8 | I49: 179.12 | J49: 1531.71 | K49: 2.1047 | L49: 4.0212 | M49: 0.7619628162 | O49: 95.77589693
A50: 1320 | B50: 1312.66 | C50: -58.99 | D50: 0 | E50: 2325 | F50: 1860.64 | G50: -1467.63 | H50: 21.8 | I50: 179.114 | J50: 1511.63 | K50: 2.1562 | L50: 4.0108 | M50: 0.7619628162 | O50: 94.21289748
A51: 1350 | B51: 1340.41 | C51: -70.38 | D51: 0 | E51: 2325 | F51: 1860.64 | G51: -1467.63 | H51: 21.8 | I51: 179.106 | J51: 1491.11 | K51: 2.2073 | L51: 3.9997 | M51: 0.7619628162 | O51: 92.63766471
A52: 1380 | B52: 1367.74 | C52: -82.74 | D52: 0 | E52: 2325 | F52: 1860.64 | G52: -1467.63 | H52: 21.8 | I52: 179.098 | J52: 1470.15 | K52: 2.258 | L52: 3.9882 | M52: 0.7619628162 | O52: 91.04505062
A53: 1410 | B53: 1394.63 | C53: -96.05 | D53: 0 | E53: 2325 | F53: 1860.64 | G53: -1467.63 | H53: 21.8 | I53: 179.09 | J53: 1448.75 | K53: 2.3084 | L53: 3.9761 | M53: 0.7619628162 | O53: 89.43778261
A54: 1440 | B54: 1421.03 | C54: -110.29 | D54: 0 | E54: 2325 | F54: 1860.64 | G54: -1467.63 | H54: 21.8 | I54: 179.08 | J54: 1426.93 | K54: 2.3583 | L54: 3.9636 | M54: 0.7619628162 | O54: 87.81586104
A55: 1470 | B55: 1446.93 | C55: -125.43 | D55: 0 | E55: 2325 | F55: 1860.64 | G55: -1467.63 | H55: 21.8 | I55: 179.07 | J55: 1404.68 | K55: 2.408 | L55: 3.9505 | M55: 0.7619628162 | O55: 86.17924043
A56: 1500 | B56: 1472.28 | C56: -141.48 | D56: 0 | E56: 2325 | F56: 1860.64 | G56: -1467.63 | H56: 21.8 | I56: 179.058 | J56: 1382.02 | K56: 2.4573 | L56: 3.937 | M56: 0.7619628162 | O56: 84.52804826
A57: 1530 | B57: 1497.05 | C57: -158.39 | D57: 0 | E57: 2325 | F57: 1860.64 | G57: -1467.63 | H57: 21.8 | I57: 179.046 | J57: 1358.96 | K57: 2.5062 | L57: 3.9231 | M57: 0.7619628162 | O57: 82.86315893
A58: 1560 | B58: 1521.22 | C58: -176.17 | D58: 0 | E58: 2325 | F58: 1860.64 | G58: -1467.63 | H58: 21.8 | I58: 179.033 | J58: 1335.5 | K58: 2.5548 | L58: 3.9088 | M58: 0.7619628162 | O58: 81.18386882
A59: 1590 | B59: 1544.75 | C59: -194.77 | D59: 0 | E59: 2325 | F59: 1860.64 | G59: -1467.63 | H59: 21.8 | I59: 179.019 | J59: 1311.65 | K59: 2.603 | L59: 3.8941 | M59: 0.7619628162 | O59: 79.49195635
A60: 1620 | B60: 1567.62 | C60: -214.19 | D60: 0 | E60: 2325 | F60: 1860.64 | G60: -1467.63 | H60: 21.8 | I60: 179.004 | J60: 1287.42 | K60: 2.6507 | L60: 3.8791 | M60: 0.7619628162 | O60: 77.78779095
A61: 1650 | B61: 1589.79 | C61: -234.39 | D61: 0 | E61: 2325 | F61: 1860.64 | G61: -1467.63 | H61: 21.8 | I61: 178.988 | J61: 1262.82 | K61: 2.6981 | L61: 3.8637 | M61: 0.7619628162 | O61: 76.07172382
A62: 1680 | B62: 1611.25 | C62: -255.35 | D62: 0 | E62: 2325 | F62: 1860.64 | G62: -1467.63 | H62: 21.8 | I62: 178.97 | J62: 1237.86 | K62: 2.745 | L62: 3.8481 | M62: 0.7619628162 | O62: 74.3438018
A63: 1710 | B63: 1631.97 | C63: -277.05 | D63: 0 | E63: 2325 | F63: 1860.64 | G63: -1467.63 | H63: 21.8 | I63: 178.951 | J63: 1212.54 | K63: 2.7913 | L63: 3.8322 | M63: 0.7619628162 | O63: 72.60647788
A64: 1740 | B64: 1651.91 | C64: -299.46 | D64: 0 | E64: 2325 | F64: 1860.64 | G64: -1467.63 | H64: 21.8 | I64: 178.931 | J64: 1186.88 | K64: 2.8371 | L64: 3.8161 | M64: 0.7619628162 | O64: 70.85903256
A65: 1770 | B65: 1671.06 | C65: -322.55 | D65: 0 | E65: 2325 | F65: 1860.64 | G65: -1467.63 | H65: 21.8 | I65: 178.91 | J65: 1160.87 | K65: 2.8823 | L65: 3.7999 | M65: 0.7619628162 | O65: 69.1008651
A66: 1800 | B66: 1689.39 | C66: -346.29 | D66: 0 | E66: 2325 | F66: 1860.64 | G66: -1467.63 | H66: 21.8 | I66: 178.886 | J66: 1134.55 | K66: 2.9268 | L66: 3.7835 | M66: 0.7619628162 | O66: 67.33663444
A67: 1830 | B67: 1706.89 | C67: -370.66 | D67: 0 | E67: 2325 | F67: 1860.64 | G67: -1467.63 | H67: 21.8 | I67: 178.862 | J67: 1107.9 | K67: 2.9706 | L67: 3.7671 | M67: 0.7619628162 | O67: 65.5631442
A68: 1860 | B68: 1723.52 | C68: -395.63 | D68: 0 | E68: 2325 | F68: 1860.64 | G68: -1467.63 | H68: 21.8 | I68: 178.835 | J68: 1080.96 | K68: 3.0135 | L68: 3.7506 | M68: 0.7619628162 | O68: 63.78574677
A69: 1890 | B69: 1739.27 | C69: -421.16 | D69: 0 | E69: 2325 | F69: 1860.64 | G69: -1467.63 | H69: 21.8 | I69: 178.807 | J69: 1053.71 | K69: 3.0555 | L69: 3.7341 | M69: =((ref_diam+offset_diam)/2)/(12*3.281) -> 0.7619628162 | O69: =(J69-M69-surface_margin)/(scaling_factor*(SQRT(K69^2+L69^2+sigma_pa^2))) -> 62.00233208
A70: 1920 | B70: 1754.12 | C70: -447.23 | D70: 0 | E70: 2325 | F70: 1860.64 | G70: -1467.63 | H70: 21.8 | I70: 178.776 | J70: 1026.18 | K70: 3.0965 | L70: 3.7178 | M70: 0.7619628162 | O70: 60.213692
A71: 1950 | B71: 1768.05 | C71: -473.79 | D71: 0 | E71: 2325 | F71: 1860.64 | G71: -1467.63 | H71: 21.8 | I71: 178.744 | J71: 998.38 | K71: 3.1364 | L71: 3.7016 | M71: 0.7619628162 | O71: 58.42233732
A72: 1980 | B72: 1781.04 | C72: -500.83 | D72: 0 | E72: 2325 | F72: 1860.64 | G72: -1467.63 | H72: 21.8 | I72: 178.709 | J72: 970.32 | K72: 3.1751 | L72: 3.6856 | M72: 0.7619628162 | O72: 56.62875518
A73: 2010 | B73: 1793.09 | C73: -528.31 | D73: 0 | E73: 2325 | F73: 1860.64 | G73: -1467.63 | H73: 21.8 | I73: 178.671 | J73: 942 | K73: 3.2124 | L73: 3.6699 | M73: 0.7619628162 | O73: 54.8335935
A74: 2040 | B74: 1804.16 | C74: -556.19 | D74: 0 | E74: 2325 | F74: 1860.64 | G74: -1467.63 | H74: 21.8 | I74: 178.63 | J74: 913.45 | K74: 3.2482 | L74: 3.6547 | M74: 0.7619628162 | O74: 53.03765665
A75: 2070 | B75: 1814.26 | C75: -584.43 | D75: 0 | E75: 2325 | F75: 1860.64 | G75: -1467.63 | H75: 21.8 | I75: 178.586 | J75: 884.68 | K75: 3.2824 | L75: 3.6399 | M75: 0.7619628162 | O75: 51.24300685
A76: 2100 | B76: 1823.37 | C76: -613.02 | D76: 0 | E76: 2325 | F76: 1860.64 | G76: -1467.63 | H76: 21.8 | I76: 178.539 | J76: 855.71 | K76: 3.3148 | L76: 3.6258 | M76: 0.7619628162 | O76: 49.44972594
A77: 2130 | B77: 1831.47 | C77: -641.9 | D77: 0 | E77: 2325 | F77: 1860.64 | G77: -1467.63 | H77: 21.8 | I77: 178.488 | J77: 826.53 | K77: 3.3453 | L77: 3.6124 | M77: 0.7619628162 | O77: 47.6577675
A78: 2160 | B78: 1838.56 | C78: -671.05 | D78: 0 | E78: 2325 | F78: 1860.64 | G78: -1467.63 | H78: 21.8 | I78: 178.433 | J78: 797.19 | K78: 3.3736 | L78: 3.5999 | M78: 0.7619628162 | O78: 45.87029938
A79: 2190 | B79: 1844.63 | C79: -700.43 | D79: 0 | E79: 2325 | F79: 1860.64 | G79: -1467.63 | H79: 21.8 | I79: 178.373 | J79: 767.68 | K79: 3.3995 | L79: 3.5884 | M79: 0.7619628162 | O79: 44.08695739
A80: 2220 | B80: 1849.66 | C80: -730 | D80: 0 | E80: 2325 | F80: 1860.64 | G80: -1467.63 | H80: 21.8 | I80: 178.308 | J80: 738.04 | K80: 3.4228 | L80: 3.5781 | M80: 0.7619628162 | O80: 42.30949877
A81: 2250 | B81: 1853.67 | C81: -759.73 | D81: 0 | E81: 2325 | F81: 1860.64 | G81: -1467.63 | H81: 21.8 | I81: 178.237 | J81: 708.27 | K81: 3.4432 | L81: 3.5693 | M81: 0.7619628162 | O81: 40.53731892
A82: 2280 | B82: 1856.72 | C82: -789.57 | D82: 0 | E82: 2325 | F82: 1860.64 | G82: -1467.63 | H82: 21.8 | I82: 178.159 | J82: 678.42 | K82: 3.4609 | L82: 3.5619 | M82: 0.7619628162 | O82: 38.77217311
A83: 2310 | B83: 1859.33 | C83: -819.46 | D83: 0 | E83: 2325 | F83: 1860.64 | G83: -1467.63 | H83: 21.8 | I83: 178.074 | J83: 648.54 | K83: 3.4778 | L83: 3.5549 | M83: 0.7619628162 | O83: 37.01177035
A84: 2340 | B84: 1861.95 | C84: -849.34 | D84: 0 | E84: 2325 | F84: 1860.64 | G84: -1467.63 | H84: 21.8 | I84: 177.981 | J84: 618.67 | K84: 3.4961 | L84: 3.5472 | M84: 0.7619628162 | O84: 35.25288936
A85: 2370 | B85: 1864.56 | C85: -879.23 | D85: 0 | E85: 2325 | F85: 1860.64 | G85: -1467.63 | H85: 21.8 | I85: 177.879 | J85: 588.82 | K85: 3.516 | L85: 3.5388 | M85: 0.7619628162 | O85: 33.49561567
A86: 2400 | B86: 1867.18 | C86: -909.12 | D86: 0 | E86: 2325 | F86: 1860.64 | G86: -1467.63 | H86: 21.8 | I86: 177.765 | J86: 558.98 | K86: 3.5378 | L86: 3.5294 | M86: 0.7619628162 | O86: 31.73997857
A87: 2430 | B87: 1869.79 | C87: -939 | D87: 0 | E87: 2325 | F87: 1860.64 | G87: -1467.63 | H87: 21.8 | I87: 177.639 | J87: 529.16 | K87: 3.5617 | L87: 3.5191 | M87: 0.7619628162 | O87: 29.9858674
A88: 2460 | B88: 1872.41 | C88: -968.89 | D88: 0 | E88: 2325 | F88: 1860.64 | G88: -1467.63 | H88: 21.8 | I88: 177.498 | J88: 499.36 | K88: 3.5883 | L88: 3.5075 | M88: 0.7619628162 | O88: 28.23326868
A89: 2490 | B89: 1875.02 | C89: -998.77 | D89: 0 | E89: 2325 | F89: 1860.64 | G89: -1467.63 | H89: 21.8 | I89: 177.338 | J89: 469.58 | K89: 3.618 | L89: 3.4945 | M89: 0.7619628162 | O89: 26.48198038
A90: 2520 | B90: 1877.64 | C90: -1028.66 | D90: 0 | E90: 2325 | F90: 1860.64 | G90: -1467.63 | H90: 21.8 | I90: 177.158 | J90: 439.84 | K90: 3.6515 | L90: 3.4798 | M90: 0.7619628162 | O90: 24.7328401
A91: 2550 | B91: 1880.25 | C91: -1058.55 | D91: 0 | E91: 2325 | F91: 1860.64 | G91: -1467.63 | H91: 21.8 | I91: 176.95 | J91: 410.14 | K91: 3.6897 | L91: 3.463 | M91: 0.7619628162 | O91: 22.98557155
A92: 2580 | B92: 1882.87 | C92: -1088.43 | D92: 0 | E92: 2325 | F92: 1860.64 | G92: -1467.63 | H92: 21.8 | I92: 176.71 | J92: 380.48 | K92: 3.7337 | L92: 3.4437 | M92: 0.7619628162 | O92: 21.23975589
A93: 2610 | B93: 1885.48 | C93: -1118.32 | D93: 0 | E93: 2325 | F93: 1860.64 | G93: -1467.63 | H93: 21.8 | I93: 176.43 | J93: 350.87 | K93: 3.7853 | L93: 3.4213 | M93: 0.7619628162 | O93: 19.49475344
A94: 2640 | B94: 1888.09 | C94: -1148.2 | D94: 0 | E94: 2325 | F94: 1860.64 | G94: -1467.63 | H94: 21.8 | I94: 176.097 | J94: 321.35 | K94: 3.8465 | L94: 3.3951 | M94: 0.7619628162 | O94: 17.75245318
A95: 2670 | B95: 1890.71 | C95: -1178.09 | D95: 0 | E95: 2325 | F95: 1860.64 | G95: -1467.63 | H95: 21.8 | I95: 175.695 | J95: 291.91 | K95: 3.9206 | L95: 3.3639 | M95: 0.7619628162 | O95: 16.01120668
A96: 2700 | B96: 1893.32 | C96: -1207.97 | D96: 0 | E96: 2325 | F96: 1860.64 | G96: -1467.63 | H96: 21.8 | I96: 175.202 | J96: 262.61 | K96: 4.0123 | L96: 3.3263 | M96: 0.7619628162 | O96: 14.27271323
A97: 2730 | B97: 1895.94 | C97: -1237.86 | D97: 0 | E97: 2325 | F97: 1860.64 | G97: -1467.63 | H97: 21.8 | I97: 174.581 | J97: 233.49 | K97: 4.1286 | L97: 3.2806 | M97: 0.7619628162 | O97: 12.53702914
A98: 2760 | B98: 1898.55 | C98: -1267.75 | D98: 0 | E98: 2325 | F98: 1860.64 | G98: -1467.63 | H98: 21.8 | I98: 173.777 | J98: 204.61 | K98: 4.2802 | L98: 3.2242 | M98: 0.7619628162 | O98: 10.8058212
A99: 2790 | B99: 1900.91 | C99: -1297.65 | D99: 0 | E99: 2325 | F99: 1860.64 | G99: -1467.63 | H99: 21.8 | I99: 172.693 | J99: 176.04 | K99: 4.4811 | L99: 3.1566 | M99: 0.7619628162 | O99: 9.083107545
A100: 2820 | B100: 1902.48 | C100: -1327.61 | D100: 0 | E100: 2325 | F100: 1860.64 | G100: -1467.63 | H100: 21.8 | I100: 171.153 | J100: 147.75 | K100: 4.7518 | L100: 3.0833 | M100: 0.7619628162 | O100: 7.370232825
A101: 2850 | B101: 1903 | C101: -1357.6 | D101: 0 | E101: 2325 | F101: 1860.64 | G101: -1467.63 | H101: 21.8 | I101: 168.795 | J101: 119.9 | K101: 5.1373 | L101: 3.0179 | M101: 0.7619628162 | O101: 5.67874025
A102: 2880 | B102: 1903 | C102: -1387.6 | D102: 0 | E102: 2325 | F102: 1860.64 | G102: -1467.63 | H102: 21.8 | I102: 164.765 | J102: 93.13 | K102: 5.7406 | L102: 2.9958 | M102: 0.7619628162 | O102: 4.050336682
A103: 2910 | B103: 1903 | C103: -1417.6 | D103: 0 | E103: 2325 | F103: 1860.64 | G103: -1467.63 | H103: 21.8 | I103: 156.459 | J103: 69.08 | K103: 6.7156 | L103: 3.1666 | M103: 0.7619628162 | O103: 2.611516382
A104: 2940 | B104: 1903 | C104: -1447.6 | D104: 0 | E104: 2325 | F104: 1860.64 | G104: -1467.63 | H104: 21.8 | I104: 132.579 | J104: 51.68 | K104: 7.9276 | L104: 3.916 | M104: 0.7619628162 | O104: =(J104-M104-surface_margin)/(scaling_factor*(SQRT(K104^2+L104^2+sigma_pa^2))) -> 1.633017709

Sheet 08 - well
A1: Wellpath | B1: Offset 08: Perpendicular drilled wellpath r4
A3: REPORT SETUP INFORMATION
A4: Projection System | B4: ED50 / UTM Zone 31 North
A5: North Reference | B5: Grid
A6: Scale | B6: 0.9996
A7: Convergence at slot | B7: 0.01° West
A9: WELLPATH LOCATION | B9: Local North | C9: Local East | D9: Easting | E9: Northing | F9: Latitude | G9: Longitude
B10: [m] | C10: [m] | D10: [m] | E10: [m]
B11: -500 | C11: -900 | D11: 499100.36 | E11: 6651066.91 | F11: 59°59'43.841"N | G11: 2°59'01.946"E
B15: MD | C15: Inclination | D15: Azimuth | E15: TVD | F15: North | G15: East | H15: sigmaH | I15: sigmaL | J15: sigmaA
B16: [m] | C16: [°] | D16: [°] | E16: [m] | F16: [m] | G16: [m]
B17: 0 | C17: 0 | D17: 90 | E17: 0 | F17: -500 | G17: -900 | H17: 0 | I17: 0 | J17: 0
B18: 1 | C18: 0 | D18: 90 | E18: 1 | F18: -500 | G18: -900 | H18: 0.0018 | I18: 0.0018 | J18: 0.35
B19: 30 | C19: 0 | D19: 90 | E19: 30 | F19: -500 | G19: -900 | H19: 0.0537 | I19: 0.0537 | J19: 0.3504
B20: 60 | C20: 0 | D20: 90 | E20: 60 | F20: -500 | G20: -900 | H20: 0.1075 | I20: 0.1075 | J20: 0.3516
B21: 90 | C21: 0 | D21: 90 | E21: 90 | F21: -500 | G21: -900 | H21: 0.1613 | I21: 0.1613 | J21: 0.3536
B22: 120 | C22: 0 | D22: 90 | E22: 120 | F22: -500 | G22: -900 | H22: 0.215 | I22: 0.215 | J22: 0.3564
B23: 150 | C23: 0 | D23: 90 | E23: 150 | F23: -500 | G23: -900 | H23: 0.2688 | I23: 0.2688 | J23: 0.36
B24: 180 | C24: 0 | D24: 90 | E24: 180 | F24: -500 | G24: -900 | H24: 0.3226 | I24: 0.3226 | J24: 0.3643
B25: 210 | C25: 0 | D25: 90 | E25: 210 | F25: -500 | G25: -900 | H25: 0.3763 | I25: 0.3763 | J25: 0.3694
B26: 240 | C26: 0 | D26: 90 | E26: 240 | F26: -500 | G26: -900 | H26: 0.4301 | I26: 0.4301 | J26: 0.3752
B27: 270 | C27: 0 | D27: 90 | E27: 270 | F27: -500 | G27: -900 | H27: 0.4839 | I27: 0.4839 | J27: 0.3817
B28: 300 | C28: 0 | D28: 90 | E28: 300 | F28: -500 | G28: -900 | H28: 0.5377 | I28: 0.5377 | J28: 0.3889
B29: 330 | C29: 0 | D29: 90 | E29: 330 | F29: -500 | G29: -900 | H29: 0.5914 | I29: 0.5914 | J29: 0.3967
B30: 360 | C30: 0 | D30: 90 | E30: 360 | F30: -500 | G30: -900 | H30: 0.6452 | I30: 0.6452 | J30: 0.4052
B31: 390 | C31: 0 | D31: 90 | E31: 390 | F31: -500 | G31: -900 | H31: 0.699 | I31: 0.699 | J31: 0.4143
B32: 420 | C32: 0 | D32: 90 | E32: 420 | F32: -500 | G32: -900 | H32: 0.7527 | I32: 0.7527 | J32: 0.424
B33: 450 | C33: 0 | D33: 90 | E33: 450 | F33: -500 | G33: -900 | H33: 0.8065 | I33: 0.8065 | J33: 0.4342
B34: 480 | C34: 0 | D34: 90 | E34: 480 | F34: -500 | G34: -900 | H34: 0.8603 | I34: 0.8603 | J34: 0.4451
B35: 510 | C35: 0 | D35: 90 | E35: 510 | F35: -500 | G35: -900 | H35: 0.9141 | I35: 0.9141 | J35: 0.4564
B36: 540 | C36: 0 | D36: 90 | E36: 540 | F36: -500 | G36: -900 | H36: 0.9678 | I36: 0.9678 | J36: 0.4683
B37: 570 | C37: 0 | D37: 90 | E37: 570 | F37: -500 | G37: -900 | H37: 1.0216 | I37: 1.0216 | J37: 0.4806
B38: 600 | C38: 0 | D38: 90 | E38: 600 | F38: -500 | G38: -900 | H38: 1.0754 | I38: 1.0754 | J38: 0.4935
B39: 630 | C39: 0 | D39: 90 | E39: 630 | F39: -500 | G39: -900 | H39: 1.1291 | I39: 1.1291 | J39: 0.5068
B40: 660 | C40: 0 | D40: 90 | E40: 660 | F40: -500 | G40: -900 | H40: 1.1829 | I40: 1.1829 | J40: 0.5205
B41: 690 | C41: 0 | D41: 90 | E41: 690 | F41: -500 | G41: -900 | H41: 1.2367 | I41: 1.2367 | J41: 0.5348
B42: 720 | C42: 0 | D42: 90 | E42: 720 | F42: -500 | G42: -900 | H42: 1.2905 | I42: 1.2905 | J42: 0.5494
B43: 750 | C43: 0 | D43: 90 | E43: 750 | F43: -500 | G43: -900 | H43: 1.3442 | I43: 1.3442 | J43: 0.5645
B44: 780 | C44: 0 | D44: 90 | E44: 780 | F44: -500 | G44: -900 | H44: 1.398 | I44: 1.398 | J44: 0.58
B45: 810 | C45: 0 | D45: 90 | E45: 810 | F45: -500 | G45: -900 | H45: 1.4518 | I45: 1.4518 | J45: 0.596
B46: 840 | C46: 0 | D46: 90 | E46: 840 | F46: -500 | G46: -900 | H46: 1.5055 | I46: 1.5055 | J46: 0.6123
B47: 870 | C47: 0 | D47: 90 | E47: 870 | F47: -500 | G47: -900 | H47: 1.5593 | I47: 1.5593 | J47: 0.629
B48: 900 | C48: 0 | D48: 90 | E48: 900 | F48: -500 | G48: -900 | H48: 1.6131 | I48: 1.6131 | J48: 0.6462
B49: 930 | C49: 0 | D49: 90 | E49: 930 | F49: -500 | G49: -900 | H49: 1.6668 | I49: 1.6668 | J49: 0.6637
B50: 960 | C50: 0 | D50: 90 | E50: 960 | F50: -500 | G50: -900 | H50: 1.7206 | I50: 1.7206 | J50: 0.6816
B51: 990 | C51: 0 | D51: 90 | E51: 990 | F51: -500 | G51: -900 | H51: 1.7744 | I51: 1.7744 | J51: 0.6999
B52: 1020 | C52: 2 | D52: 90 | E52: 1019.99 | F52: -500 | G52: -899.48 | H52: 1.8258 | I52: 1.8269 | J52: 0.721
B53: 1050 | C53: 5 | D53: 90 | E53: 1049.93 | F53: -500 | G53: -897.65 | H53: 1.8718 | I53: 1.8785 | J53: 0.7526
B54: 1080 | C54: 8 | D54: 90 | E54: 1079.74 | F54: -500 | G54: -894.25 | H54: 1.9133 | I54: 1.9309 | J54: 0.7949
B55: 1110 | C55: 11 | D55: 90 | E55: 1109.32 | F55: -500 | G55: -889.3 | H55: 1.9501 | I55: 1.9846 | J55: 0.8466
B56: 1140 | C56: 14 | D56: 90 | E56: 1138.61 | F56: -500 | G56: -882.81 | H56: 1.9822 | I56: 2.0405 | J56: 0.9065
B57: 1170 | C57: 17 | D57: 90 | E57: 1167.51 | F57: -500 | G57: -874.79 | H57: 2.0096 | I57: 2.0997 | J57: 0.9735
B58: 1200 | C58: 20 | D58: 90 | E58: 1195.96 | F58: -500 | G58: -865.27 | H58: 2.0324 | I58: 2.1638 | J58: 1.0461
B59: 1230 | C59: 23 | D59: 90 | E59: 1223.87 | F59: -500 | G59: -854.28 | H59: 2.0507 | I59: 2.2346 | J59: 1.1235
B60: 1260 | C60: 26 | D60: 90 | E60: 1251.17 | F60: -500 | G60: -841.84 | H60: 2.0648 | I60: 2.3142 | J60: 1.2045
B61: 1290 | C61: 29 | D61: 90 | E61: 1277.77 | F61: -500 | G61: -827.99 | H61: 2.0747 | I61: 2.405 | J61: 1.2883
B62: 1320 | C62: 32 | D62: 90 | E62: 1303.62 | F62: -500 | G62: -812.76 | H62: 2.0809 | I62: 2.5095 | J62: 1.3742
B63: 1350 | C63: 35 | D63: 90 | E63: 1328.63 | F63: -500 | G63: -796.21 | H63: 2.0837 | I63: 2.6301 | J63: 1.4615
B64: 1380 | C64: 38 | D64: 90 | E64: 1352.75 | F64: -500 | G64: -778.36 | H64: 2.0835 | I64: 2.7692 | J64: 1.5497
B65: 1410 | C65: 41 | D65: 90 | E65: 1375.89 | F65: -500 | G65: -759.28 | H65: 2.0806 | I65: 2.9287 | J65: 1.6382
B66: 1440 | C66: 44 | D66: 90 | E66: 1398.01 | F66: -500 | G66: -739.02 | H66: 2.0757 | I66: 3.1104 | J66: 1.7265
B67: 1470 | C67: 47 | D67: 90 | E67: 1419.03 | F67: -500 | G67: -717.62 | H67: 2.0691 | I67: 3.3153 | J67: 1.8144
B68: 1500 | C68: 50 | D68: 90 | E68: 1438.91 | F68: -500 | G68: -695.16 | H68: 2.0615 | I68: 3.544 | J68: 1.9013
B69: 1530 | C69: 53 | D69: 90 | E69: 1457.58 | F69: -500 | G69: -671.68 | H69: 2.0534 | I69: 3.7968 | J69: 1.9871
B70: 1560 | C70: 56 | D70: 90 | E70: 1475 | F70: -500 | G70: -647.26 | H70: 2.0455 | I70: 4.0731 | J70: 2.0713
B71: 1590 | C71: 59 | D71: 90 | E71: 1491.12 | F71: -500 | G71: -621.96 | H71: 2.0382 | I71: 4.3722 | J71: 2.1538
B72: 1620 | C72: 62 | D72: 90 | E72: 1505.89 | F72: -500 | G72: -595.86 | H72: 2.0323 | I72: 4.693 | J72: 2.2344
B73: 1650 | C73: 65 | D73: 90 | E73: 1519.27 | F73: -500 | G73: -569.01 | H73: 2.0282 | I73: 5.0341 | J73: 2.3127
B74: 1680 | C74: 68 | D74: 90 | E74: 1531.24 | F74: -500 | G74: -541.5 | H74: 2.0266 | I74: 5.3938 | J74: 2.3888
B75: 1710 | C75: 70 | D75: 90 | E75: 1541.99 | F75: -500 | G75: -513.5 | H75: 2.0548 | I75: 5.769 | J75: 2.4404
B76: 1740 | C76: 70 | D76: 90 | E76: 1552.25 | F76: -500 | G76: -485.3 | H76: 2.1395 | I76: 6.1543 | J76: 2.4466
B77: 1770 | C77: 70 | D77: 90 | E77: 1562.51 | F77: -500 | G77: -457.11 | H77: 2.2267 | I77: 6.5457 | J77: 2.453
B78: 1800 | C78: 70 | D78: 90 | E78: 1572.77 | F78: -500 | G78: -428.92 | H78: 2.316 | I78: 6.9421 | J78: 2.4597
B79: 1830 | C79: 70 | D79: 90 | E79: 1583.03 | F79: -500 | G79: -400.73 | H79: 2.4073 | I79: 7.3428 | J79: 2.4666
B80: 1860 | C80: 70 | D80: 90 | E80: 1593.29 | F80: -500 | G80: -372.54 | H80: 2.5003 | I80: 7.7471 | J80: 2.4737
B81: 1890 | C81: 70 | D81: 90 | E81: 1603.55 | F81: -500 | G81: -344.35 | H81: 2.5948 | I81: 8.1545 | J81: 2.481
B82: 1920 | C82: 70 | D82: 90 | E82: 1613.81 | F82: -500 | G82: -316.16 | H82: 2.6906 | I82: 8.5645 | J82: 2.4886
B83: 1950 | C83: 70 | D83: 90 | E83: 1624.07 | F83: -500 | G83: -287.97 | H83: 2.7877 | I83: 8.9767 | J83: 2.4965
B84: 1980 | C84: 70 | D84: 90 | E84: 1634.33 | F84: -500 | G84: -259.78 | H84: 2.8859 | I84: 9.3909 | J84: 2.5045
B85: 2010 | C85: 70 | D85: 90 | E85: 1644.59 | F85: -500 | G85: -231.59 | H85: 2.9851 | I85: 9.8068 | J85: 2.5129
B86: 2040 | C86: 70 | D86: 90 | E86: 1654.85 | F86: -500 | G86: -203.4 | H86: 3.0852 | I86: 10.2243 | J86: 2.5214
B87: 2070 | C87: 70 | D87: 90 | E87: 1665.11 | F87: -500 | G87: -175.21 | H87: 3.1862 | I87: 10.643 | J87: 2.5302
B88: 2100 | C88: 70 | D88: 90 | E88: 1675.37 | F88: -500 | G88: -147.02 | H88: 3.2878 | I88: 11.063 | J88: 2.5392
B89: 2130 | C89: 70 | D89: 90 | E89: 1685.63 | F89: -500 | G89: -118.82 | H89: 3.3901 | I89: 11.484 | J89: 2.5485
B90: 2160 | C90: 70 | D90: 90 | E90: 1695.89 | F90: -500 | G90: -90.63 | H90: 3.4931 | I90: 11.9059 | J90: 2.558
B91: 2190 | C91: 70 | D91: 90 | E91: 1706.16 | F91: -500 | G91: -62.44 | H91: 3.5966 | I91: 12.3286 | J91: 2.5678
B92: 2220 | C92: 70 | D92: 90 | E92: 1716.42 | F92: -500 | G92: -34.25 | H92: 3.7006 | I92: 12.7522 | J92: 2.5778
B93: 2250 | C93: 70 | D93: 90 | E93: 1726.68 | F93: -500 | G93: -6.06 | H93: 3.8051 | I93: 13.1764 | J93: 2.5881
B94: 2280 | C94: 70 | D94: 90 | E94: 1736.94 | F94: -500 | G94: 22.13 | H94: 3.91 | I94: 13.6012 | J94: 2.5986
B95: 2310 | C95: 70 | D95: 90 | E95: 1747.2 | F95: -500 | G95: 50.32 | H95: 4.0153 | I95: 14.0266 | J95: 2.6093
B96: 2340 | C96: 70 | D96: 90 | E96: 1757.46 | F96: -500 | G96: 78.51 | H96: 4.121 | I96: 14.4525 | J96: 2.6203
B97: 2370 | C97: 70 | D97: 90 | E97: 1767.72 | F97: -500 | G97: 106.7 | H97: 4.2271 | I97: 14.8789 | J97: 2.6315
B98: 2400 | C98: 70 | D98: 90 | E98: 1777.98 | F98: -500 | G98: 134.89 | H98: 4.3334 | I98: 15.3057 | J98: 2.643
B99: 2430 | C99: 70 | D99: 90 | E99: 1788.24 | F99: -500 | G99: 163.08 | H99: 4.4401 | I99: 15.7329 | J99: 2.6548
B100: 2450 | C100: 70 | D100: 90 | E100: 1795.08 | F100: -500 | G100: 181.88 | H100: 4.5113 | I100: 16.0179 | J100: 2.6627

Sheet 08 - clearance
A1: Offset 08
A2: Offset 08: Perpendicular drilled wellpath r4
A3: Ref_MD | B3: Ref_TVD | C3: Ref_N | D3: Ref_E | E3: Offset_MD | F3: Offset_TVD | G3: Offset_N | H3: Offset_E | I3: Horiz_Bearing | J3: C-C Clr Dist | K3: Ref PCR | L3: Offset PCR | M3: Calc hole | O3: ISCWSA ACR
A4: [m] | B4: [m] | C4: [m] | D4: [m] | E4: [m] | F4: [m] | G4: [m] | H4: [m] | I4: [°] | J4: [m] | K4: [m 1sigma] | L4: [m 1sigma] | M4: [m]
A5: 0 | B5: 0 | C5: 0 | D5: 0 | E5: 0 | F5: 0 | G5: -500 | H5: -900 | I5: 240.945 | J5: 1029.56 | K5: 0 | L5: 0 | M5: =((ref_diam+offset_diam)/2)/(12*3.281) -> 0.7619628162 | O5: =(J5-M5-surface_margin)/(scaling_factor*(SQRT(K5^2+L5^2+sigma_pa^2))) -> 587.7131641
A6: 1 | B6: 1 | C6: 0 | D6: 0 | E6: 1 | F6: 1 | G6: -500 | H6: -900 | I6: 240.945 | J6: 1029.56 | K6: 0.0017 | L6: 0.0018 | M6: 0.7619628162 | O6: 587.7059589
A7: 30 | B7: 30 | C7: 0 | D7: 0 | E7: 30 | F7: 30 | G7: -500 | H7: -900 | I7: 240.945 | J7: 1029.56 | K7: 0.0537 | L7: 0.0537 | M7: 0.7619628162 | O7: 581.0491169
A8: 60 | B8: 60 | C8: 0 | D8: 0 | E8: 60 | F8: 60 | G8: -500 | H8: -900 | I8: 240.945 | J8: 1029.56 | K8: 0.1074 | L8: 0.1075 | M8: 0.7619628162 | O8: 562.3176574
A9: 90 | B9: 90 | C9: 0 | D9: 0 | E9: 90 | F9: 90 | G9: -500 | H9: -900 | I9: 240.945 | J9: 1029.56 | K9: 0.1612 | L9: 0.1613 | M9: 0.7619628162 | O9: 534.7240294
A10: 120 | B10: 120 | C10: 0 | D10: 0 | E10: 120 | F10: 120 | G10: -500 | H10: -900 | I10: 240.945 | J10: 1029.56 | K10: 0.215 | L10: 0.215 | M10: 0.7619628162 | O10: 502.1538972
A11: 150 | B11: 150 | C11: 0 | D11: 0 | E11: 150 | F11: 150 | G11: -500 | H11: -900 | I11: 240.945 | J11: 1029.56 | K11: 0.2688 | L11: 0.2688 | M11: 0.7619628162 | O11: 467.8516141
A12: 180 | B12: 180 | C12: 0 | D12: 0 | E12: 180 | F12: 180 | G12: -500 | H12: -900 | I12: 240.945 | J12: 1029.56 | K12: 0.3225 | L12: 0.3226 | M12: 0.7619628162 | O12: 434.1763616
A13: 210 | B13: 210 | C13: 0 | D13: 0 | E13: 210 | F13: 210 | G13: -500 | H13: -900 | I13: 240.945 | J13: 1029.56 | K13: 0.3763 | L13: 0.3763 | M13: 0.7619628162 | O13: 402.428728
A14: 240 | B14: 240 | C14: 0 | D14: 0 | E14: 240 | F14: 240 | G14: -500 | H14: -900 | I14: 240.945 | J14: 1029.56 | K14: 0.4301 | L14: 0.4301 | M14: 0.7619628162 | O14: 373.2066537
A15: 270 | B15: 270 | C15: 0 | D15: 0 | E15: 270 | F15: 270 | G15: -500 | H15: -900 | I15: 240.945 | J15: 1029.56 | K15: 0.4838 | L15: 0.4839 | M15: 0.7619628162 | O15: 346.7417819
A16: 300 | B16: 300 | C16: 0 | D16: 0 | E16: 300 | F16: 300 | G16: -500 | H16: -900 | I16: 240.945 | J16: 1029.56 | K16: 0.5376 | L16: 0.5377 | M16: 0.7619628162 | O16: 322.9124872
A17: 330 | B17: 330 | C17: 0 | D17: 0 | E17: 330 | F17: 330 | G17: -500 | H17: -900 | I17: 240.945 | J17: 1029.56 | K17: 0.5914 | L17: 0.5914 | M17: 0.7619628162 | O17: 301.568605
A18: 360 | B18: 360 | C18: 0 | D18: 0 | E18: 360 | F18: 360 | G18: -500 | H18: -900 | I18: 240.945 | J18: 1029.56 | K18: 0.6452 | L18: 0.6452 | M18: 0.7619628162 | O18: 282.4283022
A19: 390 | B19: 390 | C19: 0 | D19: 0 | E19: 390 | F19: 390 | G19: -500 | H19: -900 | I19: 240.945 | J19: 1029.56 | K19: 0.6989 | L19: 0.699 | M19: 0.7619628162 | O19: 265.2785483
A20: 420 | B20: 420 | C20: 0 | D20: 0 | E20: 420 | F20: 420 | G20: -500 | H20: -900 | I20: 240.945 | J20: 1029.56 | K20: 0.7527 | L20: 0.7527 | M20: 0.7619628162 | O20: 249.8655275
A21: 450 | B21: 450 | C21: 0 | D21: 0 | E21: 450 | F21: 450 | G21: -500 | H21: -900 | I21: 240.945 | J21: 1029.56 | K21: 0.8065 | L21: 0.8065 | M21: 0.7619628162 | O21: 235.9639704
A22: 480 | B22: 480 | C22: 0 | D22: 0 | E22: 480 | F22: 480 | G22: -500 | H22: -900 | I22: 240.945 | J22: 1029.56 | K22: 0.8602 | L22: 0.8603 | M22: 0.7619628162 | O22: 223.4111397
A23: 510 | B23: 510 | C23: 0 | D23: 0 | E23: 510 | F23: 510 | G23: -500 | H23: -900 | I23: 240.945 | J23: 1029.56 | K23: 0.914 | L23: 0.9141 | M23: 0.7619628162 | O23: 212.0189053
A24: 540 | B24: 540 | C24: 0 | D24: 0 | E24: 540 | F24: 540 | G24: -500 | H24: -900 | I24: 240.945 | J24: 1029.56 | K24: 0.9678 | L24: 0.9678 | M24: 0.7619628162 | O24: 201.6658841
A25: 570 | B25: 570 | C25: 0 | D25: 0 | E25: 570 | F25: 570 | G25: -500 | H25: -900 | I25: 240.945 | J25: 1029.56 | K25: 1.0216 | L25: 1.0216 | M25: 0.7619628162 | O25: 192.2096183
A26: 600 | B26: 600 | C26: 0 | D26: 0 | E26: 600 | F26: 600 | G26: -500 | H26: -900 | I26: 240.945 | J26: 1029.56 | K26: 1.0753 | L26: 1.0754 | M26: 0.7619628162 | O26: 183.5616095
A27: 630 | B27: 630 | C27: 0 | D27: 0 | E27: 630 | F27: 630 | G27: -500 | H27: -900 | I27: 240.945 | J27: 1029.56 | K27: 1.1291 | L27: 1.1291 | M27: 0.7619628162 | O27: 175.6212511
A28: 660 | B28: 660 | C28: 0 | D28: 0 | E28: 660 | F28: 660 | G28: -500 | H28: -900 | I28: 240.945 | J28: 1029.56 | K28: 1.1829 | L28: 1.1829 | M28: 0.7619628162 | O28: 168.3030475
A29: 690 | B29: 690 | C29: 0 | D29: 0 | E29: 690 | F29: 690 | G29: -500 | H29: -900 | I29: 240.945 | J29: 1029.56 | K29: 1.2366 | L29: 1.2367 | M29: 0.7619628162 | O29: 161.5521964
A30: 720 | B30: 720 | C30: 0 | D30: 0 | E30: 720 | F30: 720 | G30: -500 | H30: -900 | I30: 240.945 | J30: 1029.56 | K30: 1.2904 | L30: 1.2905 | M30: 0.7619628162 | O30: 155.2966991
A31: 750 | B31: 750 | C31: 0 | D31: 0 | E31: 750 | F31: 750 | G31: -500 | H31: -900 | I31: 240.945 | J31: 1029.56 | K31: 1.3442 | L31: 1.3442 | M31: 0.7619628162 | O31: 149.4965143
A32: 780 | B32: 780 | C32: 0 | D32: 0 | E32: 1931.91 | F32: 1617.88 | G32: -500 | H32: -304.97 | I32: 211.38 | J32: 1022.28 | K32: 0.9314 | L32: 4.9146 | M32: 0.7619628162 | O32: 58.04180968
A33: 810 | B33: 810 | C33: 0 | D33: 0 | E33: 1942.17 | F33: 1621.39 | G33: -500 | H33: -295.32 | I33: 210.568 | J33: 997.79 | K33: 0.974 | L33: 5.0736 | M33: 0.7619628162 | O33: 54.86673101
A34: 840 | B34: 840 | C34: 0 | D34: 0 | E34: 1952.43 | F34: 1624.9 | G34: -500 | H34: -285.68 | I34: 209.742 | J34: 973.49 | K34: 1.0182 | L34: 5.2398 | M34: 0.7619628162 | O34: 51.82378842
A35: 870 | B35: 870 | C35: 0 | D35: 0 | E35: 1962.7 | F35: 1628.41 | G35: -500 | H35: -276.04 | I35: 208.902 | J35: 949.41 | K35: 1.0641 | L35: 5.4141 | M35: 0.7619628162 | O35: 48.90659069
A36: 900 | B36: 900 | C36: 0 | D36: 0 | E36: 1972.96 | F36: 1631.92 | G36: -500 | H36: -266.4 | I36: 208.048 | J36: 925.57 | K36: 1.1117 | L36: 5.5963 | M36: 0.7619628162 | O36: 46.11861564
A37: 930 | B37: 930 | C37: 0 | D37: 0 | E37: 1983.22 | F37: 1635.43 | G37: -500 | H37: -256.76 | I37: 207.181 | J37: 901.97 | K37: 1.1612 | L37: 5.7871 | M37: =((ref_diam+offset_diam)/2)/(12*3.281) -> 0.7619628162 | O37: =(J37-M37-surface_margin)/(scaling_factor*(SQRT(K37^2+L37^2+sigma_pa^2))) -> 43.45377055
A38: 960 | B38: 960 | C38: 0 | D38: 0 | E38: 1993.48 | F38: 1638.94 | G38: -500 | H38: -247.11 | I38: 206.3 | J38: 878.65 | K38: 1.2125 | L38: 5.9872 | M38: 0.7619628162 | O38: 40.90920226
A39: 990 | B39: 990 | C39: 0 | D39: 0 | E39: 2003.74 | F39: 1642.45 | G39: -500 | H39: -237.47 | I39: 205.405 | J39: 855.62 | K39: 1.2659 | L39: 6.1965 | M39: 0.7619628162 | O39: 38.48534204
A40: 1020 | B40: 1020 | C40: -0.35 | D40: 0 | E40: 2014 | F40: 1645.96 | G40: -500 | H40: -227.83 | I40: 204.512 | J40: 832.7 | K40: 1.3196 | L40: 6.4136 | M40: 0.7619628162 | O40: 36.18250904
A41: 1050 | B41: 1049.97 | C41: -1.57 | D41: 0 | E41: 2024.25 | F41: 1649.47 | G41: -500 | H41: -218.2 | I41: 203.642 | J41: 809.59 | K41: 1.373 | L41: 6.6351 | M41: 0.7619628162 | O41: 34.00130928
A42: 1080 | B42: 1079.88 | C42: -3.83 | D42: 0 | E42: 2034.48 | F42: 1652.96 | G42: -500 | H42: -208.58 | I42: 202.801 | J42: 786.2 | K42: 1.4267 | L42: 6.8596 | M42: 0.7619628162 | O42: 31.9359785
A43: 1110 | B43: 1109.7 | C43: -7.14 | D43: 0 | E43: 2044.68 | F43: 1656.45 | G43: -500 | H43: -199 | I43: 201.987 | J43: 762.53 | K43: 1.4806 | L43: 7.087 | M43: 0.7619628162 | O43: 29.97859469
A44: 1140 | B44: 1139.38 | C44: -11.49 | D44: 0 | E44: 2054.83 | F44: 1659.92 | G44: -500 | H44: -189.46 | I44: 201.198 | J44: 738.58 | K44: 1.5346 | L44: 7.317 | M44: 0.7619628162 | O44: 28.122564
A45: 1170 | B45: 1168.89 | C45: -16.87 | D45: 0 | E45: 2064.92 | F45: 1663.38 | G45: -500 | H45: -179.98 | I45: 200.431 | J45: 714.37 | K45: 1.5887 | L45: 7.5492 | M45: 0.7619628162 | O45: 26.36257532
A46: 1200 | B46: 1198.2 | C46: -23.27 | D46: 0 | E46: 2074.95 | F46: 1666.8 | G46: -500 | H46: -170.56 | I46: 199.686 | J46: 689.89 | K46: 1.6429 | L46: 7.7835 | M46: 0.7619628162 | O46: 24.6914465
A47: 1230 | B47: 1227.27 | C47: -30.7 | D47: 0 | E47: 2084.89 | F47: 1670.2 | G47: -500 | H47: -161.22 | I47: 198.959 | J47: 665.16 | K47: 1.6972 | L47: 8.0198 | M47: 0.7619628162 | O47: 23.10365255
A48: 1260 | B48: 1256.05 | C48: -39.13 | D48: 0 | E48: 2094.73 | F48: 1673.57 | G48: -500 | H48: -151.96 | I48: 198.249 | J48: 640.17 | K48: 1.7518 | L48: 8.2576 | M48: 0.7619628162 | O48: 21.59397934
A49: 1290 | B49: 1284.53 | C49: -48.57 | D49: 0 | E49: 2104.47 | F49: 1676.9 | G49: -500 | H49: -142.81 | I49: 197.555 | J49: 614.94 | K49: 1.8065 | L49: 8.4968 | M49: 0.7619628162 | O49: 20.15766141
A50: 1320 | B50: 1312.66 | C50: -58.99 | D50: 0 | E50: 2114.09 | F50: 1680.19 | G50: -500 | H50: -133.77 | I50: 196.874 | J50: 589.46 | K50: 1.8615 | L50: 8.7372 | M50: 0.7619628162 | O50: 18.78936357
A51: 1350 | B51: 1340.41 | C51: -70.38 | D51: 0 | E51: 2123.58 | F51: 1683.44 | G51: -500 | H51: -124.85 | I51: 196.205 | J51: 563.76 | K51: 1.9168 | L51: 8.9786 | M51: 0.7619628162 | O51: 17.48549076
A52: 1380 | B52: 1367.74 | C52: -82.74 | D52: 0 | E52: 2132.93 | F52: 1686.64 | G52: -500 | H52: -116.07 | I52: 195.545 | J52: 537.84 | K52: 1.9723 | L52: 9.2208 | M52: 0.7619628162 | O52: 16.24179652
A53: 1410 | B53: 1394.63 | C53: -96.05 | D53: 0 | E53: 2142.13 | F53: 1689.78 | G53: -500 | H53: -107.43 | I53: 194.893 | J53: 511.7 | K53: 2.0283 | L53: 9.4639 | M53: 0.7619628162 | O53: 15.05373734
A54: 1440 | B54: 1421.03 | C54: -110.29 | D54: 0 | E54: 2151.16 | F54: 1692.87 | G54: -500 | H54: -98.94 | I54: 194.245 | J54: 485.35 | K54: 2.0846 | L54: 9.7074 | M54: 0.7619628162 | O54: 13.91852195
A55: 1470 | B55: 1446.93 | C55: -125.43 | D55: 0 | E55: 2160.02 | F55: 1695.9 | G55: -500 | H55: -90.62 | I55: 193.6 | J55: 458.8 | K55: 2.1414 | L55: 9.9515 | M55: 0.7619628162 | O55: 12.8324088
A56: 1500 | B56: 1472.28 | C56: -141.48 | D56: 0 | E56: 2168.69 | F56: 1698.87 | G56: -500 | H56: -82.47 | I56: 192.955 | J56: 432.07 | K56: 2.1987 | L56: 10.1963 | M56: 0.7619628162 | O56: 11.79252616
A57: 1530 | B57: 1497.05 | C57: -158.39 | D57: 0 | E57: 2177.16 | F57: 1701.76 | G57: -500 | H57: -74.51 | I57: 192.305 | J57: 405.16 | K57: 2.2566 | L57: 10.4417 | M57: 0.7619628162 | O57: 10.79593068
A58: 1560 | B58: 1521.22 | C58: -176.17 | D58: 0 | E58: 2185.42 | F58: 1704.59 | G58: -500 | H58: -66.74 | I58: 191.646 | J58: 378.09 | K58: 2.3153 | L58: 10.6879 | M58: 0.7619628162 | O58: 9.840142867
A59: 1590 | B59: 1544.75 | C59: -194.77 | D59: 0 | E59: 2193.47 | F59: 1707.34 | G59: -500 | H59: -59.18 | I59: 190.973 | J59: 350.86 | K59: 2.375 | L59: 10.9353 | M59: 0.7619628162 | O59: 8.922302281
A60: 1620 | B60: 1567.62 | C60: -214.19 | D60: 0 | E60: 2201.29 | F60: 1710.02 | G60: -500 | H60: -51.83 | I60: 190.278 | J60: 323.5 | K60: 2.4359 | L60: 11.1844 | M60: 0.7619628162 | O60: 8.040594922
A61: 1650 | B61: 1589.79 | C61: -234.39 | D61: 0 | E61: 2208.88 | F61: 1712.61 | G61: -500 | H61: -44.7 | I61: 189.553 | J61: 296.03 | K61: 2.4983 | L61: 11.4356 | M61: 0.7619628162 | O61: 7.193295085
A62: 1680 | B62: 1611.25 | C62: -255.35 | D62: 0 | E62: 2216.22 | F62: 1715.12 | G62: -500 | H62: -37.81 | I62: 188.784 | J62: 268.46 | K62: 2.5629 | L62: 11.6899 | M62: 0.7619628162 | O62: 6.378319411
A63: 1710 | B63: 1631.97 | C63: -277.05 | D63: 0 | E63: 2223.3 | F63: 1717.55 | G63: -500 | H63: -31.15 | I63: 187.953 | J63: 240.83 | K63: 2.6305 | L63: 11.9483 | M63: 0.7619628162 | O63: 5.594701769
A64: 1740 | B64: 1651.91 | C64: -299.46 | D64: 0 | E64: 2230.12 | F64: 1719.88 | G64: -500 | H64: -24.74 | I64: 187.032 | J64: 213.19 | K64: 2.7021 | L64: 12.2118 | M64: 0.7619628162 | O64: 4.841992074
A65: 1770 | B65: 1671.06 | C65: -322.55 | D65: 0 | E65: 2236.67 | F65: 1722.12 | G65: -500 | H65: -18.58 | I65: 185.978 | J65: 185.58 | K65: 2.7798 | L65: 12.4808 | M65: 0.7619628162 | O65: 4.119867368
A66: 1800 | B66: 1689.39 | C66: -346.29 | D66: 0 | E66: 2242.94 | F66: 1724.26 | G66: -500 | H66: -12.69 | I66: 184.72 | J66: 158.12 | K66: 2.8664 | L66: 12.7531 | M66: 0.7619628162 | O66: 3.430498286
A67: 1830 | B67: 1706.89 | C67: -370.66 | D67: 0 | E67: 2248.93 | F67: 1726.31 | G67: -500 | H67: -7.07 | I67: 183.129 | J67: 130.98 | K67: 2.9664 | L67: 13.0174 | M67: 0.7619628162 | O67: 2.778302829
A68: 1860 | B68: 1723.52 | C68: -395.63 | D68: 0 | E68: 2254.62 | F68: 1728.26 | G68: -500 | H68: -1.72 | I68: 180.947 | J68: 104.49 | K68: 3.0863 | L68: 13.2298 | M68: 0.7619628162 | O68: 2.173781556
A69: 1890 | B69: 1739.27 | C69: -421.16 | D69: 0 | E69: 2260 | F69: 1730.1 | G69: -500 | H69: 3.34 | I69: 177.576 | J69: 79.44 | K69: 3.23 | L69: 13.2199 | M69: =((ref_diam+offset_diam)/2)/(12*3.281) -> 0.7619628162 | O69: =(J69-M69-surface_margin)/(scaling_factor*(SQRT(K69^2+L69^2+sigma_pa^2))) -> 1.644426602
A70: 1920 | B70: 1754.12 | C70: -447.23 | D70: 0 | E70: 2265.08 | F70: 1731.83 | G70: -500 | H70: 8.11 | I70: 171.263 | J70: 57.86 | K70: 3.3577 | L70: 12.2966 | M70: 0.7619628162 | O70: 1.272127896
A71: 1950 | B71: 1768.05 | C71: -473.79 | D71: 0 | E71: 2269.85 | F71: 1733.46 | G71: -500 | H71: 12.59 | I71: 154.344 | J71: 45.18 | K71: 3.2028 | L71: 8.3843 | M71: 0.7619628162 | O71: 1.402266615
A72: 1980 | B72: 1781.04 | C72: -500.83 | D72: 0 | E72: 2274.29 | F72: 1734.98 | G72: -500 | H72: 16.76 | I72: 87.159 | J72: 49.02 | K72: 2.6322 | L72: 3.899 | M72: 0.7619628162 | O72: 2.896387989
A73: 2010 | B73: 1793.09 | C73: -528.31 | D73: 0 | E73: 2278.41 | F73: 1736.39 | G73: -500 | H73: 20.63 | I73: 36.091 | J73: 66.64 | K73: 2.4207 | L73: 6.8009 | M73: 0.7619628162 | O73: 2.589298589
A74: 2040 | B74: 1804.16 | C74: -556.19 | D74: 0 | E74: 2282.2 | F74: 1737.69 | G74: -500 | H74: 24.19 | I74: 23.298 | J74: 90.34 | K74: 2.4788 | L74: 9.0512 | M74: 0.7619628162 | O74: 2.714253002
A75: 2070 | B75: 1814.26 | C75: -584.43 | D75: 0 | E75: 2285.65 | F75: 1738.87 | G75: -500 | H75: 27.44 | I75: 18.004 | J75: 116.47 | K75: 2.576 | L75: 10.3121 | M75: 0.7619628162 | O75: 3.098821039
A76: 2100 | B76: 1823.37 | C76: -613.02 | D76: 0 | E76: 2288.77 | F76: 1739.94 | G76: -500 | H76: 30.37 | I76: 15.04 | J76: 143.72 | K76: 2.6637 | L76: 11.0929 | M76: 0.7619628162 | O76: 3.569383301
A77: 2130 | B77: 1831.47 | C77: -641.9 | D77: 0 | E77: 2291.54 | F77: 1740.88 | G77: -500 | H77: 32.97 | I77: 13.081 | J77: 171.55 | K77: 2.7378 | L77: 11.6265 | M77: 0.7619628162 | O77: 4.074532307
A78: 2160 | B78: 1838.56 | C78: -671.05 | D78: 0 | E78: 2293.96 | F78: 1741.71 | G78: -500 | H78: 35.25 | I78: 11.644 | J78: 199.7 | K78: 2.8007 | L78: 12.019 | M78: 0.7619628162 | O78: 4.595024847
A79: 2190 | B79: 1844.63 | C79: -700.43 | D79: 0 | E79: 2296.04 | F79: 1742.42 | G79: -500 | H79: 37.2 | I79: 10.514 | J79: 228.04 | K79: 2.8549 | L79: 12.3232 | M79: 0.7619628162 | O79: 5.122723348
A80: 2220 | B80: 1849.66 | C80: -730 | D80: 0 | E80: 2297.76 | F80: 1743.01 | G80: -500 | H80: 38.82 | I80: 9.58 | J80: 256.48 | K80: 2.9024 | L80: 12.5675 | M80: 0.7619628162 | O80: 5.653601457
A81: 2250 | B81: 1853.67 | C81: -759.73 | D81: 0 | E81: 2299.13 | F81: 1743.48 | G81: -500 | H81: 40.11 | I81: 8.778 | J81: 284.97 | K81: 2.9446 | L81: 12.7686 | M81: 0.7619628162 | O81: 6.185840016
A82: 2280 | B82: 1856.72 | C82: -789.57 | D82: 0 | E82: 2300.17 | F82: 1743.84 | G82: -500 | H82: 41.09 | I82: 8.075 | J82: 313.5 | K82: 2.9824 | L82: 12.9359 | M82: 0.7619628162 | O82: 6.71963029
A83: 2310 | B83: 1859.33 | C83: -819.46 | D83: 0 | E83: 2301.07 | F83: 1744.14 | G83: -500 | H83: 41.93 | I83: 7.477 | J83: 342.17 | K83: 3.0159 | L83: 13.0726 | M83: 0.7619628162 | O83: 7.259389475
A84: 2340 | B84: 1861.95 | C84: -849.34 | D84: 0 | E84: 2301.96 | F84: 1744.45 | G84: -500 | H84: 42.77 | I84: 6.979 | J84: 371.05 | K84: 3.0457 | L84: 13.1836 | M84: 0.7619628162 | O84: 7.807259372
A85: 2370 | B85: 1864.56 | C85: -879.23 | D85: 0 | E85: 2302.86 | F85: 1744.75 | G85: -500 | H85: 43.61 | I85: 6.559 | J85: 400.09 | K85: 3.0722 | L85: 13.2756 | M85: 0.7619628162 | O85: 8.361047102
A86: 2400 | B86: 1867.18 | C86: -909.12 | D86: 0 | E86: 2303.75 | F86: 1745.06 | G86: -500 | H86: 44.45 | I86: 6.2 | J86: 429.26 | K86: 3.0962 | L86: 13.3533 | M86: 0.7619628162 | O86: 8.919240859
A87: 2430 | B87: 1869.79 | C87: -939 | D87: 0 | E87: 2304.64 | F87: 1745.37 | G87: -500 | H87: 45.29 | I87: 5.89 | J87: 458.54 | K87: 3.1183 | L87: 13.4199 | M87: 0.7619628162 | O87: 9.480871516
A88: 2460 | B88: 1872.41 | C88: -968.89 | D88: 0 | E88: 2305.54 | F88: 1745.67 | G88: -500 | H88: 46.13 | I88: 5.618 | J88: 487.9 | K88: 3.1388 | L88: 13.478 | M88: 0.7619628162 | O88: 10.04474904
A89: 2490 | B89: 1875.02 | C89: -998.77 | D89: 0 | E89: 2306.43 | F89: 1745.98 | G89: -500 | H89: 46.97 | I89: 5.38 | J89: 517.33 | K89: 3.1579 | L89: 13.5292 | M89: 0.7619628162 | O89: 10.6104652
A90: 2520 | B90: 1877.64 | C90: -1028.66 | D90: 0 | E90: 2307.33 | F90: 1746.28 | G90: -500 | H90: 47.81 | I90: 5.167 | J90: 546.83 | K90: 3.176 | L90: 13.5749 | M90: 0.7619628162 | O90: 11.17768908
A91: 2550 | B91: 1880.25 | C91: -1058.55 | D91: 0 | E91: 2308.22 | F91: 1746.59 | G91: -500 | H91: 48.65 | I91: 4.978 | J91: 576.37 | K91: 3.1932 | L91: 13.6162 | M91: 0.7619628162 | O91: 11.74555276
A92: 2580 | B92: 1882.87 | C92: -1088.43 | D92: 0 | E92: 2309.12 | F92: 1746.9 | G92: -500 | H92: 49.49 | I92: 4.807 | J92: 605.96 | K92: 3.2097 | L92: 13.6538 | M92: 0.7619628162 | O92: 12.31416013
A93: 2610 | B93: 1885.48 | C93: -1118.32 | D93: 0 | E93: 2310.01 | F93: 1747.2 | G93: -500 | H93: 50.33 | I93: 4.653 | J93: 635.59 | K93: 3.2256 | L93: 13.6884 | M93: 0.7619628162 | O93: 12.88311248
A94: 2640 | B94: 1888.09 | C94: -1148.2 | D94: 0 | E94: 2310.9 | F94: 1747.51 | G94: -500 | H94: 51.17 | I94: 4.514 | J94: 665.24 | K94: 3.241 | L94: 13.7204 | M94: 0.7619628162 | O94: 13.45197822
A95: 2670 | B95: 1890.71 | C95: -1178.09 | D95: 0 | E95: 2311.8 | F95: 1747.81 | G95: -500 | H95: 52.01 | I95: 4.386 | J95: 694.93 | K95: 3.256 | L95: 13.7503 | M95: 0.7619628162 | O95: 14.02097559
A96: 2700 | B96: 1893.32 | C96: -1207.97 | D96: 0 | E96: 2312.69 | F96: 1748.12 | G96: -500 | H96: 52.85 | I96: 4.269 | J96: 724.64 | K96: 3.2707 | L96: 13.7784 | M96: 0.7619628162 | O96: 14.5896328
A97: 2730 | B97: 1895.94 | C97: -1237.86 | D97: 0 | E97: 2313.59 | F97: 1748.42 | G97: -500 | H97: 53.69 | I97: 4.162 | J97: 754.37 | K97: 3.2851 | L97: 13.8049 | M97: 0.7619628162 | O97: 15.15796239
A98: 2760 | B98: 1898.55 | C98: -1267.75 | D98: 0 | E98: 2314.48 | F98: 1748.73 | G98: -500 | H98: 54.53 | I98: 4.063 | J98: 784.13 | K98: 3.2993 | L98: 13.83 | M98: 0.7619628162 | O98: 15.72612078
A99: 2790 | B99: 1900.91 | C99: -1297.65 | D99: 0 | E99: 2315.29 | F99: 1749.01 | G99: -500 | H99: 55.29 | I99: 3.965 | J99: 813.87 | K99: 3.3131 | L99: 13.8535 | M99: 0.7619628162 | O99: 16.2935496
A100: 2820 | B100: 1902.48 | C100: -1327.61 | D100: 0 | E100: 2315.82 | F100: 1749.19 | G100: -500 | H100: 55.79 | I100: 3.857 | J100: 843.53 | K100: 3.3265 | L100: 13.8743 | M100: 0.7619628162 | O100: 16.86051063
A101: 2850 | B101: 1903 | C101: -1357.6 | D101: 0 | E101: 2316 | F101: 1749.25 | G101: -500 | H101: 55.96 | I101: 3.733 | J101: 873.07 | K101: 3.3393 | L101: 13.8915 | M101: 0.7619628162 | O101: 17.42765206
A102: 2880 | B102: 1903 | C102: -1387.6 | D102: 0 | E102: 2316 | F102: 1749.25 | G102: -500 | H102: 55.96 | I102: 3.608 | J102: 902.56 | K102: 3.3517 | L102: 13.9061 | M102: 0.7619628162 | O102: =(J102-M102-surface_margin)/(scaling_factor*(SQRT(K102^2+L102^2+sigma_pa^2))) -> 17.99552148
A103: 2910 | B103: 1903 | C103: -1417.6 | D103: 0 | E103: 2316 | F103: 1749.25 | G103: -500 | H103: 55.96 | I103: 3.49 | J103: 932.08 | K103: 3.364 | L103: 13.9192 | M103: 0.7619628162 | O103: 18.56454623
A104: 2940 | B104: 1903 | C104: -1447.6 | D104: 0 | E104: 2316 | F104: 1749.25 | G104: -500 | H104: 55.96 | I104: 3.38 | J104: 961.63 | K104: 3.3761 | L104: 13.9312 | M104: 0.7619628162 | O104: 19.13441064

Sheet 09 - well
A1: Wellpath | B1: Offset 09: Vertical drilled wellpath r4
A3: REPORT SETUP INFORMATION
A4: Projection System | B4: ED50 / UTM Zone 31 North
A5: North Reference | B5: Grid
A6: Scale | B6: 0.9996
A7: Convergence at slot | B7: 0.00° East
A9: WELLPATH LOCATION | B9: Local North | C9: Local East | D9: Easting | E9: Northing | F9: Latitude | G9: Longitude
B10: [m] | C10: [m] | D10: [m] | E10: [m]
B11: -1000 | C11: 0 | D11: 500000 | E11: 6650567.11 | F11: 59°59'27.689"N | G11: 3°00'00.000"E
B15: MD | C15: Inclination | D15: Azimuth | E15: TVD | F15: North | G15: East | H15: sigmaH | I15: sigmaL | J15: sigmaA
B16: [m] | C16: [°] | D16: [°] | E16: [m] | F16: [m] | G16: [m]
B17: 0 | C17: 0 | D17: 0 | E17: 0 | F17: -1000 | G17: 0 | H17: 0 | I17: 0 | J17: 0
B18: 1 | C18: 0 | D18: 0 | E18: 1 | F18: -1000 | G18: 0 | H18: 0.0018 | I18: 0.0018 | J18: 0.35
B19: 30 | C19: 0 | D19: 0 | E19: 30 | F19: -1000 | G19: 0 | H19: 0.0538 | I19: 0.0538 | J19: 0.3504
B20: 60 | C20: 0 | D20: 0 | E20: 60 | F20: -1000 | G20: 0 | H20: 0.1075 | I20: 0.1075 | J20: 0.3516
B21: 90 | C21: 0 | D21: 0 | E21: 90 | F21: -1000 | G21: 0 | H21: 0.1613 | I21: 0.1613 | J21: 0.3536
B22: 120 | C22: 0 | D22: 0 | E22: 120 | F22: -1000 | G22: 0 | H22: 0.2151 | I22: 0.2151 | J22: 0.3564
B23: 150 | C23: 0 | D23: 0 | E23: 150 | F23: -1000 | G23: 0 | H23: 0.2689 | I23: 0.2689 | J23: 0.36
B24: 180 | C24: 0 | D24: 0 | E24: 180 | F24: -1000 | G24: 0 | H24: 0.3226 | I24: 0.3226 | J24: 0.3643
B25: 210 | C25: 0 | D25: 0 | E25: 210 | F25: -1000 | G25: 0 | H25: 0.3764 | I25: 0.3764 | J25: 0.3694
B26: 240 | C26: 0 | D26: 0 | E26: 240 | F26: -1000 | G26: 0 | H26: 0.4302 | I26: 0.4302 | J26: 0.3752
B27: 270 | C27: 0 | D27: 0 | E27: 270 | F27: -1000 | G27: 0 | H27: 0.4839 | I27: 0.4839 | J27: 0.3817
B28: 300 | C28: 0 | D28: 0 | E28: 300 | F28: -1000 | G28: 0 | H28: 0.5377 | I28: 0.5377 | J28: 0.3889
B29: 330 | C29: 0 | D29: 0 | E29: 330 | F29: -1000 | G29: 0 | H29: 0.5915 | I29: 0.5915 | J29: 0.3967
B30: 360 | C30: 0 | D30: 0 | E30: 360 | F30: -1000 | G30: 0 | H30: 0.6452 | I30: 0.6452 | J30: 0.4052
B31: 390 | C31: 0 | D31: 0 | E31: 390 | F31: -1000 | G31: 0 | H31: 0.699 | I31: 0.699 | J31: 0.4143
B32: 420 | C32: 0 | D32: 0 | E32: 420 | F32: -1000 | G32: 0 | H32: 0.7528 | I32: 0.7528 | J32: 0.424
B33: 450 | C33: 0 | D33: 0 | E33: 450 | F33: -1000 | G33: 0 | H33: 0.8066 | I33: 0.8066 | J33: 0.4342
B34: 480 | C34: 0 | D34: 0 | E34: 480 | F34: -1000 | G34: 0 | H34: 0.8603 | I34: 0.8603 | J34: 0.4451
B35: 510 | C35: 0 | D35: 0 | E35: 510 | F35: -1000 | G35: 0 | H35: 0.9141 | I35: 0.9141 | J35: 0.4564
B36: 540 | C36: 0 | D36: 0 | E36: 540 | F36: -1000 | G36: 0 | H36: 0.9679 | I36: 0.9679 | J36: 0.4683
B37: 570 | C37: 0 | D37: 0 | E37: 570 | F37: -1000 | G37: 0 | H37: 1.0216 | I37: 1.0216 | J37: 0.4806
B38: 600 | C38: 0 | D38: 0 | E38: 600 | F38: -1000 | G38: 0 | H38: 1.0754 | I38: 1.0754 | J38: 0.4935
B39: 630 | C39: 0 | D39: 0 | E39: 630 | F39: -1000 | G39: 0 | H39: 1.1292 | I39: 1.1292 | J39: 0.5068
B40: 660 | C40: 0 | D40: 0 | E40: 660 | F40: -1000 | G40: 0 | H40: 1.183 | I40: 1.183 | J40: 0.5205
B41: 690 | C41: 0 | D41: 0 | E41: 690 | F41: -1000 | G41: 0 | H41: 1.2367 | I41: 1.2367 | J41: 0.5348
B42: 720 | C42: 0 | D42: 0 | E42: 720 | F42: -1000 | G42: 0 | H42: 1.2905 | I42: 1.2905 | J42: 0.5494
B43: 750 | C43: 0 | D43: 0 | E43: 750 | F43: -1000 | G43: 0 | H43: 1.3443 | I43: 1.3443 | J43: 0.5645
B44: 780 | C44: 0 | D44: 0 | E44: 780 | F44: -1000 | G44: 0 | H44: 1.398 | I44: 1.398 | J44: 0.58
B45: 810 | C45: 0 | D45: 0 | E45: 810 | F45: -1000 | G45: 0 | H45: 1.4518 | I45: 1.4518 | J45: 0.596
B46: 840 | C46: 0 | D46: 0 | E46: 840 | F46: -1000 | G46: 0 | H46: 1.5056 | I46: 1.5056 | J46: 0.6123
B47: 870 | C47: 0 | D47: 0 | E47: 870 | F47: -1000 | G47: 0 | H47: 1.5594 | I47: 1.5594 | J47: 0.629
B48: 900 | C48: 0 | D48: 0 | E48: 900 | F48: -1000 | G48: 0 | H48: 1.6131 | I48: 1.6131 | J48: 0.6462
B49: 930 | C49: 0 | D49: 0 | E49: 930 | F49: -1000 | G49: 0 | H49: 1.6669 | I49: 1.6669 | J49: 0.6637
B50: 960 | C50: 0 | D50: 0 | E50: 960 | F50: -1000 | G50: 0 | H50: 1.7207 | I50: 1.7207 | J50: 0.6816
B51: 990 | C51: 0 | D51: 0 | E51: 990 | F51: -1000 | G51: 0 | H51: 1.7744 | I51: 1.7744 | J51: 0.6999
B52: 1020 | C52: 0 | D52: 0 | E52: 1020 | F52: -1000 | G52: 0 | H52: 1.8282 | I52: 1.8282 | J52: 0.7186
B53: 1050 | C53: 0 | D53: 0 | E53: 1050 | F53: -1000 | G53: 0 | H53: 1.882 | I53: 1.882 | J53: 0.7377
B54: 1080 | C54: 0 | D54: 0 | E54: 1080 | F54: -1000 | G54: 0 | H54: 1.9357 | I54: 1.9357 | J54: 0.7572
B55: 1110 | C55: 0 | D55: 0 | E55: 1110 | F55: -1000 | G55: 0 | H55: 1.9895 | I55: 1.9895 | J55: 0.777
B56: 1140 | C56: 0 | D56: 0 | E56: 1140 | F56: -1000 | G56: 0 | H56: 2.0433 | I56: 2.0433 | J56: 0.7973
B57: 1170 | C57: 0 | D57: 0 | E57: 1170 | F57: -1000 | G57: 0 | H57: 2.0971 | I57: 2.0971 | J57: 0.8179
B58: 1200 | C58: 0 | D58: 0 | E58: 1200 | F58: -1000 | G58: 0 | H58: 2.1508 | I58: 2.1508 | J58: 0.8389
B59: 1230 | C59: 0 | D59: 0 | E59: 1230 | F59: -1000 | G59: 0 | H59: 2.2046 | I59: 2.2046 | J59: 0.8602
B60: 1260 | C60: 0 | D60: 0 | E60: 1260 | F60: -1000 | G60: 0 | H60: 2.2584 | I60: 2.2584 | J60: 0.882
B61: 1290 | C61: 0 | D61: 0 | E61: 1290 | F61: -1000 | G61: 0 | H61: 2.3121 | I61: 2.3121 | J61: 0.9041
B62: 1320 | C62: 0 | D62: 0 | E62: 1320 | F62: -1000 | G62: 0 | H62: 2.3659 | I62: 2.3659 | J62: 0.9266
B63: 1350 | C63: 0 | D63: 0 | E63: 1350 | F63: -1000 | G63: 0 | H63: 2.4197 | I63: 2.4197 | J63: 0.9495
B64: 1380 | C64: 0 | D64: 0 | E64: 1380 | F64: -1000 | G64: 0 | H64: 2.4735 | I64: 2.4735 | J64: 0.9728
B65: 1410 | C65: 0 | D65: 0 | E65: 1410 | F65: -1000 | G65: 0 | H65: 2.5272 | I65: 2.5272 | J65: 0.9965
B66: 1440 | C66: 0 | D66: 0 | E66: 1440 | F66: -1000 | G66: 0 | H66: 2.581 | I66: 2.581 | J66: 1.0205
B67: 1470 | C67: 0 | D67: 0 | E67: 1470 | F67: -1000 | G67: 0 | H67: 2.6348 | I67: 2.6348 | J67: 1.045
B68: 1500 | C68: 0 | D68: 0 | E68: 1500 | F68: -1000 | G68: 0 | H68: 2.6885 | I68: 2.6885 | J68: 1.0698
B69: 1530 | C69: 0 | D69: 0 | E69: 1530 | F69: -1000 | G69: 0 | H69: 2.7423 | I69: 2.7423 | J69: 1.095
B70: 1560 | C70: 0 | D70: 0 | E70: 1560 | F70: -1000 | G70: 0 | H70: 2.7961 | I70: 2.7961 | J70: 1.1206
B71: 1590 | C71: 0 | D71: 0 | E71: 1590 | F71: -1000 | G71: 0 | H71: 2.8498 | I71: 2.8498 | J71: 1.1466
B72: 1620 | C72: 0 | D72: 0 | E72: 1620 | F72: -1000 | G72: 0 | H72: 2.9036 | I72: 2.9036 | J72: 1.173
B73: 1650 | C73: 0 | D73: 0 | E73: 1650 | F73: -1000 | G73: 0 | H73: 2.9574 | I73: 2.9574 | J73: 1.1998
B74: 1680 | C74: 0 | D74: 0 | E74: 1680 | F74: -1000 | G74: 0 | H74: 3.0112 | I74: 3.0112 | J74: 1.227
B75: 1710 | C75: 0 | D75: 0 | E75: 1710 | F75: -1000 | G75: 0 | H75: 3.0649 | I75: 3.0649 | J75: 1.2545
B76: 1740 | C76: 0 | D76: 0 | E76: 1740 | F76: -1000 | G76: 0 | H76: 3.1187 | I76: 3.1187 | J76: 1.2825
B77: 1770 | C77: 0 | D77: 0 | E77: 1770 | F77: -1000 | G77: 0 | H77: 3.1725 | I77: 3.1725 | J77: 1.3109
B78: 1800 | C78: 0 | D78: 0 | E78: 1800 | F78: -1000 | G78: 0 | H78: 3.2262 | I78: 3.2262 | J78: 1.3397
B79: 1830 | C79: 0 | D79: 0 | E79: 1830 | F79: -1000 | G79: 0 | H79: 3.28 | I79: 3.28 | J79: 1.3688
B80: 1860 | C80: 0 | D80: 0 | E80: 1860 | F80: -1000 | G80: 0 | H80: 3.3338 | I80: 3.3338 | J80: 1.3984
B81: 1890 | C81: 0 | D81: 0 | E81: 1890 | F81: -1000 | G81: 0 | H81: 3.3876 | I81: 3.3876 | J81: 1.4284
B82: 1920 | C82: 0 | D82: 0 | E82: 1920 | F82: -1000 | G82: 0 | H82: 3.4413 | I82: 3.4413 | J82: 1.4587
B83: 1950 | C83: 0 | D83: 0 | E83: 1950 | F83: -1000 | G83: 0 | H83: 3.4951 | I83: 3.4951 | J83: 1.4895
B84: 1980 | C84: 0 | D84: 0 | E84: 1980 | F84: -1000 | G84: 0 | H84: 3.5489 | I84: 3.5489 | J84: 1.5207
B85: 2010 | C85: 0 | D85: 0 | E85: 2010 | F85: -1000 | G85: 0 | H85: 3.6026 | I85: 3.6026 | J85: 1.5523
B86: 2040 | C86: 0 | D86: 0 | E86: 2040 | F86: -1000 | G86: 0 | H86: 3.6564 | I86: 3.6564 | J86: 1.5843
B87: 2070 | C87: 0 | D87: 0 | E87: 2070 | F87: -1000 | G87: 0 | H87: 3.7102 | I87: 3.7102 | J87: 1.6167
B88: 2100 | C88: 0 | D88: 0 | E88: 2100 | F88: -1000 | G88: 0 | H88: 3.764 | I88: 3.764 | J88: 1.6495
B89: 2130 | C89: 0 | D89: 0 | E89: 2130 | F89: -1000 | G89: 0 | H89: 3.8177 | I89: 3.8177 | J89: 1.6828
B90: 2160 | C90: 0 | D90: 0 | E90: 2160 | F90: -1000 | G90: 0 | H90: 3.8715 | I90: 3.8715 | J90: 1.7164
B91: 2190 | C91: 0 | D91: 0 | E91: 2190 | F91: -1000 | G91: 0 | H91: 3.9253 | I91: 3.9253 | J91: 1.7505
B92: 2200 | C92: 0 | D92: 0 | E92: 2200 | F92: -1000 | G92: 0 | H92: 3.9432 | I92: 3.9432 | J92: 1.7619

Sheet 09 - clearance
A1: Offset 09
A2: Offset 09: Vertical drilled wellpath r4
A3: Ref_MD | B3: Ref_TVD | C3: Ref_N | D3: Ref_E | E3: Offset_MD | F3: Offset_TVD | G3: Offset_N | H3: Offset_E | I3: Horiz_Bearing | J3: C-C Clr Dist | K3: Ref PCR | L3: Offset PCR | M3: Calc hole | O3: ISCWSA ACR
A4: [m] | B4: [m] | C4: [m] | D4: [m] | E4: [m] | F4: [m] | G4: [m] | H4: [m] | I4: [°] | J4: [m] | K4: [m 1sigma] | L4: [m 1sigma] | M4: [m]
A5: 0 | B5: 0 | C5: 0 | D5: 0 | E5: 0 | F5: 0 | G5: -1000 | H5: 0 | I5: 180 | J5: 1000 | K5: 0 | L5: 0 | M5: =((ref_diam+offset_diam)/2)/(12*3.281) -> 0.7619628162 | O5: =(J5-M5-surface_margin)/(scaling_factor*(SQRT(K5^2+L5^2+sigma_pa^2))) -> 570.8217355
A6: 1 | B6: 1 | C6: 0 | D6: 0 | E6: 1 | F6: 1 | G6: -1000 | H6: 0 | I6: 180 | J6: 1000 | K6: 0.0017 | L6: 0.0018 | M6: 0.7619628162 | O6: 570.8147374
A7: 30 | B7: 30 | C7: 0 | D7: 0 | E7: 30 | F7: 30 | G7: -1000 | H7: 0 | I7: 180 | J7: 1000 | K7: 0.0537 | L7: 0.0538 | M7: 0.7619628162 | O7: 564.3373598
A8: 60 | B8: 60 | C8: 0 | D8: 0 | E8: 60 | F8: 60 | G8: -1000 | H8: 0 | I8: 180 | J8: 1000 | K8: 0.1074 | L8: 0.1075 | M8: 0.7619628162 | O8: 546.1561195
A9: 90 | B9: 90 | C9: 0 | D9: 0 | E9: 90 | F9: 90 | G9: -1000 | H9: 0 | I9: 180 | J9: 1000 | K9: 0.1612 | L9: 0.1613 | M9: 0.7619628162 | O9: 519.3555583
A10: 120 | B10: 120 | C10: 0 | D10: 0 | E10: 120 | F10: 120 | G10: -1000 | H10: 0 | I10: 180 | J10: 1000 | K10: 0.215 | L10: 0.2151 | M10: 0.7619628162 | O10: 487.6908976
A11: 150 | B11: 150 | C11: 0 | D11: 0 | E11: 150 | F11: 150 | G11: -1000 | H11: 0 | I11: 180 | J11: 1000 | K11: 0.2688 | L11: 0.2689 | M11: 0.7619628162 | O11: 454.3741553
A12: 180 | B12: 180 | C12: 0 | D12: 0 | E12: 180 | F12: 180 | G12: -1000 | H12: 0 | I12: 180 | J12: 1000 | K12: 0.3225 | L12: 0.3226 | M12: 0.7619628162 | O12: 421.697725
A13: 210 | B13: 210 | C13: 0 | D13: 0 | E13: 210 | F13: 210 | G13: -1000 | H13: 0 | I13: 180 | J13: 1000 | K13: 0.3763 | L13: 0.3764 | M13: 0.7619628162 | O13: 390.834963
A14: 240 | B14: 240 | C14: 0 | D14: 0 | E14: 240 | F14: 240 | G14: -1000 | H14: 0 | I14: 180 | J14: 1000 | K14: 0.4301 | L14: 0.4302 | M14: 0.7619628162 | O14: 362.4551968
A15: 270 | B15: 270 | C15: 0 | D15: 0 | E15: 270 | F15: 270 | G15: -1000 | H15: 0 | I15: 180 | J15: 1000 | K15: 0.4838 | L15: 0.4839 | M15: 0.7619628162 | O15: 336.7760973
A16: 300 | B16: 300 | C16: 0 | D16: 0 | E16: 300 | F16: 300 | G16: -1000 | H16: 0 | I16: 180 | J16: 1000 | K16: 0.5376 | L16: 0.5377 | M16: 0.7619628162 | O16: 313.6316789
A17: 330 | B17: 330 | C17: 0 | D17: 0 | E17: 330 | F17: 330 | G17: -1000 | H17: 0 | I17: 180 | J17: 1000 | K17: 0.5914 | L17: 0.5915 | M17: 0.7619628162 | O17: 292.8829968
A18: 360 | B18: 360 | C18: 0 | D18: 0 | E18: 360 | F18: 360 | G18: -1000 | H18: 0 | I18: 180 | J18: 1000 | K18: 0.6452 | L18: 0.6452 | M18: 0.7619628162 | O18: 274.3110474
A19: 390 | B19: 390 | C19: 0 | D19: 0 | E19: 390 | F19: 390 | G19: -1000 | H19: 0 | I19: 180 | J19: 1000 | K19: 0.6989 | L19: 0.699 | M19: 0.7619628162 | O19: 257.6541935
A20: 420 | B20: 420 | C20: 0 | D20: 0 | E20: 420 | F20: 420 | G20: -1000 | H20: 0 | I20: 180 | J20: 1000 | K20: 0.7527 | L20: 0.7528 | M20: 0.7619628162 | O20: 242.6709506
A21: 450 | B21: 450 | C21: 0 | D21: 0 | E21: 450 | F21: 450 | G21: -1000 | H21: 0 | I21: 180 | J21: 1000 | K21: 0.8065 | L21: 0.8066 | M21: 0.7619628162 | O21: 229.1702263
A22: 480 | B22: 480 | C22: 0 | D22: 0 | E22: 480 | F22: 480 | G22: -1000 | H22: 0 | I22: 180 | J22: 1000 | K22: 0.8602 | L22: 0.8603 | M22: 0.7619628162 | O22: 216.9900936
A23: 510 | B23: 510 | C23: 0 | D23: 0 | E23: 510 | F23: 510 | G23: -1000 | H23: 0 | I23: 180 | J23: 1000 | K23: 0.914 | L23: 0.9141 | M23: 0.7619628162 | O23: 205.9252828
A24: 540 | B24: 540 | C24: 0 | D24: 0 | E24: 540 | F24: 540 | G24: -1000 | H24: 0 | I24: 180 | J24: 1000 | K24: 0.9678 | L24: 0.9679 | M24: 0.7619628162 | O24: 195.8608894
A25: 570 | B25: 570 | C25: 0 | D25: 0 | E25: 570 | F25: 570 | G25: -1000 | H25: 0 | I25: 180 | J25: 1000 | K25: 1.0216 | L25: 1.0216 | M25: 0.7619628162 | O25: 186.6853333
A26: 600 | B26: 600 | C26: 0 | D26: 0 | E26: 600 | F26: 600 | G26: -1000 | H26: 0 | I26: 180 | J26: 1000 | K26: 1.0753 | L26: 1.0754 | M26: 0.7619628162 | O26: 178.2858763
A27: 630 | B27: 630 | C27: 0 | D27: 0 | E27: 630 | F27: 630 | G27: -1000 | H27: 0 | I27: 180 | J27: 1000 | K27: 1.1291 | L27: 1.1292 | M27: 0.7619628162 | O27: 170.5668524
A28: 660 | B28: 660 | C28: 0 | D28: 0 | E28: 660 | F28: 660 | G28: -1000 | H28: 0 | I28: 180 | J28: 1000 | K28: 1.1829 | L28: 1.183 | M28: 0.7619628162 | O28: 163.4595169
A29: 690 | B29: 690 | C29: 0 | D29: 0 | E29: 690 | F29: 690 | G29: -1000 | H29: 0 | I29: 180 | J29: 1000 | K29: 1.2366 | L29: 1.2367 | M29: 0.7619628162 | O29: 156.9090345
A30: 720 | B30: 720 | C30: 0 | D30: 0 | E30: 720 | F30: 720 | G30: -1000 | H30: 0 | I30: 180 | J30: 1000 | K30: 1.2904 | L30: 1.2905 | M30: 0.7619628162 | O30: 150.8333261
A31: 750 | B31: 750 | C31: 0 | D31: 0 | E31: 750 | F31: 750 | G31: -1000 | H31: 0 | I31: 180 | J31: 1000 | K31: 1.3442 | L31: 1.3443 | M31: 0.7619628162 | O31: 145.1947926
A32: 780 | B32: 780 | C32: 0 | D32: 0 | E32: 780 | F32: 780 | G32: -1000 | H32: 0 | I32: 180 | J32: 1000 | K32: 1.3979 | L32: 1.398 | M32: 0.7619628162 | O32: 139.958948
A33: 810 | B33: 810 | C33: 0 | D33: 0 | E33: 810 | F33: 810 | G33: -1000 | H33: 0 | I33: 180 | J33: 1000 | K33: 1.4517 | L33: 1.4518 | M33: 0.7619628162 | O33: 135.0679105
A34: 840 | B34: 840 | C34: 0 | D34: 0 | E34: 840 | F34: 840 | G34: -1000 | H34: 0 | I34: 180 | J34: 1000 | K34: 1.5055 | L34: 1.5056 | M34: 0.7619628162 | O34: 130.498013
A35: 870 | B35: 870 | C35: 0 | D35: 0 | E35: 870 | F35: 870 | G35: -1000 | H35: 0 | I35: 180 | J35: 1000 | K35: 1.5593 | L35: 1.5594 | M35: 0.7619628162 | O35: 126.2195007
A36: 900 | B36: 900 | C36: 0 | D36: 0 | E36: 900 | F36: 900 | G36: -1000 | H36: 0 | I36: 180 | J36: 1000 | K36: 1.613 | L36: 1.6131 | M36: 0.7619628162 | O36: 122.213305
A37: 930 | B37: 930 | C37: 0 | D37: 0 | E37: 930 | F37: 930 | G37: -1000 | H37: 0 | I37: 180 | J37: 1000 | K37: 1.6668 | L37: 1.6669 | M37: =((ref_diam+offset_diam)/2)/(12*3.281) -> 0.7619628162 | O37: =(J37-M37-surface_margin)/(scaling_factor*(SQRT(K37^2+L37^2+sigma_pa^2))) -> 118.4412276
A38: 960 | B38: 960 | C38: 0 | D38: 0 | E38: 960 | F38: 960 | G38: -1000 | H38: 0 | I38: 180 | J38: 1000 | K38: 1.7206 | L38: 1.7207 | M38: 0.7619628162 | O38: 114.8902387
A39: 990 | B39: 990 | C39: 0 | D39: 0 | E39: 990 | F39: 990 | G39: -1000 | H39: 0 | I39: 180 | J39: 1000 | K39: 1.7743 | L39: 1.7744 | M39: 0.7619628162 | O39: 111.5479039
A40: 1020 | B40: 1020 | C40: -0.35 | D40: 0 | E40: 1020 | F40: 1020 | G40: -1000 | H40: 0 | I40: 180 | J40: 999.65 | K40: 1.8254 | L40: 1.8282 | M40: 0.7619628162 | O40: 108.4244501
A41: 1050 | B41: 1049.97 | C41: -1.57 | D41: 0 | E41: 1049.97 | F41: 1049.97 | G41: -1000 | H41: 0 | I41: 180 | J41: 998.43 | K41: 1.8739 | L41: 1.8819 | M41: 0.7619628162 | O41: 105.4472602
A42: 1080 | B42: 1079.88 | C42: -3.83 | D42: 0 | E42: 1079.88 | F42: 1079.88 | G42: -1000 | H42: 0 | I42: 180 | J42: 996.17 | K42: 1.9226 | L42: 1.9355 | M42: 0.7619628162 | O42: 102.5101803
A43: 1110 | B43: 1109.7 | C43: -7.14 | D43: 0 | E43: 1109.7 | F43: 1109.7 | G43: -1000 | H43: 0 | I43: 180 | J43: 992.86 | K43: 1.9714 | L43: 1.989 | M43: 0.7619628162 | O43: 99.61226165
A44: 1140 | B44: 1139.38 | C44: -11.49 | D44: 0 | E44: 1139.38 | F44: 1139.38 | G44: -1000 | H44: 0 | I44: 180 | J44: 988.51 | K44: 2.0202 | L44: 2.0422 | M44: 0.7619628162 | O44: 96.75892807
A45: 1170 | B45: 1168.89 | C45: -16.87 | D45: 0 | E45: 1168.89 | F45: 1168.89 | G45: -1000 | H45: 0 | I45: 180 | J45: 983.13 | K45: 2.0691 | L45: 2.0951 | M45: 0.7619628162 | O45: 93.94551273
A46: 1200 | B46: 1198.2 | C46: -23.27 | D46: 0 | E46: 1198.2 | F46: 1198.2 | G46: -1000 | H46: 0 | I46: 180 | J46: 976.73 | K46: 2.1178 | L46: 2.1476 | M46: 0.7619628162 | O46: 91.17836737
A47: 1230 | B47: 1227.27 | C47: -30.7 | D47: 0 | E47: 1227.27 | F47: 1227.27 | G47: -1000 | H47: 0 | I47: 180 | J47: 969.3 | K47: 2.1665 | L47: 2.1997 | M47: 0.7619628162 | O47: 88.44867575
A48: 1260 | B48: 1256.05 | C48: -39.13 | D48: 0 | E48: 1256.05 | F48: 1256.05 | G48: -1000 | H48: 0 | I48: 180 | J48: 960.87 | K48: 2.215 | L48: 2.2513 | M48: 0.7619628162 | O48: 85.76175695
A49: 1290 | B49: 1284.53 | C49: -48.57 | D49: 0 | E49: 1284.53 | F49: 1284.53 | G49: -1000 | H49: 0 | I49: 180 | J49: 951.43 | K49: 2.2635 | L49: 2.3023 | M49: 0.7619628162 | O49: 83.11125135
A50: 1320 | B50: 1312.66 | C50: -58.99 | D50: 0 | E50: 1312.66 | F50: 1312.66 | G50: -1000 | H50: 0 | I50: 180 | J50: 941.01 | K50: 2.3118 | L50: 2.3528 | M50: 0.7619628162 | O50: 80.49826497
A51: 1350 | B51: 1340.41 | C51: -70.38 | D51: 0 | E51: 1340.41 | F51: 1340.41 | G51: -1000 | H51: 0 | I51: 180 | J51: 929.62 | K51: 2.3599 | L51: 2.4025 | M51: 0.7619628162 | O51: 77.92522069
A52: 1380 | B52: 1367.74 | C52: -82.74 | D52: 0 | E52: 1367.74 | F52: 1367.74 | G52: -1000 | H52: 0 | I52: 180 | J52: 917.26 | K52: 2.4079 | L52: 2.4515 | M52: 0.7619628162 | O52: 75.38529705
A53: 1410 | B53: 1394.63 | C53: -96.05 | D53: 0 | E53: 1394.63 | F53: 1394.63 | G53: -1000 | H53: 0 | I53: 180 | J53: 903.95 | K53: 2.4558 | L53: 2.4997 | M53: 0.7619628162 | O53: 72.87856056
A54: 1440 | B54: 1421.03 | C54: -110.29 | D54: 0 | E54: 1421.03 | F54: 1421.03 | G54: -1000 | H54: 0 | I54: 180 | J54: 889.71 | K54: 2.5034 | L54: 2.547 | M54: 0.7619628162 | O54: 70.40760609
A55: 1470 | B55: 1446.93 | C55: -125.43 | D55: 0 | E55: 1446.93 | F55: 1446.93 | G55: -1000 | H55: 0 | I55: 180 | J55: 874.57 | K55: 2.5508 | L55: 2.5934 | M55: 0.7619628162 | O55: 67.96992646
A56: 1500 | B56: 1472.28 | C56: -141.48 | D56: 0 | E56: 1472.28 | F56: 1472.28 | G56: -1000 | H56: 0 | I56: 180 | J56: 858.52 | K56: 2.598 | L56: 2.6388 | M56: 0.7619628162 | O56: 65.56279996
A57: 1530 | B57: 1497.05 | C57: -158.39 | D57: 0 | E57: 1497.05 | F57: 1497.05 | G57: -1000 | H57: 0 | I57: 180 | J57: 841.61 | K57: 2.6449 | L57: 2.6832 | M57: 0.7619628162 | O57: 63.1880343
A58: 1560 | B58: 1521.22 | C58: -176.17 | D58: 0 | E58: 1521.22 | F58: 1521.22 | G58: -1000 | H58: 0 | I58: 180 | J58: 823.83 | K58: 2.6914 | L58: 2.7266 | M58: 0.7619628162 | O58: 60.84274831
A59: 1590 | B59: 1544.75 | C59: -194.77 | D59: 0 | E59: 1544.75 | F59: 1544.75 | G59: -1000 | H59: 0 | I59: 180 | J59: 805.23 | K59: 2.7375 | L59: 2.7687 | M59: 0.7619628162 | O59: 58.53060277
A60: 1620 | B60: 1567.62 | C60: -214.19 | D60: 0 | E60: 1567.62 | F60: 1567.62 | G60: -1000 | H60: 0 | I60: 180 | J60: 785.81 | K60: 2.7832 | L60: 2.8097 | M60: 0.7619628162 | O60: 56.24602334
A61: 1650 | B61: 1589.79 | C61: -234.39 | D61: 0 | E61: 1589.79 | F61: 1589.79 | G61: -1000 | H61: 0 | I61: 180 | J61: 765.61 | K61: 2.8282 | L61: 2.8495 | M61: 0.7619628162 | O61: 53.9925795
A62: 1680 | B62: 1611.25 | C62: -255.35 | D62: 0 | E62: 1611.25 | F62: 1611.25 | G62: -1000 | H62: 0 | I62: 180 | J62: 744.65 | K62: 2.8726 | L62: 2.8879 | M62: 0.7619628162 | O62: 51.76904262
A63: 1710 | B63: 1631.97 | C63: -277.05 | D63: 0 | E63: 1631.97 | F63: 1631.97 | G63: -1000 | H63: 0 | I63: 180 | J63: 722.95 | K63: 2.9163 | L63: 2.9251 | M63: 0.7619628162 | O63: 49.57246621
A64: 1740 | B64: 1651.91 | C64: -299.46 | D64: 0 | E64: 1651.91 | F64: 1651.91 | G64: -1000 | H64: 0 | I64: 180 | J64: 700.54 | K64: 2.9591 | L64: 2.9608 | M64: 0.7619628162 | O64: 47.40568644
A65: 1770 | B65: 1671.06 | C65: -322.55 | D65: 0 | E65: 1671.06 | F65: 1671.06 | G65: -1000 | H65: 0 | I65: 180 | J65: 677.45 | K65: 3.0009 | L65: 2.9951 | M65: 0.7619628162 | O65: 45.26701893
A66: 1800 | B66: 1689.39 | C66: -346.29 | D66: 0 | E66: 1689.39 | F66: 1689.39 | G66: -1000 | H66: 0 | I66: 180 | J66: 653.71 | K66: 3.0417 | L66: 3.028 | M66: 0.7619628162 | O66: 43.15493087
A67: 1830 | B67: 1706.89 | C67: -370.66 | D67: 0 | E67: 1706.89 | F67: 1706.89 | G67: -1000 | H67: 0 | I67: 180 | J67: 629.34 | K67: 3.0812 | L67: 3.0593 | M67: 0.7619628162 | O67: 41.07067083
A68: 1860 | B68: 1723.52 | C68: -395.63 | D68: 0 | E68: 1723.52 | F68: 1723.52 | G68: -1000 | H68: 0 | I68: 180 | J68: 604.37 | K68: 3.1195 | L68: 3.0892 | M68: 0.7619628162 | O68: 39.01052617
A69: 1890 | B69: 1739.27 | C69: -421.16 | D69: 0 | E69: 1739.27 | F69: 1739.27 | G69: -1000 | H69: 0 | I69: 180 | J69: 578.84 | K69: 3.1563 | L69: 3.1174 | M69: =((ref_diam+offset_diam)/2)/(12*3.281) -> 0.7619628162 | O69: =(J69-M69-surface_margin)/(scaling_factor*(SQRT(K69^2+L69^2+sigma_pa^2))) -> 36.97726977
A70: 1920 | B70: 1754.12 | C70: -447.23 | D70: 0 | E70: 1754.12 | F70: 1754.12 | G70: -1000 | H70: 0 | I70: 180 | J70: 552.77 | K70: 3.1915 | L70: 3.144 | M70: 0.7619628162 | O70: 34.96834288
A71: 1950 | B71: 1768.05 | C71: -473.79 | D71: 0 | E71: 1768.05 | F71: 1768.05 | G71: -1000 | H71: 0 | I71: 180 | J71: 526.21 | K71: 3.2251 | L71: 3.169 | M71: 0.7619628162 | O71: 32.98323531
A72: 1980 | B72: 1781.04 | C72: -500.83 | D72: 0 | E72: 1781.04 | F72: 1781.04 | G72: -1000 | H72: 0 | I72: 180 | J72: 499.17 | K72: 3.2569 | L72: 3.1923 | M72: 0.7619628162 | O72: 31.02046205
A73: 2010 | B73: 1793.09 | C73: -528.31 | D73: 0 | E73: 1793.09 | F73: 1793.09 | G73: -1000 | H73: 0 | I73: 180 | J73: 471.69 | K73: 3.2869 | L73: 3.2139 | M73: 0.7619628162 | O73: 29.07882185
A74: 2040 | B74: 1804.16 | C74: -556.19 | D74: 0 | E74: 1804.16 | F74: 1804.16 | G74: -1000 | H74: 0 | I74: 180 | J74: 443.81 | K74: 3.3149 | L74: 3.2337 | M74: 0.7619628162 | O74: 27.15845078
A75: 2070 | B75: 1814.26 | C75: -584.43 | D75: 0 | E75: 1814.26 | F75: 1814.26 | G75: -1000 | H75: 0 | I75: 180 | J75: 415.57 | K75: 3.3408 | L75: 3.2518 | M75: 0.7619628162 | O75: 25.2580731
A76: 2100 | B76: 1823.37 | C76: -613.02 | D76: 0 | E76: 1823.37 | F76: 1823.37 | G76: -1000 | H76: 0 | I76: 180 | J76: 386.98 | K76: 3.3647 | L76: 3.2681 | M76: 0.7619628162 | O76: 23.37467569
A77: 2130 | B77: 1831.47 | C77: -641.9 | D77: 0 | E77: 1831.47 | F77: 1831.47 | G77: -1000 | H77: 0 | I77: 180 | J77: 358.1 | K77: 3.3863 | L77: 3.2826 | M77: 0.7619628162 | O77: 21.50936897
A78: 2160 | B78: 1838.56 | C78: -671.05 | D78: 0 | E78: 1838.56 | F78: 1838.56 | G78: -1000 | H78: 0 | I78: 180 | J78: 328.95 | K78: 3.4058 | L78: 3.2954 | M78: 0.7619628162 | O78: 19.65881037
A79: 2190 | B79: 1844.63 | C79: -700.43 | D79: 0 | E79: 1844.63 | F79: 1844.63 | G79: -1000 | H79: 0 | I79: 180 | J79: 299.57 | K79: 3.423 | L79: 3.3062 | M79: 0.7619628162 | O79: 17.82338861
A80: 2220 | B80: 1849.66 | C80: -730 | D80: 0 | E80: 1849.66 | F80: 1849.66 | G80: -1000 | H80: 0 | I80: 180 | J80: 270 | K80: 3.438 | L80: 3.3153 | M80: 0.7619628162 | O80: 16.00090592
A81: 2250 | B81: 1853.67 | C81: -759.73 | D81: 0 | E81: 1853.67 | F81: 1853.67 | G81: -1000 | H81: 0 | I81: 180 | J81: 240.27 | K81: 3.4507 | L81: 3.3224 | M81: 0.7619628162 | O81: 14.1907138
A82: 2280 | B82: 1856.72 | C82: -789.57 | D82: 0 | E82: 1856.72 | F82: 1856.72 | G82: -1000 | H82: 0 | I82: 180 | J82: 210.43 | K82: 3.4614 | L82: 3.3279 | M82: 0.7619628162 | O82: 12.39100479
A83: 2310 | B83: 1859.33 | C83: -819.46 | D83: 0 | E83: 1859.33 | F83: 1859.33 | G83: -1000 | H83: 0 | I83: 180 | J83: 180.54 | K83: 3.4712 | L83: 3.3326 | M83: 0.7619628162 | O83: 10.59948462
A84: 2340 | B84: 1861.95 | C84: -849.34 | D84: 0 | E84: 1861.95 | F84: 1861.95 | G84: -1000 | H84: 0 | I84: 180 | J84: 150.66 | K84: 3.4811 | L84: 3.3373 | M84: 0.7619628162 | O84: 8.816006811
A85: 2370 | B85: 1864.56 | C85: -879.23 | D85: 0 | E85: 1864.56 | F85: 1864.56 | G85: -1000 | H85: 0 | I85: 180 | J85: 120.77 | K85: 3.4912 | L85: 3.342 | M85: 0.7619628162 | O85: 7.039321568
A86: 2400 | B86: 1867.18 | C86: -909.12 | D86: 0 | E86: 1867.18 | F86: 1867.18 | G86: -1000 | H86: 0 | I86: 180 | J86: 90.88 | K86: 3.5014 | L86: 3.3466 | M86: 0.7619628162 | O86: 5.270283907
A87: 2430 | B87: 1869.79 | C87: -939 | D87: 0 | E87: 1869.79 | F87: 1869.79 | G87: -1000 | H87: 0 | I87: 180 | J87: 61 | K87: 3.5118 | L87: 3.3513 | M87: 0.7619628162 | O87: 3.50928585
A88: 2460 | B88: 1872.41 | C88: -968.89 | D88: 0 | E88: 1872.41 | F88: 1872.41 | G88: -1000 | H88: 0 | I88: 180 | J88: 31.11 | K88: 3.5223 | L88: 3.356 | M88: 0.7619628162 | O88: 1.75538963
A89: 2490 | B89: 1875.02 | C89: -998.77 | D89: 0 | E89: 1875.02 | F89: 1875.02 | G89: -1000 | H89: 0 | I89: 180 | J89: 1.23 | K89: 3.533 | L89: 3.3607 | M89: 0.7619628162 | O89: 0.009794743273
A90: 2520 | B90: 1877.64 | C90: -1028.66 | D90: 0 | E90: 1877.64 | F90: 1877.64 | G90: -1000 | H90: 0 | I90: 360 | J90: 28.66 | K90: 3.5438 | L90: 3.3654 | M90: 0.7619628162 | O90: 1.60506113
A91: 2550 | B91: 1880.25 | C91: -1058.55 | D91: 0 | E91: 1880.25 | F91: 1880.25 | G91: -1000 | H91: 0 | I91: 360 | J91: 58.55 | K91: 3.5548 | L91: 3.3701 | M91: 0.7619628162 | O91: 3.335843848
A92: 2580 | B92: 1882.87 | C92: -1088.43 | D92: 0 | E92: 1882.87 | F92: 1882.87 | G92: -1000 | H92: 0 | I92: 360 | J92: 88.43 | K92: 3.5659 | L92: 3.3748 | M92: 0.7619628162 | O92: 5.058144128
A93: 2610 | B93: 1885.48 | C93: -1118.32 | D93: 0 | E93: 1885.48 | F93: 1885.48 | G93: -1000 | H93: 0 | I93: 360 | J93: 118.32 | K93: 3.5772 | L93: 3.3795 | M93: 0.7619628162 | O93: 6.772996349
A94: 2640 | B94: 1888.09 | C94: -1148.2 | D94: 0 | E94: 1888.09 | F94: 1888.09 | G94: -1000 | H94: 0 | I94: 360 | J94: 148.2 | K94: 3.5886 | L94: 3.3841 | M94: 0.7619628162 | O94: 8.479385107
A95: 2670 | B95: 1890.71 | C95: -1178.09 | D95: 0 | E95: 1890.71 | F95: 1890.71 | G95: -1000 | H95: 0 | I95: 360 | J95: 178.09 | K95: 3.6002 | L95: 3.3888 | M95: 0.7619628162 | O95: 10.17808162
A96: 2700 | B96: 1893.32 | C96: -1207.97 | D96: 0 | E96: 1893.32 | F96: 1893.32 | G96: -1000 | H96: 0 | I96: 360 | J96: 207.97 | K96: 3.6119 | L96: 3.3935 | M96: 0.7619628162 | O96: 11.86810478
A97: 2730 | B97: 1895.94 | C97: -1237.86 | D97: 0 | E97: 1895.94 | F97: 1895.94 | G97: -1000 | H97: 0 | I97: 360 | J97: 237.86 | K97: 3.6238 | L97: 3.3982 | M97: 0.7619628162 | O97: 13.55038446
A98: 2760 | B98: 1898.55 | C98: -1267.75 | D98: 0 | E98: 1898.55 | F98: 1898.55 | G98: -1000 | H98: 0 | I98: 360 | J98: 267.75 | K98: 3.6358 | L98: 3.4029 | M98: 0.7619628162 | O98: 15.22447368
A99: 2790 | B99: 1900.91 | C99: -1297.65 | D99: 0 | E99: 1900.91 | F99: 1900.91 | G99: -1000 | H99: 0 | I99: 360 | J99: 297.65 | K99: 3.6474 | L99: 3.4071 | M99: 0.7619628162 | O99: 16.89329006
A100: 2820 | B100: 1902.48 | C100: -1327.61 | D100: 0 | E100: 1902.48 | F100: 1902.48 | G100: -1000 | H100: 0 | I100: 360 | J100: 327.61 | K100: 3.6574 | L100: 3.4099 | M100: 0.7619628162 | O100: 18.56581452
A101: 2850 | B101: 1903 | C101: -1357.6 | D101: 0 | E101: 1903 | F101: 1903 | G101: -1000 | H101: 0 | I101: 360 | J101: 357.6 | K101: 3.6651 | L101: 3.4109 | M101: 0.7619628162 | O101: 20.24557035
A102: 2880 | B102: 1903 | C102: -1387.6 | D102: 0 | E102: 1903 | F102: 1903 | G102: -1000 | H102: 0 | I102: 360 | J102: 387.6 | K102: 3.6718 | L102: 3.4109 | M102: 0.7619628162 | O102: 21.92780537
A103: 2910 | B103: 1903 | C103: -1417.6 | D103: 0 | E103: 1903 | F103: 1903 | G103: -1000 | H103: 0 | I103: 360 | J103: 417.6 | K103: 3.6786 | L103: 3.4109 | M103: 0.7619628162 | O103: =(J103-M103-surface_margin)/(scaling_factor*(SQRT(K103^2+L103^2+sigma_pa^2))) -> 23.60642076
A104: 2940 | B104: 1903 | C104: -1447.6 | D104: 0 | E104: 1903 | F104: 1903 | G104: -1000 | H104: 0 | I104: 360 | J104: 447.6 | K104: 3.6855 | L104: 3.4109 | M104: 0.7619628162 | O104: 25.28134933

Sheet 10 - well
A1: Wellpath | B1: Offset 10: Sidetrack from reference drilled wellpath r4
A3: REPORT SETUP INFORMATION
A4: Projection System | B4: ED50 / UTM Zone 31 North
A5: North Reference | B5: Grid
A6: Scale | B6: 0.9996
A7: Convergence at slot | B7: 0.00° East
A9: WELLPATH LOCATION | B9: Local North | C9: Local East | D9: Easting | E9: Northing | F9: Latitude | G9: Longitude
B10: [m] | C10: [m] | D10: [m] | E10: [m]
B11: 0 | C11: 0 | D11: 500000 | E11: 6651566.71 | F11: 60°00'00.000"N | G11: 3°00'00.000"E
B15: MD | C15: Inclination | D15: Azimuth | E15: TVD | F15: North | G15: East | H15: sigmaH | I15: sigmaL | J15: sigmaA
B16: [m] | C16: [°] | D16: [°] | E16: [m] | F16: [m] | G16: [m]
B17: 900 | C17: 0 | D17: 180 | E17: 900 | F17: 0 | G17: 0 | H17: 0 | I17: 0 | J17: 0 | K17: Sidetrak point on Reference well
B18: 930 | C18: 3 | D18: 130 | E18: 929.99 | F18: -0.5 | G18: 0.6 | H18: 0.0458 | I18: 0.0389 | J18: 0.6632
B19: 960 | C19: 6 | D19: 130 | E19: 959.89 | F19: -2.02 | G19: 2.4 | H19: 0.1011 | I19: 0.0906 | J19: 0.6797
B20: 990 | C20: 9 | D20: 130 | E20: 989.63 | F20: -4.53 | G20: 5.4 | H20: 0.1624 | I20: 0.1535 | J20: 0.6952
B21: 1020 | C21: 12 | D21: 130 | E21: 1019.12 | F21: -8.05 | G21: 9.59 | H21: 0.2258 | I21: 0.2257 | J21: 0.7097
B22: 1050 | C22: 15 | D22: 130 | E22: 1048.29 | F22: -12.55 | G22: 14.96 | H22: 0.2909 | I22: 0.3085 | J22: 0.7232
B23: 1080 | C23: 18 | D23: 130 | E23: 1077.05 | F23: -18.03 | G23: 21.48 | H23: 0.3575 | I23: 0.4033 | J23: 0.7358
B24: 1110 | C24: 21 | D24: 130 | E24: 1105.33 | F24: -24.46 | G24: 29.15 | H24: 0.4258 | I24: 0.5112 | J24: 0.7476
B25: 1140 | C25: 24 | D25: 130 | E25: 1133.04 | F25: -31.84 | G25: 37.95 | H25: 0.4956 | I25: 0.6334 | J25: 0.7587
B26: 1170 | C26: 27 | D26: 130 | E26: 1160.12 | F26: -40.14 | G26: 47.84 | H26: 0.5669 | I26: 0.7708 | J26: 0.7693
B27: 1200 | C27: 30 | D27: 130 | E27: 1186.48 | F27: -49.34 | G27: 58.8 | H27: 0.6397 | I27: 0.9239 | J27: 0.7796
B28: 1230 | C28: 33 | D28: 130 | E28: 1212.06 | F28: -59.42 | G28: 70.81 | H28: 0.7139 | I28: 1.0934 | J28: 0.79
B29: 1260 | C29: 36 | D29: 130 | E29: 1236.78 | F29: -70.34 | G29: 83.82 | H29: 0.7894 | I29: 1.2797 | J29: 0.8007
B30: 1290 | C30: 39 | D30: 130 | E30: 1260.57 | F30: -82.07 | G30: 97.81 | H30: 0.866 | I30: 1.483 | J30: 0.8122
B31: 1320 | C31: 39.83 | D31: 133.11 | E31: 1283.75 | F31: -94.71 | G31: 112.06 | H31: 0.9395 | I31: 1.6958 | J31: 0.8312
B32: 1350 | C32: 39.73 | D32: 137.79 | E32: 1306.81 | F32: -108.38 | G32: 125.52 | H32: 1.0206 | I32: 1.901 | J32: 0.8605
B33: 1380 | C33: 39.82 | D33: 142.48 | E33: 1329.88 | F33: -123.1 | G33: 137.81 | H33: 1.113 | I33: 2.0925 | J33: 0.9006
B34: 1410 | C34: 40.1 | D34: 147.13 | E34: 1352.88 | F34: -138.84 | G34: 148.91 | H34: 1.216 | I34: 2.2693 | J34: 0.9533
B35: 1440 | C35: 40.56 | D35: 151.71 | E35: 1375.75 | F35: -155.55 | G35: 158.78 | H35: 1.3279 | I35: 2.4312 | J35: 1.0196
B36: 1470 | C36: 41.2 | D36: 156.19 | E36: 1398.44 | F36: -173.18 | G36: 167.39 | H36: 1.4462 | I36: 2.5787 | J36: 1.0999
B37: 1500 | C37: 42 | D37: 160.55 | E37: 1420.88 | F37: -191.69 | G37: 174.72 | H37: 1.5683 | I37: 2.7126 | J37: 1.1941
B38: 1530 | C38: 42.97 | D38: 164.75 | E38: 1443 | F38: -211.02 | G38: 180.76 | H38: 1.6911 | I38: 2.8348 | J38: 1.3011
B39: 1560 | C39: 44.08 | D39: 168.8 | E39: 1464.76 | F39: -231.13 | G39: 185.47 | H39: 1.8122 | I39: 2.9465 | J39: 1.4202
B40: 1590 | C40: 45.33 | D40: 172.68 | E40: 1486.09 | F40: -251.95 | G40: 188.86 | H40: 1.9293 | I40: 3.0498 | J40: 1.55
B41: 1620 | C41: 46.71 | D41: 176.38 | E41: 1506.92 | F41: -273.43 | G41: 190.91 | H41: 2.0404 | I41: 3.1468 | J41: 1.6892
B42: 1650 | C42: 48.2 | D42: 179.92 | E42: 1527.21 | F42: -295.51 | G42: 191.62 | H42: 2.1445 | I42: 3.2389 | J42: 1.8368
B43: 1680 | C43: 49.79 | D43: 183.28 | E43: 1546.9 | F43: -318.14 | G43: 190.98 | H43: 2.2403 | I43: 3.3288 | J43: 1.9911
B44: 1710 | C44: 51.48 | D44: 186.49 | E44: 1565.93 | F44: -341.24 | G44: 188.99 | H44: 2.3274 | I44: 3.4176 | J44: 2.1518
B45: 1740 | C45: 53.25 | D45: 189.55 | E45: 1584.25 | F45: -364.76 | G45: 185.67 | H45: 2.4057 | I45: 3.5074 | J45: 2.3174
B46: 1770 | C46: 55.1 | D46: 192.47 | E46: 1601.81 | F46: -388.63 | G46: 181.02 | H46: 2.4751 | I46: 3.5997 | J46: 2.4873
B47: 1800 | C47: 57.01 | D47: 195.26 | E47: 1618.56 | F47: -412.78 | G47: 175.05 | H47: 2.5362 | I47: 3.6963 | J47: 2.6602
B48: 1830 | C48: 58.98 | D48: 197.93 | E48: 1634.46 | F48: -437.16 | G48: 167.78 | H48: 2.5894 | I48: 3.7985 | J48: 2.8356
B49: 1860 | C49: 61 | D49: 200.48 | E49: 1649.47 | F49: -461.68 | G49: 159.23 | H49: 2.6354 | I49: 3.9083 | J49: 3.0121
B50: 1890 | C50: 63.07 | D50: 202.94 | E50: 1663.54 | F50: -486.3 | G50: 149.43 | H50: 2.6751 | I50: 4.0259 | J50: 3.1901
B51: 1920 | C51: 64 | D51: 204 | E51: 1676.91 | F51: -510.93 | G51: 138.73 | H51: 2.7359 | I51: 4.2127 | J51: 3.2734
B52: 1950 | C52: 64 | D52: 204 | E52: 1690.06 | F52: -535.56 | G52: 127.76 | H52: 2.8178 | I52: 4.4542 | J52: 3.2797
B53: 1980 | C53: 64 | D53: 204 | E53: 1703.21 | F53: -560.19 | G53: 116.79 | H53: 2.9014 | I53: 4.7011 | J53: 3.2862
B54: 2010 | C54: 64 | D54: 204 | E54: 1716.36 | F54: -584.83 | G54: 105.83 | H54: 2.9866 | I54: 4.9526 | J54: 3.2929
B55: 2040 | C55: 64 | D55: 204 | E55: 1729.51 | F55: -609.46 | G55: 94.86 | H55: 3.0733 | I55: 5.208 | J55: 3.2999
B56: 2070 | C56: 64 | D56: 204 | E56: 1742.66 | F56: -634.09 | G56: 83.89 | H56: 3.1614 | I56: 5.4668 | J56: 3.307
B57: 2100 | C57: 64 | D57: 204 | E57: 1755.81 | F57: -658.72 | G57: 72.93 | H57: 3.2507 | I57: 5.7285 | J57: 3.3144
B58: 2130 | C58: 64 | D58: 204 | E58: 1768.96 | F58: -683.36 | G58: 61.96 | H58: 3.3412 | I58: 5.9928 | J58: 3.3221
B59: 2160 | C59: 64 | D59: 204 | E59: 1782.12 | F59: -707.99 | G59: 50.99 | H59: 3.4327 | I59: 6.2593 | J59: 3.3299
B60: 2190 | C60: 64 | D60: 204 | E60: 1795.27 | F60: -732.62 | G60: 40.02 | H60: 3.5252 | I60: 6.5277 | J60: 3.338
B61: 2220 | C61: 64 | D61: 204 | E61: 1808.42 | F61: -757.26 | G61: 29.06 | H61: 3.6186 | I61: 6.7979 | J61: 3.3463
B62: 2250 | C62: 64 | D62: 204 | E62: 1821.57 | F62: -781.89 | G62: 18.09 | H62: 3.7129 | I62: 7.0695 | J62: 3.3549
B63: 2280 | C63: 64 | D63: 204 | E63: 1834.72 | F63: -806.52 | G63: 7.12 | H63: 3.8079 | I63: 7.3425 | J63: 3.3637
B64: 2310 | C64: 64 | D64: 204 | E64: 1847.87 | F64: -831.15 | G64: -3.84 | H64: 3.9036 | I64: 7.6168 | J64: 3.3727
B65: 2340 | C65: 64 | D65: 204 | E65: 1861.02 | F65: -855.79 | G65: -14.81 | H65: 4 | I65: 7.8921 | J65: 3.382
B66: 2370 | C66: 64 | D66: 204 | E66: 1874.17 | F66: -880.42 | G66: -25.78 | H66: 4.097 | I66: 8.1683 | J66: 3.3915
B67: 2400 | C67: 64 | D67: 204 | E67: 1887.32 | F67: -905.05 | G67: -36.75 | H67: 4.1945 | I67: 8.4455 | J67: 3.4012
B68: 2430 | C68: 64 | D68: 204 | E68: 1900.48 | F68: -929.68 | G68: -47.71 | H68: 4.2926 | I68: 8.7234 | J68: 3.4112

Sheet 10 - clearance
A1: Offset 10
A2: Offset 10: Sidetrack from reference drilled wellpath r4
A3: Ref_MD | B3: Ref_TVD | C3: Ref_N | D3: Ref_E | E3: Offset_MD | F3: Offset_TVD | G3: Offset_N | H3: Offset_E | I3: Horiz_Bearing | J3: C-C Clr Dist | K3: Ref PCR | L3: Offset PCR | M3: Calc hole | O3: ISCWSA ACR
A4: [m] | B4: [m] | C4: [m] | D4: [m] | E4: [m] | F4: [m] | G4: [m] | H4: [m] | I4: [°] | J4: [m] | K4: [m 1sigma] | L4: [m 1sigma] | M4: [m]
A5: 900 | B5: 900 | C5: 0 | D5: 0 | E5: 900 | F5: 900 | G5: 0 | H5: 0 | I5: 0 | J5: 0 | K5: 0 | L5: 0 | M5: =((ref_diam+offset_diam)/2)/(12*3.281) -> 0.7619628162 | O5: =(J5-M5-surface_margin)/(scaling_factor*(SQRT(K5^2+L5^2+sigma_pa^2))) -> -0.606835895
A6: 930 | B6: 930 | C6: 0 | D6: 0 | E6: 929.97 | F6: 929.96 | G6: -0.5 | H6: 0.6 | I6: 130 | J6: 0.78 | K6: 0.06 | L6: 0.05 | M6: 0.7619628162 | O6: -0.1591911815
A7: 960 | B7: 960 | C7: 0 | D7: 0 | E7: 959.78 | F7: 959.67 | G7: -2 | H7: 2.39 | I7: 130 | J7: 3.13 | K7: 0.13 | L7: 0.1 | M7: 0.7619628162 | O7: 1.122868299
A8: 990 | B8: 990 | C8: 0 | D8: 0 | E8: 989.27 | F8: 988.91 | G8: -4.46 | H8: 5.32 | I8: 130 | J8: 7.03 | K8: 0.19 | L8: 0.16 | M8: 0.7619628162 | O8: 3.054183136
A9: 1020 | B9: 1020 | C9: -0.35 | D9: 0 | E9: 1018.33 | F9: 1017.49 | G9: -7.83 | H9: 9.33 | I9: 128.722 | J9: 12.21 | K9: 0.25 | L9: 0.22 | M9: 0.7619628162 | O9: 5.301965815
A10: 1050 | B10: 1049.97 | C10: -1.57 | D10: 0 | E10: 1046.93 | F10: 1045.32 | G10: -12.04 | H10: 14.35 | I10: 126.124 | J10: 18.37 | K10: 0.31 | L10: 0.28 | M10: 0.7619628162 | O10: 7.58998518
A11: 1080 | B11: 1079.88 | C11: -3.83 | D11: 0 | E11: 1075.01 | F11: 1072.3 | G11: -17.05 | H11: 20.32 | I11: 123.042 | J11: 25.39 | K11: 0.37 | L11: 0.35 | M11: 0.7619628162 | O11: 9.738892147
A12: 1110 | B12: 1109.7 | C12: -7.14 | D12: 0 | E12: 1102.52 | F12: 1098.32 | G12: -22.77 | H12: 27.13 | I12: 119.939 | J12: 33.31 | K12: 0.43 | L12: 0.41 | M12: 0.7619628162 | O12: 11.86524159
A13: 1140 | B13: 1139.38 | C13: -11.49 | D13: 0 | E13: 1129.41 | F13: 1123.33 | G13: -29.13 | H13: 34.71 | I13: 116.941 | J13: 42.12 | K13: 0.5 | L13: 0.48 | M13: 0.7619628162 | O13: 13.72618213
A14: 1170 | B14: 1168.89 | C14: -16.87 | D14: 0 | E14: 1155.65 | F14: 1147.25 | G14: -36.06 | H14: 42.97 | I14: 114.066 | J14: 51.8 | K14: 0.56 | L14: 0.55 | M14: 0.7619628162 | O14: 15.57692033
A15: 1200 | B15: 1198.2 | C15: -23.27 | D15: 0 | E15: 1181.2 | F15: 1170.05 | G15: -43.47 | H15: 51.81 | I15: 111.302 | J15: 62.33 | K15: 0.62 | L15: 0.63 | M15: 0.7619628162 | O15: 17.23746566
A16: 1230 | B16: 1227.27 | C16: -30.7 | D16: 0 | E16: 1206.07 | F16: 1191.72 | G16: -51.31 | H16: 61.15 | I16: 108.629 | J16: 73.67 | K16: 0.69 | L16: 0.69 | M16: 0.7619628162 | O16: 18.92031186
A17: 1260 | B17: 1256.05 | C17: -39.13 | D17: 0 | E17: 1230.22 | F17: 1212.24 | G17: -59.49 | H17: 70.9 | I17: 106.024 | J17: 85.8 | K17: 0.76 | L17: 0.78 | M17: 0.7619628162 | O17: 20.20380349
A18: 1290 | B18: 1284.53 | C18: -48.57 | D18: 0 | E18: 1253.67 | F18: 1231.64 | G18: -67.96 | H18: 81 | I18: 103.469 | J18: 98.66 | K18: 0.84 | L18: 0.86 | M18: 0.7619628162 | O18: 21.41719384
A19: 1320 | B19: 1312.66 | C19: -58.99 | D19: 0 | E19: 1276.42 | F19: 1249.92 | G19: -76.66 | H19: 91.36 | I19: 100.949 | J19: 112.23 | K19: 0.92 | L19: 0.95 | M19: 0.7619628162 | O19: 22.46551399
